Workbook

Sheet Informe
A1: ALQUILER DE VEHÍCULOS
B4: PRESUPUESTO APROBADO | E4: PORCENTAJE DE PRESPUESTO GASTADO
B5: OBLIGACIÓN A LA FECHA | E5: =TotalMonthlyExpenses -> 0 | H5: =TotalMonthlyExpenses/TotalMonthlyIncome -> 
B6: FONDOS DISPONIBLES | C6: =tblIncome[[#All],[Cantidad]]-tblExpenses[[#All],[Cantidad]] -> 0
E9: RESUMEN DE COSTOS POR COMPAÑIA
B10: Thrifty Car Rental (Abr 16 - Ago 16) | E10: Presupuesto Aprobado | F10: Costo de Alquileres | G10: Fondos Disponibles
B11: Clasificación | C11: Cantidad | E11: =tblIncome[[#All],[Cantidad]] -> 0 | F11: =TotalMonthlyExpenses -> 0 | G11: =TotalMonthlyIncome-TotalMonthlyExpenses -> 0
B12: 1. Reemplazo de Vehículo Oficial | C12: 142
B13: 2. Proyectos Especiales | C13: 23
B14: 3. Viajes Puntuales | C14: 80
B15: 4. Necesidades Operacionales Especiales | C15: 113
B16: Total | C16: =SUBTOTAL(109,tblExpenses5[Cantidad]) -> 358
B18: Thrifty Car Rental (Oct 15 - Mar 16)
B19: Clasificación | C19: Column1
B20: 1. Reemplazo de Vehículo Oficial
B21: 2. Proyectos Especiales
B22: 3. Viajes Puntuales | C22: 45
B23: 4. Necesidades Operacionales Especiales | C23: 108
B24: Total | C24: =SUBTOTAL(109,tblExpenses56[Column1]) -> 153
B26: Servicios Turísticos Panameños
B27: Clasificación | C27: Column1
B28: 1. Reemplazo de Vehículo Oficial
B29: 2. Proyectos Especiales
B30: 3. Viajes Puntuales | C30: 11
B31: 4. Necesidades Operacionales Especiales | C31: 0
B32: Total | C32: =SUBTOTAL(109,tblExpenses567[Column1]) -> 11

Sheet 18 AGO ALQUILER DE VEH AF-16
A1: PRESUPUESTO APROBADO | D1: =750000+75000 -> 825000 | J1: 1. REEMPLAZO DE VEHICULO OFICIAL
A2: OBLIGACIÓN A LA FECHA | D2: =+M793 -> 971973.01 | J2: 2. PROYECTOS ESPECIALES
J3: 3. VIAJES PUNTUALES
A4: FONDOS DISPONIBLES | C4: =+D1-D2 -> -146973.01 | J4: 4. NECESIDADES OPERACIONALES ADICIONALES
A5: Fecha de | B5: PR | C5: PO | D5: BUYER | E5: Fecha de | F5: PROYECTO | G5: TAREA | H5: CLASIFICACION | I5: VEHICULO DE REMPLAZO | J5: Servicio de alquiler de vehículo para la ACP - LOTE - C (Mini Van) | K5: Cantidad | L5: UOM | M5: Cantidad | N5: Cantidad | O5: Cantidad | P5: Período | R5: Factura
A6: Creación | E6: Aprobación | H6: 1/2/3/4 | J6: SERVICIOS TURISTICOS PANAMEÑOS S A COR302681MUL | K6: Ordenada | M6: Obligada | N6: Pagada | O6: Pendiente | P6: Desde | Q6: Hasta | R6: No.
A7: 2015-10-16T13:23:25 | B7: 747068 | C7: 341949 | D7: HOOKER, ANDREA IVETTE DE | E7: 2015-10-16T17:30:16 | F7: 29716 | G7: AV.OPRT | H7: 1 | I7: Veh 6002 - Jaime Gonzalez - 276-1192 | J7: LOTE - C - Servicio de alquiler semanal de vehículo a motor - mini van | K7: 3 | L7: Each | M7: 900 | O7: =+M7-N7 -> 900 | P7: 2015-10-18 | Q7: 2015-10-25
A8: 2015-11-06T11:02:18 | B8: 749789 | C8: 343274 | D8: BARSALLO TOUREAU, KARINA MINERVA | E8: 2015-11-09T10:07:43 | F8: 29716 | G8: AV.TISI | H8: 3 | I8: Viajes a Capira, Chorrera, Madden, etc del grupo de soporte de TISI - Iris Rodriguez - 276-3843 | J8: LOTE - C - Servicio de alquiler trimestral de vehículo a motor - mini van | K8: 1 | L8: Mo | M8: 4000 | O8: 4000 | P8: 2015-10-23 | Q8: 2015-12-22
A9: 2015-11-13T09:00:51 | B9: 751902 | C9: 343556 | D9: HOOKER, ANDREA IVETTE DE | E9: 2015-11-13T14:36:31 | F9: 29716 | G9: AV.OPRT | H9: CANCELADO - CA NCELADO | I9: CANCELADO - CA NCELADO | J9: LOTE - C - Servicio de alquiler diario de vehículo a motor - mini van | K9: 1 | L9: Each | M9: 50 | O9: 50 | P9: CANCELADO - CA NCELADO | Q9: CANCELADO - CA NCELADO
A10: 2015-11-13T09:00:51 | B10: 751902 | C10: 343556 | D10: HOOKER, ANDREA IVETTE DE | E10: 2015-11-13T14:36:31 | F10: 29716 | G10: AV.OPRT | H10: CANCELADO - CA NCELADO | I10: CANCELADO - CA NCELADO | J10: LOTE - C - Servicio de alquiler semanal de vehículo a motor - mini van | K10: 1 | L10: Each | M10: 300 | O10: 300 | P10: CANCELADO - CA NCELADO | Q10: CANCELADO - CA NCELADO
A11: 2015-12-09T16:03:09 | B11: 757120 | C11: 345362 | D11: PIMENTEL ARAUZ, MARIA ISABEL | E11: 2015-12-11T06:20:57 | F11: 29716 | G11: AV.FAP | H11: 3 | I11: Programa de Embajadores de Ilusión - Marlane de Chavez - 272-4507 | J11: LOTE - C - Servicio de alquiler diario de vehículo a motor - mini van | K11: 3 | L11: Each | M11: 150 | O11: 150 | P11: 2015-12-09 | Q11: 2015-12-11
A12: 2015-12-09T16:03:09 | B12: 757120 | C12: 345362 | D12: PIMENTEL ARAUZ, MARIA ISABEL | E12: 2015-12-11T06:20:57 | F12: 29716 | G12: AV.FAP | H12: 3 | I12: Programa de Embajadores de Ilusión - Marlane de Chavez - 272-4507 | J12: LOTE - C - Servicio de alquiler diario de vehículo a motor - mini van | K12: 1 | L12: Each | M12: 50 | O12: 50 | P12: 2015-12-10 | Q12: 2015-12-11
A13: 2015-12-09T16:03:09 | B13: 757325 | C13: 345362 | D13: PIMENTEL ARAUZ, MARIA ISABEL | E13: 2015-12-11T06:20:57 | F13: 29716 | G13: AV.FAP | H13: 3 | I13: Programa de Embajadores de Ilusión - Marlane de Chavez - 272-4507 | J13: LOTE - C - Servicio de alquiler diario de vehículo a motor - mini van | K13: 1 | L13: Each | M13: 50 | O13: 50 | P13: 2015-12-10 | Q13: 2015-12-11
A14: 2015-12-18T09:39:30 | B14: 758701 | C14: 346037 | D14: PEREA ROJAS, MONICA ISABEL | E14: 2015-12-21T07:34:30 | F14: 29716 | G14: AV.OPRD | H14: 1 | I14: Veh 8858 - Veh on Garantía - José Jones - 276-3324 | J14: Cargo por entrega (a la ACP o recoger en la ACP) Del vehículo en el Sector Atlántico (cada viaje representa una unidad por auto). | K14: 1 | L14: Each | M14: 50 | O14: 50 | P14: 2015-12-22 | Q14: 2016-01-05
A15: 2015-12-18T09:39:30 | B15: 758701 | C15: 346037 | D15: PEREA ROJAS, MONICA ISABEL | E15: 2015-12-21T07:34:30 | F15: 29716 | G15: AV.OPRD | H15: 1 | I15: Veh 8858 - Veh on Garantía - José Jones - 276-3324 | J15: LOTE - C - Servicio de alquiler semanal de vehículo a motor - mini van | K15: 2 | L15: Each | M15: 600 | O15: 600 | P15: 2015-12-22 | Q15: 2016-01-05
A16: 2015-12-23T09:30:26 | B16: 758977 | C16: 346264 | D16: UNG HO, ISABEL TELMA | E16: 2015-12-29T14:35:26 | F16: 29716 | G16: AV.TIOD | H16: 1 | I16: Veh 8930 - José Médica - 276-4403 | J16: LOTE - C - Servicio de alquiler semanal de vehículo a motor - mini van VIGENCIA: 29 DE DICIEMBRE 2015 AL 9 DE ENERO DEL 2016 Punto de contacto: Jose Manuel Medica Tel. 276-4403/ 4104/4100 Edificio 712, Corozal Oeste | K16: 2 | L16: Each | M16: 600 | O16: 600 | P16: 2015-12-29 | Q16: 2016-01-12
A17: 2015-12-30T14:57:14 | B17: 760160 | C17: 346694 | D17: CEDEÑO OSPINA, MARICRUZ YARELIS | E17: 2015-12-30T15:38:57 | F17: 29716 | G17: AV.OPPV | H17: 3 | I17: Primera Reunión de EcoCanal 2016 - Marta Quarless - 276-3601 | J17: LOTE - C - Servicio de alquiler diario de vehículo a motor - mini van. Para reunión inicial ECOCANAL del 04 al 07 de enero de 2016. PR # 760160. | K17: 4 | L17: Each | M17: 200 | O17: 200 | P17: 2016-01-04 | Q17: 2016-01-07
A18: 2016-01-14T09:57:27 | B18: 761964 | C18: 347394 | D18: PEREA ROJAS, MONICA ISABEL | E18: 2016-01-14T16:42:41 | F18: 29716 | G18: AV.OPRD | H18: 1 | I18: Veh 8858 - Veh on Garantía - José Jones - 276-3324 | J18: Cargo por entrega (a la ACP o recoger en la ACP) Del vehículo en el Sector Atlántico (cada viaje representa una unidad por auto). | K18: 1 | L18: Each | M18: 50 | O18: 50 | P18: 2016-01-18 | Q18: 2016-02-18
A19: 2016-01-14T09:57:27 | B19: 761964 | C19: 347394 | D19: PEREA ROJAS, MONICA ISABEL | E19: 2016-01-14T16:42:41 | F19: 29716 | G19: AV.OPRD | H19: 1 | I19: Veh 8858 - Veh on Garantía - José Jones - 276-3324 | J19: LOTE - C - Servicio de alquiler mensual de vehículo a motor - mini van | K19: 1 | L19: Each | M19: 1380 | O19: 1380 | P19: 2016-01-18 | Q19: 2016-02-18
A20: 2016-02-11T13:59:34 | B20: 766938 | C20: 349321 | D20: BARSALLO TOUREAU, KARINA MINERVA | E20: 2016-02-24T11:29:50 | F20: 29716 | G20: AV.TIOD | H20: 1 | I20: Veh 8930 - José Médica - 276-4403 | J20: LOTE - C - Servicio de alquiler semanal de vehículo a motor - mini van | K20: 2 | L20: Each | M20: 600 | O20: 600 | P20: 2016-02-16 | Q20: 2016-03-01
A21: 2016-02-19T08:11:55 | B21: 768328 | C21: 349801 | D21: RUIZ ALMANZA, FRANKLIN ANTONIO | E21: 2016-02-22T13:53:33 | F21: 29716 | G21: AV.SACH | H21: 3 | I21: Gira del Equipo de Capacidad Hídrica SACH - Daniel Muschett - 272-2357 | J21: LOTE - C - Servicio de alquiler diario de vehículo a motor - mini van | K21: 3 | L21: Each | M21: 150 | O21: 150 | P21: 2016-02-23 | Q21: 2016-02-25
A22: 2016-02-29T13:16:03 | B22: 769081 | C22: 350390 | D22: BARSALLO TOUREAU, KARINA MINERVA | E22: 2016-03-04T14:19:55 | F22: 29716 | G22: AV.TISI | H22: 3 | I22: Viajes a Capira, Chorrera, Madden, etc del grupo de soporte de TISI - Iris Rodriguez - 276-3843 | J22: LOTE - C - Servicio de alquiler trimestral de vehículo a motor - mini van | K22: 1 | L22: Mo | M22: 4000 | O22: 4000 | P22: 2016-02-26 | Q22: 2016-05-25
A23: 2016-03-03T08:39:52 | B23: 770410 | C23: 350686 | D23: LOPEZ IGLESIAS, MARIA DE LOS ANGELES | E23: 2016-03-04T14:19:34 | F23: 29716 | G23: AV.AJ | H23: 3 | I23: Inspección Judicial de CVM - Mitzila Moreno - 272-7511 | J23: LOTE - C - Servicio de alquiler diario de vehículo a motor - mini van | K23: 1 | L23: Each | M23: 50 | O23: 50 | P23: 2016-03-03 | Q23: 2016-03-03
A24: 2016-03-03T08:39:52 | B24: 770410 | C24: 350686 | D24: LOPEZ IGLESIAS, MARIA DE LOS ANGELES | E24: 2016-03-04T14:19:34 | F24: 29716 | G24: AV.AJ | H24: 3 | I24: Inspección Judicial de CVM - Mitzila Moreno - 272-7511 | J24: LOTE - C - Servicio de alquiler diario de vehículo a motor - mini van | K24: 1 | L24: Each | M24: 50 | O24: 50 | P24: 2016-03-14 | Q24: 2016-03-14
A25: 2016-03-15T07:34:59 | B25: 772506 | C25: 351403 | D25: DUARTE PONCE, MANUEL ALEXANDER | E25: 2016-03-15T09:07:32 | F25: 29716 | G25: AV.SACH | H25: 3 | I25: Viajes para Sesiones del Plan Nacional de Seguridad Hídrica - Daniel Muschett - 272-2357 | J25: LOTE - C - Servicio de alquiler diario de vehículo a motor - mini van | K25: 3 | L25: Each | M25: 150 | O25: 150 | P25: 2016-03-15 | Q25: 2016-03-18
A26: 2016-03-15T07:34:59 | B26: 772506 | C26: 351403 | D26: DUARTE PONCE, MANUEL ALEXANDER | E26: 2016-03-15T09:07:32 | F26: 29716 | G26: AV.SACH | H26: 3 | I26: Viajes para Sesiones del Plan Nacional de Seguridad Hídrica - Daniel Muschett - 272-2357 | J26: LOTE - C - Servicio de alquiler diario de vehículo a motor - mini van | K26: 2 | L26: Each | M26: 100 | O26: 100 | P26: 2016-03-21 | Q26: 2016-03-23
I27: COR 302681MUL 21 MAR 15 - 20 MAR 16 | K27: =SUM(K7:K26) -> 35 | M27: =SUM(M7:M26) -> 13480 | N27: =SUM(N7:N26) -> 0 | O27: =SUM(O7:O26) -> 13480
A29: Fecha de | B29: PR | C29: PO | D29: BUYER | E29: Fecha de | F29: PROYECTO | G29: TAREA | H29: CLASIFICACION | I29: VEHICULO DE REMPLAZO | J29: Servicio de alquiler de vehículo para la ACP - LOTE - C (Mini Van) | K29: Cantidad | L29: UOM | M29: Cantidad | N29: Cantidad | O29: Cantidad | P29: Período | R29: Factura
A30: Creación | E30: Aprobación | H30: 1/2/3/4 | J30: INTER MARKTING INC - THRIFTY CAR RENTAL | K30: Ordenada | M30: Obligada | N30: Pagada | O30: Pendiente | P30: Desde | Q30: Hasta | R30: No.
A31: 2015-10-01T11:40:02 | B31: 743854 | C31: 340916 | D31: GONZALEZ ATENCIO, LETICIA PORTOLATINA | E31: 2015-10-02T08:16:57 | F31: 29716 | G31: AV.OPPV | H31: 1 | I31: Veh 8212 - Pedro Chen - 276-1054 | J31: Lote D - Servicio de alquiler semanal de vehículo a motor - Picop | K31: 3 | L31: Each | M31: 664.2 | O31: =+M31-N31 -> 664.2 | P31: 2015-10-01 | Q31: 2015-10-22
A32: 2015-10-01T11:45:27 | B32: 743856 | C32: 340917 | D32: GONZALEZ ATENCIO, LETICIA PORTOLATINA | E32: 2015-10-02T08:17:33 | F32: 29716 | G32: AV.OPPV | H32: 1 | I32: Veh 9405 - Pedro Chen - 276-1054 | J32: Lote D - Servicio de alquiler semanal de vehículo a motor - Picop | K32: 1 | L32: Each | M32: 221.4 | O32: 221.4 | P32: 2015-10-01 | Q32: 2015-10-08
A33: 2015-10-01T11:49:36 | B33: 743857 | C33: 340918 | D33: GONZALEZ ATENCIO, LETICIA PORTOLATINA | E33: 2015-10-02T08:17:49 | F33: 29716 | G33: AV.OPPV | H33: 1 | I33: Veh 8213 - Pedro Chen - 276-1054 | J33: Lote D - Servicio de alquiler semanal de vehículo a motor - Picop | K33: 2 | L33: Each | M33: 442.8 | O33: 442.8 | P33: 2015-10-01 | Q33: 2015-10-15
A34: 2015-10-02T09:57:27 | B34: 744072 | C34: 340938 | D34: DELGADO GONZALEZ, FRANCISCO JR | E34: 2015-10-07T10:39:00 | F34: 29716 | G34: AV.IAIM | H34: 4 | I34: ENO - Veh No- 2 - Proyectos Asignados a IAIM, Agua, Dragado, Ampliación Vertederos, etc - Marcos Moltó - 276-1405 | J34: Lote B - Servicio de alquiler trimestral de vehículo a motor - camioneta 4 x 4 | K34: 1 | L34: Mo | M34: 3705 | O34: 3705 | P34: 2015-10-01 | Q34: 2015-12-30
A35: 2015-10-02T10:02:09 | B35: 744076 | C35: 340940 | D35: DELGADO GONZALEZ, FRANCISCO JR | E35: 2015-10-05T15:29:25 | F35: 29716 | G35: AV.IAIC | H35: 4 | I35: ENO - Veh No.1 - Sección de IAIC-HID, Ambiente, Estructural -Maximo Molina-276-1621/Daniel Moreno 276-1529 | J35: Lote B - Servicio de alquiler trimestral de vehículo a motor - camioneta 4 x 4 | K35: 1 | L35: Mo | M35: 3705 | O35: 3705 | P35: 2015-10-01 | Q35: 2015-12-30
A36: 2015-10-02T10:05:31 | B36: 744078 | C36: 340941 | D36: DELGADO GONZALEZ, FRANCISCO JR | E36: 2015-10-05T15:29:40 | F36: 29716 | G36: AV.IAIC | H36: 4 | I36: ENO - Veh No.2 - Sección de IAIC-HID, Ambiente, Estructural -Maximo Molina-276-1621/Daniel Moreno 276-1529 | J36: Lote B - Servicio de alquiler trimestral de vehículo a motor - camioneta 4 x 4 | K36: 1 | L36: Mo | M36: 3705 | O36: 3705 | P36: 2015-10-01 | Q36: 2015-12-30
A37: 2015-10-02T10:08:12 | B37: 744079 | C37: 340942 | D37: DELGADO GONZALEZ, FRANCISCO JR | E37: 2015-10-05T15:28:29 | F37: 29716 | G37: AV.IAIM | H37: 4 | I37: ENO - Veh No- 1 - Proyectos Asignados a IAIM, Agua, Dragado, Ampliación Vertederos, etc - Marcos Moltó - 276-1405 | J37: Lote B - Servicio de alquiler trimestral de vehículo a motor - camioneta 4 x 4 | K37: 1 | L37: Mo | M37: 3705 | O37: 3705 | P37: 2015-10-01 | Q37: 2015-12-30
A38: 2015-10-02T13:01:43 | B38: 744146 | C38: 340946 | D38: ZHANG WU, EUGENIO | E38: 2015-10-05T10:56:06 | F38: 29716 | G38: AV.IAIG | H38: 4 | I38: ENO - Veh No.1 - Proyecto de Control y Derrumbe y de Erosión - Max de Puy 276-1737 Carlos Fong 276-1738 | J38: Lote B - Servicio de alquiler trimestral de vehículo a motor - camioneta 4 x 4 | K38: 1 | L38: Mo | M38: 3705 | O38: 3705 | P38: 2015-10-01 | Q38: 2015-12-30
A39: 2015-10-02T13:13:37 | B39: 744157 | C39: 340947 | D39: ZHANG WU, EUGENIO | E39: 2015-10-05T10:56:28 | F39: 29716 | G39: AV.IAIG | H39: 4 | I39: ENO - Veh No.2 - Proyecto de Control y Derrumbe y de Erosión - Max de Puy 276-1737 Carlos Fong 276-1738 | J39: Lote B - Servicio de alquiler trimestral de vehículo a motor - camioneta 4 x 4 | K39: 1 | L39: Mo | M39: 3705 | O39: 3705 | P39: 2015-10-01 | Q39: 2015-12-30
A40: 2015-10-02T13:19:31 | B40: 744163 | C40: 340948 | D40: ZHANG WU, EUGENIO | E40: 2015-10-05T10:56:15 | F40: 29716 | G40: AV.IAIG | H40: 4 | I40: ENO - Veh No.3 - Proyecto de Control y Derrumbe y de Erosión - Max de Puy 276-1737 Carlos Fong 276-1738 | J40: Lote B - Servicio de alquiler trimestral de vehículo a motor - camioneta 4 x 4 | K40: 1 | L40: Mo | M40: 3705 | O40: 3705 | P40: 2015-10-01 | Q40: 2015-12-30
A41: 2015-10-05T11:50:28 | B41: 744246 | C41: 340980 | D41: HOOKER, ANDREA IVETTE DE | E41: 2015-10-05T15:29:58 | F41: 29716 | G41: AV.OPRT | H41: 1 | I41: Veh 9104 - Jaime José Gonzalez - 276-1192 | J41: Lote D - Servicio de alquiler diario de vehículo a motor - Picop | K41: 4 | L41: Each | M41: 147.6 | O41: 147.6 | P41: 2015-10-01 | Q41: 2015-10-05
A42: 2015-10-05T11:50:28 | B42: 744002 | C42: 340980 | D42: HOOKER, ANDREA IVETTE DE | E42: 2015-10-05T15:29:58 | F42: 29716 | G42: AV.OPRT | H42: 1 | I42: Veh 6002 - Jaime José Gonzalez - 276-1192 | J42: Lote D - Servicio de alquiler diario de vehículo a motor - Picop | K42: 2 | L42: Each | M42: 73.8 | O42: 73.8 | P42: 2015-10-01 | Q42: 2015-10-02
A43: 2015-10-05T11:50:28 | B43: 744002 | C43: 340980 | D43: HOOKER, ANDREA IVETTE DE | E43: 2015-10-05T15:29:58 | F43: 29716 | G43: AV.OPRT | H43: 1 | I43: Veh 6002 - Jaime José Gonzalez - 276-1192 | J43: Lote D - Servicio de alquiler semanal de vehículo a motor - Picop | K43: 1 | L43: Each | M43: 221.4 | O43: 221.4 | P43: 2015-10-03 | Q43: 2015-10-09
A44: 2015-10-05T12:00:54 | B44: 744412 | C44: 340981 | D44: GONZALEZ ATENCIO, LETICIA PORTOLATINA | E44: 2015-10-05T15:30:08 | F44: 29716 | G44: AV.OPPV | H44: 1 | I44: Veh 8214 - Pedro Chen - 276-1054 | J44: Lote D - Servicio de alquiler semanal de vehículo a motor - Picop | K44: 2 | L44: Each | M44: 442.8 | O44: 442.8 | P44: 2015-10-01 | Q44: 2015-10-15
A45: 2015-10-05T12:10:46 | B45: 744103 | C45: 340983 | D45: GONZALEZ ATENCIO, LETICIA PORTOLATINA | E45: 2015-10-05T15:30:15 | F45: 29716 | G45: AV.OPPV | H45: 1 | I45: Veh 9401 - Pedro Chen - 276-1054 | J45: Lote D - Servicio de alquiler mensual de vehículo a motor - Picop | K45: 1 | L45: Each | M45: 996.3 | O45: 996.3 | P45: 2015-10-01 | Q45: 2015-10-30
A46: 2015-10-05T12:18:20 | B46: 744106 | C46: 340984 | D46: GONZALEZ ATENCIO, LETICIA PORTOLATINA | E46: 2015-10-05T15:30:24 | F46: 29716 | G46: AV.OPPV | H46: 1 | I46: Veh 9397 - Pedro Chen - 276-1054 | J46: Lote D - Servicio de alquiler mensual de vehículo a motor - Picop | K46: 1 | L46: Each | M46: 996.3 | O46: 996.3 | P46: 2015-10-01 | Q46: 2015-10-30
A47: 2015-10-05T13:58:41 | B47: 744221 | C47: 341004 | D47: DELGADO GONZALEZ, FRANCISCO JR | E47: 2015-10-07T09:23:17 | F47: 29716 | G47: AV.IAIC | H47: 4 | I47: ENO - Veh No.3 - Sección de IAIC-HID, Ambiente, Estructural -Maximo Molina-276-1621/Daniel Moreno 276-1529 | J47: Lote B - Servicio de alquiler trimestral de vehículo a motor - camioneta 4 x 4 | K47: 1 | L47: Mo | M47: 3705 | O47: 3705 | P47: 2015-10-01 | Q47: 2015-10-30
A48: 2015-10-06T08:22:58 | B48: 743949 | C48: 341031 | D48: KHAN SANDIFORD, SHARON VONETTA | E48: 2015-10-06T13:41:22 | F48: 29716 | G48: AV.EAA-CA | H48: 4 | I48: ENO - Planta Potabilizadora de Colón - AA2611 - Yamileth Arauz - 276-3534 | J48: Lote D - Servicio de alquiler trimestral de vehículo a motor - Picop | K48: 1 | L48: Mo | M48: 2839.44 | O48: 2839.44 | P48: 2015-10-01 | Q48: 2015-12-30
A49: 2015-10-06T08:34:37 | B49: 744711 | C49: 341033 | D49: KHAN SANDIFORD, SHARON VONETTA | E49: 2015-10-06T13:42:26 | F49: 29716 | G49: AV.EAA-CA | H49: 4 | I49: ENO - Laboratorio de Corozal Oeste-UCA CZL - Yamileth Arauz - 276-3534 | J49: Lote D - Servicio de alquiler trimestral de vehículo a motor - Picop | K49: 1 | L49: Mo | M49: 2839.44 | O49: 2839.44 | P49: 2015-10-05 | Q49: 2016-01-03
A50: 2015-10-06T08:35:45 | B50: 744600 | C50: 341034 | D50: ZHANG WU, EUGENIO | E50: 2015-10-06T14:11:06 | F50: 29716 | G50: AV.IAIT | H50: 4 | I50: ENO - Veh No.1 - Transp personal de Topografía en Pedro Miguel - Jorge Fanovich - 443-5508/276-7151 | J50: Lote B - Servicio de alquiler trimestral de vehículo a motor - camioneta 4 x 4 | K50: 1 | L50: Mo | M50: 3705 | O50: 3705 | P50: 2015-10-01 | Q50: 2015-12-30
A51: 2015-10-06T08:39:09 | B51: 743988 | C51: 341036 | D51: MEANA MOUYNES, MARIA LOURDES | E51: 2015-10-06T14:13:09 | F51: 29716 | G51: AV.OPEM-A | H51: 4 | I51: ENO - Mant de A/A en Locomotoras, Remolcadores, Lancha, etc. de Edificios en el Sector Atlántico - Alvaro Arcia - 443-4551 | J51: Lote E - Servicio de alquiler trimestral de vehículo a motor - Picop con barra antivuelco y ganchos | K51: 1 | L51: Mo | M51: 2839.44 | O51: 2839.44 | P51: 2015-11-06 | Q51: 2016-01-05
A52: 2015-10-06T08:45:22 | B52: 744344 | C52: 341038 | D52: ZHANG WU, EUGENIO | E52: 2015-10-06T13:43:11 | F52: 29716 | G52: AV.IAIT | H52: 4 | I52: ENO - Veh No.2 - Transp personal de Topografía en Colón - Jorge Fanovich - 443-5508/276-7151 | J52: Cargo por entrega (a la ACP o recoger en la ACP) Del vehículo en el Sector Atlántico (cada viaje representa una unidad por auto). | K52: 1 | L52: Each | M52: 20 | O52: 20 | P52: 2015-10-01 | Q52: 2015-12-30
A53: 2015-10-06T08:45:22 | B53: 744344 | C53: 341038 | D53: ZHANG WU, EUGENIO | E53: 2015-10-06T13:43:11 | F53: 29716 | G53: AV.IAIT | H53: 4 | I53: ENO - Veh No.2 - Transp personal de Topografía en Colón - Jorge Fanovich - 443-5508/276-7151 | J53: Lote B - Servicio de alquiler trimestral de vehículo a motor - camioneta 4 x 4 | K53: 1 | L53: Mo | M53: 3705 | O53: 3705 | P53: 2015-10-01 | Q53: 2015-12-30
A54: 2015-10-06T09:16:27 | B54: 743968 | C54: 341041 | D54: GONZALEZ QUIROS, AIDEE DEL CARMEN | E54: 2015-10-09T14:57:03 | F54: 29716 | G54: AV.OPEM-A | H54: 4 | I54: ENO - Mant de A/A en Locomotoras, Remolcadores, Lancha, etc. de Edificios en el Sector Atlántico - Alvaro Arcia - 443-4551 | J54: Lote E - Servicio de alquiler trimestral de vehículo a motor - Picop con barra antivuelco y ganchos | K54: 1 | L54: Mo | M54: 2839.44 | O54: 2839.44 | P54: 2015-10-06 | Q54: 2016-01-11
A55: 2015-10-06T12:46:07 | B55: 744321 | C55: 341056 | D55: RODRIGUEZ HERRERA, HELIO JAVIER | E55: 2015-10-07T12:37:16 | F55: 29716 | G55: AV.OPEM-P | H55: 1 | I55: Veh 8772 - AA-9239 - Gabriel Vasquez - 276-8226/2488 | J55: Lote E - Servicio de alquiler semanal de vehículo a motor - Picop con barra antivuelco y ganchos | K55: 3 | L55: Each | M55: 664.2 | O55: 664.2 | P55: 2015-10-05 | Q55: 2015-10-26
A56: 2015-10-06T13:56:14 | B56: 744316 | C56: 341070 | D56: RUIZ ORTEGA, JORGE LUIS | E56: 2015-10-07T12:40:17 | F56: 29716 | G56: AV.EAEB-MA | H56: 4 | I56: ENO - 12 VEH 6 DE EAEA-AP - 6 DE EAEB-MA DE 2 A 3 DIA CADA UNO TOTAL 27 DIAS -JORGE RUIZ - 272-4415 | J56: Lote E - Servicio de alquiler diario de vehículo a motor - Picop con barra antivuelco y ganchos | K56: 18.5 | L56: Each | M56: 682.65 | O56: 682.65 | P56: HASTA EL 30 DE SEPT 2015
A57: 2015-10-06T13:56:14 | B57: 744316 | C57: 341070 | D57: RUIZ ORTEGA, JORGE LUIS | E57: 2015-10-07T12:40:17 | F57: 29716 | G57: AV.EAEA-AP | H57: 4 | I57: ENO - 12 VEH 6 DE EAEA-AP - 6 DE EAEB-MA DE 2 A 3 DIA CADA UNO TOTAL 27 DIAS -JORGE RUIZ - 272-4415 | J57: Lote E - Servicio de alquiler diario de vehículo a motor - Picop con barra antivuelco y ganchos | K57: 18.5 | L57: Each | M57: 682.65 | O57: 682.65 | P57: HASTA EL 30 DE SEPT 2015
A58: 2015-10-06T13:59:22 | B58: 744818 | C58: 341072 | D58: GONZALEZ ATENCIO, LETICIA PORTOLATINA | E58: 2015-10-07T13:13:24 | F58: 29716 | G58: AV.OPPV | H58: 1 | I58: Veh 8822 - AT8861 - Franklin Justiniani - 276-1541 | J58: Lote D - Servicio de alquiler semanal de vehículo a motor - Picop | K58: 2 | L58: Each | M58: 442.8 | O58: 442.8 | P58: 2015-10-05 | Q58: 2015-10-19
A59: 2015-10-07T08:45:50 | B59: 744700 | C59: 341104 | D59: RUIZ ORTEGA, JORGE LUIS | E59: 2015-10-07T13:13:00 | F59: 29716 | G59: AV.EAEA-AP | H59: 1 | I59: Veh 8412 - Ruben Rose - Jessica Brathwaite - 272-4453 | J59: Lote E - Servicio de alquiler semanal de vehículo a motor - Picop con barra antivuelco y ganchos | K59: 2 | L59: Each | M59: 442.8 | O59: 442.8 | P59: 2015-10-07 | Q59: 2015-10-21
A60: 2015-10-07T09:23:07 | B60: 744690 | C60: 341112 | D60: RUIZ ORTEGA, JORGE LUIS | E60: 2015-10-07T12:36:19 | F60: 29716 | G60: AV.EAEA-AP | H60: 4 | I60: ENO - Veh No. 1 - Proyecto al Contrato de Remplazo de las Torres de Transmisión Líneas 413-414 - Cuadrilla Roman Arosemena - 272*4453 | J60: Lote E - Servicio de alquiler trimestral de vehículo a motor - Picop con barra antivuelco y ganchos | K60: 1 | L60: Mo | M60: 2839.44 | O60: 2839.44 | P60: 2015-10-01 | Q60: 2015-12-30
A61: 2015-10-07T09:23:07 | B61: 744690 | C61: 341112 | D61: RUIZ ORTEGA, JORGE LUIS | E61: 2015-10-07T12:36:19 | F61: 29716 | G61: AV.EAEA-AP | H61: 4 | I61: ENO - Veh No. 2 - Proyecto al Contrato de Remplazo de las Torres de Transmisión Líneas 413-414 - Cuadrilla Roman Arosemena - 272*4453 | J61: Lote E - Servicio de alquiler trimestral de vehículo a motor - Picop con barra antivuelco y ganchos | K61: 1 | L61: Mo | M61: 2839.44 | O61: 2839.44 | P61: 2015-10-01 | Q61: 2015-12-30
A62: 2015-10-07T10:43:20 | B62: 744875 | C62: 341131 | D62: MEANA MOUYNES, MARIA LOURDES | E62: 2015-10-08T10:18:54 | F62: 29716 | G62: AV.OPEM-P | H62: 4 | I62: ENO - 5 VEH - 2 TALLER DE SOLDADURA-2 CUADRILLA DE EQUIP PESADO OPEM-1 PERSONAL TECNICO DE OPEM - ROLANDO CONCEPCION -276-4815 | J62: Lote E - Servicio de alquiler trimestral de vehículo a motor - Picop con barra antivuelco y ganchos | K62: 5 | L62: Mo | M62: 14197.2 | O62: 14197.2 | P62: 2015-10-26 | Q62: 2016-01-24
A63: 2015-10-07T12:38:43 | B63: 744684 | C63: 341145 | D63: RUIZ ORTEGA, JORGE LUIS | E63: 2015-10-07T15:32:55 | F63: 29716 | G63: AV.EAEA-AP | H63: 4 | I63: ENO - Apoyo a trabajo de inspección y supv del Capataz General Randolph Bryant - Jessica Brathwaite 272-4453 | J63: Lote E - Servicio de alquiler trimestral de vehículo a motor - Picop con barra antivuelco y ganchos | K63: 1 | L63: Mo | M63: 2839.44 | O63: 2839.44 | P63: 2015-10-01 | Q63: 2015-12-30
A64: 2015-10-07T13:00:50 | B64: 744667 | C64: 341148 | D64: RUIZ ORTEGA, JORGE LUIS | E64: 2015-10-07T15:33:07 | F64: 29716 | G64: AV.EAEA-AP | H64: 4 | I64: ENO - Apoyo a Mant General de Estructuras de Monte Esperanza - Cuadrilla Arcadio Avila - 272-4453 | J64: Lote E - Servicio de alquiler trimestral de vehículo a motor - Picop con barra antivuelco y ganchos | K64: 1 | L64: Mo | M64: 2839.44 | O64: 2839.44 | P64: 2015-10-01 | Q64: 2015-12-30
A65: 2015-10-07T13:22:13 | B65: 744718 | C65: 341156 | D65: SANCHEZ UREÑA, LIZDEYKA MELISSA | E65: 2015-10-07T15:33:17 | F65: 29716 | G65: AV.OPEM-P | H65: 4 | I65: ENO - Necesidades operativas de OPEM-PCM - Gerardo Rios - 276-2006 | J65: Lote D - Servicio de alquiler trimestral de vehículo a motor - Picop | K65: 1 | L65: Mo | M65: 2839.44 | O65: 2839.44 | P65: 2015-10-08 | Q65: 2016-01-07
A66: 2015-10-07T13:24:05 | B66: 744916 | C66: 341157 | D66: RODRIGUEZ HOLDER, RICARDO AURELIO | E66: 2015-10-07T15:33:33 | F66: 29716 | G66: AV.OPED | H66: 4 | I66: ENO - Veh No. 2 - Insp & Rep de Equipo de A/A - Atl/Pac - Edwin Navarro - 276-2376 | J66: Lote A - Servicio de alquiler trimestral de vehículo a motor - modelo sedán | K66: 1 | L66: Mo | M66: 1762.11 | O66: 1762.11 | P66: 2015-10-09 | Q66: 2016-01-08
A67: 2015-10-07T13:57:03 | B67: 744913 | C67: 341163 | D67: RODRIGUEZ HOLDER, RICARDO AURELIO | E67: 2015-10-07T16:00:07 | F67: 29716 | G67: AV.OPED | H67: 4 | I67: ENO - Veh No. 1 - Insp de Campo por Area- Atl/Pac - Edwin Navarro - 276-2376 | J67: Lote A - Servicio de alquiler trimestral de vehículo a motor - modelo sedán | K67: 1 | L67: Mo | M67: 1762.11 | O67: 1762.11 | P67: 2015-10-09 | Q67: 2016-01-08
A68: 2015-10-07T14:30:27 | B68: 744921 | C68: 341173 | D68: RODRIGUEZ HOLDER, RICARDO AURELIO | E68: 2015-10-07T16:00:59 | F68: 29716 | G68: AV.OPED | H68: 4 | I68: ENO - Veh No. 3 - Insp de Campo Operaciones- Atl/Pac - Edwin Navarro - 276-2376 | J68: Lote A - Servicio de alquiler trimestral de vehículo a motor - modelo sedán | K68: 1 | L68: Mo | M68: 1762.11 | O68: 1762.11 | P68: 2015-10-08 | Q68: 2016-01-08
A69: 2015-10-07T14:43:19 | B69: 744622 | C69: 341181 | D69: RUIZ ORTEGA, JORGE LUIS | E69: 2015-10-07T16:01:07 | F69: 29716 | G69: AV.EAEA-AP | H69: 4 | I69: ENO - Proyecto de Apóyo de Adecuaciones de los Accesos Verticales, Pedro Miguel - Cuadrilla Dino Blandford - 272-4453 | J69: Lote E - Servicio de alquiler trimestral de vehículo a motor - Picop con barra antivuelco y ganchos | K69: 1 | L69: Mo | M69: 2839.44 | O69: 2839.44 | P69: 2015-10-01 | Q69: 2015-12-30
A70: 2015-10-07T14:57:27 | B70: 744646 | C70: 341187 | D70: RUIZ ORTEGA, JORGE LUIS | E70: 2015-10-07T16:12:25 | F70: 29716 | G70: AV.EAEA-AP | H70: 4 | I70: ENO - Apoyo a Proyecto de Mant de Líneas 405 y 406 Atl - Cuadrilla Zurita - 272-4453 | J70: Lote E - Servicio de alquiler trimestral de vehículo a motor - Picop con barra antivuelco y ganchos | K70: 1 | L70: Mo | M70: 2839.44 | O70: 2839.44 | P70: 2015-10-01 | Q70: 2015-12-30
A71: 2015-10-07T15:05:05 | B71: 744660 | C71: 341191 | D71: RUIZ ORTEGA, JORGE LUIS | E71: 2015-10-07T16:12:32 | F71: 29716 | G71: AV.EAEA-AP | H71: 4 | I71: ENO - Proyecto de Apóyo de Adecuaciones de los Accesos Verticales, Gatún - Cuadrilla José Fong - 272-4453 | J71: Lote E - Servicio de alquiler trimestral de vehículo a motor - Picop con barra antivuelco y ganchos | K71: 1 | L71: Mo | M71: 2839.44 | O71: 2839.44 | P71: 2015-10-01 | Q71: 2015-12-30
A72: 2015-10-08T08:53:46 | B72: 742588 | C72: 341207 | D72: RUIZ ORTEGA, JORGE LUIS | E72: 2015-10-08T16:32:53 | F72: 29716 | G72: AV.EAEG-GT | H72: 4 | I72: ENO - Proyecto de Operacióne Inversión de EAEG. Camarena - Jorge Ruiz - 272*-4415 | J72: Lote B - Servicio de alquiler trimestral de vehículo a motor - camioneta 4 x 4 | K72: 1 | L72: Mo | M72: 3705 | O72: 3705 | P72: 2015-10-01 | Q72: 2015-12-30
A73: 2015-10-08T08:57:42 | B73: 744923 | C73: 341208 | D73: MEANA MOUYNES, MARIA LOURDES | E73: 2015-10-08T14:19:38 | F73: 29716 | G73: AV.OPED | H73: 4 | I73: ENO - Veh No. 4 - Tipo pick up - Insp & Rep de Equipo de A/A - Atl/Pac - Edwin Navarro - 276-2376 | J73: Lote D - Servicio de alquiler trimestral de vehículo a motor - Picop | K73: 1 | L73: Mo | M73: 2839.44 | O73: 2839.44 | P73: 2015-10-07 | Q73: 2016-01-06
A74: 2015-10-08T09:46:06 | B74: 745135 | C74: 341217 | D74: GONZALEZ ATENCIO, LETICIA PORTOLATINA | E74: 2015-10-08T14:19:54 | F74: 29716 | G74: AV.OPPV | H74: 1 | I74: Veh 9403 - Pedro Chen - 276-1054 | J74: Lote D - Servicio de alquiler semanal de vehículo a motor - Picop | K74: 3 | L74: Each | M74: 664.2 | O74: 664.2 | P74: 2015-10-09 | Q74: 2015-10-30
A75: 2015-10-08T09:55:07 | B75: 745141 | C75: 341220 | D75: GONZALEZ ATENCIO, LETICIA PORTOLATINA | E75: 2015-10-08T14:19:47 | F75: 29716 | G75: AV.OPPV | H75: 1 | I75: Veh 9394 - Pedro Chen - 276-1054 | J75: Lote D - Servicio de alquiler semanal de vehículo a motor - Picop | K75: 2 | L75: Each | M75: 442.8 | O75: 442.8 | P75: 2015-10-09 | Q75: 2015-10-23
A76: 2015-10-08T13:16:14 | B76: 745151 | C76: 341270 | D76: SIMITI VALDEZ, EMILY BEATRIZ | E76: 2015-10-08T16:32:40 | F76: 29716 | G76: AV.OPEM-E | H76: 1 | I76: Veh 8245 - Evelyn Rodríguez - 276-3177 | J76: Lote D - Servicio de alquiler semanal de vehículo a motor - Picop | K76: 3 | L76: Each | M76: 664.2 | O76: 664.2 | P76: 2015-10-13 | Q76: 2015-11-02
A77: 2015-10-08T13:23:04 | B77: 745075 | C77: 341272 | D77: LOPEZ IGLESIAS, MARIA DE LOS ANGELES | E77: 2015-10-08T16:32:21 | F77: 29716 | G77: AV.AJ | H77: 4 | I77: ENO - Asignación Diaria en la Oficina de Asesoría Legal - Mitzila Moreno - 272-7511 | J77: Lote A - Servicio de alquiler trimestral de vehículo a motor - modelo sedán | K77: 1 | L77: Mo | M77: 1762.11 | O77: 1762.11 | P77: 2015-10-12 | Q77: 2016-01-11
A78: 2015-10-08T14:08:43 | B78: 744554 | C78: 341279 | D78: HOOKER ROOK, ROBERTO ALFONSO | E78: 2015-10-08T16:32:58 | F78: 29716 | G78: AV.CCXR | H78: 2 | I78: Proyectos y actividades de la Sección de Comunicación Corporativa - Adolfo Gil - 272-7605 | J78: Lote B - Servicio de alquiler trimestral de vehículo a motor - camioneta 4 x 4 | K78: 1 | L78: Mo | M78: 3705 | O78: 3705 | P78: 2015-10-02 | Q78: 2015-12-31
A79: 2015-10-09T11:39:48 | B79: 745532 | C79: 341359 | D79: LOPEZ RIVAS, RODRIGO ELISEO | E79: 2015-10-09T14:57:19 | F79: 29716 | G79: AV.EACM-SA | H79: 4 | I79: ENO - Programa y Proyectos de Equipo de Servicios Ambientales, de la Div de Ambiente AF-16 - Alejandro Figueroa - 276-3953 | J79: Lote D - Servicio de alquiler trimestral de vehículo a motor - Picop | K79: 1 | L79: Mo | M79: 2839.44 | O79: 2839.44 | P79: 2015-10-04 | Q79: 2016-01-03
A80: 2015-10-09T11:58:57 | B80: 745513 | C80: 341365 | D80: LOPEZ RIVAS, RODRIGO ELISEO | E80: 2015-10-09T15:58:48 | F80: 29716 | G80: AV.EACM-SA | H80: 4 | I80: ENO - Programa y Proyectos de Equipo de Servicios Ambientales, de la Div de Ambiente AF-16 - Alejandro Figueroa - 276-3953 | J80: Lote D - Servicio de alquiler trimestral de vehículo a motor - Picop | K80: 1 | L80: Mo | M80: 2839.44 | O80: 2839.44 | P80: 2015-10-04 | Q80: 2016-01-03
A81: 2015-10-09T12:07:57 | B81: 745489 | C81: 341366 | D81: LOPEZ RIVAS, RODRIGO ELISEO | E81: 2015-10-09T14:58:33 | F81: 29716 | G81: AV.EACM-EACE | H81: 4 | I81: ENO - Actividades de EACE - Angel Ureña Vargas - 276-2830 | J81: Lote B - Servicio de alquiler trimestral de vehículo a motor - camioneta 4 x 4 | K81: 1 | L81: Mo | M81: 3705 | O81: 3705 | P81: 2015-10-04 | Q81: 2016-01-03
A82: 2015-10-09T15:25:25 | B82: 745699 | C82: 341407 | D82: GONZALEZ ATENCIO, LETICIA PORTOLATINA | E82: 2015-10-09T15:58:54 | F82: 29716 | G82: AV.OPPV | H82: 1 | I82: Veh 9395 - Pedro Chen - 276-1054 | J82: Lote D - Servicio de alquiler semanal de vehículo a motor - Picop | K82: 2 | L82: Each | M82: 442.8 | O82: 442.8 | P82: 2015-10-08 | Q82: 2015-10-22
A83: 2015-10-09T15:29:09 | B83: 743586 | C83: 341408 | D83: GONZALEZ ATENCIO, LETICIA PORTOLATINA | E83: 2015-10-09T15:59:01 | F83: 29716 | G83: AV.OPPV | H83: 1 | I83: Veh 9404 - Pedro Chen - 276-1054 | J83: Lote D - Servicio de alquiler diario de vehículo a motor - Picop | K83: 2 | L83: Each | M83: 73.8 | O83: 73.8 | P83: 2015-10-01 | Q83: 2015-10-02
A84: 2015-10-09T15:33:21 | B84: 743599 | C84: 341409 | D84: GONZALEZ ATENCIO, LETICIA PORTOLATINA | E84: 2015-10-09T15:59:14 | F84: 29716 | G84: AV.OPPV | H84: 1 | I84: Veh 9402 - Pedro Chen - 276-1054 | J84: Lote D - Servicio de alquiler diario de vehículo a motor - Picop | K84: 2 | L84: Each | M84: 73.8 | O84: 73.8 | P84: 2015-09-25 | Q84: 2015-09-30
A85: 2015-10-09T15:33:21 | B85: 743599 | C85: 341409 | D85: GONZALEZ ATENCIO, LETICIA PORTOLATINA | E85: 2015-10-09T15:59:14 | F85: 29716 | G85: AV.OPPV | H85: 1 | I85: Veh 9402 - Pedro Chen - 276-1054 | J85: Lote D - Servicio de alquiler semanal de vehículo a motor - Picop | K85: 2 | L85: Each | M85: 442.8 | O85: 442.8 | P85: 2015-10-01 | Q85: 2015-10-15
A86: 2015-10-09T15:43:48 | B86: 743612 | C86: 341410 | D86: GONZALEZ ATENCIO, LETICIA PORTOLATINA | E86: 2015-10-12T07:18:58 | F86: 29716 | G86: AV.OPPV | H86: 1 | I86: Veh 9398 - Pedro Chen - 276-1054 | J86: Lote D - Servicio de alquiler diario de vehículo a motor - Picop | K86: 4 | L86: Each | M86: 147.6 | O86: 147.6 | P86: 2015-09-27 | Q86: 2015-09-30
A87: 2015-10-09T15:43:48 | B87: 743612 | C87: 341410 | D87: GONZALEZ ATENCIO, LETICIA PORTOLATINA | E87: 2015-10-12T07:18:58 | F87: 29716 | G87: AV.OPPV | H87: 1 | I87: Veh 9398 - Pedro Chen - 276-1054 | J87: Lote D - Servicio de alquiler semanal de vehículo a motor - Picop | K87: 2 | L87: Each | M87: 442.8 | O87: 442.8 | P87: 2015-10-01 | Q87: 2015-10-15
A88: 2015-10-09T15:47:18 | B88: 743616 | C88: 341411 | D88: GONZALEZ ATENCIO, LETICIA PORTOLATINA | E88: 2015-10-12T07:19:06 | F88: 29716 | G88: AV.OPPV | H88: 1 | I88: Veh 9395 - Pedro Chen - 276-1054 | J88: Lote D - Servicio de alquiler diario de vehículo a motor - Picop | K88: 5 | L88: Each | M88: 184.5 | O88: 184.5 | P88: 2015-10-01 | Q88: 2015-10-05
A89: 2015-10-12T11:17:43 | B89: 745669 | C89: 341457 | D89: ZHANG WU, EUGENIO | E89: 2015-10-12T14:56:32 | F89: 29716 | G89: AV.IAIT | H89: 1 | I89: Veh 9694 - Jorge Fanovich - 443-5508 | J89: Lote B - Servicio de alquiler mensual de vehículo a motor - camioneta 4 x 4 | K89: 1 | L89: Each | M89: 1300 | O89: 1300 | P89: 2015-10-09 | Q89: 2015-11-08
A90: 2015-10-13T11:03:55 | B90: 746284 | C90: 341563 | D90: HOOKER ROOK, ROBERTO ALFONSO | E90: 2015-10-14T07:21:34 | F90: 29716 | G90: AV.FAP | H90: 3 | I90: Viaje a Colón de FAPO-CP - Lizzette Olaciregui - 272-7690 | J90: Lote A - Servicio de alquiler diario de vehículo a motor - modelo sedán | K90: 1 | L90: Each | M90: 22.9 | O90: 22.9 | P90: 2015-10-14 | Q90: 2015-10-14
A91: 2015-10-14T08:36:39 | B91: 744267 | C91: 341633 | D91: BARSALLO TOUREAU, KARINA MINERVA | E91: 2015-10-14T10:51:47 | F91: 29716 | G91: AV.TIOD | H91: 1 | I91: Veh 9580 - Elmer Vaca - 276-2412 | J91: Lote E - Servicio de alquiler semanal de vehículo a motor - Picop con barra antivuelco y ganchos | K91: 3 | L91: Each | M91: 664.2 | O91: 664.2 | P91: 2015-10-05 | Q91: 2015-10-26
A92: 2015-10-14T08:44:08 | B92: 745638 | C92: 341636 | D92: RUIZ ORTEGA, JORGE LUIS | E92: 2015-10-14T10:01:51 | F92: 29716 | G92: AV.EAEB-MA | H92: 4 | I92: ENO - Cuadrilla -S1 - AB0176 - José Calvo - Jorge Carrasco - 272-4440 | J92: Lote E - Servicio de alquiler trimestral de vehículo a motor - Picop con barra antivuelco y ganchos | K92: 1 | L92: Mo | M92: 2839.44 | O92: 2839.44 | P92: 2015-10-01 | Q92: 2015-12-30
A93: 2015-10-14T08:54:17 | B93: 745643 | C93: 341638 | D93: RUIZ ORTEGA, JORGE LUIS | E93: 2015-10-14T10:50:45 | F93: 29716 | G93: AV.EAEB-MA | H93: 4 | I93: ENO - Cuadrilla -S2 - AA2623 - Roquel Cárdenas - Jorge Carrasco - 272-4440 | J93: Lote E - Servicio de alquiler trimestral de vehículo a motor - Picop con barra antivuelco y ganchos | K93: 1 | L93: Mo | M93: 2839.44 | O93: 2839.44 | P93: 2015-10-01 | Q93: 2015-12-30
A94: 2015-10-14T09:01:42 | B94: 745652 | C94: 341639 | D94: RUIZ ORTEGA, JORGE LUIS | E94: 2015-10-14T10:50:57 | F94: 29716 | G94: AV.EAEB-MA | H94: 4 | I94: ENO - Cuadrilla -S2 - AA2624 - Roquel Cárdenas - Jorge Carrasco - 272-4440 | J94: Lote E - Servicio de alquiler trimestral de vehículo a motor - Picop con barra antivuelco y ganchos | K94: 1 | L94: Mo | M94: 2839.44 | O94: 2839.44 | P94: 2015-10-01 | Q94: 2015-12-30
A95: 2015-10-14T09:09:05 | B95: 745656 | C95: 341642 | D95: RUIZ ORTEGA, JORGE LUIS | E95: 2015-10-14T10:51:04 | F95: 29716 | G95: AV.EAEB-MA | H95: 4 | I95: ENO - Cuadrilla -S6 - AA2629 - Oscar Martínez - Jorge Carrasco - 272-4440 | J95: Lote E - Servicio de alquiler trimestral de vehículo a motor - Picop con barra antivuelco y ganchos | K95: 1 | L95: Mo | M95: 2839.44 | O95: =+M95-N95 -> 2839.44 | P95: 2015-10-01 | Q95: 2015-12-30
A96: 2015-10-14T09:17:35 | B96: 745842 | C96: 341643 | D96: HOOKER, ANDREA IVETTE DE | E96: 2015-10-14T10:51:16 | F96: 29716 | G96: AV.OPRT | H96: 1 | I96: Veh 6002 - Jaime José Gonzalez - 276-1192 | J96: Lote D - Servicio de alquiler semanal de vehículo a motor - Picop | K96: 1 | L96: Each | M96: 221.4 | O96: 221.4 | P96: 2015-10-11 | Q96: 2015-10-18
A97: 2015-10-14T09:40:35 | B97: 745659 | C97: 341652 | D97: RUIZ ORTEGA, JORGE LUIS | E97: 2015-10-14T10:51:10 | F97: 29716 | G97: AV.EAEB-MA | H97: 4 | I97: ENO - Cuadrilla -S3 - AB9017 - Vicente Morgan - Jorge Carrasco - 272-4440 | J97: Lote E - Servicio de alquiler trimestral de vehículo a motor - Picop con barra antivuelco y ganchos | K97: 1 | L97: Mo | M97: 2839.44 | O97: 2839.44 | P97: 2015-10-01 | Q97: 2015-12-30
A98: 2015-10-14T10:12:10 | B98: 745660 | C98: 341662 | D98: RUIZ ORTEGA, JORGE LUIS | E98: 2015-10-14T10:51:41 | F98: 29716 | G98: AV.EAEB-MA | H98: 4 | I98: ENO - Cuadrilla -S3 - AG1048 - Vicente Morgan - Jorge Carrasco - 272-4440 | J98: Lote E - Servicio de alquiler trimestral de vehículo a motor - Picop con barra antivuelco y ganchos | K98: 1 | L98: Mo | M98: 2839.44 | O98: 2839.44 | P98: 2015-10-01 | Q98: 2015-12-30
A99: 2015-10-14T10:20:56 | B99: 745661 | C99: 341667 | D99: RUIZ ORTEGA, JORGE LUIS | E99: 2015-10-14T10:52:12 | F99: 29716 | G99: AV.EAEB-MA | H99: 4 | I99: ENO - Apoyo de Supervisores, Jefes de Unidad, Personal Administrativos - AA4047 - Jorge Carrasco - 272-4440 | J99: Lote E - Servicio de alquiler trimestral de vehículo a motor - Picop con barra antivuelco y ganchos | K99: 1 | L99: Mo | M99: 2839.44 | O99: 2839.44 | P99: 2015-10-01 | Q99: 2015-12-30
A100: 2015-10-14T15:46:25 | B100: 746330 | C100: 341769 | D100: PIMENTEL ARAUZ, MARIA ISABEL | E100: 2015-10-15T07:00:45 | F100: 29716 | G100: AV.CCXR | H100: 3 | I100: Viaje a Santiago - Dania Rosas - 272-7288 | J100: Lote B - Servicio de alquiler diario de vehículo a motor - camioneta 4 x 4 | K100: 4 | L100: Each | M100: 199.6 | O100: 199.6 | P100: 2015-10-14 | Q100: 2015-10-16
A101: 2015-10-16T14:35:37 | B101: 747259 | C101: 341968 | D101: GONZALEZ ATENCIO, LETICIA PORTOLATINA | E101: 2015-10-16T17:29:52 | F101: 29716 | G101: AV.OPPV | H101: 1 | I101: Veh 8214 - Pedro Chen - 276-1054 | J101: Lote D - Servicio de alquiler semanal de vehículo a motor - Picop | K101: 2 | L101: Each | M101: 442.8 | O101: 442.8 | P101: 2015-10-15 | Q101: 2015-10-29
A102: 2015-10-16T14:42:23 | B102: 747266 | C102: 341970 | D102: GONZALEZ ATENCIO, LETICIA PORTOLATINA | E102: 2015-10-16T17:30:26 | F102: 29716 | G102: AV.OPPV | H102: 1 | I102: Veh 8822 - AT8861 - Franklin Justiniani - 276-1541 | J102: Lote D - Servicio de alquiler semanal de vehículo a motor - Picop | K102: 2 | L102: Each | M102: 442.8 | O102: 442.8 | P102: 2015-10-19 | Q102: 2015-11-02
A103: 2015-10-16T14:49:15 | B103: 747276 | C103: 341971 | D103: GONZALEZ ATENCIO, LETICIA PORTOLATINA | E103: 2015-10-16T17:30:21 | F103: 29716 | G103: AV.OPPV | H103: 1 | I103: Veh 9402 - Pedro Chen - 276-1054 | J103: Lote D - Servicio de alquiler semanal de vehículo a motor - Picop | K103: 2 | L103: Each | M103: 442.8 | O103: 442.8 | P103: 2015-10-16 | Q103: 2015-10-30
A104: 2015-10-20T09:22:48 | B104: 747280 | C104: 342096 | D104: GONZALEZ ATENCIO, LETICIA PORTOLATINA | E104: 2015-10-21T08:09:04 | F104: 29716 | G104: AV.OPPV | H104: 1 | I104: Veh 9398 - Pedro Chen - 276-1054 | J104: Lote D - Servicio de alquiler semanal de vehículo a motor - Picop | K104: 4 | L104: Each | M104: 885.6 | O104: 885.6 | P104: 2015-10-18 | Q104: 2015-11-15
A105: 2015-10-21T11:31:44 | B105: 747889 | C105: 342153 | D105: CAROPRESSO G, AURAY MILAGROS | E105: 2015-10-22T07:37:43 | F105: 29716 | G105: AV.OPEP-PM | H105: 1 | I105: Veh 9391 - Carlos Espinosa - 276-7688 | J105: Lote E - Servicio de alquiler semanal de vehículo a motor - Picop con barra antivuelco y ganchos | K105: 2 | L105: Each | M105: 442.8 | O105: 442.8 | P105: 2015-10-23 | Q105: 2015-11-06
A106: 2015-10-21T09:01:07 | B106: 747258 | C106: 342197 | D106: ZHANG WU, EUGENIO | E106: 2015-10-21T16:20:45 | F106: 29716 | G106: AV.IAIT | H106: 1 | I106: Veh 9586 - María Vanessa Sáiz - 276-7161 | J106: Lote B - Servicio de alquiler semanal de vehículo a motor - camioneta 4 x 4 | K106: 3 | L106: Each | M106: 898.2 | O106: 898.2 | P106: 2015-10-16 | Q106: 2015-11-06
A107: 2015-10-21T09:42:52 | B107: 746590 | C107: 342209 | D107: HURTADO WESLEY, FLOR CELIA | E107: 2015-10-21T16:21:13 | F107: 29716 | G107: AV.EAEA-AP | H107: 1 | I107: Veh 9658 - Andrew Philps - 276-4640 | J107: Lote E - Servicio de alquiler semanal de vehículo a motor - Picop con barra antivuelco y ganchos | K107: 2 | L107: Each | M107: 442.8 | O107: 442.8 | P107: 2015-10-21 | Q107: 2015-11-04
A108: 2015-10-21T10:02:15 | B108: 746595 | C108: 342215 | D108: HURTADO WESLEY, FLOR CELIA | E108: 2015-10-21T16:22:24 | F108: 29716 | G108: AV.EAEA-AP | H108: 1 | I108: Veh 9880 - Ruben Rose - 276-4641 | J108: Lote E - Servicio de alquiler mensual de vehículo a motor - Picop con barra antivuelco y ganchos | K108: 1 | L108: Each | M108: 996.3 | O108: 996.3 | P108: 2015-10-21 | Q108: 2015-11-20
A109: 2015-10-22T09:31:05 | B109: 747927 | C109: 342314 | D109: SIMITI VALDEZ, EMILY BEATRIZ | E109: 2015-10-22T16:43:26 | F109: 29716 | G109: AV.OPEM-E | H109: 1 | I109: Veh 8843 - Roberto Castillo - 276-3225 | J109: Lote E - Servicio de alquiler semanal de vehículo a motor - Picop con barra antivuelco y ganchos | K109: 2 | L109: Each | M109: 442.8 | O109: 442.8 | P109: 2015-10-26 | Q109: 2015-11-09
A110: 2015-10-23T07:31:57 | B110: 748638 | C110: 342428 | D110: GONZALEZ ATENCIO, LETICIA PORTOLATINA | E110: 2015-10-26T16:01:17 | F110: 29716 | G110: AV.OPPV | H110: 1 | I110: Veh 9404 - Pedro Chen - 276-1054 | J110: Lote D - Servicio de alquiler semanal de vehículo a motor - Picop | K110: 2 | L110: Each | M110: 442.8 | O110: 442.8 | P110: 2015-10-22 | Q110: 2015-11-05
A111: 2015-10-26T09:16:10 | B111: 746411 | C111: 342486 | D111: HURTADO WESLEY, FLOR CELIA | E111: 2015-10-26T16:01:08 | F111: 29716 | G111: AV.EAEB-SE | H111: 1 | I111: Veh 9609 - Abdiel Galvez - 272-3328 | J111: Lote D - Servicio de alquiler diario de vehículo a motor - Picop | K111: 3 | L111: Each | M111: 110.7 | O111: 110.7 | P111: 2015-10-13 | Q111: 2015-10-15
A112: 2015-10-26T14:13:09 | B112: 748649 | C112: 342543 | D112: GONZALEZ ATENCIO, LETICIA PORTOLATINA | E112: 2015-10-26T16:01:45 | F112: 29716 | G112: AV.OPPV | H112: 1 | I112: Veh 9394 - Pedro Chen - 276-1054 | J112: Lote D - Servicio de alquiler semanal de vehículo a motor - Picop | K112: 4 | L112: Each | M112: 885.6 | O112: 885.6 | P112: 2015-10-23 | Q112: 2015-11-20
A113: 2015-10-26T14:20:13 | B113: 748675 | C113: 342549 | D113: GONZALEZ ATENCIO, LETICIA PORTOLATINA | E113: 2015-10-26T16:01:55 | F113: 29716 | G113: AV.OPPV | H113: 1 | I113: Veh 8212 - Pedro Chen - 276-1054 | J113: Lote D - Servicio de alquiler semanal de vehículo a motor - Picop | K113: 2 | L113: Each | M113: 442.8 | O113: 442.8 | P113: 2015-10-22 | Q113: 2015-11-05
A114: 2015-10-26T15:12:41 | B114: 748892 | C114: 342572 | D114: BERNUIL ZAMBRANO, OSCAR | E114: 2015-10-26T16:02:01 | F114: 29716 | G114: AV.RHSR-CP | H114: 3 | I114: Traslado a especialistas RHSR-CP a Gatún, Colón - Yimara Gonzalez - 272-8336| | J114: Lote B - Servicio de alquiler diario de vehículo a motor - camioneta 4 x 4 | K114: 1 | L114: Each | M114: 49.9 | O114: 49.9 | P114: 2015-10-28 | Q114: 2015-10-28
A115: 2015-10-28T09:44:24 | B115: 749630 | C115: 342789 | D115: GONZALEZ ATENCIO, LETICIA PORTOLATINA | E115: 2015-10-28 | F115: 29716 | G115: AV.OPPV | H115: 1 | I115: Veh 6761 - Pedro Chen - 276-1054 | J115: Lote D - Servicio de alquiler semanal de vehículo a motor - Picop | K115: 2 | L115: Each | M115: 442.8 | O115: 442.8 | P115: 2015-10-27 | Q115: 2015-11-10
A116: 2015-10-28T13:36:54 | B116: 749700 | C116: 342813 | D116: SIMITI VALDEZ, EMILY BEATRIZ | E116: 2015-10-28T15:05:52 | F116: 29716 | G116: AV.OPEM-E | H116: 1 | I116: Veh 8071/8101 - Roberto Castillo - 276-3225 | J116: Lote E - Servicio de alquiler semanal de vehículo a motor - Picop con barra antivuelco y ganchos | K116: 2 | L116: Each | M116: 442.8 | O116: 442.8 | P116: 2015-11-11 | Q116: 2015-11-25
A117: 2015-10-29T07:36:41 | B117: 749032 | C117: 342842 | D117: BARSALLO TOUREAU, KARINA MINERVA | E117: 2015-11-02T06:52:35 | F117: 29716 | G117: AV.TIOD | H117: 1 | I117: Veh 9580 - Elmer Vaca - 276-2412 | J117: Lote D - Servicio de alquiler semanal de vehículo a motor - Picop | K117: 1 | L117: Each | M117: 221.4 | O117: 221.4
A118: 2015-11-06T11:40:18 | B118: 749854 | C118: 343278 | D118: SMITH DREW, DIVA LYRNA | E118: 2015-11-09T10:07:22 | F118: 29716 | G118: AV.RHS-ENL | H118: 3 | I118: Viaje CSS de Enlace - Monte Esperanza - Dewyer Valdes - 272-8815 | J118: Lote B - Servicio de alquiler diario de vehículo a motor - camioneta 4 x 4 | K118: 2 | L118: Each | M118: 99.8 | O118: 99.8 | P118: 2015-11-12 | Q118: 2015-11-13
A119: 2015-11-09T10:06:42 | B119: 746712 | C119: 343321 | D119: RUIZ ORTEGA, JORGE LUIS | E119: 2015-11-09T14:22:16 | F119: 29716 | G119: AV.EAEG-GT | H119: 1 | I119: Veh 9532 - Mario Rangel - 272-4431 | J119: Lote D - Servicio de alquiler semanal de vehículo a motor - Picop | K119: 1 | L119: Each | M119: 221.4 | O119: 221.4 | P119: 2015-11-09 | Q119: 2015-11-16
A120: 2015-11-09T12:51:50 | B120: 750904 | C120: 343339 | D120: SIMITI VALDEZ, EMILY BEATRIZ | E120: 2015-11-09T15:17:00 | F120: 29716 | G120: AV.OPEM-E | H120: 1 | I120: Veh 9663 - Olga Perea - 276-2851 | J120: Lote E - Servicio de alquiler semanal de vehículo a motor - Picop con barra antivuelco y ganchos | K120: 3 | L120: Each | M120: 664.2 | O120: 664.2 | P120: 2015-11-12 | Q120: 2015-12-03
A121: 2015-11-09T12:56:59 | B121: 750674 | C121: 343340 | D121: SIMITI VALDEZ, EMILY BEATRIZ | E121: 2015-11-09T15:17:41 | F121: 29716 | G121: AV.OPEM-E | H121: 1 | I121: Veh 8117 - Olga Perea - 276-2851 | J121: Lote E - Servicio de alquiler semanal de vehículo a motor - Picop con barra antivuelco y ganchos | K121: 1 | L121: Each | M121: 221.4 | O121: 221.4 | P121: 2015-11-16 | Q121: 2015-11-23
A122: 2015-11-09T15:25:44 | B122: 751652 | C122: 343361 | D122: PEREA ROJAS, MONICA ISABEL | E122: 2015-11-13T13:16:19 | F122: 29716 | G122: AV.OPRD | H122: 1 | I122: 4 TIP - José Perivancich - 276-2496 | J122: Lote B - Servicio de alquiler semanal de vehículo a motor - camioneta 4 x 4 | K122: 4 | L122: Each | M122: 1197.6 | O122: 1197.6 | P122: 2015-11-11 | Q122: 2015-11-18
A123: 2015-11-11T07:52:36 | B123: 750766 | C123: 343373 | D123: GONZALEZ ATENCIO, LETICIA PORTOLATINA | E123: 2015-11-11T15:15:14 | F123: 29716 | G123: AV.OPPV | H123: 1 | I123: Veh 9403 - Pedro Chen - 276-1054 | J123: Lote D - Servicio de alquiler semanal de vehículo a motor - Picop | K123: 2 | L123: Each | M123: 442.8 | O123: 442.8 | P123: 2015-10-30 | Q123: 2015-11-14
A124: 2015-11-11T08:17:25 | B124: 750798 | C124: 343377 | D124: GONZALEZ ATENCIO, LETICIA PORTOLATINA | E124: 2015-11-16T10:58:27 | F124: 29716 | G124: AV.OPPV | H124: 1 | I124: Veh 9402 - Pedro Chen - 276-1054 | J124: Lote D - Servicio de alquiler semanal de vehículo a motor - Picop | K124: 4 | L124: Each | M124: 885.6 | O124: 885.6 | P124: 2015-10-30 | Q124: 2015-11-29
A125: 2015-11-11T08:28:10 | B125: 750734 | C125: 343379 | D125: GONZALEZ ATENCIO, LETICIA PORTOLATINA | E125: 2015-11-16T10:58:35 | F125: 29716 | G125: AV.OPPV | H125: 1 | I125: Veh 8213 - Pedro Chen - 276-1054 | J125: Lote D - Servicio de alquiler semanal de vehículo a motor - Picop | K125: 1 | L125: Each | M125: 221.4 | O125: 221.4 | P125: 2015-10-29 | Q125: 2015-11-05
A126: 2015-11-11T08:44:53 | B126: 750772 | C126: 343384 | D126: GONZALEZ ATENCIO, LETICIA PORTOLATINA | E126: 2015-11-11T15:15:09 | F126: 29716 | G126: AV.OPPV | H126: 1 | I126: Veh 9401 - Pedro Chen - 276-1054 | J126: Lote D - Servicio de alquiler semanal de vehículo a motor - Picop | K126: 4 | L126: Each | M126: 885.6 | O126: 885.6 | P126: 2015-10-30 | Q126: 2015-11-29
A127: 2015-11-11T08:52:06 | B127: 750774 | C127: 343386 | D127: GONZALEZ ATENCIO, LETICIA PORTOLATINA | E127: 2015-11-11T15:15:04 | F127: 29716 | G127: AV.OPPV | H127: 1 | I127: Veh 9397 - Pedro Chen - 276-1054 | J127: Lote D - Servicio de alquiler semanal de vehículo a motor - Picop | K127: 4 | L127: Each | M127: 885.6 | O127: 885.6 | P127: 2015-10-30 | Q127: 2015-11-29
A128: 2015-11-11T08:57:48 | B128: 750776 | C128: 343389 | D128: GONZALEZ ATENCIO, LETICIA PORTOLATINA | E128: 2015-11-11T15:14:59 | F128: 29716 | G128: AV.OPPV | H128: 3 | I128: Ruta de Ampliación en el Atlántico - Pedro Chen - 276-1054 | J128: Lote D - Servicio de alquiler semanal de vehículo a motor - Picop | K128: 4 | L128: Each | M128: 885.6 | O128: 885.6 | P128: 2015-10-30 | Q128: 2015-11-29
A129: 2015-11-11T09:02:10 | B129: 750780 | C129: 343391 | D129: GONZALEZ ATENCIO, LETICIA PORTOLATINA | E129: 2015-11-11T15:14:51 | F129: 29716 | G129: AV.OPPV | H129: 3 | I129: Ruta de Ampliación en el Atlántico - Pedro Chen - 276-1054 | J129: Lote D - Servicio de alquiler semanal de vehículo a motor - Picop | K129: 4 | L129: Each | M129: 885.6 | O129: 885.6 | P129: 2015-10-31 | Q129: 2015-11-30
A130: 2015-11-11T09:37:10 | B130: 750845 | C130: 343401 | D130: GONZALEZ ATENCIO, LETICIA PORTOLATINA | E130: 2015-11-11T15:14:45 | F130: 29716 | G130: AV.OPPV | H130: 1 | I130: Veh 8822 - AT8861 - Franklin Justiniani - 276-1541 | J130: Lote D - Servicio de alquiler semanal de vehículo a motor - Picop | K130: 2 | L130: Each | M130: 442.8 | O130: 442.8 | P130: 2015-11-02 | Q130: 2015-11-16
A131: 2015-11-11T09:59:18 | B131: 750865 | C131: 343405 | D131: GONZALEZ ATENCIO, LETICIA PORTOLATINA | E131: 2015-11-11T15:14:38 | F131: 29716 | G131: AV.OPPV | H131: 1 | I131: Veh 9393 - Pedro Chen - 276-1054 | J131: Lote D - Servicio de alquiler semanal de vehículo a motor - Picop | K131: 2 | L131: Each | M131: 442.8 | O131: 442.8 | P131: 2015-10-31 | Q131: 2015-11-14
A132: 2015-11-11T10:04:51 | B132: 750850 | C132: 343407 | D132: GONZALEZ ATENCIO, LETICIA PORTOLATINA | E132: 2015-11-11T15:14:32 | F132: 29716 | G132: AV.OPPV | H132: 1 | I132: Veh 9404 - Pedro Chen - 276-1054 | J132: Lote D - Servicio de alquiler semanal de vehículo a motor - Picop | K132: 1 | L132: Each | M132: 221.4 | O132: 221.4 | P132: 2015-11-05 | Q132: 2015-11-12
A133: 2015-11-11T10:09:29 | B133: 750857 | C133: 343410 | D133: GONZALEZ ATENCIO, LETICIA PORTOLATINA | E133: 2015-11-11T15:14:20 | F133: 29716 | G133: AV.OPPV | H133: 1 | I133: Veh 8212 - Pedro Chen - 276-1054 | J133: Lote D - Servicio de alquiler semanal de vehículo a motor - Picop | K133: 1 | L133: Each | M133: 221.4 | O133: 221.4 | P133: 2015-11-05 | Q133: 2015-11-12
A134: 2015-11-12T09:02:17 | B134: 749773 | C134: 343476 | D134: MEANA MOUYNES, MARIA LOURDES | E134: 2015-11-16T15:04:00 | F134: 29716 | G134: AV.OPEP-MM | H134: 2 | I134: Proyecto para el Inicio y Pruebas para la puesta en marcha e inicio de operaciones de las esclusas de cocoli y agua clara-Jorge Pitti - 276-8268 | J134: Lote D - Servicio de alquiler mensual de vehículo a motor - Picop | K134: 3 | L134: Each | M134: 2988.9 | O134: 2988.9 | P134: 2015-09-24 | Q134: 2015-12-23
A135: 2015-11-13T08:00:20 | B135: 751603 | C135: 343541 | D135: HURTADO WESLEY, FLOR CELIA | E135: 2015-11-13T14:33:47 | F135: 29716 | G135: AV.EAEG-GT | H135: 1 | I135: Veh 9612 - Maydolee Nuñez - 272-4461 | J135: Lote D - Servicio de alquiler semanal de vehículo a motor - Picop | K135: 2 | L135: Each | M135: 442.8 | O135: 442.8 | P135: 2015-11-06 | Q135: 2015-11-20
A136: 2015-11-13T08:44:16 | B136: 752035 | C136: 343552 | D136: HURTADO WESLEY, FLOR CELIA | E136: 2015-11-13T14:33:07 | F136: 29716 | G136: AV.EAEA-AP | H136: 1 | I136: Veh 9596 - Enrique Otalora - 272-3016 | J136: Lote E - Servicio de alquiler semanal de vehículo a motor - Picop con barra antivuelco y ganchos | K136: 2 | L136: Each | M136: 442.8 | O136: 442.8 | P136: 2015-11-04 | Q136: 2015-11-18
A137: 2015-11-13T09:43:43 | B137: 751608 | C137: 343582 | D137: BARSALLO TOUREAU, KARINA MINERVA | E137: 2015-11-13T14:31:33 | F137: 29716 | G137: AV.TIOD | H137: 1 | I137: Veh 9580 - Elmer Vaca - 276-2412 | J137: Lote E - Servicio de alquiler semanal de vehículo a motor - Picop con barra antivuelco y ganchos | K137: 2 | L137: Each | M137: 442.8 | O137: 442.8 | P137: 2015-11-02 | Q137: 2015-11-23
A138: 2015-11-13T10:53:30 | B138: 748391 | C138: 343592 | D138: SANCHEZ UREÑA, LIZDEYKA MELISSA | E138: 2015-11-13T14:31:19 | F138: 29716 | G138: AV.OPEI | H138: 3 | I138: Viaje Colón - Gatún a -Capacitación del Personal - Cleopatra Campbell - 276-8265 | J138: Lote B - Servicio de alquiler diario de vehículo a motor - camioneta 4 x 4 | K138: 1 | L138: Each | M138: 49.9 | O138: 49.9 | P138: 2015-10-23 | Q138: 2015-10-23
A139: 2015-11-16T08:31:14 | B139: 752046 | C139: 343661 | D139: GONZALEZ ATENCIO, LETICIA PORTOLATINA | E139: 2015-11-16T10:43:27 | F139: 29716 | G139: AV.OPPV | H139: 1 | I139: Veh 6761 - Pedro Chen - 276-1054 | J139: Lote D - Servicio de alquiler semanal de vehículo a motor - Picop | K139: 2 | L139: Each | M139: 442.8 | O139: 442.8 | P139: 2015-11-10 | Q139: 2015-11-23
A140: 2015-11-16T08:36:51 | B140: 752351 | C140: 343663 | D140: GONZALEZ ATENCIO, LETICIA PORTOLATINA | E140: 2015-11-16T10:43:57 | F140: 29716 | G140: AV.OPPV | H140: 1 | I140: Veh 9399 - Pedro Chen - 276-1054 | J140: Lote D - Servicio de alquiler mensual de vehículo a motor - Picop | K140: 4 | L140: Each | M140: 885.6 | O140: 885.6 | P140: 2015-11-12 | Q140: 2015-12-10
A141: 2015-11-16T08:42:04 | B141: 752349 | C141: 343664 | D141: GONZALEZ ATENCIO, LETICIA PORTOLATINA | E141: 2015-11-16T10:44:03 | F141: 29716 | G141: AV.OPPV | H141: 1 | I141: Veh 9393 - Pedro Chen - 276-1054 | J141: Lote D - Servicio de alquiler mensual de vehículo a motor - Picop | K141: 2 | L141: Each | M141: 442.8 | O141: 442.8 | P141: 2015-11-14 | Q141: 2015-11-28
A142: 2015-11-16T08:46:48 | B142: 752347 | C142: 343665 | D142: GONZALEZ ATENCIO, LETICIA PORTOLATINA | E142: 2015-11-16T10:44:10 | F142: 29716 | G142: AV.OPPV | H142: 1 | I142: Veh 8212 - Pedro Chen - 276-1054 | J142: Lote D - Servicio de alquiler mensual de vehículo a motor - Picop | K142: 2 | L142: Each | M142: 442.8 | O142: 442.8 | P142: 2015-11-12 | Q142: 2015-11-26
A143: 2015-11-16T08:51:50 | B143: 752348 | C143: 343666 | D143: GONZALEZ ATENCIO, LETICIA PORTOLATINA | E143: 2015-11-16T10:44:16 | F143: 29716 | G143: AV.OPPV | H143: 1 | I143: Veh 9398 - Pedro Chen - 276-1054 | J143: Lote D - Servicio de alquiler mensual de vehículo a motor - Picop | K143: 2 | L143: Each | M143: 442.8 | O143: 442.8 | P143: 2015-11-15 | Q143: 2015-11-29
A144: 2015-11-16T08:55:14 | B144: 752350 | C144: 343668 | D144: GONZALEZ ATENCIO, LETICIA PORTOLATINA | E144: 2015-11-16T10:44:22 | F144: 29716 | G144: AV.OPPV | H144: 1 | I144: Veh 9403 - Pedro Chen - 276-1054 | J144: Lote D - Servicio de alquiler mensual de vehículo a motor - Picop | K144: 1 | L144: Each | M144: 221.4 | O144: 221.4 | P144: 2015-11-14 | Q144: 2015-11-21
A145: 2015-11-16T09:33:21 | B145: 750895 | C145: 343682 | D145: RODRIGUEZ HERRERA, HELIO JAVIER | E145: 2015-11-17T07:09:58 | F145: 29716 | G145: AV.OPEM-P | H145: 1 | I145: Veh 8804 - en Garantía - Gabriel Vasquez - 276-8226 | J145: Lote E - Servicio de alquiler semanal de vehículo a motor - Picop con barra antivuelco y ganchos | K145: 4 | L145: Each | M145: 885.6 | O145: 885.6 | P145: 2015-11-18 | Q145: 2015-12-15
A146: 2015-11-16T11:32:50 | B146: 751797 | C146: 343709 | D146: SIMITI VALDEZ, EMILY BEATRIZ | F146: 29716 | G146: AV.OPEM-E | H146: 1 | I146: Veh 8843 - Roberto Castillo - 276-3225 | J146: Lote E - Servicio de alquiler semanal de vehículo a motor - Picop con barra antivuelco y ganchos | K146: 2 | L146: Each | M146: 442.8 | O146: 442.8 | P146: 2015-11-10 | Q146: 2015-11-24
A147: 2015-11-16T12:19:43 | B147: 748531 | C147: 343720 | D147: GONZALEZ QUIROS, AIDEE DEL CARMEN | E147: 2015-11-17T07:10:27 | F147: 29716 | G147: AV.OPEM-S | H147: 4 | I147: ENO - Supv Contratos , incorporar un vehículo para que los ROC cuenten con la facilitad de desplazarse a lo largo del Canal - Ana Victoria Rivera - 276-7171-2374 | J147: Lote B - Servicio de alquiler trimestral de vehículo a motor - camioneta 4 x 4 | K147: 1 | L147: Mo | M147: 3705 | O147: 3705 | P147: 2015-11-18 | Q147: 2016-02-17
A148: 2015-11-16T15:11:59 | B148: 752486 | C148: 343750 | D148: BARSALLO TOUREAU, KARINA MINERVA | E148: 2015-11-17T07:10:34 | F148: 29716 | G148: AV.TIOD | H148: 1 | I148: Veh 9580 - Elmer Vaca - 276-2412 | J148: Lote E - Servicio de alquiler semanal de vehículo a motor - Picop con barra antivuelco y ganchos | K148: 3 | L148: Each | M148: 664.2 | O148: 664.2 | P148: 2015-11-16 | Q148: 2015-12-07
A149: 2015-11-17T08:07:59 | B149: 752798 | C149: 343760 | D149: HOOKER, ANDREA IVETTE DE | E149: 2015-11-17T15:11:37 | F149: 29716 | G149: AV.OPRT | H149: 1 | I149: Veh 6002 - Jaime José Gonzalez - 276-1192 | J149: Lote D - Servicio de alquiler diario de vehículo a motor - Picop | K149: 1 | L149: Each | M149: 36.9 | O149: 36.9 | P149: 2015-11-20 | Q149: 2015-11-20
A150: 2015-11-17T08:07:59 | B150: 752798 | C150: 343760 | D150: HOOKER, ANDREA IVETTE DE | E150: 2015-11-17T15:11:37 | F150: 29716 | G150: AV.OPRT | H150: 1 | I150: Veh 6002 - Jaime José Gonzalez - 276-1192 | J150: Lote D - Servicio de alquiler semanal de vehículo a motor - Picop | K150: 1 | L150: Each | M150: 221.4 | O150: 221.4 | P150: 2015-11-21 | Q150: 2015-11-27
A151: 2015-11-17T10:21:29 | B151: 752826 | C151: 343791 | D151: GONZALEZ ATENCIO, LETICIA PORTOLATINA | E151: 2015-11-17T15:11:43 | F151: 29716 | G151: AV.OPPV | H151: 1 | I151: Veh 9404 - Pedro Chen - 276-1054 | J151: Lote D - Servicio de alquiler semanal de vehículo a motor - Picop | K151: 2 | L151: Each | M151: 442.8 | O151: 442.8 | P151: 2015-11-16 | Q151: 2015-11-30
A152: 2015-11-17T11:34:10 | B152: 748328 | C152: 343805 | D152: RODRIGUEZ HERRERA, HELIO JAVIER | E152: 2015-11-18T06:57:04 | F152: 29716 | G152: AV.OPEM-P | H152: 2 | I152: Overhaul de Dic 2015 - Idelsa Botello -276-7297- Selfrido Díaz | J152: Lote E - Servicio de alquiler mensual de vehículo a motor - Picop con barra antivuelco y ganchos | K152: 2 | L152: Each | M152: 1992.6 | O152: 1992.6 | P152: 2015-12-01 | Q152: 2015-12-31
A153: 2015-11-18T13:03:19 | B153: 752544 | C153: 343880 | D153: DELGADO GONZALEZ, FRANCISCO JR | E153: 2015-11-19T07:08:50 | F153: 29716 | G153: AV.IAIT | H153: 1 | I153: Veh 9694 - Cristobal Cerrud - 276-4591 - Jorge Fanovich - 443-5508 | J153: Cargo por entregar (a la ACP o recoger en la ACP) Exclusivo solo para la Ciudad de Colón. | K153: 1 | L153: Each | M153: 20 | O153: 20 | P153: 2015-11-16 | Q153: 2015-12-16
A154: 2015-11-18T13:03:19 | B154: 752544 | C154: 343880 | D154: DELGADO GONZALEZ, FRANCISCO JR | E154: 2015-11-19T07:08:50 | F154: 29716 | G154: AV.IAIT | H154: 1 | I154: Veh 9694 - Cristobal Cerrud - 276-4591 - Jorge Fanovich - 443-5508 | J154: Lote B - Servicio de alquiler mensual de vehículo a motor - camioneta 4 x 4 | K154: 1 | L154: Each | M154: 1300 | O154: 1300 | P154: 2015-11-16 | Q154: 2015-12-16
A155: 2015-11-20T08:19:39 | B155: 753494 | C155: 344037 | D155: GONZALEZ ATENCIO, LETICIA PORTOLATINA | E155: 2015-11-20T10:56:49 | F155: 29716 | G155: AV.OPPV | H155: 1 | I155: Veh 6761 - Pedro Chen - 276-1054 | J155: Lote D - Servicio de alquiler semanal de vehículo a motor - Picop | K155: 4 | L155: Each | M155: 885.6 | O155: 885.6 | P155: 2015-11-24 | Q155: 2015-12-22
A156: 2015-11-20T08:27:16 | B156: 753808 | C156: 344039 | D156: GONZALEZ ATENCIO, LETICIA PORTOLATINA | E156: 2015-11-20T10:57:03 | F156: 29716 | G156: AV.OPPV | H156: 1 | I156: Veh 9395 - Pedro Chen - 276-1054 | J156: Lote D - Servicio de alquiler semanal de vehículo a motor - Picop | K156: 1 | L156: Each | M156: 221.4 | O156: 221.4 | P156: 2015-11-19 | Q156: 2015-11-26
A157: 2015-11-20T08:36:30 | B157: 753813 | C157: 344042 | D157: GONZALEZ ATENCIO, LETICIA PORTOLATINA | E157: 2015-11-20T10:57:17 | F157: 29716 | G157: AV.OPPV | H157: 1 | I157: Veh 9405 - Pedro Chen - 276-1054 | J157: Lote D - Servicio de alquiler semanal de vehículo a motor - Picop | K157: 2 | L157: Each | M157: 442.8 | O157: 442.8 | P157: 2015-11-19 | Q157: 2015-12-03
A158: 2015-11-20T08:40:57 | B158: 753804 | C158: 344043 | D158: BROWN MAYORGA, RICARDO ERNESTO | E158: 2015-11-20T10:57:30 | F158: 29716 | G158: AV.COPR | H158: 1 | I158: Veh 6005 - Ricardo Brown - 272-1427 | J158: Lote B - Servicio de alquiler semanal de vehículo a motor - camioneta 4 x 4 | K158: 2 | L158: Each | M158: 598.8 | O158: 598.8 | P158: 2015-11-19 | Q158: 2015-12-03
A159: 2015-11-20T08:41:48 | B159: 753817 | C159: 344044 | D159: GONZALEZ ATENCIO, LETICIA PORTOLATINA | E159: 2015-11-20T10:57:23 | F159: 29716 | G159: AV.OPPV | H159: 1 | I159: Veh 8214 - Pedro Chen - 276-1054 | J159: Lote D - Servicio de alquiler semanal de vehículo a motor - Picop | K159: 4 | L159: Each | M159: 885.6 | O159: =+M159-N159 -> 885.6 | P159: 2015-11-19 | Q159: 2015-12-17
A160: 2015-11-20T08:52:21 | B160: 753223 | C160: 344048 | D160: BERNUIL ZAMBRANO, OSCAR | E160: 2015-11-23T07:57:28 | F160: 29716 | G160: AV.RHSB | H160: 1 | I160: Veh 6729 - Belkis Botello - 272-8560 | J160: Lote A - Servicio de alquiler mensual de vehículo a motor - modelo sedán | K160: 1 | L160: Each | M160: 618.3 | O160: 618.3 | P160: 2015-11-19 | Q160: 2015-12-18
A161: 2015-11-20T09:08:51 | B161: 752714 | C161: 344051 | D161: BERNUIL ZAMBRANO, OSCAR | E161: 2015-11-23T07:58:34 | F161: 29716 | G161: AV.RHS-ENL | H161: 3 | I161: Viaje al Sector Atlántico - Victoria Arias - 272-8453 | J161: Lote B - Servicio de alquiler diario de vehículo a motor - camioneta 4 x 4 | K161: 1 | L161: Each | M161: 49.9 | O161: 49.9 | P161: 2015-12-04 | Q161: 2015-12-04
A162: 2015-11-23T13:35:54 | B162: 754171 | C162: 344215 | D162: GONZALEZ ATENCIO, LETICIA PORTOLATINA | E162: 2015-11-23T14:13:45 | F162: 29716 | G162: AV.OPPV | H162: 1 | I162: Veh 8822 - AT8861 - Franklin Justiniani - 276-1541 | J162: Lote D - Servicio de alquiler mensual de vehículo a motor - Picop | K162: 2 | L162: Each | M162: 442.8 | O162: 442.8 | P162: 2015-11-20 | Q162: 2015-12-04
A163: 2015-11-23T14:58:08 | B163: 753981 | C163: 344248 | D163: HURTADO WESLEY, FLOR CELIA | E163: 2015-11-24T14:19:37 | F163: 29716 | G163: AV.EAEA-AP | H163: 1 | I163: Veh 9880 - Jessica Brathwaite - 272-4484 | J163: Lote E - Servicio de alquiler semanal de vehículo a motor - Picop con barra antivuelco y ganchos | K163: 4 | L163: Each | M163: 885.6 | O163: 885.6 | P163: 2015-11-20 | Q163: 2015-12-18
A164: 2015-11-24T10:00:32 | B164: 752796 | C164: 344315 | D164: RUIZ ORTEGA, JORGE LUIS | E164: 2015-11-24T14:19:45 | F164: 29716 | G164: AV.EAEB-MA | H164: 1 | I164: Veh 8950 - Jorge Carrasco - 272-4440 | J164: Lote E - Servicio de alquiler mensual de vehículo a motor - Picop con barra antivuelco y ganchos | K164: 1 | L164: Each | M164: 996.3 | O164: 996.3 | P164: 2015-11-25 | Q164: 2015-12-25
A165: 2015-11-25T10:04:43 | B165: 754558 | C165: 344417 | D165: SIMITI VALDEZ, EMILY BEATRIZ | E165: 2015-11-25T13:23:08 | F165: 29716 | G165: AV.OPEM-E | H165: 1 | I165: Veh 8843 - Jeremías Palomeque - 276-1849 | J165: Lote E - Servicio de alquiler semanal de vehículo a motor - Picop con barra antivuelco y ganchos | K165: 1 | L165: Each | M165: 221.4 | O165: 221.4 | P165: 2015-11-23 | Q165: 2015-11-30
A166: 2015-11-26T07:37:31 | B166: 754629 | C166: 344484 | D166: SIMITI VALDEZ, EMILY BEATRIZ | E166: 2015-11-26T08:39:21 | F166: 29716 | G166: AV.OPEM-E | H166: 1 | I166: Veh 8101 - Jeremías Palomeque - 276-1849 | J166: Lote E - Servicio de alquiler semanal de vehículo a motor - Picop con barra antivuelco y ganchos | K166: 2 | L166: Each | M166: 442.8 | O166: 442.8 | P166: 2015-11-25 | Q166: 2015-12-09
A167: 2015-11-26T14:12:14 | B167: 755009 | C167: 344550 | D167: DYKGRAAFF ACOSTA, EMMA LEONI | E167: 2015-11-30T09:48:40 | F167: 29716 | G167: AV.OP | H167: 3 | I167: Asignación Espeical del VPE de OP - Giselle Quiróz -272-4583 | J167: Lote A - Servicio de alquiler diario de vehículo a motor - modelo sedán | K167: 3 | L167: Each | M167: 68.7 | O167: 68.7 | P167: 30 nov, 2 dic, 4 dic 2015
A168: 2015-11-26T15:32:51 | B168: 754881 | C168: 344565 | D168: GONZALEZ ATENCIO, LETICIA PORTOLATINA | E168: 2015-11-30T09:48:31 | F168: 29716 | G168: AV.OPPV | H168: 1 | I168: Veh 8212 - Pedro Chen - 276-1054 | J168: Lote D - Servicio de alquiler semanal de vehículo a motor - Picop | K168: 2 | L168: Each | M168: 442.8 | O168: 442.8 | P168: 2015-11-26 | Q168: 2015-12-10
A169: 2015-11-26T15:43:57 | B169: 754888 | C169: 344567 | D169: GONZALEZ ATENCIO, LETICIA PORTOLATINA | E169: 2015-11-30T09:48:21 | F169: 29716 | G169: AV.OPPV | H169: 1 | I169: Veh 9398 - Pedro Chen - 276-1054 | J169: Lote D - Servicio de alquiler semanal de vehículo a motor - Picop | K169: 2 | L169: Each | M169: 442.8 | O169: 442.8 | P169: 2015-11-29 | Q169: 2015-12-13
A170: 2015-11-30T08:52:41 | B170: 754909 | C170: 344601 | D170: GONZALEZ ATENCIO, LETICIA PORTOLATINA | E170: 2015-11-30T09:48:10 | F170: 29716 | G170: AV.OPPV | H170: 1 | I170: Veh 9395 - Pedro Chen - 276-1054 | J170: Lote D - Servicio de alquiler semanal de vehículo a motor - Picop | K170: 1 | L170: Each | M170: 221.4 | O170: 221.4 | P170: 2015-11-26 | Q170: 2015-12-03
A171: 2015-11-30T09:04:51 | B171: 754897 | C171: 344604 | D171: GONZALEZ ATENCIO, LETICIA PORTOLATINA | E171: 2015-11-30T09:48:01 | F171: 29716 | G171: AV.OPPV | H171: 1 | I171: Veh 9393 - Pedro Chen - 276-1054 | J171: Lote D - Servicio de alquiler semanal de vehículo a motor - Picop | K171: 2 | L171: Each | M171: 442.8 | O171: 442.8 | P171: 2015-11-28 | Q171: 2015-12-12
A172: 2015-11-30T09:14:25 | B172: 754900 | C172: 344606 | D172: GONZALEZ ATENCIO, LETICIA PORTOLATINA | E172: 2015-11-30T09:47:50 | F172: 29716 | G172: AV.OPPV | H172: 1 | I172: Veh 9402 - Pedro Chen - 276-1054 | J172: Lote D - Servicio de alquiler semanal de vehículo a motor - Picop | K172: 1 | L172: Each | M172: 221.4 | O172: 221.4 | P172: 2015-11-29 | Q172: 2015-12-06
A173: 2015-11-30T09:39:48 | B173: 755059 | C173: 344615 | D173: UNG HO, ISABEL TELMA | E173: 2015-11-30T15:52:38 | F173: 29716 | G173: AV.TIOD | H173: 1 | I173: Veh 8392 - Luis Velásquez - 276-4135 | J173: Lote D - - Servicios de alquiler mensual de vehículo a motor - Picop | K173: 1 | L173: Each | M173: 996.3 | O173: 996.3 | P173: 2015-12-01 | Q173: 2015-12-31
A174: 2015-11-30T10:50:41 | B174: 753389 | C174: 344637 | D174: PIMENTEL ARAUZ, MARIA ISABEL | E174: 2015-12-01T10:59:15 | F174: 29716 | G174: AV.CORA | H174: 2 | I174: Proyecto de Cora - Conserv y Recuper de areas del Canal - Tomás Fernandez - 272-7393/7398 | J174: Lote D - Servicio de alquiler trimestral de vehículo a motor - Picop | K174: 1 | L174: Mo | M174: 2839.44 | O174: 2839.44 | P174: 2015-12-02 | Q174: 2016-03-01
A175: 2015-12-01T08:57:17 | B175: 755296 | C175: 344725 | D175: GONZALEZ QUINTANA, STEPHANIE MICHEL | E175: 2015-12-01T11:00:32 | F175: 29716 | G175: AV.RHS-ENL | H175: 3 | I175: Viaje a Monte Esperanza y Gatún de RHS-ENL - Belkis Botello - 272-8560 | J175: Lote B - Servicio de alquiler diario de vehículo a motor - camioneta 4 x 4 | K175: 1 | L175: Each | M175: 49.9 | O175: 49.9 | P175: 2015-12-03 | Q175: 2015-12-03
A176: 2015-12-01T09:36:51 | B176: 755211 | C176: 344739 | D176: GONZALEZ ATENCIO, LETICIA PORTOLATINA | E176: 2015-12-01T11:00:59 | F176: 29716 | G176: AV.OPPV | H176: 3 | I176: Cubrir areas de Ampliación del Canal en Gatún - Pedro Chen - 276-1054 | J176: Lote D - Servicio de alquiler semanal de vehículo a motor - Picop | K176: 4 | L176: Each | M176: 885.6 | O176: 885.6 | P176: 2015-11-27 | Q176: 2015-12-25
A177: 2015-12-01T09:46:32 | B177: 755445 | C177: 344743 | D177: RUIZ ALMANZA, FRANKLIN ANTONIO | E177: 2015-12-01T11:01:04 | F177: 29716 | G177: AV.RHSI | H177: 3 | I177: Viaje Oficiial al Area del Lago Alhajuela - Gabriela Amarís de Garcia - 272-8550/59 | J177: Lote B - Servicio de alquiler diario de vehículo a motor - camioneta 4 x 4 | K177: 1 | L177: Each | M177: 49.9 | O177: 49.9 | P177: 2015-12-04 | Q177: 2015-12-04
A178: 2015-12-01T10:33:45 | B178: 755657 | C178: 344758 | D178: GONZALEZ ATENCIO, LETICIA PORTOLATINA | E178: 2015-12-01T12:30:31 | F178: 29716 | G178: AV.OPPV | H178: 1 | I178: Veh 9401 - Pedro Chen - 276-1054 | J178: Lote D - Servicio de alquiler semanal de vehículo a motor - Picop | K178: 4 | L178: Each | M178: 885.6 | O178: 885.6 | P178: 2015-11-28 | Q178: 2015-12-26
A179: 2015-12-01T11:26:24 | B179: 755233 | C179: 344766 | D179: GONZALEZ ATENCIO, LETICIA PORTOLATINA | E179: 2015-12-01T14:29:15 | F179: 29716 | G179: AV.OPPV | H179: 3 | I179: Cubrir areas de Ampliación del Canal en Gatún - Pedro Chen - 276-1054 | J179: Lote D - Servicio de alquiler semanal de vehículo a motor - Picop | K179: 4 | L179: Each | M179: 885.6 | O179: 885.6 | P179: 2015-11-28 | Q179: 2015-12-26
A180: 2015-12-01T13:09:07 | B180: 755660 | C180: 344776 | D180: GONZALEZ ATENCIO, LETICIA PORTOLATINA | E180: 2015-12-01T15:18:01 | F180: 29716 | G180: AV.OPPV | H180: 1 | I180: Veh 9208 - Pedro Chen - 276-1054 | J180: Lote D - Servicio de alquiler semanal de vehículo a motor - Picop | K180: 4 | L180: Each | M180: 885.6 | O180: 885.6 | P180: 2015-11-27 | Q180: 2015-12-25
A181: 2015-12-03T07:14:52 | B181: 754647 | C181: 344919/354234 | D181: PEREZ, SOLEDAD DE | E181: 2015-12-03T14:16:31 | F181: 29716 | G181: AV.OPM | H181: 1 | I181: Veh 6665 - Rodrigo Chanis - 443-7426-6671-8856 - Calibración - Arango | J181: Lote A - Servicio de alquiler trimestral de vehículo a motor - modelo sedán | K181: 1 | L181: Mo | M181: 1762.11 | N181: 587.37 | O181: 1174.74 | P181: 2015-12-04 | Q181: 2016-03-03
A182: 2015-12-03T07:27:15 | B182: 756003 | C182: 344921 | D182: SIMITI VALDEZ, EMILY BEATRIZ | E182: 2015-12-03T14:06:03 | F182: 29716 | G182: AV.OPEM-E | H182: 1 | I182: Veh 9663 - Olga Perea - 276-2851 | J182: Lote E - Servicio de alquiler semanal de vehículo a motor - Picop con barra antivuelco y ganchos | K182: 3 | L182: Each | M182: 664.2 | O182: 664.2 | P182: 2015-12-03 | Q182: 2015-12-24
A183: 2015-12-03T07:32:47 | B183: 755909 | C183: 344925 | D183: SIMITI VALDEZ, EMILY BEATRIZ | E183: 2015-12-03T14:06:09 | F183: 29716 | G183: AV.OPEM-E | H183: 1 | I183: Veh 8843 - Jeremías Palomeque - 276-1849 | J183: Lote E - Servicio de alquiler semanal de vehículo a motor - Picop con barra antivuelco y ganchos | K183: 2 | L183: Each | M183: 442.8 | O183: 442.8 | P183: 2015-11-30 | Q183: 2015-12-14
A184: 2015-12-03T12:59:21 | B184: 751989 | C184: 344983/354246 | D184: PEREZ, SOLEDAD DE | E184: 2015-12-03T14:15:18 | F184: 29716 | G184: AV.OPM | H184: 4 | I184: ENO - Veh 9537 - Uso de Arquitectura Naval e Ing - Rodrigo Chanis - 443-7426-6671-8856 | J184: Lote A - Servicio de alquiler trimestral de vehículo a motor - modelo sedán | K184: 1 | L184: Mo | M184: 1762.11 | N184: 587.37 | O184: 1174.74 | P184: 2015-12-04 | Q184: 2016-03-03
A185: 2015-12-03T13:07:47 | B185: 755984 | C185: 344984 | D185: GONZALEZ ATENCIO, LETICIA PORTOLATINA | E185: 2015-12-03T14:06:13 | F185: 29716 | G185: AV.OPPV | H185: 1 | I185: Veh 6738 - Pedro Chen - 276-1054 | J185: Lote D - Servicio de alquiler semanal de vehículo a motor - Picop | K185: 1 | L185: Each | M185: 221.4 | O185: 221.4 | P185: 2015-12-02 | Q185: 2015-12-09
A186: 2015-12-03T15:10:41 | B186: 756223 | C186: 345021 | D186: GONZALEZ ATENCIO, LETICIA PORTOLATINA | E186: 2015-12-04T08:00:15 | F186: 29716 | G186: AV.OPPV | H186: 1 | I186: Veh 9404 - Pedro Chen - 276-1054 | J186: Lote D - Servicio de alquiler mensual de vehículo a motor - Picop | K186: 2 | L186: Each | M186: 442.8 | O186: 442.8 | P186: 2015-11-30 | Q186: 2015-12-14
A187: 2015-12-03T15:28:04 | B187: 756233 | C187: 345028 | D187: GONZALEZ ATENCIO, LETICIA PORTOLATINA | E187: 2015-12-04T08:01:04 | F187: 29716 | G187: AV.OPPV | H187: 1 | I187: Veh 8213 - Pedro Chen - 276-1054 | J187: Lote D - Servicio de alquiler mensual de vehículo a motor - Picop | K187: 2 | L187: Each | M187: 442.8 | O187: 442.8 | P187: 2015-12-03 | Q187: 2015-12-17
A188: 2015-12-04T09:14:39 | B188: 756071 | C188: 345055 | D188: HURTADO WESLEY, FLOR CELIA | E188: 2015-12-04T11:00:18 | F188: 29716 | G188: AV.EAEA-AP | H188: 1 | I188: Veh 9658 - Jessica Brathwaite - 272-4484 | J188: Lote E - Servicio de alquiler mensual de vehículo a motor - Picop con barra antivuelco y ganchos | K188: 1 | L188: Each | M188: 996.3 | O188: 996.3 | P188: 2015-11-18 | Q188: 2015-12-17
A189: 2015-12-04T14:36:03 | B189: 755809 | C189: 345156 | D189: MEANA MOUYNES, MARIA LOURDES | E189: 2015-12-07T06:54:05 | F189: 29716 | G189: AV.OPED | H189: 4 | I189: ENO - OPED CONTRATOS - Ricardo Gallardo - 276-3347 | J189: Lote A - Servicio de alquiler trimestral de vehículo a motor - modelo sedán | K189: 1 | L189: Mo | M189: 1762.11 | O189: 1762.11 | P189: 2015-12-11 | Q189: 2016-03-10
A190: 2015-12-04T14:36:03 | B190: 755809 | C190: 345156 | D190: MEANA MOUYNES, MARIA LOURDES | E190: 2015-12-07T06:54:05 | F190: 29716 | G190: AV.OPED | H190: 4 | I190: ENO - OPED CONTRATOS - Ricardo Gallardo - 276-3347 | J190: Lote A - Servicio de alquiler trimestral de vehículo a motor - modelo sedán | K190: 1 | L190: Mo | M190: 1762.11 | O190: 1762.11 | P190: 2015-12-11 | Q190: 2016-03-10
A191: 2015-12-07T09:07:38 | B191: 755141 | C191: 345196 | D191: GREEN GEORGE, MARLON DELANY | E191: 2015-12-09T07:22:49 | F191: 29716 | G191: AV.CORA | H191: 2 | I191: Proyecto de Conservación, Recuperación de Areas del Canal - Tomás Fernandez - 272-7393 | J191: Lote D - Servicio de alquiler trimestral de vehículo a motor - Picop | K191: 1 | L191: Mo | M191: 2839.44 | O191: 2839.44 | P191: 2015-12-07 | Q191: 2016-03-07
A192: 2015-12-07T12:58:24 | B192: 756518 | C192: 345221 | D192: UNG HO, ISABEL TELMA | E192: 2015-12-09T07:22:56 | F192: 29716 | G192: AV.TIOD | H192: 1 | I192: Veh 9580 - Elmer Vaca - 276-2412 | J192: Lote E - Servicio de alquiler mensual de vehículo a motor - Picop con barra antivuelco y ganchos VIGENCIA: 5 DE DICIEMBRE DEL 2015 AL 4 DE ENERO DEL 2016 Punto de Contacto: José Gonzalez, tel. 276-1549 Lugar de entrega: Edificio 711, CO | K192: 1 | L192: Each | M192: 996.3 | O192: 996.3 | P192: 2015-12-05 | Q192: 2016-01-04
A193: 2015-12-07T14:45:48 | B193: 756694 | C193: 345252 | D193: HOOKER, ANDREA IVETTE DE | E193: 2015-12-09T07:23:03 | F193: 29716 | G193: AV.OPRT | H193: 1 | I193: Veh 8808 - Jaime Gonzalez - 276-1192/1391 | J193: Lote D - Servicio de alquiler semanal de vehículo a motor - Picop | K193: 2 | L193: Each | M193: 442.8 | O193: 442.8 | P193: 2015-11-27 | Q193: 2015-12-11
A194: 2015-12-07T15:18:33 | B194: 756517 | C194: 345262 | D194: PEREA ROJAS, MONICA ISABEL | E194: 2015-12-07T15:24:14 | F194: 29716 | G194: AV.OPRD | H194: 1 | I194: Veh TIP (5) - Nodel Villarreal - 276-3350 | J194: Lote B - Servicio de alquiler semanal de vehículo a motor - camioneta 4 x 4 | K194: 5 | L194: Each | M194: 1497 | O194: 1497 | P194: 2015-12-08 | Q194: 2015-12-15
A195: 2015-12-09T14:18:24 | B195: 756190 | C195: 345349 | D195: RUIZ ORTEGA, JORGE LUIS | E195: 2015-12-09T15:19:38 | F195: 29716 | G195: AV.EAEA-AP | H195: 1 | I195: Veh 9849 - Jessica Brathwaite - 272-4484 | J195: Lote E - Servicio de alquiler mensual de vehículo a motor - Picop con barra antivuelco y ganchos | K195: 1 | L195: Each | M195: 996.3 | O195: 996.3 | P195: 2015-12-10 | Q195: 2016-01-09
A196: 2015-12-10T07:50:29 | B196: 756527 | C196: 345373 | D196: GONZALEZ ATENCIO, LETICIA PORTOLATINA | E196: 2015-12-10T10:40:34 | F196: 29716 | G196: AV.OPPV | H196: 1 | I196: Veh 9395 - Pedro Chen - 276-1054 | J196: Lote D - Servicio de alquiler mensual de vehículo a motor - Picop | K196: 2 | L196: Each | M196: 442.8 | O196: 442.8 | P196: 2015-12-03 | Q196: 2015-12-17
A197: 2015-12-10T07:54:29 | B197: 756525 | C197: 345374 | D197: GONZALEZ ATENCIO, LETICIA PORTOLATINA | F197: 29716 | G197: AV.OPPV | H197: 1 | I197: Veh 9405 - Pedro Chen - 276-1054 | J197: Lote D - Servicio de alquiler mensual de vehículo a motor - Picop | K197: 2 | L197: Each | M197: 442.8 | O197: 442.8 | P197: 2015-12-03 | Q197: 2015-12-17
A198: 2015-12-10T08:36:47 | B198: 756524 | C198: 345384 | D198: GONZALEZ ATENCIO, LETICIA PORTOLATINA | E198: 2015-12-10T10:40:48 | F198: 29716 | G198: AV.OPPV | H198: 1 | I198: Veh 8822 - Pedro Chen - 276-1054 | J198: Lote D - Servicio de alquiler mensual de vehículo a motor - Picop | K198: 1 | L198: Each | M198: 221.4 | O198: 221.4 | P198: 2015-12-04 | Q198: 2015-12-11
A199: 2015-12-10T08:55:22 | B199: 756523 | C199: 345389 | D199: GONZALEZ ATENCIO, LETICIA PORTOLATINA | E199: 2015-12-10T10:40:54 | F199: 29716 | G199: AV.OPPV | H199: 1 | I199: Veh 9402 - Pedro Chen - 276-1054 | J199: Lote D - Servicio de alquiler mensual de vehículo a motor - Picop | K199: 1 | L199: Each | M199: 221.4 | O199: 221.4 | P199: 2015-12-06 | Q199: 2015-12-13
A200: 2015-12-14T10:11:09 | B200: 757324 | C200: 345610 | D200: SIMITI VALDEZ, EMILY BEATRIZ | E200: 2015-12-14T15:04:40 | F200: 29716 | G200: AV.OPEM-E | H200: 1 | I200: Veh 8101 - Olga Perea - 276-2851 | J200: Lote E - Servicio de alquiler mensual de vehículo a motor - Picop con barra antivuelco y ganchos | K200: 1 | L200: Each | M200: 996.3 | O200: 996.3 | P200: 2015-12-09 | Q200: 2016-01-06
A201: 2015-12-15T07:59:15 | B201: 757092 | C201: 345687 | D201: GONZALEZ ATENCIO, LETICIA PORTOLATINA | E201: 2015-12-15T12:09:51 | F201: 29716 | G201: AV.OPPV | H201: 1 | I201: Veh 9398 - Pedro Chen - 276-1054 | J201: Lote D - Servicio de alquiler semanal de vehículo a motor - Picop | K201: 2 | L201: Each | M201: 442.8 | O201: 442.8 | P201: 2015-12-13 | Q201: 2015-12-27
... 590 more rows

Sheet 11 AGO ALQUILER DE VEH AF-16
A1: PRESUPUESTO APROBADO | C1: =750000+75000 -> 825000 | J1: 1. REEMPLAZO DE VEHICULO OFICIAL
A2: OBLIGACIÓN A LA FECHA | C2: =+M782 -> 961650.82 | J2: 2. PROYECTOS ESPECIALES
J3: 3. VIAJES PUNTUALES
A4: FONDOS DISPONIBLES | C4: =+C1-C2 -> -136650.82 | J4: 4. NECESIDADES OPERACIONALES ADICIONALES
A5: Fecha de | B5: PR | C5: PO | D5: BUYER | E5: Fecha de | F5: PROYECTO | G5: TAREA | H5: CLASIFICACION | I5: VEHICULO DE REMPLAZO | J5: Servicio de alquiler de vehículo para la ACP - LOTE - C (Mini Van) | K5: Cantidad | L5: UOM | M5: Cantidad | N5: Cantidad | O5: Cantidad | P5: Período | R5: Factura
A6: Creación | E6: Aprobación | H6: 1/2/3/4 | J6: SERVICIOS TURISTICOS PANAMEÑOS S A COR302681MUL | K6: Ordenada | M6: Obligada | N6: Pagada | O6: Pendiente | P6: Desde | Q6: Hasta | R6: No.
A7: 2015-10-16T13:23:25 | B7: 747068 | C7: 341949 | D7: HOOKER, ANDREA IVETTE DE | E7: 2015-10-16T17:30:16 | F7: 29716 | G7: AV.OPRT | H7: 1 | I7: Veh 6002 - Jaime Gonzalez - 276-1192 | J7: LOTE - C - Servicio de alquiler semanal de vehículo a motor - mini van | K7: 3 | L7: Each | M7: 900 | O7: =+M7-N7 -> 900 | P7: 2015-10-18 | Q7: 2015-10-25
A8: 2015-11-06T11:02:18 | B8: 749789 | C8: 343274 | D8: BARSALLO TOUREAU, KARINA MINERVA | E8: 2015-11-09T10:07:43 | F8: 29716 | G8: AV.TISI | H8: 3 | I8: Viajes a Capira, Chorrera, Madden, etc del grupo de soporte de TISI - Iris Rodriguez - 276-3843 | J8: LOTE - C - Servicio de alquiler trimestral de vehículo a motor - mini van | K8: 1 | L8: Mo | M8: 4000 | O8: 4000 | P8: 2015-10-23 | Q8: 2015-12-22
A9: 2015-11-13T09:00:51 | B9: 751902 | C9: 343556 | D9: HOOKER, ANDREA IVETTE DE | E9: 2015-11-13T14:36:31 | F9: 29716 | G9: AV.OPRT | H9: CANCELADO - CA NCELADO | I9: CANCELADO - CA NCELADO | J9: LOTE - C - Servicio de alquiler diario de vehículo a motor - mini van | K9: 1 | L9: Each | M9: 50 | O9: 50 | P9: CANCELADO - CA NCELADO | Q9: CANCELADO - CA NCELADO
A10: 2015-11-13T09:00:51 | B10: 751902 | C10: 343556 | D10: HOOKER, ANDREA IVETTE DE | E10: 2015-11-13T14:36:31 | F10: 29716 | G10: AV.OPRT | H10: CANCELADO - CA NCELADO | I10: CANCELADO - CA NCELADO | J10: LOTE - C - Servicio de alquiler semanal de vehículo a motor - mini van | K10: 1 | L10: Each | M10: 300 | O10: 300 | P10: CANCELADO - CA NCELADO | Q10: CANCELADO - CA NCELADO
A11: 2015-12-09T16:03:09 | B11: 757120 | C11: 345362 | D11: PIMENTEL ARAUZ, MARIA ISABEL | E11: 2015-12-11T06:20:57 | F11: 29716 | G11: AV.FAP | H11: 3 | I11: Programa de Embajadores de Ilusión - Marlane de Chavez - 272-4507 | J11: LOTE - C - Servicio de alquiler diario de vehículo a motor - mini van | K11: 3 | L11: Each | M11: 150 | O11: 150 | P11: 2015-12-09 | Q11: 2015-12-11
A12: 2015-12-09T16:03:09 | B12: 757120 | C12: 345362 | D12: PIMENTEL ARAUZ, MARIA ISABEL | E12: 2015-12-11T06:20:57 | F12: 29716 | G12: AV.FAP | H12: 3 | I12: Programa de Embajadores de Ilusión - Marlane de Chavez - 272-4507 | J12: LOTE - C - Servicio de alquiler diario de vehículo a motor - mini van | K12: 1 | L12: Each | M12: 50 | O12: 50 | P12: 2015-12-10 | Q12: 2015-12-11
A13: 2015-12-09T16:03:09 | B13: 757325 | C13: 345362 | D13: PIMENTEL ARAUZ, MARIA ISABEL | E13: 2015-12-11T06:20:57 | F13: 29716 | G13: AV.FAP | H13: 3 | I13: Programa de Embajadores de Ilusión - Marlane de Chavez - 272-4507 | J13: LOTE - C - Servicio de alquiler diario de vehículo a motor - mini van | K13: 1 | L13: Each | M13: 50 | O13: 50 | P13: 2015-12-10 | Q13: 2015-12-11
A14: 2015-12-18T09:39:30 | B14: 758701 | C14: 346037 | D14: PEREA ROJAS, MONICA ISABEL | E14: 2015-12-21T07:34:30 | F14: 29716 | G14: AV.OPRD | H14: 1 | I14: Veh 8858 - Veh on Garantía - José Jones - 276-3324 | J14: Cargo por entrega (a la ACP o recoger en la ACP) Del vehículo en el Sector Atlántico (cada viaje representa una unidad por auto). | K14: 1 | L14: Each | M14: 50 | O14: 50 | P14: 2015-12-22 | Q14: 2016-01-05
A15: 2015-12-18T09:39:30 | B15: 758701 | C15: 346037 | D15: PEREA ROJAS, MONICA ISABEL | E15: 2015-12-21T07:34:30 | F15: 29716 | G15: AV.OPRD | H15: 1 | I15: Veh 8858 - Veh on Garantía - José Jones - 276-3324 | J15: LOTE - C - Servicio de alquiler semanal de vehículo a motor - mini van | K15: 2 | L15: Each | M15: 600 | O15: 600 | P15: 2015-12-22 | Q15: 2016-01-05
A16: 2015-12-23T09:30:26 | B16: 758977 | C16: 346264 | D16: UNG HO, ISABEL TELMA | E16: 2015-12-29T14:35:26 | F16: 29716 | G16: AV.TIOD | H16: 1 | I16: Veh 8930 - José Médica - 276-4403 | J16: LOTE - C - Servicio de alquiler semanal de vehículo a motor - mini van VIGENCIA: 29 DE DICIEMBRE 2015 AL 9 DE ENERO DEL 2016 Punto de contacto: Jose Manuel Medica Tel. 276-4403/ 4104/4100 Edificio 712, Corozal Oeste | K16: 2 | L16: Each | M16: 600 | O16: 600 | P16: 2015-12-29 | Q16: 2016-01-12
A17: 2015-12-30T14:57:14 | B17: 760160 | C17: 346694 | D17: CEDEÑO OSPINA, MARICRUZ YARELIS | E17: 2015-12-30T15:38:57 | F17: 29716 | G17: AV.OPPV | H17: 3 | I17: Primera Reunión de EcoCanal 2016 - Marta Quarless - 276-3601 | J17: LOTE - C - Servicio de alquiler diario de vehículo a motor - mini van. Para reunión inicial ECOCANAL del 04 al 07 de enero de 2016. PR # 760160. | K17: 4 | L17: Each | M17: 200 | O17: 200 | P17: 2016-01-04 | Q17: 2016-01-07
A18: 2016-01-14T09:57:27 | B18: 761964 | C18: 347394 | D18: PEREA ROJAS, MONICA ISABEL | E18: 2016-01-14T16:42:41 | F18: 29716 | G18: AV.OPRD | H18: 1 | I18: Veh 8858 - Veh on Garantía - José Jones - 276-3324 | J18: Cargo por entrega (a la ACP o recoger en la ACP) Del vehículo en el Sector Atlántico (cada viaje representa una unidad por auto). | K18: 1 | L18: Each | M18: 50 | O18: 50 | P18: 2016-01-18 | Q18: 2016-02-18
A19: 2016-01-14T09:57:27 | B19: 761964 | C19: 347394 | D19: PEREA ROJAS, MONICA ISABEL | E19: 2016-01-14T16:42:41 | F19: 29716 | G19: AV.OPRD | H19: 1 | I19: Veh 8858 - Veh on Garantía - José Jones - 276-3324 | J19: LOTE - C - Servicio de alquiler mensual de vehículo a motor - mini van | K19: 1 | L19: Each | M19: 1380 | O19: 1380 | P19: 2016-01-18 | Q19: 2016-02-18
A20: 2016-02-11T13:59:34 | B20: 766938 | C20: 349321 | D20: BARSALLO TOUREAU, KARINA MINERVA | E20: 2016-02-24T11:29:50 | F20: 29716 | G20: AV.TIOD | H20: 1 | I20: Veh 8930 - José Médica - 276-4403 | J20: LOTE - C - Servicio de alquiler semanal de vehículo a motor - mini van | K20: 2 | L20: Each | M20: 600 | O20: 600 | P20: 2016-02-16 | Q20: 2016-03-01
A21: 2016-02-19T08:11:55 | B21: 768328 | C21: 349801 | D21: RUIZ ALMANZA, FRANKLIN ANTONIO | E21: 2016-02-22T13:53:33 | F21: 29716 | G21: AV.SACH | H21: 3 | I21: Gira del Equipo de Capacidad Hídrica SACH - Daniel Muschett - 272-2357 | J21: LOTE - C - Servicio de alquiler diario de vehículo a motor - mini van | K21: 3 | L21: Each | M21: 150 | O21: 150 | P21: 2016-02-23 | Q21: 2016-02-25
A22: 2016-02-29T13:16:03 | B22: 769081 | C22: 350390 | D22: BARSALLO TOUREAU, KARINA MINERVA | E22: 2016-03-04T14:19:55 | F22: 29716 | G22: AV.TISI | H22: 3 | I22: Viajes a Capira, Chorrera, Madden, etc del grupo de soporte de TISI - Iris Rodriguez - 276-3843 | J22: LOTE - C - Servicio de alquiler trimestral de vehículo a motor - mini van | K22: 1 | L22: Mo | M22: 4000 | O22: 4000 | P22: 2016-02-26 | Q22: 2016-05-25
A23: 2016-03-03T08:39:52 | B23: 770410 | C23: 350686 | D23: LOPEZ IGLESIAS, MARIA DE LOS ANGELES | E23: 2016-03-04T14:19:34 | F23: 29716 | G23: AV.AJ | H23: 3 | I23: Inspección Judicial de CVM - Mitzila Moreno - 272-7511 | J23: LOTE - C - Servicio de alquiler diario de vehículo a motor - mini van | K23: 1 | L23: Each | M23: 50 | O23: 50 | P23: 2016-03-03 | Q23: 2016-03-03
A24: 2016-03-03T08:39:52 | B24: 770410 | C24: 350686 | D24: LOPEZ IGLESIAS, MARIA DE LOS ANGELES | E24: 2016-03-04T14:19:34 | F24: 29716 | G24: AV.AJ | H24: 3 | I24: Inspección Judicial de CVM - Mitzila Moreno - 272-7511 | J24: LOTE - C - Servicio de alquiler diario de vehículo a motor - mini van | K24: 1 | L24: Each | M24: 50 | O24: 50 | P24: 2016-03-14 | Q24: 2016-03-14
A25: 2016-03-15T07:34:59 | B25: 772506 | C25: 351403 | D25: DUARTE PONCE, MANUEL ALEXANDER | E25: 2016-03-15T09:07:32 | F25: 29716 | G25: AV.SACH | H25: 3 | I25: Viajes para Sesiones del Plan Nacional de Seguridad Hídrica - Daniel Muschett - 272-2357 | J25: LOTE - C - Servicio de alquiler diario de vehículo a motor - mini van | K25: 3 | L25: Each | M25: 150 | O25: 150 | P25: 2016-03-15 | Q25: 2016-03-18
A26: 2016-03-15T07:34:59 | B26: 772506 | C26: 351403 | D26: DUARTE PONCE, MANUEL ALEXANDER | E26: 2016-03-15T09:07:32 | F26: 29716 | G26: AV.SACH | H26: 3 | I26: Viajes para Sesiones del Plan Nacional de Seguridad Hídrica - Daniel Muschett - 272-2357 | J26: LOTE - C - Servicio de alquiler diario de vehículo a motor - mini van | K26: 2 | L26: Each | M26: 100 | O26: 100 | P26: 2016-03-21 | Q26: 2016-03-23
I27: COR 302681MUL 21 MAR 15 - 20 MAR 16 | K27: =SUM(K7:K26) -> 35 | M27: =SUM(M7:M26) -> 13480 | N27: =SUM(N7:N26) -> 0 | O27: =SUM(O7:O26) -> 13480
A29: Fecha de | B29: PR | C29: PO | D29: BUYER | E29: Fecha de | F29: PROYECTO | G29: TAREA | H29: CLASIFICACION | I29: VEHICULO DE REMPLAZO | J29: Servicio de alquiler de vehículo para la ACP - LOTE - C (Mini Van) | K29: Cantidad | L29: UOM | M29: Cantidad | N29: Cantidad | O29: Cantidad | P29: Período | R29: Factura
A30: Creación | E30: Aprobación | H30: 1/2/3/4 | J30: INTER MARKTING INC - THRIFTY CAR RENTAL | K30: Ordenada | M30: Obligada | N30: Pagada | O30: Pendiente | P30: Desde | Q30: Hasta | R30: No.
A31: 2015-10-01T11:40:02 | B31: 743854 | C31: 340916 | D31: GONZALEZ ATENCIO, LETICIA PORTOLATINA | E31: 2015-10-02T08:16:57 | F31: 29716 | G31: AV.OPPV | H31: 1 | I31: Veh 8212 - Pedro Chen - 276-1054 | J31: Lote D - Servicio de alquiler semanal de vehículo a motor - Picop | K31: 3 | L31: Each | M31: 664.2 | O31: =+M31-N31 -> 664.2 | P31: 2015-10-01 | Q31: 2015-10-22
A32: 2015-10-01T11:45:27 | B32: 743856 | C32: 340917 | D32: GONZALEZ ATENCIO, LETICIA PORTOLATINA | E32: 2015-10-02T08:17:33 | F32: 29716 | G32: AV.OPPV | H32: 1 | I32: Veh 9405 - Pedro Chen - 276-1054 | J32: Lote D - Servicio de alquiler semanal de vehículo a motor - Picop | K32: 1 | L32: Each | M32: 221.4 | O32: 221.4 | P32: 2015-10-01 | Q32: 2015-10-08
A33: 2015-10-01T11:49:36 | B33: 743857 | C33: 340918 | D33: GONZALEZ ATENCIO, LETICIA PORTOLATINA | E33: 2015-10-02T08:17:49 | F33: 29716 | G33: AV.OPPV | H33: 1 | I33: Veh 8213 - Pedro Chen - 276-1054 | J33: Lote D - Servicio de alquiler semanal de vehículo a motor - Picop | K33: 2 | L33: Each | M33: 442.8 | O33: 442.8 | P33: 2015-10-01 | Q33: 2015-10-15
A34: 2015-10-02T09:57:27 | B34: 744072 | C34: 340938 | D34: DELGADO GONZALEZ, FRANCISCO JR | E34: 2015-10-07T10:39:00 | F34: 29716 | G34: AV.IAIM | H34: 4 | I34: ENO - Veh No- 2 - Proyectos Asignados a IAIM, Agua, Dragado, Ampliación Vertederos, etc - Marcos Moltó - 276-1405 | J34: Lote B - Servicio de alquiler trimestral de vehículo a motor - camioneta 4 x 4 | K34: 1 | L34: Mo | M34: 3705 | O34: 3705 | P34: 2015-10-01 | Q34: 2015-12-30
A35: 2015-10-02T10:02:09 | B35: 744076 | C35: 340940 | D35: DELGADO GONZALEZ, FRANCISCO JR | E35: 2015-10-05T15:29:25 | F35: 29716 | G35: AV.IAIC | H35: 4 | I35: ENO - Veh No.1 - Sección de IAIC-HID, Ambiente, Estructural -Maximo Molina-276-1621/Daniel Moreno 276-1529 | J35: Lote B - Servicio de alquiler trimestral de vehículo a motor - camioneta 4 x 4 | K35: 1 | L35: Mo | M35: 3705 | O35: 3705 | P35: 2015-10-01 | Q35: 2015-12-30
A36: 2015-10-02T10:05:31 | B36: 744078 | C36: 340941 | D36: DELGADO GONZALEZ, FRANCISCO JR | E36: 2015-10-05T15:29:40 | F36: 29716 | G36: AV.IAIC | H36: 4 | I36: ENO - Veh No.2 - Sección de IAIC-HID, Ambiente, Estructural -Maximo Molina-276-1621/Daniel Moreno 276-1529 | J36: Lote B - Servicio de alquiler trimestral de vehículo a motor - camioneta 4 x 4 | K36: 1 | L36: Mo | M36: 3705 | O36: 3705 | P36: 2015-10-01 | Q36: 2015-12-30
A37: 2015-10-02T10:08:12 | B37: 744079 | C37: 340942 | D37: DELGADO GONZALEZ, FRANCISCO JR | E37: 2015-10-05T15:28:29 | F37: 29716 | G37: AV.IAIM | H37: 4 | I37: ENO - Veh No- 1 - Proyectos Asignados a IAIM, Agua, Dragado, Ampliación Vertederos, etc - Marcos Moltó - 276-1405 | J37: Lote B - Servicio de alquiler trimestral de vehículo a motor - camioneta 4 x 4 | K37: 1 | L37: Mo | M37: 3705 | O37: 3705 | P37: 2015-10-01 | Q37: 2015-12-30
A38: 2015-10-02T13:01:43 | B38: 744146 | C38: 340946 | D38: ZHANG WU, EUGENIO | E38: 2015-10-05T10:56:06 | F38: 29716 | G38: AV.IAIG | H38: 4 | I38: ENO - Veh No.1 - Proyecto de Control y Derrumbe y de Erosión - Max de Puy 276-1737 Carlos Fong 276-1738 | J38: Lote B - Servicio de alquiler trimestral de vehículo a motor - camioneta 4 x 4 | K38: 1 | L38: Mo | M38: 3705 | O38: 3705 | P38: 2015-10-01 | Q38: 2015-12-30
A39: 2015-10-02T13:13:37 | B39: 744157 | C39: 340947 | D39: ZHANG WU, EUGENIO | E39: 2015-10-05T10:56:28 | F39: 29716 | G39: AV.IAIG | H39: 4 | I39: ENO - Veh No.2 - Proyecto de Control y Derrumbe y de Erosión - Max de Puy 276-1737 Carlos Fong 276-1738 | J39: Lote B - Servicio de alquiler trimestral de vehículo a motor - camioneta 4 x 4 | K39: 1 | L39: Mo | M39: 3705 | O39: 3705 | P39: 2015-10-01 | Q39: 2015-12-30
A40: 2015-10-02T13:19:31 | B40: 744163 | C40: 340948 | D40: ZHANG WU, EUGENIO | E40: 2015-10-05T10:56:15 | F40: 29716 | G40: AV.IAIG | H40: 4 | I40: ENO - Veh No.3 - Proyecto de Control y Derrumbe y de Erosión - Max de Puy 276-1737 Carlos Fong 276-1738 | J40: Lote B - Servicio de alquiler trimestral de vehículo a motor - camioneta 4 x 4 | K40: 1 | L40: Mo | M40: 3705 | O40: 3705 | P40: 2015-10-01 | Q40: 2015-12-30
A41: 2015-10-05T11:50:28 | B41: 744246 | C41: 340980 | D41: HOOKER, ANDREA IVETTE DE | E41: 2015-10-05T15:29:58 | F41: 29716 | G41: AV.OPRT | H41: 1 | I41: Veh 9104 - Jaime José Gonzalez - 276-1192 | J41: Lote D - Servicio de alquiler diario de vehículo a motor - Picop | K41: 4 | L41: Each | M41: 147.6 | O41: 147.6 | P41: 2015-10-01 | Q41: 2015-10-05
A42: 2015-10-05T11:50:28 | B42: 744002 | C42: 340980 | D42: HOOKER, ANDREA IVETTE DE | E42: 2015-10-05T15:29:58 | F42: 29716 | G42: AV.OPRT | H42: 1 | I42: Veh 6002 - Jaime José Gonzalez - 276-1192 | J42: Lote D - Servicio de alquiler diario de vehículo a motor - Picop | K42: 2 | L42: Each | M42: 73.8 | O42: 73.8 | P42: 2015-10-01 | Q42: 2015-10-02
A43: 2015-10-05T11:50:28 | B43: 744002 | C43: 340980 | D43: HOOKER, ANDREA IVETTE DE | E43: 2015-10-05T15:29:58 | F43: 29716 | G43: AV.OPRT | H43: 1 | I43: Veh 6002 - Jaime José Gonzalez - 276-1192 | J43: Lote D - Servicio de alquiler semanal de vehículo a motor - Picop | K43: 1 | L43: Each | M43: 221.4 | O43: 221.4 | P43: 2015-10-03 | Q43: 2015-10-09
A44: 2015-10-05T12:00:54 | B44: 744412 | C44: 340981 | D44: GONZALEZ ATENCIO, LETICIA PORTOLATINA | E44: 2015-10-05T15:30:08 | F44: 29716 | G44: AV.OPPV | H44: 1 | I44: Veh 8214 - Pedro Chen - 276-1054 | J44: Lote D - Servicio de alquiler semanal de vehículo a motor - Picop | K44: 2 | L44: Each | M44: 442.8 | O44: 442.8 | P44: 2015-10-01 | Q44: 2015-10-15
A45: 2015-10-05T12:10:46 | B45: 744103 | C45: 340983 | D45: GONZALEZ ATENCIO, LETICIA PORTOLATINA | E45: 2015-10-05T15:30:15 | F45: 29716 | G45: AV.OPPV | H45: 1 | I45: Veh 9401 - Pedro Chen - 276-1054 | J45: Lote D - Servicio de alquiler mensual de vehículo a motor - Picop | K45: 1 | L45: Each | M45: 996.3 | O45: 996.3 | P45: 2015-10-01 | Q45: 2015-10-30
A46: 2015-10-05T12:18:20 | B46: 744106 | C46: 340984 | D46: GONZALEZ ATENCIO, LETICIA PORTOLATINA | E46: 2015-10-05T15:30:24 | F46: 29716 | G46: AV.OPPV | H46: 1 | I46: Veh 9397 - Pedro Chen - 276-1054 | J46: Lote D - Servicio de alquiler mensual de vehículo a motor - Picop | K46: 1 | L46: Each | M46: 996.3 | O46: 996.3 | P46: 2015-10-01 | Q46: 2015-10-30
A47: 2015-10-05T13:58:41 | B47: 744221 | C47: 341004 | D47: DELGADO GONZALEZ, FRANCISCO JR | E47: 2015-10-07T09:23:17 | F47: 29716 | G47: AV.IAIC | H47: 4 | I47: ENO - Veh No.3 - Sección de IAIC-HID, Ambiente, Estructural -Maximo Molina-276-1621/Daniel Moreno 276-1529 | J47: Lote B - Servicio de alquiler trimestral de vehículo a motor - camioneta 4 x 4 | K47: 1 | L47: Mo | M47: 3705 | O47: 3705 | P47: 2015-10-01 | Q47: 2015-10-30
A48: 2015-10-06T08:22:58 | B48: 743949 | C48: 341031 | D48: KHAN SANDIFORD, SHARON VONETTA | E48: 2015-10-06T13:41:22 | F48: 29716 | G48: AV.EAA-CA | H48: 4 | I48: ENO - Planta Potabilizadora de Colón - AA2611 - Yamileth Arauz - 276-3534 | J48: Lote D - Servicio de alquiler trimestral de vehículo a motor - Picop | K48: 1 | L48: Mo | M48: 2839.44 | O48: 2839.44 | P48: 2015-10-01 | Q48: 2015-12-30
A49: 2015-10-06T08:34:37 | B49: 744711 | C49: 341033 | D49: KHAN SANDIFORD, SHARON VONETTA | E49: 2015-10-06T13:42:26 | F49: 29716 | G49: AV.EAA-CA | H49: 4 | I49: ENO - Laboratorio de Corozal Oeste-UCA CZL - Yamileth Arauz - 276-3534 | J49: Lote D - Servicio de alquiler trimestral de vehículo a motor - Picop | K49: 1 | L49: Mo | M49: 2839.44 | O49: 2839.44 | P49: 2015-10-05 | Q49: 2016-01-03
A50: 2015-10-06T08:35:45 | B50: 744600 | C50: 341034 | D50: ZHANG WU, EUGENIO | E50: 2015-10-06T14:11:06 | F50: 29716 | G50: AV.IAIT | H50: 4 | I50: ENO - Veh No.1 - Transp personal de Topografía en Pedro Miguel - Jorge Fanovich - 443-5508/276-7151 | J50: Lote B - Servicio de alquiler trimestral de vehículo a motor - camioneta 4 x 4 | K50: 1 | L50: Mo | M50: 3705 | O50: 3705 | P50: 2015-10-01 | Q50: 2015-12-30
A51: 2015-10-06T08:39:09 | B51: 743988 | C51: 341036 | D51: MEANA MOUYNES, MARIA LOURDES | E51: 2015-10-06T14:13:09 | F51: 29716 | G51: AV.OPEM-A | H51: 4 | I51: ENO - Mant de A/A en Locomotoras, Remolcadores, Lancha, etc. de Edificios en el Sector Atlántico - Alvaro Arcia - 443-4551 | J51: Lote E - Servicio de alquiler trimestral de vehículo a motor - Picop con barra antivuelco y ganchos | K51: 1 | L51: Mo | M51: 2839.44 | O51: 2839.44 | P51: 2015-11-06 | Q51: 2016-01-05
A52: 2015-10-06T08:45:22 | B52: 744344 | C52: 341038 | D52: ZHANG WU, EUGENIO | E52: 2015-10-06T13:43:11 | F52: 29716 | G52: AV.IAIT | H52: 4 | I52: ENO - Veh No.2 - Transp personal de Topografía en Colón - Jorge Fanovich - 443-5508/276-7151 | J52: Cargo por entrega (a la ACP o recoger en la ACP) Del vehículo en el Sector Atlántico (cada viaje representa una unidad por auto). | K52: 1 | L52: Each | M52: 20 | O52: 20 | P52: 2015-10-01 | Q52: 2015-12-30
A53: 2015-10-06T08:45:22 | B53: 744344 | C53: 341038 | D53: ZHANG WU, EUGENIO | E53: 2015-10-06T13:43:11 | F53: 29716 | G53: AV.IAIT | H53: 4 | I53: ENO - Veh No.2 - Transp personal de Topografía en Colón - Jorge Fanovich - 443-5508/276-7151 | J53: Lote B - Servicio de alquiler trimestral de vehículo a motor - camioneta 4 x 4 | K53: 1 | L53: Mo | M53: 3705 | O53: 3705 | P53: 2015-10-01 | Q53: 2015-12-30
A54: 2015-10-06T09:16:27 | B54: 743968 | C54: 341041 | D54: GONZALEZ QUIROS, AIDEE DEL CARMEN | E54: 2015-10-09T14:57:03 | F54: 29716 | G54: AV.OPEM-A | H54: 4 | I54: ENO - Mant de A/A en Locomotoras, Remolcadores, Lancha, etc. de Edificios en el Sector Atlántico - Alvaro Arcia - 443-4551 | J54: Lote E - Servicio de alquiler trimestral de vehículo a motor - Picop con barra antivuelco y ganchos | K54: 1 | L54: Mo | M54: 2839.44 | O54: 2839.44 | P54: 2015-10-06 | Q54: 2016-01-11
A55: 2015-10-06T12:46:07 | B55: 744321 | C55: 341056 | D55: RODRIGUEZ HERRERA, HELIO JAVIER | E55: 2015-10-07T12:37:16 | F55: 29716 | G55: AV.OPEM-P | H55: 1 | I55: Veh 8772 - AA-9239 - Gabriel Vasquez - 276-8226/2488 | J55: Lote E - Servicio de alquiler semanal de vehículo a motor - Picop con barra antivuelco y ganchos | K55: 3 | L55: Each | M55: 664.2 | O55: 664.2 | P55: 2015-10-05 | Q55: 2015-10-26
A56: 2015-10-06T13:56:14 | B56: 744316 | C56: 341070 | D56: RUIZ ORTEGA, JORGE LUIS | E56: 2015-10-07T12:40:17 | F56: 29716 | G56: AV.EAEB-MA | H56: 4 | I56: ENO - 12 VEH 6 DE EAEA-AP - 6 DE EAEB-MA DE 2 A 3 DIA CADA UNO TOTAL 27 DIAS -JORGE RUIZ - 272-4415 | J56: Lote E - Servicio de alquiler diario de vehículo a motor - Picop con barra antivuelco y ganchos | K56: 18.5 | L56: Each | M56: 682.65 | O56: 682.65 | P56: HASTA EL 30 DE SEPT 2015
A57: 2015-10-06T13:56:14 | B57: 744316 | C57: 341070 | D57: RUIZ ORTEGA, JORGE LUIS | E57: 2015-10-07T12:40:17 | F57: 29716 | G57: AV.EAEA-AP | H57: 4 | I57: ENO - 12 VEH 6 DE EAEA-AP - 6 DE EAEB-MA DE 2 A 3 DIA CADA UNO TOTAL 27 DIAS -JORGE RUIZ - 272-4415 | J57: Lote E - Servicio de alquiler diario de vehículo a motor - Picop con barra antivuelco y ganchos | K57: 18.5 | L57: Each | M57: 682.65 | O57: 682.65 | P57: HASTA EL 30 DE SEPT 2015
A58: 2015-10-06T13:59:22 | B58: 744818 | C58: 341072 | D58: GONZALEZ ATENCIO, LETICIA PORTOLATINA | E58: 2015-10-07T13:13:24 | F58: 29716 | G58: AV.OPPV | H58: 1 | I58: Veh 8822 - AT8861 - Franklin Justiniani - 276-1541 | J58: Lote D - Servicio de alquiler semanal de vehículo a motor - Picop | K58: 2 | L58: Each | M58: 442.8 | O58: 442.8 | P58: 2015-10-05 | Q58: 2015-10-19
A59: 2015-10-07T08:45:50 | B59: 744700 | C59: 341104 | D59: RUIZ ORTEGA, JORGE LUIS | E59: 2015-10-07T13:13:00 | F59: 29716 | G59: AV.EAEA-AP | H59: 1 | I59: Veh 8412 - Ruben Rose - Jessica Brathwaite - 272-4453 | J59: Lote E - Servicio de alquiler semanal de vehículo a motor - Picop con barra antivuelco y ganchos | K59: 2 | L59: Each | M59: 442.8 | O59: 442.8 | P59: 2015-10-07 | Q59: 2015-10-21
A60: 2015-10-07T09:23:07 | B60: 744690 | C60: 341112 | D60: RUIZ ORTEGA, JORGE LUIS | E60: 2015-10-07T12:36:19 | F60: 29716 | G60: AV.EAEA-AP | H60: 4 | I60: ENO - Veh No. 1 - Proyecto al Contrato de Remplazo de las Torres de Transmisión Líneas 413-414 - Cuadrilla Roman Arosemena - 272*4453 | J60: Lote E - Servicio de alquiler trimestral de vehículo a motor - Picop con barra antivuelco y ganchos | K60: 1 | L60: Mo | M60: 2839.44 | O60: 2839.44 | P60: 2015-10-01 | Q60: 2015-12-30
A61: 2015-10-07T09:23:07 | B61: 744690 | C61: 341112 | D61: RUIZ ORTEGA, JORGE LUIS | E61: 2015-10-07T12:36:19 | F61: 29716 | G61: AV.EAEA-AP | H61: 4 | I61: ENO - Veh No. 2 - Proyecto al Contrato de Remplazo de las Torres de Transmisión Líneas 413-414 - Cuadrilla Roman Arosemena - 272*4453 | J61: Lote E - Servicio de alquiler trimestral de vehículo a motor - Picop con barra antivuelco y ganchos | K61: 1 | L61: Mo | M61: 2839.44 | O61: 2839.44 | P61: 2015-10-01 | Q61: 2015-12-30
A62: 2015-10-07T10:43:20 | B62: 744875 | C62: 341131 | D62: MEANA MOUYNES, MARIA LOURDES | E62: 2015-10-08T10:18:54 | F62: 29716 | G62: AV.OPEM-P | H62: 4 | I62: ENO - 5 VEH - 2 TALLER DE SOLDADURA-2 CUADRILLA DE EQUIP PESADO OPEM-1 PERSONAL TECNICO DE OPEM - ROLANDO CONCEPCION -276-4815 | J62: Lote E - Servicio de alquiler trimestral de vehículo a motor - Picop con barra antivuelco y ganchos | K62: 5 | L62: Mo | M62: 14197.2 | O62: 14197.2 | P62: 2015-10-26 | Q62: 2016-01-24
A63: 2015-10-07T12:38:43 | B63: 744684 | C63: 341145 | D63: RUIZ ORTEGA, JORGE LUIS | E63: 2015-10-07T15:32:55 | F63: 29716 | G63: AV.EAEA-AP | H63: 4 | I63: ENO - Apoyo a trabajo de inspección y supv del Capataz General Randolph Bryant - Jessica Brathwaite 272-4453 | J63: Lote E - Servicio de alquiler trimestral de vehículo a motor - Picop con barra antivuelco y ganchos | K63: 1 | L63: Mo | M63: 2839.44 | O63: 2839.44 | P63: 2015-10-01 | Q63: 2015-12-30
A64: 2015-10-07T13:00:50 | B64: 744667 | C64: 341148 | D64: RUIZ ORTEGA, JORGE LUIS | E64: 2015-10-07T15:33:07 | F64: 29716 | G64: AV.EAEA-AP | H64: 4 | I64: ENO - Apoyo a Mant General de Estructuras de Monte Esperanza - Cuadrilla Arcadio Avila - 272-4453 | J64: Lote E - Servicio de alquiler trimestral de vehículo a motor - Picop con barra antivuelco y ganchos | K64: 1 | L64: Mo | M64: 2839.44 | O64: 2839.44 | P64: 2015-10-01 | Q64: 2015-12-30
A65: 2015-10-07T13:22:13 | B65: 744718 | C65: 341156 | D65: SANCHEZ UREÑA, LIZDEYKA MELISSA | E65: 2015-10-07T15:33:17 | F65: 29716 | G65: AV.OPEM-P | H65: 4 | I65: ENO - Necesidades operativas de OPEM-PCM - Gerardo Rios - 276-2006 | J65: Lote D - Servicio de alquiler trimestral de vehículo a motor - Picop | K65: 1 | L65: Mo | M65: 2839.44 | O65: 2839.44 | P65: 2015-10-08 | Q65: 2016-01-07
A66: 2015-10-07T13:24:05 | B66: 744916 | C66: 341157 | D66: RODRIGUEZ HOLDER, RICARDO AURELIO | E66: 2015-10-07T15:33:33 | F66: 29716 | G66: AV.OPED | H66: 4 | I66: ENO - Veh No. 2 - Insp & Rep de Equipo de A/A - Atl/Pac - Edwin Navarro - 276-2376 | J66: Lote A - Servicio de alquiler trimestral de vehículo a motor - modelo sedán | K66: 1 | L66: Mo | M66: 1762.11 | O66: 1762.11 | P66: 2015-10-09 | Q66: 2016-01-08
A67: 2015-10-07T13:57:03 | B67: 744913 | C67: 341163 | D67: RODRIGUEZ HOLDER, RICARDO AURELIO | E67: 2015-10-07T16:00:07 | F67: 29716 | G67: AV.OPED | H67: 4 | I67: ENO - Veh No. 1 - Insp de Campo por Area- Atl/Pac - Edwin Navarro - 276-2376 | J67: Lote A - Servicio de alquiler trimestral de vehículo a motor - modelo sedán | K67: 1 | L67: Mo | M67: 1762.11 | O67: 1762.11 | P67: 2015-10-09 | Q67: 2016-01-08
A68: 2015-10-07T14:30:27 | B68: 744921 | C68: 341173 | D68: RODRIGUEZ HOLDER, RICARDO AURELIO | E68: 2015-10-07T16:00:59 | F68: 29716 | G68: AV.OPED | H68: 4 | I68: ENO - Veh No. 3 - Insp de Campo Operaciones- Atl/Pac - Edwin Navarro - 276-2376 | J68: Lote A - Servicio de alquiler trimestral de vehículo a motor - modelo sedán | K68: 1 | L68: Mo | M68: 1762.11 | O68: 1762.11 | P68: 2015-10-08 | Q68: 2016-01-08
A69: 2015-10-07T14:43:19 | B69: 744622 | C69: 341181 | D69: RUIZ ORTEGA, JORGE LUIS | E69: 2015-10-07T16:01:07 | F69: 29716 | G69: AV.EAEA-AP | H69: 4 | I69: ENO - Proyecto de Apóyo de Adecuaciones de los Accesos Verticales, Pedro Miguel - Cuadrilla Dino Blandford - 272-4453 | J69: Lote E - Servicio de alquiler trimestral de vehículo a motor - Picop con barra antivuelco y ganchos | K69: 1 | L69: Mo | M69: 2839.44 | O69: 2839.44 | P69: 2015-10-01 | Q69: 2015-12-30
A70: 2015-10-07T14:57:27 | B70: 744646 | C70: 341187 | D70: RUIZ ORTEGA, JORGE LUIS | E70: 2015-10-07T16:12:25 | F70: 29716 | G70: AV.EAEA-AP | H70: 4 | I70: ENO - Apoyo a Proyecto de Mant de Líneas 405 y 406 Atl - Cuadrilla Zurita - 272-4453 | J70: Lote E - Servicio de alquiler trimestral de vehículo a motor - Picop con barra antivuelco y ganchos | K70: 1 | L70: Mo | M70: 2839.44 | O70: 2839.44 | P70: 2015-10-01 | Q70: 2015-12-30
A71: 2015-10-07T15:05:05 | B71: 744660 | C71: 341191 | D71: RUIZ ORTEGA, JORGE LUIS | E71: 2015-10-07T16:12:32 | F71: 29716 | G71: AV.EAEA-AP | H71: 4 | I71: ENO - Proyecto de Apóyo de Adecuaciones de los Accesos Verticales, Gatún - Cuadrilla José Fong - 272-4453 | J71: Lote E - Servicio de alquiler trimestral de vehículo a motor - Picop con barra antivuelco y ganchos | K71: 1 | L71: Mo | M71: 2839.44 | O71: 2839.44 | P71: 2015-10-01 | Q71: 2015-12-30
A72: 2015-10-08T08:53:46 | B72: 742588 | C72: 341207 | D72: RUIZ ORTEGA, JORGE LUIS | E72: 2015-10-08T16:32:53 | F72: 29716 | G72: AV.EAEG-GT | H72: 4 | I72: ENO - Proyecto de Operacióne Inversión de EAEG. Camarena - Jorge Ruiz - 272*-4415 | J72: Lote B - Servicio de alquiler trimestral de vehículo a motor - camioneta 4 x 4 | K72: 1 | L72: Mo | M72: 3705 | O72: 3705 | P72: 2015-10-01 | Q72: 2015-12-30
A73: 2015-10-08T08:57:42 | B73: 744923 | C73: 341208 | D73: MEANA MOUYNES, MARIA LOURDES | E73: 2015-10-08T14:19:38 | F73: 29716 | G73: AV.OPED | H73: 4 | I73: ENO - Veh No. 4 - Tipo pick up - Insp & Rep de Equipo de A/A - Atl/Pac - Edwin Navarro - 276-2376 | J73: Lote D - Servicio de alquiler trimestral de vehículo a motor - Picop | K73: 1 | L73: Mo | M73: 2839.44 | O73: 2839.44 | P73: 2015-10-07 | Q73: 2016-01-06
A74: 2015-10-08T09:46:06 | B74: 745135 | C74: 341217 | D74: GONZALEZ ATENCIO, LETICIA PORTOLATINA | E74: 2015-10-08T14:19:54 | F74: 29716 | G74: AV.OPPV | H74: 1 | I74: Veh 9403 - Pedro Chen - 276-1054 | J74: Lote D - Servicio de alquiler semanal de vehículo a motor - Picop | K74: 3 | L74: Each | M74: 664.2 | O74: 664.2 | P74: 2015-10-09 | Q74: 2015-10-30
A75: 2015-10-08T09:55:07 | B75: 745141 | C75: 341220 | D75: GONZALEZ ATENCIO, LETICIA PORTOLATINA | E75: 2015-10-08T14:19:47 | F75: 29716 | G75: AV.OPPV | H75: 1 | I75: Veh 9394 - Pedro Chen - 276-1054 | J75: Lote D - Servicio de alquiler semanal de vehículo a motor - Picop | K75: 2 | L75: Each | M75: 442.8 | O75: 442.8 | P75: 2015-10-09 | Q75: 2015-10-23
A76: 2015-10-08T13:16:14 | B76: 745151 | C76: 341270 | D76: SIMITI VALDEZ, EMILY BEATRIZ | E76: 2015-10-08T16:32:40 | F76: 29716 | G76: AV.OPEM-E | H76: 1 | I76: Veh 8245 - Evelyn Rodríguez - 276-3177 | J76: Lote D - Servicio de alquiler semanal de vehículo a motor - Picop | K76: 3 | L76: Each | M76: 664.2 | O76: 664.2 | P76: 2015-10-13 | Q76: 2015-11-02
A77: 2015-10-08T13:23:04 | B77: 745075 | C77: 341272 | D77: LOPEZ IGLESIAS, MARIA DE LOS ANGELES | E77: 2015-10-08T16:32:21 | F77: 29716 | G77: AV.AJ | H77: 4 | I77: ENO - Asignación Diaria en la Oficina de Asesoría Legal - Mitzila Moreno - 272-7511 | J77: Lote A - Servicio de alquiler trimestral de vehículo a motor - modelo sedán | K77: 1 | L77: Mo | M77: 1762.11 | O77: 1762.11 | P77: 2015-10-12 | Q77: 2016-01-11
A78: 2015-10-08T14:08:43 | B78: 744554 | C78: 341279 | D78: HOOKER ROOK, ROBERTO ALFONSO | E78: 2015-10-08T16:32:58 | F78: 29716 | G78: AV.CCXR | H78: 2 | I78: Proyectos y actividades de la Sección de Comunicación Corporativa - Adolfo Gil - 272-7605 | J78: Lote B - Servicio de alquiler trimestral de vehículo a motor - camioneta 4 x 4 | K78: 1 | L78: Mo | M78: 3705 | O78: 3705 | P78: 2015-10-02 | Q78: 2015-12-31
A79: 2015-10-09T11:39:48 | B79: 745532 | C79: 341359 | D79: LOPEZ RIVAS, RODRIGO ELISEO | E79: 2015-10-09T14:57:19 | F79: 29716 | G79: AV.EACM-SA | H79: 4 | I79: ENO - Programa y Proyectos de Equipo de Servicios Ambientales, de la Div de Ambiente AF-16 - Alejandro Figueroa - 276-3953 | J79: Lote D - Servicio de alquiler trimestral de vehículo a motor - Picop | K79: 1 | L79: Mo | M79: 2839.44 | O79: 2839.44 | P79: 2015-10-04 | Q79: 2016-01-03
A80: 2015-10-09T11:58:57 | B80: 745513 | C80: 341365 | D80: LOPEZ RIVAS, RODRIGO ELISEO | E80: 2015-10-09T15:58:48 | F80: 29716 | G80: AV.EACM-SA | H80: 4 | I80: ENO - Programa y Proyectos de Equipo de Servicios Ambientales, de la Div de Ambiente AF-16 - Alejandro Figueroa - 276-3953 | J80: Lote D - Servicio de alquiler trimestral de vehículo a motor - Picop | K80: 1 | L80: Mo | M80: 2839.44 | O80: 2839.44 | P80: 2015-10-04 | Q80: 2016-01-03
A81: 2015-10-09T12:07:57 | B81: 745489 | C81: 341366 | D81: LOPEZ RIVAS, RODRIGO ELISEO | E81: 2015-10-09T14:58:33 | F81: 29716 | G81: AV.EACM-EACE | H81: 4 | I81: ENO - Actividades de EACE - Angel Ureña Vargas - 276-2830 | J81: Lote B - Servicio de alquiler trimestral de vehículo a motor - camioneta 4 x 4 | K81: 1 | L81: Mo | M81: 3705 | O81: 3705 | P81: 2015-10-04 | Q81: 2016-01-03
A82: 2015-10-09T15:25:25 | B82: 745699 | C82: 341407 | D82: GONZALEZ ATENCIO, LETICIA PORTOLATINA | E82: 2015-10-09T15:58:54 | F82: 29716 | G82: AV.OPPV | H82: 1 | I82: Veh 9395 - Pedro Chen - 276-1054 | J82: Lote D - Servicio de alquiler semanal de vehículo a motor - Picop | K82: 2 | L82: Each | M82: 442.8 | O82: 442.8 | P82: 2015-10-08 | Q82: 2015-10-22
A83: 2015-10-09T15:29:09 | B83: 743586 | C83: 341408 | D83: GONZALEZ ATENCIO, LETICIA PORTOLATINA | E83: 2015-10-09T15:59:01 | F83: 29716 | G83: AV.OPPV | H83: 1 | I83: Veh 9404 - Pedro Chen - 276-1054 | J83: Lote D - Servicio de alquiler diario de vehículo a motor - Picop | K83: 2 | L83: Each | M83: 73.8 | O83: 73.8 | P83: 2015-10-01 | Q83: 2015-10-02
A84: 2015-10-09T15:33:21 | B84: 743599 | C84: 341409 | D84: GONZALEZ ATENCIO, LETICIA PORTOLATINA | E84: 2015-10-09T15:59:14 | F84: 29716 | G84: AV.OPPV | H84: 1 | I84: Veh 9402 - Pedro Chen - 276-1054 | J84: Lote D - Servicio de alquiler diario de vehículo a motor - Picop | K84: 2 | L84: Each | M84: 73.8 | O84: 73.8 | P84: 2015-09-25 | Q84: 2015-09-30
A85: 2015-10-09T15:33:21 | B85: 743599 | C85: 341409 | D85: GONZALEZ ATENCIO, LETICIA PORTOLATINA | E85: 2015-10-09T15:59:14 | F85: 29716 | G85: AV.OPPV | H85: 1 | I85: Veh 9402 - Pedro Chen - 276-1054 | J85: Lote D - Servicio de alquiler semanal de vehículo a motor - Picop | K85: 2 | L85: Each | M85: 442.8 | O85: 442.8 | P85: 2015-10-01 | Q85: 2015-10-15
A86: 2015-10-09T15:43:48 | B86: 743612 | C86: 341410 | D86: GONZALEZ ATENCIO, LETICIA PORTOLATINA | E86: 2015-10-12T07:18:58 | F86: 29716 | G86: AV.OPPV | H86: 1 | I86: Veh 9398 - Pedro Chen - 276-1054 | J86: Lote D - Servicio de alquiler diario de vehículo a motor - Picop | K86: 4 | L86: Each | M86: 147.6 | O86: 147.6 | P86: 2015-09-27 | Q86: 2015-09-30
A87: 2015-10-09T15:43:48 | B87: 743612 | C87: 341410 | D87: GONZALEZ ATENCIO, LETICIA PORTOLATINA | E87: 2015-10-12T07:18:58 | F87: 29716 | G87: AV.OPPV | H87: 1 | I87: Veh 9398 - Pedro Chen - 276-1054 | J87: Lote D - Servicio de alquiler semanal de vehículo a motor - Picop | K87: 2 | L87: Each | M87: 442.8 | O87: 442.8 | P87: 2015-10-01 | Q87: 2015-10-15
A88: 2015-10-09T15:47:18 | B88: 743616 | C88: 341411 | D88: GONZALEZ ATENCIO, LETICIA PORTOLATINA | E88: 2015-10-12T07:19:06 | F88: 29716 | G88: AV.OPPV | H88: 1 | I88: Veh 9395 - Pedro Chen - 276-1054 | J88: Lote D - Servicio de alquiler diario de vehículo a motor - Picop | K88: 5 | L88: Each | M88: 184.5 | O88: 184.5 | P88: 2015-10-01 | Q88: 2015-10-05
A89: 2015-10-12T11:17:43 | B89: 745669 | C89: 341457 | D89: ZHANG WU, EUGENIO | E89: 2015-10-12T14:56:32 | F89: 29716 | G89: AV.IAIT | H89: 1 | I89: Veh 9694 - Jorge Fanovich - 443-5508 | J89: Lote B - Servicio de alquiler mensual de vehículo a motor - camioneta 4 x 4 | K89: 1 | L89: Each | M89: 1300 | O89: 1300 | P89: 2015-10-09 | Q89: 2015-11-08
A90: 2015-10-13T11:03:55 | B90: 746284 | C90: 341563 | D90: HOOKER ROOK, ROBERTO ALFONSO | E90: 2015-10-14T07:21:34 | F90: 29716 | G90: AV.FAP | H90: 3 | I90: Viaje a Colón de FAPO-CP - Lizzette Olaciregui - 272-7690 | J90: Lote A - Servicio de alquiler diario de vehículo a motor - modelo sedán | K90: 1 | L90: Each | M90: 22.9 | O90: 22.9 | P90: 2015-10-14 | Q90: 2015-10-14
A91: 2015-10-14T08:36:39 | B91: 744267 | C91: 341633 | D91: BARSALLO TOUREAU, KARINA MINERVA | E91: 2015-10-14T10:51:47 | F91: 29716 | G91: AV.TIOD | H91: 1 | I91: Veh 9580 - Elmer Vaca - 276-2412 | J91: Lote E - Servicio de alquiler semanal de vehículo a motor - Picop con barra antivuelco y ganchos | K91: 3 | L91: Each | M91: 664.2 | O91: 664.2 | P91: 2015-10-05 | Q91: 2015-10-26
A92: 2015-10-14T08:44:08 | B92: 745638 | C92: 341636 | D92: RUIZ ORTEGA, JORGE LUIS | E92: 2015-10-14T10:01:51 | F92: 29716 | G92: AV.EAEB-MA | H92: 4 | I92: ENO - Cuadrilla -S1 - AB0176 - José Calvo - Jorge Carrasco - 272-4440 | J92: Lote E - Servicio de alquiler trimestral de vehículo a motor - Picop con barra antivuelco y ganchos | K92: 1 | L92: Mo | M92: 2839.44 | O92: 2839.44 | P92: 2015-10-01 | Q92: 2015-12-30
A93: 2015-10-14T08:54:17 | B93: 745643 | C93: 341638 | D93: RUIZ ORTEGA, JORGE LUIS | E93: 2015-10-14T10:50:45 | F93: 29716 | G93: AV.EAEB-MA | H93: 4 | I93: ENO - Cuadrilla -S2 - AA2623 - Roquel Cárdenas - Jorge Carrasco - 272-4440 | J93: Lote E - Servicio de alquiler trimestral de vehículo a motor - Picop con barra antivuelco y ganchos | K93: 1 | L93: Mo | M93: 2839.44 | O93: 2839.44 | P93: 2015-10-01 | Q93: 2015-12-30
A94: 2015-10-14T09:01:42 | B94: 745652 | C94: 341639 | D94: RUIZ ORTEGA, JORGE LUIS | E94: 2015-10-14T10:50:57 | F94: 29716 | G94: AV.EAEB-MA | H94: 4 | I94: ENO - Cuadrilla -S2 - AA2624 - Roquel Cárdenas - Jorge Carrasco - 272-4440 | J94: Lote E - Servicio de alquiler trimestral de vehículo a motor - Picop con barra antivuelco y ganchos | K94: 1 | L94: Mo | M94: 2839.44 | O94: 2839.44 | P94: 2015-10-01 | Q94: 2015-12-30
A95: 2015-10-14T09:09:05 | B95: 745656 | C95: 341642 | D95: RUIZ ORTEGA, JORGE LUIS | E95: 2015-10-14T10:51:04 | F95: 29716 | G95: AV.EAEB-MA | H95: 4 | I95: ENO - Cuadrilla -S6 - AA2629 - Oscar Martínez - Jorge Carrasco - 272-4440 | J95: Lote E - Servicio de alquiler trimestral de vehículo a motor - Picop con barra antivuelco y ganchos | K95: 1 | L95: Mo | M95: 2839.44 | O95: =+M95-N95 -> 2839.44 | P95: 2015-10-01 | Q95: 2015-12-30
A96: 2015-10-14T09:17:35 | B96: 745842 | C96: 341643 | D96: HOOKER, ANDREA IVETTE DE | E96: 2015-10-14T10:51:16 | F96: 29716 | G96: AV.OPRT | H96: 1 | I96: Veh 6002 - Jaime José Gonzalez - 276-1192 | J96: Lote D - Servicio de alquiler semanal de vehículo a motor - Picop | K96: 1 | L96: Each | M96: 221.4 | O96: 221.4 | P96: 2015-10-11 | Q96: 2015-10-18
A97: 2015-10-14T09:40:35 | B97: 745659 | C97: 341652 | D97: RUIZ ORTEGA, JORGE LUIS | E97: 2015-10-14T10:51:10 | F97: 29716 | G97: AV.EAEB-MA | H97: 4 | I97: ENO - Cuadrilla -S3 - AB9017 - Vicente Morgan - Jorge Carrasco - 272-4440 | J97: Lote E - Servicio de alquiler trimestral de vehículo a motor - Picop con barra antivuelco y ganchos | K97: 1 | L97: Mo | M97: 2839.44 | O97: 2839.44 | P97: 2015-10-01 | Q97: 2015-12-30
A98: 2015-10-14T10:12:10 | B98: 745660 | C98: 341662 | D98: RUIZ ORTEGA, JORGE LUIS | E98: 2015-10-14T10:51:41 | F98: 29716 | G98: AV.EAEB-MA | H98: 4 | I98: ENO - Cuadrilla -S3 - AG1048 - Vicente Morgan - Jorge Carrasco - 272-4440 | J98: Lote E - Servicio de alquiler trimestral de vehículo a motor - Picop con barra antivuelco y ganchos | K98: 1 | L98: Mo | M98: 2839.44 | O98: 2839.44 | P98: 2015-10-01 | Q98: 2015-12-30
A99: 2015-10-14T10:20:56 | B99: 745661 | C99: 341667 | D99: RUIZ ORTEGA, JORGE LUIS | E99: 2015-10-14T10:52:12 | F99: 29716 | G99: AV.EAEB-MA | H99: 4 | I99: ENO - Apoyo de Supervisores, Jefes de Unidad, Personal Administrativos - AA4047 - Jorge Carrasco - 272-4440 | J99: Lote E - Servicio de alquiler trimestral de vehículo a motor - Picop con barra antivuelco y ganchos | K99: 1 | L99: Mo | M99: 2839.44 | O99: 2839.44 | P99: 2015-10-01 | Q99: 2015-12-30
A100: 2015-10-14T15:46:25 | B100: 746330 | C100: 341769 | D100: PIMENTEL ARAUZ, MARIA ISABEL | E100: 2015-10-15T07:00:45 | F100: 29716 | G100: AV.CCXR | H100: 3 | I100: Viaje a Santiago - Dania Rosas - 272-7288 | J100: Lote B - Servicio de alquiler diario de vehículo a motor - camioneta 4 x 4 | K100: 4 | L100: Each | M100: 199.6 | O100: 199.6 | P100: 2015-10-14 | Q100: 2015-10-16
A101: 2015-10-16T14:35:37 | B101: 747259 | C101: 341968 | D101: GONZALEZ ATENCIO, LETICIA PORTOLATINA | E101: 2015-10-16T17:29:52 | F101: 29716 | G101: AV.OPPV | H101: 1 | I101: Veh 8214 - Pedro Chen - 276-1054 | J101: Lote D - Servicio de alquiler semanal de vehículo a motor - Picop | K101: 2 | L101: Each | M101: 442.8 | O101: 442.8 | P101: 2015-10-15 | Q101: 2015-10-29
A102: 2015-10-16T14:42:23 | B102: 747266 | C102: 341970 | D102: GONZALEZ ATENCIO, LETICIA PORTOLATINA | E102: 2015-10-16T17:30:26 | F102: 29716 | G102: AV.OPPV | H102: 1 | I102: Veh 8822 - AT8861 - Franklin Justiniani - 276-1541 | J102: Lote D - Servicio de alquiler semanal de vehículo a motor - Picop | K102: 2 | L102: Each | M102: 442.8 | O102: 442.8 | P102: 2015-10-19 | Q102: 2015-11-02
A103: 2015-10-16T14:49:15 | B103: 747276 | C103: 341971 | D103: GONZALEZ ATENCIO, LETICIA PORTOLATINA | E103: 2015-10-16T17:30:21 | F103: 29716 | G103: AV.OPPV | H103: 1 | I103: Veh 9402 - Pedro Chen - 276-1054 | J103: Lote D - Servicio de alquiler semanal de vehículo a motor - Picop | K103: 2 | L103: Each | M103: 442.8 | O103: 442.8 | P103: 2015-10-16 | Q103: 2015-10-30
A104: 2015-10-20T09:22:48 | B104: 747280 | C104: 342096 | D104: GONZALEZ ATENCIO, LETICIA PORTOLATINA | E104: 2015-10-21T08:09:04 | F104: 29716 | G104: AV.OPPV | H104: 1 | I104: Veh 9398 - Pedro Chen - 276-1054 | J104: Lote D - Servicio de alquiler semanal de vehículo a motor - Picop | K104: 4 | L104: Each | M104: 885.6 | O104: 885.6 | P104: 2015-10-18 | Q104: 2015-11-15
A105: 2015-10-21T11:31:44 | B105: 747889 | C105: 342153 | D105: CAROPRESSO G, AURAY MILAGROS | E105: 2015-10-22T07:37:43 | F105: 29716 | G105: AV.OPEP-PM | H105: 1 | I105: Veh 9391 - Carlos Espinosa - 276-7688 | J105: Lote E - Servicio de alquiler semanal de vehículo a motor - Picop con barra antivuelco y ganchos | K105: 2 | L105: Each | M105: 442.8 | O105: 442.8 | P105: 2015-10-23 | Q105: 2015-11-06
A106: 2015-10-21T09:01:07 | B106: 747258 | C106: 342197 | D106: ZHANG WU, EUGENIO | E106: 2015-10-21T16:20:45 | F106: 29716 | G106: AV.IAIT | H106: 1 | I106: Veh 9586 - María Vanessa Sáiz - 276-7161 | J106: Lote B - Servicio de alquiler semanal de vehículo a motor - camioneta 4 x 4 | K106: 3 | L106: Each | M106: 898.2 | O106: 898.2 | P106: 2015-10-16 | Q106: 2015-11-06
A107: 2015-10-21T09:42:52 | B107: 746590 | C107: 342209 | D107: HURTADO WESLEY, FLOR CELIA | E107: 2015-10-21T16:21:13 | F107: 29716 | G107: AV.EAEA-AP | H107: 1 | I107: Veh 9658 - Andrew Philps - 276-4640 | J107: Lote E - Servicio de alquiler semanal de vehículo a motor - Picop con barra antivuelco y ganchos | K107: 2 | L107: Each | M107: 442.8 | O107: 442.8 | P107: 2015-10-21 | Q107: 2015-11-04
A108: 2015-10-21T10:02:15 | B108: 746595 | C108: 342215 | D108: HURTADO WESLEY, FLOR CELIA | E108: 2015-10-21T16:22:24 | F108: 29716 | G108: AV.EAEA-AP | H108: 1 | I108: Veh 9880 - Ruben Rose - 276-4641 | J108: Lote E - Servicio de alquiler mensual de vehículo a motor - Picop con barra antivuelco y ganchos | K108: 1 | L108: Each | M108: 996.3 | O108: 996.3 | P108: 2015-10-21 | Q108: 2015-11-20
A109: 2015-10-22T09:31:05 | B109: 747927 | C109: 342314 | D109: SIMITI VALDEZ, EMILY BEATRIZ | E109: 2015-10-22T16:43:26 | F109: 29716 | G109: AV.OPEM-E | H109: 1 | I109: Veh 8843 - Roberto Castillo - 276-3225 | J109: Lote E - Servicio de alquiler semanal de vehículo a motor - Picop con barra antivuelco y ganchos | K109: 2 | L109: Each | M109: 442.8 | O109: 442.8 | P109: 2015-10-26 | Q109: 2015-11-09
A110: 2015-10-23T07:31:57 | B110: 748638 | C110: 342428 | D110: GONZALEZ ATENCIO, LETICIA PORTOLATINA | E110: 2015-10-26T16:01:17 | F110: 29716 | G110: AV.OPPV | H110: 1 | I110: Veh 9404 - Pedro Chen - 276-1054 | J110: Lote D - Servicio de alquiler semanal de vehículo a motor - Picop | K110: 2 | L110: Each | M110: 442.8 | O110: 442.8 | P110: 2015-10-22 | Q110: 2015-11-05
A111: 2015-10-26T09:16:10 | B111: 746411 | C111: 342486 | D111: HURTADO WESLEY, FLOR CELIA | E111: 2015-10-26T16:01:08 | F111: 29716 | G111: AV.EAEB-SE | H111: 1 | I111: Veh 9609 - Abdiel Galvez - 272-3328 | J111: Lote D - Servicio de alquiler diario de vehículo a motor - Picop | K111: 3 | L111: Each | M111: 110.7 | O111: 110.7 | P111: 2015-10-13 | Q111: 2015-10-15
A112: 2015-10-26T14:13:09 | B112: 748649 | C112: 342543 | D112: GONZALEZ ATENCIO, LETICIA PORTOLATINA | E112: 2015-10-26T16:01:45 | F112: 29716 | G112: AV.OPPV | H112: 1 | I112: Veh 9394 - Pedro Chen - 276-1054 | J112: Lote D - Servicio de alquiler semanal de vehículo a motor - Picop | K112: 4 | L112: Each | M112: 885.6 | O112: 885.6 | P112: 2015-10-23 | Q112: 2015-11-20
A113: 2015-10-26T14:20:13 | B113: 748675 | C113: 342549 | D113: GONZALEZ ATENCIO, LETICIA PORTOLATINA | E113: 2015-10-26T16:01:55 | F113: 29716 | G113: AV.OPPV | H113: 1 | I113: Veh 8212 - Pedro Chen - 276-1054 | J113: Lote D - Servicio de alquiler semanal de vehículo a motor - Picop | K113: 2 | L113: Each | M113: 442.8 | O113: 442.8 | P113: 2015-10-22 | Q113: 2015-11-05
A114: 2015-10-26T15:12:41 | B114: 748892 | C114: 342572 | D114: BERNUIL ZAMBRANO, OSCAR | E114: 2015-10-26T16:02:01 | F114: 29716 | G114: AV.RHSR-CP | H114: 3 | I114: Traslado a especialistas RHSR-CP a Gatún, Colón - Yimara Gonzalez - 272-8336| | J114: Lote B - Servicio de alquiler diario de vehículo a motor - camioneta 4 x 4 | K114: 1 | L114: Each | M114: 49.9 | O114: 49.9 | P114: 2015-10-28 | Q114: 2015-10-28
A115: 2015-10-28T09:44:24 | B115: 749630 | C115: 342789 | D115: GONZALEZ ATENCIO, LETICIA PORTOLATINA | E115: 2015-10-28 | F115: 29716 | G115: AV.OPPV | H115: 1 | I115: Veh 6761 - Pedro Chen - 276-1054 | J115: Lote D - Servicio de alquiler semanal de vehículo a motor - Picop | K115: 2 | L115: Each | M115: 442.8 | O115: 442.8 | P115: 2015-10-27 | Q115: 2015-11-10
A116: 2015-10-28T13:36:54 | B116: 749700 | C116: 342813 | D116: SIMITI VALDEZ, EMILY BEATRIZ | E116: 2015-10-28T15:05:52 | F116: 29716 | G116: AV.OPEM-E | H116: 1 | I116: Veh 8071/8101 - Roberto Castillo - 276-3225 | J116: Lote E - Servicio de alquiler semanal de vehículo a motor - Picop con barra antivuelco y ganchos | K116: 2 | L116: Each | M116: 442.8 | O116: 442.8 | P116: 2015-11-11 | Q116: 2015-11-25
A117: 2015-10-29T07:36:41 | B117: 749032 | C117: 342842 | D117: BARSALLO TOUREAU, KARINA MINERVA | E117: 2015-11-02T06:52:35 | F117: 29716 | G117: AV.TIOD | H117: 1 | I117: Veh 9580 - Elmer Vaca - 276-2412 | J117: Lote D - Servicio de alquiler semanal de vehículo a motor - Picop | K117: 1 | L117: Each | M117: 221.4 | O117: 221.4
A118: 2015-11-06T11:40:18 | B118: 749854 | C118: 343278 | D118: SMITH DREW, DIVA LYRNA | E118: 2015-11-09T10:07:22 | F118: 29716 | G118: AV.RHS-ENL | H118: 3 | I118: Viaje CSS de Enlace - Monte Esperanza - Dewyer Valdes - 272-8815 | J118: Lote B - Servicio de alquiler diario de vehículo a motor - camioneta 4 x 4 | K118: 2 | L118: Each | M118: 99.8 | O118: 99.8 | P118: 2015-11-12 | Q118: 2015-11-13
A119: 2015-11-09T10:06:42 | B119: 746712 | C119: 343321 | D119: RUIZ ORTEGA, JORGE LUIS | E119: 2015-11-09T14:22:16 | F119: 29716 | G119: AV.EAEG-GT | H119: 1 | I119: Veh 9532 - Mario Rangel - 272-4431 | J119: Lote D - Servicio de alquiler semanal de vehículo a motor - Picop | K119: 1 | L119: Each | M119: 221.4 | O119: 221.4 | P119: 2015-11-09 | Q119: 2015-11-16
A120: 2015-11-09T12:51:50 | B120: 750904 | C120: 343339 | D120: SIMITI VALDEZ, EMILY BEATRIZ | E120: 2015-11-09T15:17:00 | F120: 29716 | G120: AV.OPEM-E | H120: 1 | I120: Veh 9663 - Olga Perea - 276-2851 | J120: Lote E - Servicio de alquiler semanal de vehículo a motor - Picop con barra antivuelco y ganchos | K120: 3 | L120: Each | M120: 664.2 | O120: 664.2 | P120: 2015-11-12 | Q120: 2015-12-03
A121: 2015-11-09T12:56:59 | B121: 750674 | C121: 343340 | D121: SIMITI VALDEZ, EMILY BEATRIZ | E121: 2015-11-09T15:17:41 | F121: 29716 | G121: AV.OPEM-E | H121: 1 | I121: Veh 8117 - Olga Perea - 276-2851 | J121: Lote E - Servicio de alquiler semanal de vehículo a motor - Picop con barra antivuelco y ganchos | K121: 1 | L121: Each | M121: 221.4 | O121: 221.4 | P121: 2015-11-16 | Q121: 2015-11-23
A122: 2015-11-09T15:25:44 | B122: 751652 | C122: 343361 | D122: PEREA ROJAS, MONICA ISABEL | E122: 2015-11-13T13:16:19 | F122: 29716 | G122: AV.OPRD | H122: 1 | I122: 4 TIP - José Perivancich - 276-2496 | J122: Lote B - Servicio de alquiler semanal de vehículo a motor - camioneta 4 x 4 | K122: 4 | L122: Each | M122: 1197.6 | O122: 1197.6 | P122: 2015-11-11 | Q122: 2015-11-18
A123: 2015-11-11T07:52:36 | B123: 750766 | C123: 343373 | D123: GONZALEZ ATENCIO, LETICIA PORTOLATINA | E123: 2015-11-11T15:15:14 | F123: 29716 | G123: AV.OPPV | H123: 1 | I123: Veh 9403 - Pedro Chen - 276-1054 | J123: Lote D - Servicio de alquiler semanal de vehículo a motor - Picop | K123: 2 | L123: Each | M123: 442.8 | O123: 442.8 | P123: 2015-10-30 | Q123: 2015-11-14
A124: 2015-11-11T08:17:25 | B124: 750798 | C124: 343377 | D124: GONZALEZ ATENCIO, LETICIA PORTOLATINA | E124: 2015-11-16T10:58:27 | F124: 29716 | G124: AV.OPPV | H124: 1 | I124: Veh 9402 - Pedro Chen - 276-1054 | J124: Lote D - Servicio de alquiler semanal de vehículo a motor - Picop | K124: 4 | L124: Each | M124: 885.6 | O124: 885.6 | P124: 2015-10-30 | Q124: 2015-11-29
A125: 2015-11-11T08:28:10 | B125: 750734 | C125: 343379 | D125: GONZALEZ ATENCIO, LETICIA PORTOLATINA | E125: 2015-11-16T10:58:35 | F125: 29716 | G125: AV.OPPV | H125: 1 | I125: Veh 8213 - Pedro Chen - 276-1054 | J125: Lote D - Servicio de alquiler semanal de vehículo a motor - Picop | K125: 1 | L125: Each | M125: 221.4 | O125: 221.4 | P125: 2015-10-29 | Q125: 2015-11-05
A126: 2015-11-11T08:44:53 | B126: 750772 | C126: 343384 | D126: GONZALEZ ATENCIO, LETICIA PORTOLATINA | E126: 2015-11-11T15:15:09 | F126: 29716 | G126: AV.OPPV | H126: 1 | I126: Veh 9401 - Pedro Chen - 276-1054 | J126: Lote D - Servicio de alquiler semanal de vehículo a motor - Picop | K126: 4 | L126: Each | M126: 885.6 | O126: 885.6 | P126: 2015-10-30 | Q126: 2015-11-29
A127: 2015-11-11T08:52:06 | B127: 750774 | C127: 343386 | D127: GONZALEZ ATENCIO, LETICIA PORTOLATINA | E127: 2015-11-11T15:15:04 | F127: 29716 | G127: AV.OPPV | H127: 1 | I127: Veh 9397 - Pedro Chen - 276-1054 | J127: Lote D - Servicio de alquiler semanal de vehículo a motor - Picop | K127: 4 | L127: Each | M127: 885.6 | O127: 885.6 | P127: 2015-10-30 | Q127: 2015-11-29
A128: 2015-11-11T08:57:48 | B128: 750776 | C128: 343389 | D128: GONZALEZ ATENCIO, LETICIA PORTOLATINA | E128: 2015-11-11T15:14:59 | F128: 29716 | G128: AV.OPPV | H128: 3 | I128: Ruta de Ampliación en el Atlántico - Pedro Chen - 276-1054 | J128: Lote D - Servicio de alquiler semanal de vehículo a motor - Picop | K128: 4 | L128: Each | M128: 885.6 | O128: 885.6 | P128: 2015-10-30 | Q128: 2015-11-29
A129: 2015-11-11T09:02:10 | B129: 750780 | C129: 343391 | D129: GONZALEZ ATENCIO, LETICIA PORTOLATINA | E129: 2015-11-11T15:14:51 | F129: 29716 | G129: AV.OPPV | H129: 3 | I129: Ruta de Ampliación en el Atlántico - Pedro Chen - 276-1054 | J129: Lote D - Servicio de alquiler semanal de vehículo a motor - Picop | K129: 4 | L129: Each | M129: 885.6 | O129: 885.6 | P129: 2015-10-31 | Q129: 2015-11-30
A130: 2015-11-11T09:37:10 | B130: 750845 | C130: 343401 | D130: GONZALEZ ATENCIO, LETICIA PORTOLATINA | E130: 2015-11-11T15:14:45 | F130: 29716 | G130: AV.OPPV | H130: 1 | I130: Veh 8822 - AT8861 - Franklin Justiniani - 276-1541 | J130: Lote D - Servicio de alquiler semanal de vehículo a motor - Picop | K130: 2 | L130: Each | M130: 442.8 | O130: 442.8 | P130: 2015-11-02 | Q130: 2015-11-16
A131: 2015-11-11T09:59:18 | B131: 750865 | C131: 343405 | D131: GONZALEZ ATENCIO, LETICIA PORTOLATINA | E131: 2015-11-11T15:14:38 | F131: 29716 | G131: AV.OPPV | H131: 1 | I131: Veh 9393 - Pedro Chen - 276-1054 | J131: Lote D - Servicio de alquiler semanal de vehículo a motor - Picop | K131: 2 | L131: Each | M131: 442.8 | O131: 442.8 | P131: 2015-10-31 | Q131: 2015-11-14
A132: 2015-11-11T10:04:51 | B132: 750850 | C132: 343407 | D132: GONZALEZ ATENCIO, LETICIA PORTOLATINA | E132: 2015-11-11T15:14:32 | F132: 29716 | G132: AV.OPPV | H132: 1 | I132: Veh 9404 - Pedro Chen - 276-1054 | J132: Lote D - Servicio de alquiler semanal de vehículo a motor - Picop | K132: 1 | L132: Each | M132: 221.4 | O132: 221.4 | P132: 2015-11-05 | Q132: 2015-11-12
A133: 2015-11-11T10:09:29 | B133: 750857 | C133: 343410 | D133: GONZALEZ ATENCIO, LETICIA PORTOLATINA | E133: 2015-11-11T15:14:20 | F133: 29716 | G133: AV.OPPV | H133: 1 | I133: Veh 8212 - Pedro Chen - 276-1054 | J133: Lote D - Servicio de alquiler semanal de vehículo a motor - Picop | K133: 1 | L133: Each | M133: 221.4 | O133: 221.4 | P133: 2015-11-05 | Q133: 2015-11-12
A134: 2015-11-12T09:02:17 | B134: 749773 | C134: 343476 | D134: MEANA MOUYNES, MARIA LOURDES | E134: 2015-11-16T15:04:00 | F134: 29716 | G134: AV.OPEP-MM | H134: 2 | I134: Proyecto para el Inicio y Pruebas para la puesta en marcha e inicio de operaciones de las esclusas de cocoli y agua clara-Jorge Pitti - 276-8268 | J134: Lote D - Servicio de alquiler mensual de vehículo a motor - Picop | K134: 3 | L134: Each | M134: 2988.9 | O134: 2988.9 | P134: 2015-09-24 | Q134: 2015-12-23
A135: 2015-11-13T08:00:20 | B135: 751603 | C135: 343541 | D135: HURTADO WESLEY, FLOR CELIA | E135: 2015-11-13T14:33:47 | F135: 29716 | G135: AV.EAEG-GT | H135: 1 | I135: Veh 9612 - Maydolee Nuñez - 272-4461 | J135: Lote D - Servicio de alquiler semanal de vehículo a motor - Picop | K135: 2 | L135: Each | M135: 442.8 | O135: 442.8 | P135: 2015-11-06 | Q135: 2015-11-20
A136: 2015-11-13T08:44:16 | B136: 752035 | C136: 343552 | D136: HURTADO WESLEY, FLOR CELIA | E136: 2015-11-13T14:33:07 | F136: 29716 | G136: AV.EAEA-AP | H136: 1 | I136: Veh 9596 - Enrique Otalora - 272-3016 | J136: Lote E - Servicio de alquiler semanal de vehículo a motor - Picop con barra antivuelco y ganchos | K136: 2 | L136: Each | M136: 442.8 | O136: 442.8 | P136: 2015-11-04 | Q136: 2015-11-18
A137: 2015-11-13T09:43:43 | B137: 751608 | C137: 343582 | D137: BARSALLO TOUREAU, KARINA MINERVA | E137: 2015-11-13T14:31:33 | F137: 29716 | G137: AV.TIOD | H137: 1 | I137: Veh 9580 - Elmer Vaca - 276-2412 | J137: Lote E - Servicio de alquiler semanal de vehículo a motor - Picop con barra antivuelco y ganchos | K137: 2 | L137: Each | M137: 442.8 | O137: 442.8 | P137: 2015-11-02 | Q137: 2015-11-23
A138: 2015-11-13T10:53:30 | B138: 748391 | C138: 343592 | D138: SANCHEZ UREÑA, LIZDEYKA MELISSA | E138: 2015-11-13T14:31:19 | F138: 29716 | G138: AV.OPEI | H138: 3 | I138: Viaje Colón - Gatún a -Capacitación del Personal - Cleopatra Campbell - 276-8265 | J138: Lote B - Servicio de alquiler diario de vehículo a motor - camioneta 4 x 4 | K138: 1 | L138: Each | M138: 49.9 | O138: 49.9 | P138: 2015-10-23 | Q138: 2015-10-23
A139: 2015-11-16T08:31:14 | B139: 752046 | C139: 343661 | D139: GONZALEZ ATENCIO, LETICIA PORTOLATINA | E139: 2015-11-16T10:43:27 | F139: 29716 | G139: AV.OPPV | H139: 1 | I139: Veh 6761 - Pedro Chen - 276-1054 | J139: Lote D - Servicio de alquiler semanal de vehículo a motor - Picop | K139: 2 | L139: Each | M139: 442.8 | O139: 442.8 | P139: 2015-11-10 | Q139: 2015-11-23
A140: 2015-11-16T08:36:51 | B140: 752351 | C140: 343663 | D140: GONZALEZ ATENCIO, LETICIA PORTOLATINA | E140: 2015-11-16T10:43:57 | F140: 29716 | G140: AV.OPPV | H140: 1 | I140: Veh 9399 - Pedro Chen - 276-1054 | J140: Lote D - Servicio de alquiler mensual de vehículo a motor - Picop | K140: 4 | L140: Each | M140: 885.6 | O140: 885.6 | P140: 2015-11-12 | Q140: 2015-12-10
A141: 2015-11-16T08:42:04 | B141: 752349 | C141: 343664 | D141: GONZALEZ ATENCIO, LETICIA PORTOLATINA | E141: 2015-11-16T10:44:03 | F141: 29716 | G141: AV.OPPV | H141: 1 | I141: Veh 9393 - Pedro Chen - 276-1054 | J141: Lote D - Servicio de alquiler mensual de vehículo a motor - Picop | K141: 2 | L141: Each | M141: 442.8 | O141: 442.8 | P141: 2015-11-14 | Q141: 2015-11-28
A142: 2015-11-16T08:46:48 | B142: 752347 | C142: 343665 | D142: GONZALEZ ATENCIO, LETICIA PORTOLATINA | E142: 2015-11-16T10:44:10 | F142: 29716 | G142: AV.OPPV | H142: 1 | I142: Veh 8212 - Pedro Chen - 276-1054 | J142: Lote D - Servicio de alquiler mensual de vehículo a motor - Picop | K142: 2 | L142: Each | M142: 442.8 | O142: 442.8 | P142: 2015-11-12 | Q142: 2015-11-26
A143: 2015-11-16T08:51:50 | B143: 752348 | C143: 343666 | D143: GONZALEZ ATENCIO, LETICIA PORTOLATINA | E143: 2015-11-16T10:44:16 | F143: 29716 | G143: AV.OPPV | H143: 1 | I143: Veh 9398 - Pedro Chen - 276-1054 | J143: Lote D - Servicio de alquiler mensual de vehículo a motor - Picop | K143: 2 | L143: Each | M143: 442.8 | O143: 442.8 | P143: 2015-11-15 | Q143: 2015-11-29
A144: 2015-11-16T08:55:14 | B144: 752350 | C144: 343668 | D144: GONZALEZ ATENCIO, LETICIA PORTOLATINA | E144: 2015-11-16T10:44:22 | F144: 29716 | G144: AV.OPPV | H144: 1 | I144: Veh 9403 - Pedro Chen - 276-1054 | J144: Lote D - Servicio de alquiler mensual de vehículo a motor - Picop | K144: 1 | L144: Each | M144: 221.4 | O144: 221.4 | P144: 2015-11-14 | Q144: 2015-11-21
A145: 2015-11-16T09:33:21 | B145: 750895 | C145: 343682 | D145: RODRIGUEZ HERRERA, HELIO JAVIER | E145: 2015-11-17T07:09:58 | F145: 29716 | G145: AV.OPEM-P | H145: 1 | I145: Veh 8804 - en Garantía - Gabriel Vasquez - 276-8226 | J145: Lote E - Servicio de alquiler semanal de vehículo a motor - Picop con barra antivuelco y ganchos | K145: 4 | L145: Each | M145: 885.6 | O145: 885.6 | P145: 2015-11-18 | Q145: 2015-12-15
A146: 2015-11-16T11:32:50 | B146: 751797 | C146: 343709 | D146: SIMITI VALDEZ, EMILY BEATRIZ | F146: 29716 | G146: AV.OPEM-E | H146: 1 | I146: Veh 8843 - Roberto Castillo - 276-3225 | J146: Lote E - Servicio de alquiler semanal de vehículo a motor - Picop con barra antivuelco y ganchos | K146: 2 | L146: Each | M146: 442.8 | O146: 442.8 | P146: 2015-11-10 | Q146: 2015-11-24
A147: 2015-11-16T12:19:43 | B147: 748531 | C147: 343720 | D147: GONZALEZ QUIROS, AIDEE DEL CARMEN | E147: 2015-11-17T07:10:27 | F147: 29716 | G147: AV.OPEM-S | H147: 4 | I147: ENO - Supv Contratos , incorporar un vehículo para que los ROC cuenten con la facilitad de desplazarse a lo largo del Canal - Ana Victoria Rivera - 276-7171-2374 | J147: Lote B - Servicio de alquiler trimestral de vehículo a motor - camioneta 4 x 4 | K147: 1 | L147: Mo | M147: 3705 | O147: 3705 | P147: 2015-11-18 | Q147: 2016-02-17
A148: 2015-11-16T15:11:59 | B148: 752486 | C148: 343750 | D148: BARSALLO TOUREAU, KARINA MINERVA | E148: 2015-11-17T07:10:34 | F148: 29716 | G148: AV.TIOD | H148: 1 | I148: Veh 9580 - Elmer Vaca - 276-2412 | J148: Lote E - Servicio de alquiler semanal de vehículo a motor - Picop con barra antivuelco y ganchos | K148: 3 | L148: Each | M148: 664.2 | O148: 664.2 | P148: 2015-11-16 | Q148: 2015-12-07
A149: 2015-11-17T08:07:59 | B149: 752798 | C149: 343760 | D149: HOOKER, ANDREA IVETTE DE | E149: 2015-11-17T15:11:37 | F149: 29716 | G149: AV.OPRT | H149: 1 | I149: Veh 6002 - Jaime José Gonzalez - 276-1192 | J149: Lote D - Servicio de alquiler diario de vehículo a motor - Picop | K149: 1 | L149: Each | M149: 36.9 | O149: 36.9 | P149: 2015-11-20 | Q149: 2015-11-20
A150: 2015-11-17T08:07:59 | B150: 752798 | C150: 343760 | D150: HOOKER, ANDREA IVETTE DE | E150: 2015-11-17T15:11:37 | F150: 29716 | G150: AV.OPRT | H150: 1 | I150: Veh 6002 - Jaime José Gonzalez - 276-1192 | J150: Lote D - Servicio de alquiler semanal de vehículo a motor - Picop | K150: 1 | L150: Each | M150: 221.4 | O150: 221.4 | P150: 2015-11-21 | Q150: 2015-11-27
A151: 2015-11-17T10:21:29 | B151: 752826 | C151: 343791 | D151: GONZALEZ ATENCIO, LETICIA PORTOLATINA | E151: 2015-11-17T15:11:43 | F151: 29716 | G151: AV.OPPV | H151: 1 | I151: Veh 9404 - Pedro Chen - 276-1054 | J151: Lote D - Servicio de alquiler semanal de vehículo a motor - Picop | K151: 2 | L151: Each | M151: 442.8 | O151: 442.8 | P151: 2015-11-16 | Q151: 2015-11-30
A152: 2015-11-17T11:34:10 | B152: 748328 | C152: 343805 | D152: RODRIGUEZ HERRERA, HELIO JAVIER | E152: 2015-11-18T06:57:04 | F152: 29716 | G152: AV.OPEM-P | H152: 2 | I152: Overhaul de Dic 2015 - Idelsa Botello -276-7297- Selfrido Díaz | J152: Lote E - Servicio de alquiler mensual de vehículo a motor - Picop con barra antivuelco y ganchos | K152: 2 | L152: Each | M152: 1992.6 | O152: 1992.6 | P152: 2015-12-01 | Q152: 2015-12-31
A153: 2015-11-18T13:03:19 | B153: 752544 | C153: 343880 | D153: DELGADO GONZALEZ, FRANCISCO JR | E153: 2015-11-19T07:08:50 | F153: 29716 | G153: AV.IAIT | H153: 1 | I153: Veh 9694 - Cristobal Cerrud - 276-4591 - Jorge Fanovich - 443-5508 | J153: Cargo por entregar (a la ACP o recoger en la ACP) Exclusivo solo para la Ciudad de Colón. | K153: 1 | L153: Each | M153: 20 | O153: 20 | P153: 2015-11-16 | Q153: 2015-12-16
A154: 2015-11-18T13:03:19 | B154: 752544 | C154: 343880 | D154: DELGADO GONZALEZ, FRANCISCO JR | E154: 2015-11-19T07:08:50 | F154: 29716 | G154: AV.IAIT | H154: 1 | I154: Veh 9694 - Cristobal Cerrud - 276-4591 - Jorge Fanovich - 443-5508 | J154: Lote B - Servicio de alquiler mensual de vehículo a motor - camioneta 4 x 4 | K154: 1 | L154: Each | M154: 1300 | O154: 1300 | P154: 2015-11-16 | Q154: 2015-12-16
A155: 2015-11-20T08:19:39 | B155: 753494 | C155: 344037 | D155: GONZALEZ ATENCIO, LETICIA PORTOLATINA | E155: 2015-11-20T10:56:49 | F155: 29716 | G155: AV.OPPV | H155: 1 | I155: Veh 6761 - Pedro Chen - 276-1054 | J155: Lote D - Servicio de alquiler semanal de vehículo a motor - Picop | K155: 4 | L155: Each | M155: 885.6 | O155: 885.6 | P155: 2015-11-24 | Q155: 2015-12-22
A156: 2015-11-20T08:27:16 | B156: 753808 | C156: 344039 | D156: GONZALEZ ATENCIO, LETICIA PORTOLATINA | E156: 2015-11-20T10:57:03 | F156: 29716 | G156: AV.OPPV | H156: 1 | I156: Veh 9395 - Pedro Chen - 276-1054 | J156: Lote D - Servicio de alquiler semanal de vehículo a motor - Picop | K156: 1 | L156: Each | M156: 221.4 | O156: 221.4 | P156: 2015-11-19 | Q156: 2015-11-26
A157: 2015-11-20T08:36:30 | B157: 753813 | C157: 344042 | D157: GONZALEZ ATENCIO, LETICIA PORTOLATINA | E157: 2015-11-20T10:57:17 | F157: 29716 | G157: AV.OPPV | H157: 1 | I157: Veh 9405 - Pedro Chen - 276-1054 | J157: Lote D - Servicio de alquiler semanal de vehículo a motor - Picop | K157: 2 | L157: Each | M157: 442.8 | O157: 442.8 | P157: 2015-11-19 | Q157: 2015-12-03
A158: 2015-11-20T08:40:57 | B158: 753804 | C158: 344043 | D158: BROWN MAYORGA, RICARDO ERNESTO | E158: 2015-11-20T10:57:30 | F158: 29716 | G158: AV.COPR | H158: 1 | I158: Veh 6005 - Ricardo Brown - 272-1427 | J158: Lote B - Servicio de alquiler semanal de vehículo a motor - camioneta 4 x 4 | K158: 2 | L158: Each | M158: 598.8 | O158: 598.8 | P158: 2015-11-19 | Q158: 2015-12-03
A159: 2015-11-20T08:41:48 | B159: 753817 | C159: 344044 | D159: GONZALEZ ATENCIO, LETICIA PORTOLATINA | E159: 2015-11-20T10:57:23 | F159: 29716 | G159: AV.OPPV | H159: 1 | I159: Veh 8214 - Pedro Chen - 276-1054 | J159: Lote D - Servicio de alquiler semanal de vehículo a motor - Picop | K159: 4 | L159: Each | M159: 885.6 | O159: =+M159-N159 -> 885.6 | P159: 2015-11-19 | Q159: 2015-12-17
A160: 2015-11-20T08:52:21 | B160: 753223 | C160: 344048 | D160: BERNUIL ZAMBRANO, OSCAR | E160: 2015-11-23T07:57:28 | F160: 29716 | G160: AV.RHSB | H160: 1 | I160: Veh 6729 - Belkis Botello - 272-8560 | J160: Lote A - Servicio de alquiler mensual de vehículo a motor - modelo sedán | K160: 1 | L160: Each | M160: 618.3 | O160: 618.3 | P160: 2015-11-19 | Q160: 2015-12-18
A161: 2015-11-20T09:08:51 | B161: 752714 | C161: 344051 | D161: BERNUIL ZAMBRANO, OSCAR | E161: 2015-11-23T07:58:34 | F161: 29716 | G161: AV.RHS-ENL | H161: 3 | I161: Viaje al Sector Atlántico - Victoria Arias - 272-8453 | J161: Lote B - Servicio de alquiler diario de vehículo a motor - camioneta 4 x 4 | K161: 1 | L161: Each | M161: 49.9 | O161: 49.9 | P161: 2015-12-04 | Q161: 2015-12-04
A162: 2015-11-23T13:35:54 | B162: 754171 | C162: 344215 | D162: GONZALEZ ATENCIO, LETICIA PORTOLATINA | E162: 2015-11-23T14:13:45 | F162: 29716 | G162: AV.OPPV | H162: 1 | I162: Veh 8822 - AT8861 - Franklin Justiniani - 276-1541 | J162: Lote D - Servicio de alquiler mensual de vehículo a motor - Picop | K162: 2 | L162: Each | M162: 442.8 | O162: 442.8 | P162: 2015-11-20 | Q162: 2015-12-04
A163: 2015-11-23T14:58:08 | B163: 753981 | C163: 344248 | D163: HURTADO WESLEY, FLOR CELIA | E163: 2015-11-24T14:19:37 | F163: 29716 | G163: AV.EAEA-AP | H163: 1 | I163: Veh 9880 - Jessica Brathwaite - 272-4484 | J163: Lote E - Servicio de alquiler semanal de vehículo a motor - Picop con barra antivuelco y ganchos | K163: 4 | L163: Each | M163: 885.6 | O163: 885.6 | P163: 2015-11-20 | Q163: 2015-12-18
A164: 2015-11-24T10:00:32 | B164: 752796 | C164: 344315 | D164: RUIZ ORTEGA, JORGE LUIS | E164: 2015-11-24T14:19:45 | F164: 29716 | G164: AV.EAEB-MA | H164: 1 | I164: Veh 8950 - Jorge Carrasco - 272-4440 | J164: Lote E - Servicio de alquiler mensual de vehículo a motor - Picop con barra antivuelco y ganchos | K164: 1 | L164: Each | M164: 996.3 | O164: 996.3 | P164: 2015-11-25 | Q164: 2015-12-25
A165: 2015-11-25T10:04:43 | B165: 754558 | C165: 344417 | D165: SIMITI VALDEZ, EMILY BEATRIZ | E165: 2015-11-25T13:23:08 | F165: 29716 | G165: AV.OPEM-E | H165: 1 | I165: Veh 8843 - Jeremías Palomeque - 276-1849 | J165: Lote E - Servicio de alquiler semanal de vehículo a motor - Picop con barra antivuelco y ganchos | K165: 1 | L165: Each | M165: 221.4 | O165: 221.4 | P165: 2015-11-23 | Q165: 2015-11-30
A166: 2015-11-26T07:37:31 | B166: 754629 | C166: 344484 | D166: SIMITI VALDEZ, EMILY BEATRIZ | E166: 2015-11-26T08:39:21 | F166: 29716 | G166: AV.OPEM-E | H166: 1 | I166: Veh 8101 - Jeremías Palomeque - 276-1849 | J166: Lote E - Servicio de alquiler semanal de vehículo a motor - Picop con barra antivuelco y ganchos | K166: 2 | L166: Each | M166: 442.8 | O166: 442.8 | P166: 2015-11-25 | Q166: 2015-12-09
A167: 2015-11-26T14:12:14 | B167: 755009 | C167: 344550 | D167: DYKGRAAFF ACOSTA, EMMA LEONI | E167: 2015-11-30T09:48:40 | F167: 29716 | G167: AV.OP | H167: 3 | I167: Asignación Espeical del VPE de OP - Giselle Quiróz -272-4583 | J167: Lote A - Servicio de alquiler diario de vehículo a motor - modelo sedán | K167: 3 | L167: Each | M167: 68.7 | O167: 68.7 | P167: 30 nov, 2 dic, 4 dic 2015
A168: 2015-11-26T15:32:51 | B168: 754881 | C168: 344565 | D168: GONZALEZ ATENCIO, LETICIA PORTOLATINA | E168: 2015-11-30T09:48:31 | F168: 29716 | G168: AV.OPPV | H168: 1 | I168: Veh 8212 - Pedro Chen - 276-1054 | J168: Lote D - Servicio de alquiler semanal de vehículo a motor - Picop | K168: 2 | L168: Each | M168: 442.8 | O168: 442.8 | P168: 2015-11-26 | Q168: 2015-12-10
A169: 2015-11-26T15:43:57 | B169: 754888 | C169: 344567 | D169: GONZALEZ ATENCIO, LETICIA PORTOLATINA | E169: 2015-11-30T09:48:21 | F169: 29716 | G169: AV.OPPV | H169: 1 | I169: Veh 9398 - Pedro Chen - 276-1054 | J169: Lote D - Servicio de alquiler semanal de vehículo a motor - Picop | K169: 2 | L169: Each | M169: 442.8 | O169: 442.8 | P169: 2015-11-29 | Q169: 2015-12-13
A170: 2015-11-30T08:52:41 | B170: 754909 | C170: 344601 | D170: GONZALEZ ATENCIO, LETICIA PORTOLATINA | E170: 2015-11-30T09:48:10 | F170: 29716 | G170: AV.OPPV | H170: 1 | I170: Veh 9395 - Pedro Chen - 276-1054 | J170: Lote D - Servicio de alquiler semanal de vehículo a motor - Picop | K170: 1 | L170: Each | M170: 221.4 | O170: 221.4 | P170: 2015-11-26 | Q170: 2015-12-03
A171: 2015-11-30T09:04:51 | B171: 754897 | C171: 344604 | D171: GONZALEZ ATENCIO, LETICIA PORTOLATINA | E171: 2015-11-30T09:48:01 | F171: 29716 | G171: AV.OPPV | H171: 1 | I171: Veh 9393 - Pedro Chen - 276-1054 | J171: Lote D - Servicio de alquiler semanal de vehículo a motor - Picop | K171: 2 | L171: Each | M171: 442.8 | O171: 442.8 | P171: 2015-11-28 | Q171: 2015-12-12
A172: 2015-11-30T09:14:25 | B172: 754900 | C172: 344606 | D172: GONZALEZ ATENCIO, LETICIA PORTOLATINA | E172: 2015-11-30T09:47:50 | F172: 29716 | G172: AV.OPPV | H172: 1 | I172: Veh 9402 - Pedro Chen - 276-1054 | J172: Lote D - Servicio de alquiler semanal de vehículo a motor - Picop | K172: 1 | L172: Each | M172: 221.4 | O172: 221.4 | P172: 2015-11-29 | Q172: 2015-12-06
A173: 2015-11-30T09:39:48 | B173: 755059 | C173: 344615 | D173: UNG HO, ISABEL TELMA | E173: 2015-11-30T15:52:38 | F173: 29716 | G173: AV.TIOD | H173: 1 | I173: Veh 8392 - Luis Velásquez - 276-4135 | J173: Lote D - - Servicios de alquiler mensual de vehículo a motor - Picop | K173: 1 | L173: Each | M173: 996.3 | O173: 996.3 | P173: 2015-12-01 | Q173: 2015-12-31
A174: 2015-11-30T10:50:41 | B174: 753389 | C174: 344637 | D174: PIMENTEL ARAUZ, MARIA ISABEL | E174: 2015-12-01T10:59:15 | F174: 29716 | G174: AV.CORA | H174: 2 | I174: Proyecto de Cora - Conserv y Recuper de areas del Canal - Tomás Fernandez - 272-7393/7398 | J174: Lote D - Servicio de alquiler trimestral de vehículo a motor - Picop | K174: 1 | L174: Mo | M174: 2839.44 | O174: 2839.44 | P174: 2015-12-02 | Q174: 2016-03-01
A175: 2015-12-01T08:57:17 | B175: 755296 | C175: 344725 | D175: GONZALEZ QUINTANA, STEPHANIE MICHEL | E175: 2015-12-01T11:00:32 | F175: 29716 | G175: AV.RHS-ENL | H175: 3 | I175: Viaje a Monte Esperanza y Gatún de RHS-ENL - Belkis Botello - 272-8560 | J175: Lote B - Servicio de alquiler diario de vehículo a motor - camioneta 4 x 4 | K175: 1 | L175: Each | M175: 49.9 | O175: 49.9 | P175: 2015-12-03 | Q175: 2015-12-03
A176: 2015-12-01T09:36:51 | B176: 755211 | C176: 344739 | D176: GONZALEZ ATENCIO, LETICIA PORTOLATINA | E176: 2015-12-01T11:00:59 | F176: 29716 | G176: AV.OPPV | H176: 3 | I176: Cubrir areas de Ampliación del Canal en Gatún - Pedro Chen - 276-1054 | J176: Lote D - Servicio de alquiler semanal de vehículo a motor - Picop | K176: 4 | L176: Each | M176: 885.6 | O176: 885.6 | P176: 2015-11-27 | Q176: 2015-12-25
A177: 2015-12-01T09:46:32 | B177: 755445 | C177: 344743 | D177: RUIZ ALMANZA, FRANKLIN ANTONIO | E177: 2015-12-01T11:01:04 | F177: 29716 | G177: AV.RHSI | H177: 3 | I177: Viaje Oficiial al Area del Lago Alhajuela - Gabriela Amarís de Garcia - 272-8550/59 | J177: Lote B - Servicio de alquiler diario de vehículo a motor - camioneta 4 x 4 | K177: 1 | L177: Each | M177: 49.9 | O177: 49.9 | P177: 2015-12-04 | Q177: 2015-12-04
A178: 2015-12-01T10:33:45 | B178: 755657 | C178: 344758 | D178: GONZALEZ ATENCIO, LETICIA PORTOLATINA | E178: 2015-12-01T12:30:31 | F178: 29716 | G178: AV.OPPV | H178: 1 | I178: Veh 9401 - Pedro Chen - 276-1054 | J178: Lote D - Servicio de alquiler semanal de vehículo a motor - Picop | K178: 4 | L178: Each | M178: 885.6 | O178: 885.6 | P178: 2015-11-28 | Q178: 2015-12-26
A179: 2015-12-01T11:26:24 | B179: 755233 | C179: 344766 | D179: GONZALEZ ATENCIO, LETICIA PORTOLATINA | E179: 2015-12-01T14:29:15 | F179: 29716 | G179: AV.OPPV | H179: 3 | I179: Cubrir areas de Ampliación del Canal en Gatún - Pedro Chen - 276-1054 | J179: Lote D - Servicio de alquiler semanal de vehículo a motor - Picop | K179: 4 | L179: Each | M179: 885.6 | O179: 885.6 | P179: 2015-11-28 | Q179: 2015-12-26
A180: 2015-12-01T13:09:07 | B180: 755660 | C180: 344776 | D180: GONZALEZ ATENCIO, LETICIA PORTOLATINA | E180: 2015-12-01T15:18:01 | F180: 29716 | G180: AV.OPPV | H180: 1 | I180: Veh 9208 - Pedro Chen - 276-1054 | J180: Lote D - Servicio de alquiler semanal de vehículo a motor - Picop | K180: 4 | L180: Each | M180: 885.6 | O180: 885.6 | P180: 2015-11-27 | Q180: 2015-12-25
A181: 2015-12-03T07:14:52 | B181: 754647 | C181: 344919/354234 | D181: PEREZ, SOLEDAD DE | E181: 2015-12-03T14:16:31 | F181: 29716 | G181: AV.OPM | H181: 1 | I181: Veh 6665 - Rodrigo Chanis - 443-7426-6671-8856 - Calibración - Arango | J181: Lote A - Servicio de alquiler trimestral de vehículo a motor - modelo sedán | K181: 1 | L181: Mo | M181: 1762.11 | N181: 587.37 | O181: 1174.74 | P181: 2015-12-04 | Q181: 2016-03-03
A182: 2015-12-03T07:27:15 | B182: 756003 | C182: 344921 | D182: SIMITI VALDEZ, EMILY BEATRIZ | E182: 2015-12-03T14:06:03 | F182: 29716 | G182: AV.OPEM-E | H182: 1 | I182: Veh 9663 - Olga Perea - 276-2851 | J182: Lote E - Servicio de alquiler semanal de vehículo a motor - Picop con barra antivuelco y ganchos | K182: 3 | L182: Each | M182: 664.2 | O182: 664.2 | P182: 2015-12-03 | Q182: 2015-12-24
A183: 2015-12-03T07:32:47 | B183: 755909 | C183: 344925 | D183: SIMITI VALDEZ, EMILY BEATRIZ | E183: 2015-12-03T14:06:09 | F183: 29716 | G183: AV.OPEM-E | H183: 1 | I183: Veh 8843 - Jeremías Palomeque - 276-1849 | J183: Lote E - Servicio de alquiler semanal de vehículo a motor - Picop con barra antivuelco y ganchos | K183: 2 | L183: Each | M183: 442.8 | O183: 442.8 | P183: 2015-11-30 | Q183: 2015-12-14
A184: 2015-12-03T12:59:21 | B184: 751989 | C184: 344983/354246 | D184: PEREZ, SOLEDAD DE | E184: 2015-12-03T14:15:18 | F184: 29716 | G184: AV.OPM | H184: 4 | I184: ENO - Veh 9537 - Uso de Arquitectura Naval e Ing - Rodrigo Chanis - 443-7426-6671-8856 | J184: Lote A - Servicio de alquiler trimestral de vehículo a motor - modelo sedán | K184: 1 | L184: Mo | M184: 1762.11 | N184: 587.37 | O184: 1174.74 | P184: 2015-12-04 | Q184: 2016-03-03
A185: 2015-12-03T13:07:47 | B185: 755984 | C185: 344984 | D185: GONZALEZ ATENCIO, LETICIA PORTOLATINA | E185: 2015-12-03T14:06:13 | F185: 29716 | G185: AV.OPPV | H185: 1 | I185: Veh 6738 - Pedro Chen - 276-1054 | J185: Lote D - Servicio de alquiler semanal de vehículo a motor - Picop | K185: 1 | L185: Each | M185: 221.4 | O185: 221.4 | P185: 2015-12-02 | Q185: 2015-12-09
A186: 2015-12-03T15:10:41 | B186: 756223 | C186: 345021 | D186: GONZALEZ ATENCIO, LETICIA PORTOLATINA | E186: 2015-12-04T08:00:15 | F186: 29716 | G186: AV.OPPV | H186: 1 | I186: Veh 9404 - Pedro Chen - 276-1054 | J186: Lote D - Servicio de alquiler mensual de vehículo a motor - Picop | K186: 2 | L186: Each | M186: 442.8 | O186: 442.8 | P186: 2015-11-30 | Q186: 2015-12-14
A187: 2015-12-03T15:28:04 | B187: 756233 | C187: 345028 | D187: GONZALEZ ATENCIO, LETICIA PORTOLATINA | E187: 2015-12-04T08:01:04 | F187: 29716 | G187: AV.OPPV | H187: 1 | I187: Veh 8213 - Pedro Chen - 276-1054 | J187: Lote D - Servicio de alquiler mensual de vehículo a motor - Picop | K187: 2 | L187: Each | M187: 442.8 | O187: 442.8 | P187: 2015-12-03 | Q187: 2015-12-17
A188: 2015-12-04T09:14:39 | B188: 756071 | C188: 345055 | D188: HURTADO WESLEY, FLOR CELIA | E188: 2015-12-04T11:00:18 | F188: 29716 | G188: AV.EAEA-AP | H188: 1 | I188: Veh 9658 - Jessica Brathwaite - 272-4484 | J188: Lote E - Servicio de alquiler mensual de vehículo a motor - Picop con barra antivuelco y ganchos | K188: 1 | L188: Each | M188: 996.3 | O188: 996.3 | P188: 2015-11-18 | Q188: 2015-12-17
A189: 2015-12-04T14:36:03 | B189: 755809 | C189: 345156 | D189: MEANA MOUYNES, MARIA LOURDES | E189: 2015-12-07T06:54:05 | F189: 29716 | G189: AV.OPED | H189: 4 | I189: ENO - OPED CONTRATOS - Ricardo Gallardo - 276-3347 | J189: Lote A - Servicio de alquiler trimestral de vehículo a motor - modelo sedán | K189: 1 | L189: Mo | M189: 1762.11 | O189: 1762.11 | P189: 2015-12-11 | Q189: 2016-03-10
A190: 2015-12-04T14:36:03 | B190: 755809 | C190: 345156 | D190: MEANA MOUYNES, MARIA LOURDES | E190: 2015-12-07T06:54:05 | F190: 29716 | G190: AV.OPED | H190: 4 | I190: ENO - OPED CONTRATOS - Ricardo Gallardo - 276-3347 | J190: Lote A - Servicio de alquiler trimestral de vehículo a motor - modelo sedán | K190: 1 | L190: Mo | M190: 1762.11 | O190: 1762.11 | P190: 2015-12-11 | Q190: 2016-03-10
A191: 2015-12-07T09:07:38 | B191: 755141 | C191: 345196 | D191: GREEN GEORGE, MARLON DELANY | E191: 2015-12-09T07:22:49 | F191: 29716 | G191: AV.CORA | H191: 2 | I191: Proyecto de Conservación, Recuperación de Areas del Canal - Tomás Fernandez - 272-7393 | J191: Lote D - Servicio de alquiler trimestral de vehículo a motor - Picop | K191: 1 | L191: Mo | M191: 2839.44 | O191: 2839.44 | P191: 2015-12-07 | Q191: 2016-03-07
A192: 2015-12-07T12:58:24 | B192: 756518 | C192: 345221 | D192: UNG HO, ISABEL TELMA | E192: 2015-12-09T07:22:56 | F192: 29716 | G192: AV.TIOD | H192: 1 | I192: Veh 9580 - Elmer Vaca - 276-2412 | J192: Lote E - Servicio de alquiler mensual de vehículo a motor - Picop con barra antivuelco y ganchos VIGENCIA: 5 DE DICIEMBRE DEL 2015 AL 4 DE ENERO DEL 2016 Punto de Contacto: José Gonzalez, tel. 276-1549 Lugar de entrega: Edificio 711, CO | K192: 1 | L192: Each | M192: 996.3 | O192: 996.3 | P192: 2015-12-05 | Q192: 2016-01-04
A193: 2015-12-07T14:45:48 | B193: 756694 | C193: 345252 | D193: HOOKER, ANDREA IVETTE DE | E193: 2015-12-09T07:23:03 | F193: 29716 | G193: AV.OPRT | H193: 1 | I193: Veh 8808 - Jaime Gonzalez - 276-1192/1391 | J193: Lote D - Servicio de alquiler semanal de vehículo a motor - Picop | K193: 2 | L193: Each | M193: 442.8 | O193: 442.8 | P193: 2015-11-27 | Q193: 2015-12-11
A194: 2015-12-07T15:18:33 | B194: 756517 | C194: 345262 | D194: PEREA ROJAS, MONICA ISABEL | E194: 2015-12-07T15:24:14 | F194: 29716 | G194: AV.OPRD | H194: 1 | I194: Veh TIP (5) - Nodel Villarreal - 276-3350 | J194: Lote B - Servicio de alquiler semanal de vehículo a motor - camioneta 4 x 4 | K194: 5 | L194: Each | M194: 1497 | O194: 1497 | P194: 2015-12-08 | Q194: 2015-12-15
A195: 2015-12-09T14:18:24 | B195: 756190 | C195: 345349 | D195: RUIZ ORTEGA, JORGE LUIS | E195: 2015-12-09T15:19:38 | F195: 29716 | G195: AV.EAEA-AP | H195: 1 | I195: Veh 9849 - Jessica Brathwaite - 272-4484 | J195: Lote E - Servicio de alquiler mensual de vehículo a motor - Picop con barra antivuelco y ganchos | K195: 1 | L195: Each | M195: 996.3 | O195: 996.3 | P195: 2015-12-10 | Q195: 2016-01-09
A196: 2015-12-10T07:50:29 | B196: 756527 | C196: 345373 | D196: GONZALEZ ATENCIO, LETICIA PORTOLATINA | E196: 2015-12-10T10:40:34 | F196: 29716 | G196: AV.OPPV | H196: 1 | I196: Veh 9395 - Pedro Chen - 276-1054 | J196: Lote D - Servicio de alquiler mensual de vehículo a motor - Picop | K196: 2 | L196: Each | M196: 442.8 | O196: 442.8 | P196: 2015-12-03 | Q196: 2015-12-17
A197: 2015-12-10T07:54:29 | B197: 756525 | C197: 345374 | D197: GONZALEZ ATENCIO, LETICIA PORTOLATINA | F197: 29716 | G197: AV.OPPV | H197: 1 | I197: Veh 9405 - Pedro Chen - 276-1054 | J197: Lote D - Servicio de alquiler mensual de vehículo a motor - Picop | K197: 2 | L197: Each | M197: 442.8 | O197: 442.8 | P197: 2015-12-03 | Q197: 2015-12-17
A198: 2015-12-10T08:36:47 | B198: 756524 | C198: 345384 | D198: GONZALEZ ATENCIO, LETICIA PORTOLATINA | E198: 2015-12-10T10:40:48 | F198: 29716 | G198: AV.OPPV | H198: 1 | I198: Veh 8822 - Pedro Chen - 276-1054 | J198: Lote D - Servicio de alquiler mensual de vehículo a motor - Picop | K198: 1 | L198: Each | M198: 221.4 | O198: 221.4 | P198: 2015-12-04 | Q198: 2015-12-11
A199: 2015-12-10T08:55:22 | B199: 756523 | C199: 345389 | D199: GONZALEZ ATENCIO, LETICIA PORTOLATINA | E199: 2015-12-10T10:40:54 | F199: 29716 | G199: AV.OPPV | H199: 1 | I199: Veh 9402 - Pedro Chen - 276-1054 | J199: Lote D - Servicio de alquiler mensual de vehículo a motor - Picop | K199: 1 | L199: Each | M199: 221.4 | O199: 221.4 | P199: 2015-12-06 | Q199: 2015-12-13
A200: 2015-12-14T10:11:09 | B200: 757324 | C200: 345610 | D200: SIMITI VALDEZ, EMILY BEATRIZ | E200: 2015-12-14T15:04:40 | F200: 29716 | G200: AV.OPEM-E | H200: 1 | I200: Veh 8101 - Olga Perea - 276-2851 | J200: Lote E - Servicio de alquiler mensual de vehículo a motor - Picop con barra antivuelco y ganchos | K200: 1 | L200: Each | M200: 996.3 | O200: 996.3 | P200: 2015-12-09 | Q200: 2016-01-06
A201: 2015-12-15T07:59:15 | B201: 757092 | C201: 345687 | D201: GONZALEZ ATENCIO, LETICIA PORTOLATINA | E201: 2015-12-15T12:09:51 | F201: 29716 | G201: AV.OPPV | H201: 1 | I201: Veh 9398 - Pedro Chen - 276-1054 | J201: Lote D - Servicio de alquiler semanal de vehículo a motor - Picop | K201: 2 | L201: Each | M201: 442.8 | O201: 442.8 | P201: 2015-12-13 | Q201: 2015-12-27
... 579 more rows

Sheet 1 AGO ALQUILER DE VEH AF-16
A1: PRESUPUESTO APROBADO | C1: =750000+75000 -> 825000 | J1: 1. REEMPLAZO DE VEHICULO OFICIAL
A2: OBLIGACIÓN A LA FECHA | C2: =+M771 -> 952987.72 | J2: 2. PROYECTOS ESPECIALES
J3: 3. VIAJES PUNTUALES
A4: FONDOS DISPONIBLES | C4: =+C1-C2 -> -127987.72 | J4: 4. NECESIDADES OPERACIONALES ADICIONALES
A5: Fecha de | B5: PR | C5: PO | D5: BUYER | E5: Fecha de | F5: PROYECTO | G5: TAREA | H5: CLASIFICACION | I5: VEHICULO DE REMPLAZO | J5: Servicio de alquiler de vehículo para la ACP - LOTE - C (Mini Van) | K5: Cantidad | L5: UOM | M5: Cantidad | N5: Cantidad | O5: Cantidad | P5: Período | R5: Factura
A6: Creación | E6: Aprobación | H6: 1/2/3/4 | J6: SERVICIOS TURISTICOS PANAMEÑOS S A COR302681MUL | K6: Ordenada | M6: Obligada | N6: Pagada | O6: Pendiente | P6: Desde | Q6: Hasta | R6: No.
A7: 2015-10-16T13:23:25 | B7: 747068 | C7: 341949 | D7: HOOKER, ANDREA IVETTE DE | E7: 2015-10-16T17:30:16 | F7: 29716 | G7: AV.OPRT | H7: 1 | I7: Veh 6002 - Jaime Gonzalez - 276-1192 | J7: LOTE - C - Servicio de alquiler semanal de vehículo a motor - mini van | K7: 3 | L7: Each | M7: 900 | O7: =+M7-N7 -> 900 | P7: 2015-10-18 | Q7: 2015-10-25
A8: 2015-11-06T11:02:18 | B8: 749789 | C8: 343274 | D8: BARSALLO TOUREAU, KARINA MINERVA | E8: 2015-11-09T10:07:43 | F8: 29716 | G8: AV.TISI | H8: 3 | I8: Viajes a Capira, Chorrera, Madden, etc del grupo de soporte de TISI - Iris Rodriguez - 276-3843 | J8: LOTE - C - Servicio de alquiler trimestral de vehículo a motor - mini van | K8: 1 | L8: Mo | M8: 4000 | O8: 4000 | P8: 2015-10-23 | Q8: 2015-12-22
A9: 2015-11-13T09:00:51 | B9: 751902 | C9: 343556 | D9: HOOKER, ANDREA IVETTE DE | E9: 2015-11-13T14:36:31 | F9: 29716 | G9: AV.OPRT | H9: CANCELADO - CA NCELADO | I9: CANCELADO - CA NCELADO | J9: LOTE - C - Servicio de alquiler diario de vehículo a motor - mini van | K9: 1 | L9: Each | M9: 50 | O9: 50 | P9: CANCELADO - CA NCELADO | Q9: CANCELADO - CA NCELADO
A10: 2015-11-13T09:00:51 | B10: 751902 | C10: 343556 | D10: HOOKER, ANDREA IVETTE DE | E10: 2015-11-13T14:36:31 | F10: 29716 | G10: AV.OPRT | H10: CANCELADO - CA NCELADO | I10: CANCELADO - CA NCELADO | J10: LOTE - C - Servicio de alquiler semanal de vehículo a motor - mini van | K10: 1 | L10: Each | M10: 300 | O10: 300 | P10: CANCELADO - CA NCELADO | Q10: CANCELADO - CA NCELADO
A11: 2015-12-09T16:03:09 | B11: 757120 | C11: 345362 | D11: PIMENTEL ARAUZ, MARIA ISABEL | E11: 2015-12-11T06:20:57 | F11: 29716 | G11: AV.FAP | H11: 3 | I11: Programa de Embajadores de Ilusión - Marlane de Chavez - 272-4507 | J11: LOTE - C - Servicio de alquiler diario de vehículo a motor - mini van | K11: 3 | L11: Each | M11: 150 | O11: 150 | P11: 2015-12-09 | Q11: 2015-12-11
A12: 2015-12-09T16:03:09 | B12: 757120 | C12: 345362 | D12: PIMENTEL ARAUZ, MARIA ISABEL | E12: 2015-12-11T06:20:57 | F12: 29716 | G12: AV.FAP | H12: 3 | I12: Programa de Embajadores de Ilusión - Marlane de Chavez - 272-4507 | J12: LOTE - C - Servicio de alquiler diario de vehículo a motor - mini van | K12: 1 | L12: Each | M12: 50 | O12: 50 | P12: 2015-12-10 | Q12: 2015-12-11
A13: 2015-12-09T16:03:09 | B13: 757325 | C13: 345362 | D13: PIMENTEL ARAUZ, MARIA ISABEL | E13: 2015-12-11T06:20:57 | F13: 29716 | G13: AV.FAP | H13: 3 | I13: Programa de Embajadores de Ilusión - Marlane de Chavez - 272-4507 | J13: LOTE - C - Servicio de alquiler diario de vehículo a motor - mini van | K13: 1 | L13: Each | M13: 50 | O13: 50 | P13: 2015-12-10 | Q13: 2015-12-11
A14: 2015-12-18T09:39:30 | B14: 758701 | C14: 346037 | D14: PEREA ROJAS, MONICA ISABEL | E14: 2015-12-21T07:34:30 | F14: 29716 | G14: AV.OPRD | H14: 1 | I14: Veh 8858 - Veh on Garantía - José Jones - 276-3324 | J14: Cargo por entrega (a la ACP o recoger en la ACP) Del vehículo en el Sector Atlántico (cada viaje representa una unidad por auto). | K14: 1 | L14: Each | M14: 50 | O14: 50 | P14: 2015-12-22 | Q14: 2016-01-05
A15: 2015-12-18T09:39:30 | B15: 758701 | C15: 346037 | D15: PEREA ROJAS, MONICA ISABEL | E15: 2015-12-21T07:34:30 | F15: 29716 | G15: AV.OPRD | H15: 1 | I15: Veh 8858 - Veh on Garantía - José Jones - 276-3324 | J15: LOTE - C - Servicio de alquiler semanal de vehículo a motor - mini van | K15: 2 | L15: Each | M15: 600 | O15: 600 | P15: 2015-12-22 | Q15: 2016-01-05
A16: 2015-12-23T09:30:26 | B16: 758977 | C16: 346264 | D16: UNG HO, ISABEL TELMA | E16: 2015-12-29T14:35:26 | F16: 29716 | G16: AV.TIOD | H16: 1 | I16: Veh 8930 - José Médica - 276-4403 | J16: LOTE - C - Servicio de alquiler semanal de vehículo a motor - mini van VIGENCIA: 29 DE DICIEMBRE 2015 AL 9 DE ENERO DEL 2016 Punto de contacto: Jose Manuel Medica Tel. 276-4403/ 4104/4100 Edificio 712, Corozal Oeste | K16: 2 | L16: Each | M16: 600 | O16: 600 | P16: 2015-12-29 | Q16: 2016-01-12
A17: 2015-12-30T14:57:14 | B17: 760160 | C17: 346694 | D17: CEDEÑO OSPINA, MARICRUZ YARELIS | E17: 2015-12-30T15:38:57 | F17: 29716 | G17: AV.OPPV | H17: 3 | I17: Primera Reunión de EcoCanal 2016 - Marta Quarless - 276-3601 | J17: LOTE - C - Servicio de alquiler diario de vehículo a motor - mini van. Para reunión inicial ECOCANAL del 04 al 07 de enero de 2016. PR # 760160. | K17: 4 | L17: Each | M17: 200 | O17: 200 | P17: 2016-01-04 | Q17: 2016-01-07
A18: 2016-01-14T09:57:27 | B18: 761964 | C18: 347394 | D18: PEREA ROJAS, MONICA ISABEL | E18: 2016-01-14T16:42:41 | F18: 29716 | G18: AV.OPRD | H18: 1 | I18: Veh 8858 - Veh on Garantía - José Jones - 276-3324 | J18: Cargo por entrega (a la ACP o recoger en la ACP) Del vehículo en el Sector Atlántico (cada viaje representa una unidad por auto). | K18: 1 | L18: Each | M18: 50 | O18: 50 | P18: 2016-01-18 | Q18: 2016-02-18
A19: 2016-01-14T09:57:27 | B19: 761964 | C19: 347394 | D19: PEREA ROJAS, MONICA ISABEL | E19: 2016-01-14T16:42:41 | F19: 29716 | G19: AV.OPRD | H19: 1 | I19: Veh 8858 - Veh on Garantía - José Jones - 276-3324 | J19: LOTE - C - Servicio de alquiler mensual de vehículo a motor - mini van | K19: 1 | L19: Each | M19: 1380 | O19: 1380 | P19: 2016-01-18 | Q19: 2016-02-18
A20: 2016-02-11T13:59:34 | B20: 766938 | C20: 349321 | D20: BARSALLO TOUREAU, KARINA MINERVA | E20: 2016-02-24T11:29:50 | F20: 29716 | G20: AV.TIOD | H20: 1 | I20: Veh 8930 - José Médica - 276-4403 | J20: LOTE - C - Servicio de alquiler semanal de vehículo a motor - mini van | K20: 2 | L20: Each | M20: 600 | O20: 600 | P20: 2016-02-16 | Q20: 2016-03-01
A21: 2016-02-19T08:11:55 | B21: 768328 | C21: 349801 | D21: RUIZ ALMANZA, FRANKLIN ANTONIO | E21: 2016-02-22T13:53:33 | F21: 29716 | G21: AV.SACH | H21: 3 | I21: Gira del Equipo de Capacidad Hídrica SACH - Daniel Muschett - 272-2357 | J21: LOTE - C - Servicio de alquiler diario de vehículo a motor - mini van | K21: 3 | L21: Each | M21: 150 | O21: 150 | P21: 2016-02-23 | Q21: 2016-02-25
A22: 2016-02-29T13:16:03 | B22: 769081 | C22: 350390 | D22: BARSALLO TOUREAU, KARINA MINERVA | E22: 2016-03-04T14:19:55 | F22: 29716 | G22: AV.TISI | H22: 3 | I22: Viajes a Capira, Chorrera, Madden, etc del grupo de soporte de TISI - Iris Rodriguez - 276-3843 | J22: LOTE - C - Servicio de alquiler trimestral de vehículo a motor - mini van | K22: 1 | L22: Mo | M22: 4000 | O22: 4000 | P22: 2016-02-26 | Q22: 2016-05-25
A23: 2016-03-03T08:39:52 | B23: 770410 | C23: 350686 | D23: LOPEZ IGLESIAS, MARIA DE LOS ANGELES | E23: 2016-03-04T14:19:34 | F23: 29716 | G23: AV.AJ | H23: 3 | I23: Inspección Judicial de CVM - Mitzila Moreno - 272-7511 | J23: LOTE - C - Servicio de alquiler diario de vehículo a motor - mini van | K23: 1 | L23: Each | M23: 50 | O23: 50 | P23: 2016-03-03 | Q23: 2016-03-03
A24: 2016-03-03T08:39:52 | B24: 770410 | C24: 350686 | D24: LOPEZ IGLESIAS, MARIA DE LOS ANGELES | E24: 2016-03-04T14:19:34 | F24: 29716 | G24: AV.AJ | H24: 3 | I24: Inspección Judicial de CVM - Mitzila Moreno - 272-7511 | J24: LOTE - C - Servicio de alquiler diario de vehículo a motor - mini van | K24: 1 | L24: Each | M24: 50 | O24: 50 | P24: 2016-03-14 | Q24: 2016-03-14
A25: 2016-03-15T07:34:59 | B25: 772506 | C25: 351403 | D25: DUARTE PONCE, MANUEL ALEXANDER | E25: 2016-03-15T09:07:32 | F25: 29716 | G25: AV.SACH | H25: 3 | I25: Viajes para Sesiones del Plan Nacional de Seguridad Hídrica - Daniel Muschett - 272-2357 | J25: LOTE - C - Servicio de alquiler diario de vehículo a motor - mini van | K25: 3 | L25: Each | M25: 150 | O25: 150 | P25: 2016-03-15 | Q25: 2016-03-18
A26: 2016-03-15T07:34:59 | B26: 772506 | C26: 351403 | D26: DUARTE PONCE, MANUEL ALEXANDER | E26: 2016-03-15T09:07:32 | F26: 29716 | G26: AV.SACH | H26: 3 | I26: Viajes para Sesiones del Plan Nacional de Seguridad Hídrica - Daniel Muschett - 272-2357 | J26: LOTE - C - Servicio de alquiler diario de vehículo a motor - mini van | K26: 2 | L26: Each | M26: 100 | O26: 100 | P26: 2016-03-21 | Q26: 2016-03-23
I27: COR 302681MUL 21 MAR 15 - 20 MAR 16 | K27: =SUM(K7:K26) -> 35 | M27: =SUM(M7:M26) -> 13480 | N27: =SUM(N7:N26) -> 0 | O27: =SUM(O7:O26) -> 13480
A29: Fecha de | B29: PR | C29: PO | D29: BUYER | E29: Fecha de | F29: PROYECTO | G29: TAREA | H29: CLASIFICACION | I29: VEHICULO DE REMPLAZO | J29: Servicio de alquiler de vehículo para la ACP - LOTE - C (Mini Van) | K29: Cantidad | L29: UOM | M29: Cantidad | N29: Cantidad | O29: Cantidad | P29: Período | R29: Factura
A30: Creación | E30: Aprobación | H30: 1/2/3/4 | J30: INTER MARKTING INC - THRIFTY CAR RENTAL | K30: Ordenada | M30: Obligada | N30: Pagada | O30: Pendiente | P30: Desde | Q30: Hasta | R30: No.
A31: 2015-10-01T11:40:02 | B31: 743854 | C31: 340916 | D31: GONZALEZ ATENCIO, LETICIA PORTOLATINA | E31: 2015-10-02T08:16:57 | F31: 29716 | G31: AV.OPPV | H31: 1 | I31: Veh 8212 - Pedro Chen - 276-1054 | J31: Lote D - Servicio de alquiler semanal de vehículo a motor - Picop | K31: 3 | L31: Each | M31: 664.2 | O31: =+M31-N31 -> 664.2 | P31: 2015-10-01 | Q31: 2015-10-22
A32: 2015-10-01T11:45:27 | B32: 743856 | C32: 340917 | D32: GONZALEZ ATENCIO, LETICIA PORTOLATINA | E32: 2015-10-02T08:17:33 | F32: 29716 | G32: AV.OPPV | H32: 1 | I32: Veh 9405 - Pedro Chen - 276-1054 | J32: Lote D - Servicio de alquiler semanal de vehículo a motor - Picop | K32: 1 | L32: Each | M32: 221.4 | O32: 221.4 | P32: 2015-10-01 | Q32: 2015-10-08
A33: 2015-10-01T11:49:36 | B33: 743857 | C33: 340918 | D33: GONZALEZ ATENCIO, LETICIA PORTOLATINA | E33: 2015-10-02T08:17:49 | F33: 29716 | G33: AV.OPPV | H33: 1 | I33: Veh 8213 - Pedro Chen - 276-1054 | J33: Lote D - Servicio de alquiler semanal de vehículo a motor - Picop | K33: 2 | L33: Each | M33: 442.8 | O33: 442.8 | P33: 2015-10-01 | Q33: 2015-10-15
A34: 2015-10-02T09:57:27 | B34: 744072 | C34: 340938 | D34: DELGADO GONZALEZ, FRANCISCO JR | E34: 2015-10-07T10:39:00 | F34: 29716 | G34: AV.IAIM | H34: 4 | I34: ENO - Veh No- 2 - Proyectos Asignados a IAIM, Agua, Dragado, Ampliación Vertederos, etc - Marcos Moltó - 276-1405 | J34: Lote B - Servicio de alquiler trimestral de vehículo a motor - camioneta 4 x 4 | K34: 1 | L34: Mo | M34: 3705 | O34: 3705 | P34: 2015-10-01 | Q34: 2015-12-30
A35: 2015-10-02T10:02:09 | B35: 744076 | C35: 340940 | D35: DELGADO GONZALEZ, FRANCISCO JR | E35: 2015-10-05T15:29:25 | F35: 29716 | G35: AV.IAIC | H35: 4 | I35: ENO - Veh No.1 - Sección de IAIC-HID, Ambiente, Estructural -Maximo Molina-276-1621/Daniel Moreno 276-1529 | J35: Lote B - Servicio de alquiler trimestral de vehículo a motor - camioneta 4 x 4 | K35: 1 | L35: Mo | M35: 3705 | O35: 3705 | P35: 2015-10-01 | Q35: 2015-12-30
A36: 2015-10-02T10:05:31 | B36: 744078 | C36: 340941 | D36: DELGADO GONZALEZ, FRANCISCO JR | E36: 2015-10-05T15:29:40 | F36: 29716 | G36: AV.IAIC | H36: 4 | I36: ENO - Veh No.2 - Sección de IAIC-HID, Ambiente, Estructural -Maximo Molina-276-1621/Daniel Moreno 276-1529 | J36: Lote B - Servicio de alquiler trimestral de vehículo a motor - camioneta 4 x 4 | K36: 1 | L36: Mo | M36: 3705 | O36: 3705 | P36: 2015-10-01 | Q36: 2015-12-30
A37: 2015-10-02T10:08:12 | B37: 744079 | C37: 340942 | D37: DELGADO GONZALEZ, FRANCISCO JR | E37: 2015-10-05T15:28:29 | F37: 29716 | G37: AV.IAIM | H37: 4 | I37: ENO - Veh No- 1 - Proyectos Asignados a IAIM, Agua, Dragado, Ampliación Vertederos, etc - Marcos Moltó - 276-1405 | J37: Lote B - Servicio de alquiler trimestral de vehículo a motor - camioneta 4 x 4 | K37: 1 | L37: Mo | M37: 3705 | O37: 3705 | P37: 2015-10-01 | Q37: 2015-12-30
A38: 2015-10-02T13:01:43 | B38: 744146 | C38: 340946 | D38: ZHANG WU, EUGENIO | E38: 2015-10-05T10:56:06 | F38: 29716 | G38: AV.IAIG | H38: 4 | I38: ENO - Veh No.1 - Proyecto de Control y Derrumbe y de Erosión - Max de Puy 276-1737 Carlos Fong 276-1738 | J38: Lote B - Servicio de alquiler trimestral de vehículo a motor - camioneta 4 x 4 | K38: 1 | L38: Mo | M38: 3705 | O38: 3705 | P38: 2015-10-01 | Q38: 2015-12-30
A39: 2015-10-02T13:13:37 | B39: 744157 | C39: 340947 | D39: ZHANG WU, EUGENIO | E39: 2015-10-05T10:56:28 | F39: 29716 | G39: AV.IAIG | H39: 4 | I39: ENO - Veh No.2 - Proyecto de Control y Derrumbe y de Erosión - Max de Puy 276-1737 Carlos Fong 276-1738 | J39: Lote B - Servicio de alquiler trimestral de vehículo a motor - camioneta 4 x 4 | K39: 1 | L39: Mo | M39: 3705 | O39: 3705 | P39: 2015-10-01 | Q39: 2015-12-30
A40: 2015-10-02T13:19:31 | B40: 744163 | C40: 340948 | D40: ZHANG WU, EUGENIO | E40: 2015-10-05T10:56:15 | F40: 29716 | G40: AV.IAIG | H40: 4 | I40: ENO - Veh No.3 - Proyecto de Control y Derrumbe y de Erosión - Max de Puy 276-1737 Carlos Fong 276-1738 | J40: Lote B - Servicio de alquiler trimestral de vehículo a motor - camioneta 4 x 4 | K40: 1 | L40: Mo | M40: 3705 | O40: 3705 | P40: 2015-10-01 | Q40: 2015-12-30
A41: 2015-10-05T11:50:28 | B41: 744246 | C41: 340980 | D41: HOOKER, ANDREA IVETTE DE | E41: 2015-10-05T15:29:58 | F41: 29716 | G41: AV.OPRT | H41: 1 | I41: Veh 9104 - Jaime José Gonzalez - 276-1192 | J41: Lote D - Servicio de alquiler diario de vehículo a motor - Picop | K41: 4 | L41: Each | M41: 147.6 | O41: 147.6 | P41: 2015-10-01 | Q41: 2015-10-05
A42: 2015-10-05T11:50:28 | B42: 744002 | C42: 340980 | D42: HOOKER, ANDREA IVETTE DE | E42: 2015-10-05T15:29:58 | F42: 29716 | G42: AV.OPRT | H42: 1 | I42: Veh 6002 - Jaime José Gonzalez - 276-1192 | J42: Lote D - Servicio de alquiler diario de vehículo a motor - Picop | K42: 2 | L42: Each | M42: 73.8 | O42: 73.8 | P42: 2015-10-01 | Q42: 2015-10-02
A43: 2015-10-05T11:50:28 | B43: 744002 | C43: 340980 | D43: HOOKER, ANDREA IVETTE DE | E43: 2015-10-05T15:29:58 | F43: 29716 | G43: AV.OPRT | H43: 1 | I43: Veh 6002 - Jaime José Gonzalez - 276-1192 | J43: Lote D - Servicio de alquiler semanal de vehículo a motor - Picop | K43: 1 | L43: Each | M43: 221.4 | O43: 221.4 | P43: 2015-10-03 | Q43: 2015-10-09
A44: 2015-10-05T12:00:54 | B44: 744412 | C44: 340981 | D44: GONZALEZ ATENCIO, LETICIA PORTOLATINA | E44: 2015-10-05T15:30:08 | F44: 29716 | G44: AV.OPPV | H44: 1 | I44: Veh 8214 - Pedro Chen - 276-1054 | J44: Lote D - Servicio de alquiler semanal de vehículo a motor - Picop | K44: 2 | L44: Each | M44: 442.8 | O44: 442.8 | P44: 2015-10-01 | Q44: 2015-10-15
A45: 2015-10-05T12:10:46 | B45: 744103 | C45: 340983 | D45: GONZALEZ ATENCIO, LETICIA PORTOLATINA | E45: 2015-10-05T15:30:15 | F45: 29716 | G45: AV.OPPV | H45: 1 | I45: Veh 9401 - Pedro Chen - 276-1054 | J45: Lote D - Servicio de alquiler mensual de vehículo a motor - Picop | K45: 1 | L45: Each | M45: 996.3 | O45: 996.3 | P45: 2015-10-01 | Q45: 2015-10-30
A46: 2015-10-05T12:18:20 | B46: 744106 | C46: 340984 | D46: GONZALEZ ATENCIO, LETICIA PORTOLATINA | E46: 2015-10-05T15:30:24 | F46: 29716 | G46: AV.OPPV | H46: 1 | I46: Veh 9397 - Pedro Chen - 276-1054 | J46: Lote D - Servicio de alquiler mensual de vehículo a motor - Picop | K46: 1 | L46: Each | M46: 996.3 | O46: 996.3 | P46: 2015-10-01 | Q46: 2015-10-30
A47: 2015-10-05T13:58:41 | B47: 744221 | C47: 341004 | D47: DELGADO GONZALEZ, FRANCISCO JR | E47: 2015-10-07T09:23:17 | F47: 29716 | G47: AV.IAIC | H47: 4 | I47: ENO - Veh No.3 - Sección de IAIC-HID, Ambiente, Estructural -Maximo Molina-276-1621/Daniel Moreno 276-1529 | J47: Lote B - Servicio de alquiler trimestral de vehículo a motor - camioneta 4 x 4 | K47: 1 | L47: Mo | M47: 3705 | O47: 3705 | P47: 2015-10-01 | Q47: 2015-10-30
A48: 2015-10-06T08:22:58 | B48: 743949 | C48: 341031 | D48: KHAN SANDIFORD, SHARON VONETTA | E48: 2015-10-06T13:41:22 | F48: 29716 | G48: AV.EAA-CA | H48: 4 | I48: ENO - Planta Potabilizadora de Colón - AA2611 - Yamileth Arauz - 276-3534 | J48: Lote D - Servicio de alquiler trimestral de vehículo a motor - Picop | K48: 1 | L48: Mo | M48: 2839.44 | O48: 2839.44 | P48: 2015-10-01 | Q48: 2015-12-30
A49: 2015-10-06T08:34:37 | B49: 744711 | C49: 341033 | D49: KHAN SANDIFORD, SHARON VONETTA | E49: 2015-10-06T13:42:26 | F49: 29716 | G49: AV.EAA-CA | H49: 4 | I49: ENO - Laboratorio de Corozal Oeste-UCA CZL - Yamileth Arauz - 276-3534 | J49: Lote D - Servicio de alquiler trimestral de vehículo a motor - Picop | K49: 1 | L49: Mo | M49: 2839.44 | O49: 2839.44 | P49: 2015-10-05 | Q49: 2016-01-03
A50: 2015-10-06T08:35:45 | B50: 744600 | C50: 341034 | D50: ZHANG WU, EUGENIO | E50: 2015-10-06T14:11:06 | F50: 29716 | G50: AV.IAIT | H50: 4 | I50: ENO - Veh No.1 - Transp personal de Topografía en Pedro Miguel - Jorge Fanovich - 443-5508/276-7151 | J50: Lote B - Servicio de alquiler trimestral de vehículo a motor - camioneta 4 x 4 | K50: 1 | L50: Mo | M50: 3705 | O50: 3705 | P50: 2015-10-01 | Q50: 2015-12-30
A51: 2015-10-06T08:39:09 | B51: 743988 | C51: 341036 | D51: MEANA MOUYNES, MARIA LOURDES | E51: 2015-10-06T14:13:09 | F51: 29716 | G51: AV.OPEM-A | H51: 4 | I51: ENO - Mant de A/A en Locomotoras, Remolcadores, Lancha, etc. de Edificios en el Sector Atlántico - Alvaro Arcia - 443-4551 | J51: Lote E - Servicio de alquiler trimestral de vehículo a motor - Picop con barra antivuelco y ganchos | K51: 1 | L51: Mo | M51: 2839.44 | O51: 2839.44 | P51: 2015-11-06 | Q51: 2016-01-05
A52: 2015-10-06T08:45:22 | B52: 744344 | C52: 341038 | D52: ZHANG WU, EUGENIO | E52: 2015-10-06T13:43:11 | F52: 29716 | G52: AV.IAIT | H52: 4 | I52: ENO - Veh No.2 - Transp personal de Topografía en Colón - Jorge Fanovich - 443-5508/276-7151 | J52: Cargo por entrega (a la ACP o recoger en la ACP) Del vehículo en el Sector Atlántico (cada viaje representa una unidad por auto). | K52: 1 | L52: Each | M52: 20 | O52: 20 | P52: 2015-10-01 | Q52: 2015-12-30
A53: 2015-10-06T08:45:22 | B53: 744344 | C53: 341038 | D53: ZHANG WU, EUGENIO | E53: 2015-10-06T13:43:11 | F53: 29716 | G53: AV.IAIT | H53: 4 | I53: ENO - Veh No.2 - Transp personal de Topografía en Colón - Jorge Fanovich - 443-5508/276-7151 | J53: Lote B - Servicio de alquiler trimestral de vehículo a motor - camioneta 4 x 4 | K53: 1 | L53: Mo | M53: 3705 | O53: 3705 | P53: 2015-10-01 | Q53: 2015-12-30
A54: 2015-10-06T09:16:27 | B54: 743968 | C54: 341041 | D54: GONZALEZ QUIROS, AIDEE DEL CARMEN | E54: 2015-10-09T14:57:03 | F54: 29716 | G54: AV.OPEM-A | H54: 4 | I54: ENO - Mant de A/A en Locomotoras, Remolcadores, Lancha, etc. de Edificios en el Sector Atlántico - Alvaro Arcia - 443-4551 | J54: Lote E - Servicio de alquiler trimestral de vehículo a motor - Picop con barra antivuelco y ganchos | K54: 1 | L54: Mo | M54: 2839.44 | O54: 2839.44 | P54: 2015-10-06 | Q54: 2016-01-11
A55: 2015-10-06T12:46:07 | B55: 744321 | C55: 341056 | D55: RODRIGUEZ HERRERA, HELIO JAVIER | E55: 2015-10-07T12:37:16 | F55: 29716 | G55: AV.OPEM-P | H55: 1 | I55: Veh 8772 - AA-9239 - Gabriel Vasquez - 276-8226/2488 | J55: Lote E - Servicio de alquiler semanal de vehículo a motor - Picop con barra antivuelco y ganchos | K55: 3 | L55: Each | M55: 664.2 | O55: 664.2 | P55: 2015-10-05 | Q55: 2015-10-26
A56: 2015-10-06T13:56:14 | B56: 744316 | C56: 341070 | D56: RUIZ ORTEGA, JORGE LUIS | E56: 2015-10-07T12:40:17 | F56: 29716 | G56: AV.EAEB-MA | H56: 4 | I56: ENO - 12 VEH 6 DE EAEA-AP - 6 DE EAEB-MA DE 2 A 3 DIA CADA UNO TOTAL 27 DIAS -JORGE RUIZ - 272-4415 | J56: Lote E - Servicio de alquiler diario de vehículo a motor - Picop con barra antivuelco y ganchos | K56: 18.5 | L56: Each | M56: 682.65 | O56: 682.65 | P56: HASTA EL 30 DE SEPT 2015
A57: 2015-10-06T13:56:14 | B57: 744316 | C57: 341070 | D57: RUIZ ORTEGA, JORGE LUIS | E57: 2015-10-07T12:40:17 | F57: 29716 | G57: AV.EAEA-AP | H57: 4 | I57: ENO - 12 VEH 6 DE EAEA-AP - 6 DE EAEB-MA DE 2 A 3 DIA CADA UNO TOTAL 27 DIAS -JORGE RUIZ - 272-4415 | J57: Lote E - Servicio de alquiler diario de vehículo a motor - Picop con barra antivuelco y ganchos | K57: 18.5 | L57: Each | M57: 682.65 | O57: 682.65 | P57: HASTA EL 30 DE SEPT 2015
A58: 2015-10-06T13:59:22 | B58: 744818 | C58: 341072 | D58: GONZALEZ ATENCIO, LETICIA PORTOLATINA | E58: 2015-10-07T13:13:24 | F58: 29716 | G58: AV.OPPV | H58: 1 | I58: Veh 8822 - AT8861 - Franklin Justiniani - 276-1541 | J58: Lote D - Servicio de alquiler semanal de vehículo a motor - Picop | K58: 2 | L58: Each | M58: 442.8 | O58: 442.8 | P58: 2015-10-05 | Q58: 2015-10-19
A59: 2015-10-07T08:45:50 | B59: 744700 | C59: 341104 | D59: RUIZ ORTEGA, JORGE LUIS | E59: 2015-10-07T13:13:00 | F59: 29716 | G59: AV.EAEA-AP | H59: 1 | I59: Veh 8412 - Ruben Rose - Jessica Brathwaite - 272-4453 | J59: Lote E - Servicio de alquiler semanal de vehículo a motor - Picop con barra antivuelco y ganchos | K59: 2 | L59: Each | M59: 442.8 | O59: 442.8 | P59: 2015-10-07 | Q59: 2015-10-21
A60: 2015-10-07T09:23:07 | B60: 744690 | C60: 341112 | D60: RUIZ ORTEGA, JORGE LUIS | E60: 2015-10-07T12:36:19 | F60: 29716 | G60: AV.EAEA-AP | H60: 4 | I60: ENO - Veh No. 1 - Proyecto al Contrato de Remplazo de las Torres de Transmisión Líneas 413-414 - Cuadrilla Roman Arosemena - 272*4453 | J60: Lote E - Servicio de alquiler trimestral de vehículo a motor - Picop con barra antivuelco y ganchos | K60: 1 | L60: Mo | M60: 2839.44 | O60: 2839.44 | P60: 2015-10-01 | Q60: 2015-12-30
A61: 2015-10-07T09:23:07 | B61: 744690 | C61: 341112 | D61: RUIZ ORTEGA, JORGE LUIS | E61: 2015-10-07T12:36:19 | F61: 29716 | G61: AV.EAEA-AP | H61: 4 | I61: ENO - Veh No. 2 - Proyecto al Contrato de Remplazo de las Torres de Transmisión Líneas 413-414 - Cuadrilla Roman Arosemena - 272*4453 | J61: Lote E - Servicio de alquiler trimestral de vehículo a motor - Picop con barra antivuelco y ganchos | K61: 1 | L61: Mo | M61: 2839.44 | O61: 2839.44 | P61: 2015-10-01 | Q61: 2015-12-30
A62: 2015-10-07T10:43:20 | B62: 744875 | C62: 341131 | D62: MEANA MOUYNES, MARIA LOURDES | E62: 2015-10-08T10:18:54 | F62: 29716 | G62: AV.OPEM-P | H62: 4 | I62: ENO - 5 VEH - 2 TALLER DE SOLDADURA-2 CUADRILLA DE EQUIP PESADO OPEM-1 PERSONAL TECNICO DE OPEM - ROLANDO CONCEPCION -276-4815 | J62: Lote E - Servicio de alquiler trimestral de vehículo a motor - Picop con barra antivuelco y ganchos | K62: 5 | L62: Mo | M62: 14197.2 | O62: 14197.2 | P62: 2015-10-26 | Q62: 2016-01-24
A63: 2015-10-07T12:38:43 | B63: 744684 | C63: 341145 | D63: RUIZ ORTEGA, JORGE LUIS | E63: 2015-10-07T15:32:55 | F63: 29716 | G63: AV.EAEA-AP | H63: 4 | I63: ENO - Apoyo a trabajo de inspección y supv del Capataz General Randolph Bryant - Jessica Brathwaite 272-4453 | J63: Lote E - Servicio de alquiler trimestral de vehículo a motor - Picop con barra antivuelco y ganchos | K63: 1 | L63: Mo | M63: 2839.44 | O63: 2839.44 | P63: 2015-10-01 | Q63: 2015-12-30
A64: 2015-10-07T13:00:50 | B64: 744667 | C64: 341148 | D64: RUIZ ORTEGA, JORGE LUIS | E64: 2015-10-07T15:33:07 | F64: 29716 | G64: AV.EAEA-AP | H64: 4 | I64: ENO - Apoyo a Mant General de Estructuras de Monte Esperanza - Cuadrilla Arcadio Avila - 272-4453 | J64: Lote E - Servicio de alquiler trimestral de vehículo a motor - Picop con barra antivuelco y ganchos | K64: 1 | L64: Mo | M64: 2839.44 | O64: 2839.44 | P64: 2015-10-01 | Q64: 2015-12-30
A65: 2015-10-07T13:22:13 | B65: 744718 | C65: 341156 | D65: SANCHEZ UREÑA, LIZDEYKA MELISSA | E65: 2015-10-07T15:33:17 | F65: 29716 | G65: AV.OPEM-P | H65: 4 | I65: ENO - Necesidades operativas de OPEM-PCM - Gerardo Rios - 276-2006 | J65: Lote D - Servicio de alquiler trimestral de vehículo a motor - Picop | K65: 1 | L65: Mo | M65: 2839.44 | O65: 2839.44 | P65: 2015-10-08 | Q65: 2016-01-07
A66: 2015-10-07T13:24:05 | B66: 744916 | C66: 341157 | D66: RODRIGUEZ HOLDER, RICARDO AURELIO | E66: 2015-10-07T15:33:33 | F66: 29716 | G66: AV.OPED | H66: 4 | I66: ENO - Veh No. 2 - Insp & Rep de Equipo de A/A - Atl/Pac - Edwin Navarro - 276-2376 | J66: Lote A - Servicio de alquiler trimestral de vehículo a motor - modelo sedán | K66: 1 | L66: Mo | M66: 1762.11 | O66: 1762.11 | P66: 2015-10-09 | Q66: 2016-01-08
A67: 2015-10-07T13:57:03 | B67: 744913 | C67: 341163 | D67: RODRIGUEZ HOLDER, RICARDO AURELIO | E67: 2015-10-07T16:00:07 | F67: 29716 | G67: AV.OPED | H67: 4 | I67: ENO - Veh No. 1 - Insp de Campo por Area- Atl/Pac - Edwin Navarro - 276-2376 | J67: Lote A - Servicio de alquiler trimestral de vehículo a motor - modelo sedán | K67: 1 | L67: Mo | M67: 1762.11 | O67: 1762.11 | P67: 2015-10-09 | Q67: 2016-01-08
A68: 2015-10-07T14:30:27 | B68: 744921 | C68: 341173 | D68: RODRIGUEZ HOLDER, RICARDO AURELIO | E68: 2015-10-07T16:00:59 | F68: 29716 | G68: AV.OPED | H68: 4 | I68: ENO - Veh No. 3 - Insp de Campo Operaciones- Atl/Pac - Edwin Navarro - 276-2376 | J68: Lote A - Servicio de alquiler trimestral de vehículo a motor - modelo sedán | K68: 1 | L68: Mo | M68: 1762.11 | O68: 1762.11 | P68: 2015-10-08 | Q68: 2016-01-08
A69: 2015-10-07T14:43:19 | B69: 744622 | C69: 341181 | D69: RUIZ ORTEGA, JORGE LUIS | E69: 2015-10-07T16:01:07 | F69: 29716 | G69: AV.EAEA-AP | H69: 4 | I69: ENO - Proyecto de Apóyo de Adecuaciones de los Accesos Verticales, Pedro Miguel - Cuadrilla Dino Blandford - 272-4453 | J69: Lote E - Servicio de alquiler trimestral de vehículo a motor - Picop con barra antivuelco y ganchos | K69: 1 | L69: Mo | M69: 2839.44 | O69: 2839.44 | P69: 2015-10-01 | Q69: 2015-12-30
A70: 2015-10-07T14:57:27 | B70: 744646 | C70: 341187 | D70: RUIZ ORTEGA, JORGE LUIS | E70: 2015-10-07T16:12:25 | F70: 29716 | G70: AV.EAEA-AP | H70: 4 | I70: ENO - Apoyo a Proyecto de Mant de Líneas 405 y 406 Atl - Cuadrilla Zurita - 272-4453 | J70: Lote E - Servicio de alquiler trimestral de vehículo a motor - Picop con barra antivuelco y ganchos | K70: 1 | L70: Mo | M70: 2839.44 | O70: 2839.44 | P70: 2015-10-01 | Q70: 2015-12-30
A71: 2015-10-07T15:05:05 | B71: 744660 | C71: 341191 | D71: RUIZ ORTEGA, JORGE LUIS | E71: 2015-10-07T16:12:32 | F71: 29716 | G71: AV.EAEA-AP | H71: 4 | I71: ENO - Proyecto de Apóyo de Adecuaciones de los Accesos Verticales, Gatún - Cuadrilla José Fong - 272-4453 | J71: Lote E - Servicio de alquiler trimestral de vehículo a motor - Picop con barra antivuelco y ganchos | K71: 1 | L71: Mo | M71: 2839.44 | O71: 2839.44 | P71: 2015-10-01 | Q71: 2015-12-30
A72: 2015-10-08T08:53:46 | B72: 742588 | C72: 341207 | D72: RUIZ ORTEGA, JORGE LUIS | E72: 2015-10-08T16:32:53 | F72: 29716 | G72: AV.EAEG-GT | H72: 4 | I72: ENO - Proyecto de Operacióne Inversión de EAEG. Camarena - Jorge Ruiz - 272*-4415 | J72: Lote B - Servicio de alquiler trimestral de vehículo a motor - camioneta 4 x 4 | K72: 1 | L72: Mo | M72: 3705 | O72: 3705 | P72: 2015-10-01 | Q72: 2015-12-30
A73: 2015-10-08T08:57:42 | B73: 744923 | C73: 341208 | D73: MEANA MOUYNES, MARIA LOURDES | E73: 2015-10-08T14:19:38 | F73: 29716 | G73: AV.OPED | H73: 4 | I73: ENO - Veh No. 4 - Tipo pick up - Insp & Rep de Equipo de A/A - Atl/Pac - Edwin Navarro - 276-2376 | J73: Lote D - Servicio de alquiler trimestral de vehículo a motor - Picop | K73: 1 | L73: Mo | M73: 2839.44 | O73: 2839.44 | P73: 2015-10-07 | Q73: 2016-01-06
A74: 2015-10-08T09:46:06 | B74: 745135 | C74: 341217 | D74: GONZALEZ ATENCIO, LETICIA PORTOLATINA | E74: 2015-10-08T14:19:54 | F74: 29716 | G74: AV.OPPV | H74: 1 | I74: Veh 9403 - Pedro Chen - 276-1054 | J74: Lote D - Servicio de alquiler semanal de vehículo a motor - Picop | K74: 3 | L74: Each | M74: 664.2 | O74: 664.2 | P74: 2015-10-09 | Q74: 2015-10-30
A75: 2015-10-08T09:55:07 | B75: 745141 | C75: 341220 | D75: GONZALEZ ATENCIO, LETICIA PORTOLATINA | E75: 2015-10-08T14:19:47 | F75: 29716 | G75: AV.OPPV | H75: 1 | I75: Veh 9394 - Pedro Chen - 276-1054 | J75: Lote D - Servicio de alquiler semanal de vehículo a motor - Picop | K75: 2 | L75: Each | M75: 442.8 | O75: 442.8 | P75: 2015-10-09 | Q75: 2015-10-23
A76: 2015-10-08T13:16:14 | B76: 745151 | C76: 341270 | D76: SIMITI VALDEZ, EMILY BEATRIZ | E76: 2015-10-08T16:32:40 | F76: 29716 | G76: AV.OPEM-E | H76: 1 | I76: Veh 8245 - Evelyn Rodríguez - 276-3177 | J76: Lote D - Servicio de alquiler semanal de vehículo a motor - Picop | K76: 3 | L76: Each | M76: 664.2 | O76: 664.2 | P76: 2015-10-13 | Q76: 2015-11-02
A77: 2015-10-08T13:23:04 | B77: 745075 | C77: 341272 | D77: LOPEZ IGLESIAS, MARIA DE LOS ANGELES | E77: 2015-10-08T16:32:21 | F77: 29716 | G77: AV.AJ | H77: 4 | I77: ENO - Asignación Diaria en la Oficina de Asesoría Legal - Mitzila Moreno - 272-7511 | J77: Lote A - Servicio de alquiler trimestral de vehículo a motor - modelo sedán | K77: 1 | L77: Mo | M77: 1762.11 | O77: 1762.11 | P77: 2015-10-12 | Q77: 2016-01-11
A78: 2015-10-08T14:08:43 | B78: 744554 | C78: 341279 | D78: HOOKER ROOK, ROBERTO ALFONSO | E78: 2015-10-08T16:32:58 | F78: 29716 | G78: AV.CCXR | H78: 2 | I78: Proyectos y actividades de la Sección de Comunicación Corporativa - Adolfo Gil - 272-7605 | J78: Lote B - Servicio de alquiler trimestral de vehículo a motor - camioneta 4 x 4 | K78: 1 | L78: Mo | M78: 3705 | O78: 3705 | P78: 2015-10-02 | Q78: 2015-12-31
A79: 2015-10-09T11:39:48 | B79: 745532 | C79: 341359 | D79: LOPEZ RIVAS, RODRIGO ELISEO | E79: 2015-10-09T14:57:19 | F79: 29716 | G79: AV.EACM-SA | H79: 4 | I79: ENO - Programa y Proyectos de Equipo de Servicios Ambientales, de la Div de Ambiente AF-16 - Alejandro Figueroa - 276-3953 | J79: Lote D - Servicio de alquiler trimestral de vehículo a motor - Picop | K79: 1 | L79: Mo | M79: 2839.44 | O79: 2839.44 | P79: 2015-10-04 | Q79: 2016-01-03
A80: 2015-10-09T11:58:57 | B80: 745513 | C80: 341365 | D80: LOPEZ RIVAS, RODRIGO ELISEO | E80: 2015-10-09T15:58:48 | F80: 29716 | G80: AV.EACM-SA | H80: 4 | I80: ENO - Programa y Proyectos de Equipo de Servicios Ambientales, de la Div de Ambiente AF-16 - Alejandro Figueroa - 276-3953 | J80: Lote D - Servicio de alquiler trimestral de vehículo a motor - Picop | K80: 1 | L80: Mo | M80: 2839.44 | O80: 2839.44 | P80: 2015-10-04 | Q80: 2016-01-03
A81: 2015-10-09T12:07:57 | B81: 745489 | C81: 341366 | D81: LOPEZ RIVAS, RODRIGO ELISEO | E81: 2015-10-09T14:58:33 | F81: 29716 | G81: AV.EACM-EACE | H81: 4 | I81: ENO - Actividades de EACE - Angel Ureña Vargas - 276-2830 | J81: Lote B - Servicio de alquiler trimestral de vehículo a motor - camioneta 4 x 4 | K81: 1 | L81: Mo | M81: 3705 | O81: 3705 | P81: 2015-10-04 | Q81: 2016-01-03
A82: 2015-10-09T15:25:25 | B82: 745699 | C82: 341407 | D82: GONZALEZ ATENCIO, LETICIA PORTOLATINA | E82: 2015-10-09T15:58:54 | F82: 29716 | G82: AV.OPPV | H82: 1 | I82: Veh 9395 - Pedro Chen - 276-1054 | J82: Lote D - Servicio de alquiler semanal de vehículo a motor - Picop | K82: 2 | L82: Each | M82: 442.8 | O82: 442.8 | P82: 2015-10-08 | Q82: 2015-10-22
A83: 2015-10-09T15:29:09 | B83: 743586 | C83: 341408 | D83: GONZALEZ ATENCIO, LETICIA PORTOLATINA | E83: 2015-10-09T15:59:01 | F83: 29716 | G83: AV.OPPV | H83: 1 | I83: Veh 9404 - Pedro Chen - 276-1054 | J83: Lote D - Servicio de alquiler diario de vehículo a motor - Picop | K83: 2 | L83: Each | M83: 73.8 | O83: 73.8 | P83: 2015-10-01 | Q83: 2015-10-02
A84: 2015-10-09T15:33:21 | B84: 743599 | C84: 341409 | D84: GONZALEZ ATENCIO, LETICIA PORTOLATINA | E84: 2015-10-09T15:59:14 | F84: 29716 | G84: AV.OPPV | H84: 1 | I84: Veh 9402 - Pedro Chen - 276-1054 | J84: Lote D - Servicio de alquiler diario de vehículo a motor - Picop | K84: 2 | L84: Each | M84: 73.8 | O84: 73.8 | P84: 2015-09-25 | Q84: 2015-09-30
A85: 2015-10-09T15:33:21 | B85: 743599 | C85: 341409 | D85: GONZALEZ ATENCIO, LETICIA PORTOLATINA | E85: 2015-10-09T15:59:14 | F85: 29716 | G85: AV.OPPV | H85: 1 | I85: Veh 9402 - Pedro Chen - 276-1054 | J85: Lote D - Servicio de alquiler semanal de vehículo a motor - Picop | K85: 2 | L85: Each | M85: 442.8 | O85: 442.8 | P85: 2015-10-01 | Q85: 2015-10-15
A86: 2015-10-09T15:43:48 | B86: 743612 | C86: 341410 | D86: GONZALEZ ATENCIO, LETICIA PORTOLATINA | E86: 2015-10-12T07:18:58 | F86: 29716 | G86: AV.OPPV | H86: 1 | I86: Veh 9398 - Pedro Chen - 276-1054 | J86: Lote D - Servicio de alquiler diario de vehículo a motor - Picop | K86: 4 | L86: Each | M86: 147.6 | O86: 147.6 | P86: 2015-09-27 | Q86: 2015-09-30
A87: 2015-10-09T15:43:48 | B87: 743612 | C87: 341410 | D87: GONZALEZ ATENCIO, LETICIA PORTOLATINA | E87: 2015-10-12T07:18:58 | F87: 29716 | G87: AV.OPPV | H87: 1 | I87: Veh 9398 - Pedro Chen - 276-1054 | J87: Lote D - Servicio de alquiler semanal de vehículo a motor - Picop | K87: 2 | L87: Each | M87: 442.8 | O87: 442.8 | P87: 2015-10-01 | Q87: 2015-10-15
A88: 2015-10-09T15:47:18 | B88: 743616 | C88: 341411 | D88: GONZALEZ ATENCIO, LETICIA PORTOLATINA | E88: 2015-10-12T07:19:06 | F88: 29716 | G88: AV.OPPV | H88: 1 | I88: Veh 9395 - Pedro Chen - 276-1054 | J88: Lote D - Servicio de alquiler diario de vehículo a motor - Picop | K88: 5 | L88: Each | M88: 184.5 | O88: 184.5 | P88: 2015-10-01 | Q88: 2015-10-05
A89: 2015-10-12T11:17:43 | B89: 745669 | C89: 341457 | D89: ZHANG WU, EUGENIO | E89: 2015-10-12T14:56:32 | F89: 29716 | G89: AV.IAIT | H89: 1 | I89: Veh 9694 - Jorge Fanovich - 443-5508 | J89: Lote B - Servicio de alquiler mensual de vehículo a motor - camioneta 4 x 4 | K89: 1 | L89: Each | M89: 1300 | O89: 1300 | P89: 2015-10-09 | Q89: 2015-11-08
A90: 2015-10-13T11:03:55 | B90: 746284 | C90: 341563 | D90: HOOKER ROOK, ROBERTO ALFONSO | E90: 2015-10-14T07:21:34 | F90: 29716 | G90: AV.FAP | H90: 3 | I90: Viaje a Colón de FAPO-CP - Lizzette Olaciregui - 272-7690 | J90: Lote A - Servicio de alquiler diario de vehículo a motor - modelo sedán | K90: 1 | L90: Each | M90: 22.9 | O90: 22.9 | P90: 2015-10-14 | Q90: 2015-10-14
A91: 2015-10-14T08:36:39 | B91: 744267 | C91: 341633 | D91: BARSALLO TOUREAU, KARINA MINERVA | E91: 2015-10-14T10:51:47 | F91: 29716 | G91: AV.TIOD | H91: 1 | I91: Veh 9580 - Elmer Vaca - 276-2412 | J91: Lote E - Servicio de alquiler semanal de vehículo a motor - Picop con barra antivuelco y ganchos | K91: 3 | L91: Each | M91: 664.2 | O91: 664.2 | P91: 2015-10-05 | Q91: 2015-10-26
A92: 2015-10-14T08:44:08 | B92: 745638 | C92: 341636 | D92: RUIZ ORTEGA, JORGE LUIS | E92: 2015-10-14T10:01:51 | F92: 29716 | G92: AV.EAEB-MA | H92: 4 | I92: ENO - Cuadrilla -S1 - AB0176 - José Calvo - Jorge Carrasco - 272-4440 | J92: Lote E - Servicio de alquiler trimestral de vehículo a motor - Picop con barra antivuelco y ganchos | K92: 1 | L92: Mo | M92: 2839.44 | O92: 2839.44 | P92: 2015-10-01 | Q92: 2015-12-30
A93: 2015-10-14T08:54:17 | B93: 745643 | C93: 341638 | D93: RUIZ ORTEGA, JORGE LUIS | E93: 2015-10-14T10:50:45 | F93: 29716 | G93: AV.EAEB-MA | H93: 4 | I93: ENO - Cuadrilla -S2 - AA2623 - Roquel Cárdenas - Jorge Carrasco - 272-4440 | J93: Lote E - Servicio de alquiler trimestral de vehículo a motor - Picop con barra antivuelco y ganchos | K93: 1 | L93: Mo | M93: 2839.44 | O93: 2839.44 | P93: 2015-10-01 | Q93: 2015-12-30
A94: 2015-10-14T09:01:42 | B94: 745652 | C94: 341639 | D94: RUIZ ORTEGA, JORGE LUIS | E94: 2015-10-14T10:50:57 | F94: 29716 | G94: AV.EAEB-MA | H94: 4 | I94: ENO - Cuadrilla -S2 - AA2624 - Roquel Cárdenas - Jorge Carrasco - 272-4440 | J94: Lote E - Servicio de alquiler trimestral de vehículo a motor - Picop con barra antivuelco y ganchos | K94: 1 | L94: Mo | M94: 2839.44 | O94: 2839.44 | P94: 2015-10-01 | Q94: 2015-12-30
A95: 2015-10-14T09:09:05 | B95: 745656 | C95: 341642 | D95: RUIZ ORTEGA, JORGE LUIS | E95: 2015-10-14T10:51:04 | F95: 29716 | G95: AV.EAEB-MA | H95: 4 | I95: ENO - Cuadrilla -S6 - AA2629 - Oscar Martínez - Jorge Carrasco - 272-4440 | J95: Lote E - Servicio de alquiler trimestral de vehículo a motor - Picop con barra antivuelco y ganchos | K95: 1 | L95: Mo | M95: 2839.44 | O95: =+M95-N95 -> 2839.44 | P95: 2015-10-01 | Q95: 2015-12-30
A96: 2015-10-14T09:17:35 | B96: 745842 | C96: 341643 | D96: HOOKER, ANDREA IVETTE DE | E96: 2015-10-14T10:51:16 | F96: 29716 | G96: AV.OPRT | H96: 1 | I96: Veh 6002 - Jaime José Gonzalez - 276-1192 | J96: Lote D - Servicio de alquiler semanal de vehículo a motor - Picop | K96: 1 | L96: Each | M96: 221.4 | O96: 221.4 | P96: 2015-10-11 | Q96: 2015-10-18
A97: 2015-10-14T09:40:35 | B97: 745659 | C97: 341652 | D97: RUIZ ORTEGA, JORGE LUIS | E97: 2015-10-14T10:51:10 | F97: 29716 | G97: AV.EAEB-MA | H97: 4 | I97: ENO - Cuadrilla -S3 - AB9017 - Vicente Morgan - Jorge Carrasco - 272-4440 | J97: Lote E - Servicio de alquiler trimestral de vehículo a motor - Picop con barra antivuelco y ganchos | K97: 1 | L97: Mo | M97: 2839.44 | O97: 2839.44 | P97: 2015-10-01 | Q97: 2015-12-30
A98: 2015-10-14T10:12:10 | B98: 745660 | C98: 341662 | D98: RUIZ ORTEGA, JORGE LUIS | E98: 2015-10-14T10:51:41 | F98: 29716 | G98: AV.EAEB-MA | H98: 4 | I98: ENO - Cuadrilla -S3 - AG1048 - Vicente Morgan - Jorge Carrasco - 272-4440 | J98: Lote E - Servicio de alquiler trimestral de vehículo a motor - Picop con barra antivuelco y ganchos | K98: 1 | L98: Mo | M98: 2839.44 | O98: 2839.44 | P98: 2015-10-01 | Q98: 2015-12-30
A99: 2015-10-14T10:20:56 | B99: 745661 | C99: 341667 | D99: RUIZ ORTEGA, JORGE LUIS | E99: 2015-10-14T10:52:12 | F99: 29716 | G99: AV.EAEB-MA | H99: 4 | I99: ENO - Apoyo de Supervisores, Jefes de Unidad, Personal Administrativos - AA4047 - Jorge Carrasco - 272-4440 | J99: Lote E - Servicio de alquiler trimestral de vehículo a motor - Picop con barra antivuelco y ganchos | K99: 1 | L99: Mo | M99: 2839.44 | O99: 2839.44 | P99: 2015-10-01 | Q99: 2015-12-30
A100: 2015-10-14T15:46:25 | B100: 746330 | C100: 341769 | D100: PIMENTEL ARAUZ, MARIA ISABEL | E100: 2015-10-15T07:00:45 | F100: 29716 | G100: AV.CCXR | H100: 3 | I100: Viaje a Santiago - Dania Rosas - 272-7288 | J100: Lote B - Servicio de alquiler diario de vehículo a motor - camioneta 4 x 4 | K100: 4 | L100: Each | M100: 199.6 | O100: 199.6 | P100: 2015-10-14 | Q100: 2015-10-16
A101: 2015-10-16T14:35:37 | B101: 747259 | C101: 341968 | D101: GONZALEZ ATENCIO, LETICIA PORTOLATINA | E101: 2015-10-16T17:29:52 | F101: 29716 | G101: AV.OPPV | H101: 1 | I101: Veh 8214 - Pedro Chen - 276-1054 | J101: Lote D - Servicio de alquiler semanal de vehículo a motor - Picop | K101: 2 | L101: Each | M101: 442.8 | O101: 442.8 | P101: 2015-10-15 | Q101: 2015-10-29
A102: 2015-10-16T14:42:23 | B102: 747266 | C102: 341970 | D102: GONZALEZ ATENCIO, LETICIA PORTOLATINA | E102: 2015-10-16T17:30:26 | F102: 29716 | G102: AV.OPPV | H102: 1 | I102: Veh 8822 - AT8861 - Franklin Justiniani - 276-1541 | J102: Lote D - Servicio de alquiler semanal de vehículo a motor - Picop | K102: 2 | L102: Each | M102: 442.8 | O102: 442.8 | P102: 2015-10-19 | Q102: 2015-11-02
A103: 2015-10-16T14:49:15 | B103: 747276 | C103: 341971 | D103: GONZALEZ ATENCIO, LETICIA PORTOLATINA | E103: 2015-10-16T17:30:21 | F103: 29716 | G103: AV.OPPV | H103: 1 | I103: Veh 9402 - Pedro Chen - 276-1054 | J103: Lote D - Servicio de alquiler semanal de vehículo a motor - Picop | K103: 2 | L103: Each | M103: 442.8 | O103: 442.8 | P103: 2015-10-16 | Q103: 2015-10-30
A104: 2015-10-20T09:22:48 | B104: 747280 | C104: 342096 | D104: GONZALEZ ATENCIO, LETICIA PORTOLATINA | E104: 2015-10-21T08:09:04 | F104: 29716 | G104: AV.OPPV | H104: 1 | I104: Veh 9398 - Pedro Chen - 276-1054 | J104: Lote D - Servicio de alquiler semanal de vehículo a motor - Picop | K104: 4 | L104: Each | M104: 885.6 | O104: 885.6 | P104: 2015-10-18 | Q104: 2015-11-15
A105: 2015-10-21T11:31:44 | B105: 747889 | C105: 342153 | D105: CAROPRESSO G, AURAY MILAGROS | E105: 2015-10-22T07:37:43 | F105: 29716 | G105: AV.OPEP-PM | H105: 1 | I105: Veh 9391 - Carlos Espinosa - 276-7688 | J105: Lote E - Servicio de alquiler semanal de vehículo a motor - Picop con barra antivuelco y ganchos | K105: 2 | L105: Each | M105: 442.8 | O105: 442.8 | P105: 2015-10-23 | Q105: 2015-11-06
A106: 2015-10-21T09:01:07 | B106: 747258 | C106: 342197 | D106: ZHANG WU, EUGENIO | E106: 2015-10-21T16:20:45 | F106: 29716 | G106: AV.IAIT | H106: 1 | I106: Veh 9586 - María Vanessa Sáiz - 276-7161 | J106: Lote B - Servicio de alquiler semanal de vehículo a motor - camioneta 4 x 4 | K106: 3 | L106: Each | M106: 898.2 | O106: 898.2 | P106: 2015-10-16 | Q106: 2015-11-06
A107: 2015-10-21T09:42:52 | B107: 746590 | C107: 342209 | D107: HURTADO WESLEY, FLOR CELIA | E107: 2015-10-21T16:21:13 | F107: 29716 | G107: AV.EAEA-AP | H107: 1 | I107: Veh 9658 - Andrew Philps - 276-4640 | J107: Lote E - Servicio de alquiler semanal de vehículo a motor - Picop con barra antivuelco y ganchos | K107: 2 | L107: Each | M107: 442.8 | O107: 442.8 | P107: 2015-10-21 | Q107: 2015-11-04
A108: 2015-10-21T10:02:15 | B108: 746595 | C108: 342215 | D108: HURTADO WESLEY, FLOR CELIA | E108: 2015-10-21T16:22:24 | F108: 29716 | G108: AV.EAEA-AP | H108: 1 | I108: Veh 9880 - Ruben Rose - 276-4641 | J108: Lote E - Servicio de alquiler mensual de vehículo a motor - Picop con barra antivuelco y ganchos | K108: 1 | L108: Each | M108: 996.3 | O108: 996.3 | P108: 2015-10-21 | Q108: 2015-11-20
A109: 2015-10-22T09:31:05 | B109: 747927 | C109: 342314 | D109: SIMITI VALDEZ, EMILY BEATRIZ | E109: 2015-10-22T16:43:26 | F109: 29716 | G109: AV.OPEM-E | H109: 1 | I109: Veh 8843 - Roberto Castillo - 276-3225 | J109: Lote E - Servicio de alquiler semanal de vehículo a motor - Picop con barra antivuelco y ganchos | K109: 2 | L109: Each | M109: 442.8 | O109: 442.8 | P109: 2015-10-26 | Q109: 2015-11-09
A110: 2015-10-23T07:31:57 | B110: 748638 | C110: 342428 | D110: GONZALEZ ATENCIO, LETICIA PORTOLATINA | E110: 2015-10-26T16:01:17 | F110: 29716 | G110: AV.OPPV | H110: 1 | I110: Veh 9404 - Pedro Chen - 276-1054 | J110: Lote D - Servicio de alquiler semanal de vehículo a motor - Picop | K110: 2 | L110: Each | M110: 442.8 | O110: 442.8 | P110: 2015-10-22 | Q110: 2015-11-05
A111: 2015-10-26T09:16:10 | B111: 746411 | C111: 342486 | D111: HURTADO WESLEY, FLOR CELIA | E111: 2015-10-26T16:01:08 | F111: 29716 | G111: AV.EAEB-SE | H111: 1 | I111: Veh 9609 - Abdiel Galvez - 272-3328 | J111: Lote D - Servicio de alquiler diario de vehículo a motor - Picop | K111: 3 | L111: Each | M111: 110.7 | O111: 110.7 | P111: 2015-10-13 | Q111: 2015-10-15
A112: 2015-10-26T14:13:09 | B112: 748649 | C112: 342543 | D112: GONZALEZ ATENCIO, LETICIA PORTOLATINA | E112: 2015-10-26T16:01:45 | F112: 29716 | G112: AV.OPPV | H112: 1 | I112: Veh 9394 - Pedro Chen - 276-1054 | J112: Lote D - Servicio de alquiler semanal de vehículo a motor - Picop | K112: 4 | L112: Each | M112: 885.6 | O112: 885.6 | P112: 2015-10-23 | Q112: 2015-11-20
A113: 2015-10-26T14:20:13 | B113: 748675 | C113: 342549 | D113: GONZALEZ ATENCIO, LETICIA PORTOLATINA | E113: 2015-10-26T16:01:55 | F113: 29716 | G113: AV.OPPV | H113: 1 | I113: Veh 8212 - Pedro Chen - 276-1054 | J113: Lote D - Servicio de alquiler semanal de vehículo a motor - Picop | K113: 2 | L113: Each | M113: 442.8 | O113: 442.8 | P113: 2015-10-22 | Q113: 2015-11-05
A114: 2015-10-26T15:12:41 | B114: 748892 | C114: 342572 | D114: BERNUIL ZAMBRANO, OSCAR | E114: 2015-10-26T16:02:01 | F114: 29716 | G114: AV.RHSR-CP | H114: 3 | I114: Traslado a especialistas RHSR-CP a Gatún, Colón - Yimara Gonzalez - 272-8336| | J114: Lote B - Servicio de alquiler diario de vehículo a motor - camioneta 4 x 4 | K114: 1 | L114: Each | M114: 49.9 | O114: 49.9 | P114: 2015-10-28 | Q114: 2015-10-28
A115: 2015-10-28T09:44:24 | B115: 749630 | C115: 342789 | D115: GONZALEZ ATENCIO, LETICIA PORTOLATINA | E115: 2015-10-28 | F115: 29716 | G115: AV.OPPV | H115: 1 | I115: Veh 6761 - Pedro Chen - 276-1054 | J115: Lote D - Servicio de alquiler semanal de vehículo a motor - Picop | K115: 2 | L115: Each | M115: 442.8 | O115: 442.8 | P115: 2015-10-27 | Q115: 2015-11-10
A116: 2015-10-28T13:36:54 | B116: 749700 | C116: 342813 | D116: SIMITI VALDEZ, EMILY BEATRIZ | E116: 2015-10-28T15:05:52 | F116: 29716 | G116: AV.OPEM-E | H116: 1 | I116: Veh 8071/8101 - Roberto Castillo - 276-3225 | J116: Lote E - Servicio de alquiler semanal de vehículo a motor - Picop con barra antivuelco y ganchos | K116: 2 | L116: Each | M116: 442.8 | O116: 442.8 | P116: 2015-11-11 | Q116: 2015-11-25
A117: 2015-10-29T07:36:41 | B117: 749032 | C117: 342842 | D117: BARSALLO TOUREAU, KARINA MINERVA | E117: 2015-11-02T06:52:35 | F117: 29716 | G117: AV.TIOD | H117: 1 | I117: Veh 9580 - Elmer Vaca - 276-2412 | J117: Lote D - Servicio de alquiler semanal de vehículo a motor - Picop | K117: 1 | L117: Each | M117: 221.4 | O117: 221.4
A118: 2015-11-06T11:40:18 | B118: 749854 | C118: 343278 | D118: SMITH DREW, DIVA LYRNA | E118: 2015-11-09T10:07:22 | F118: 29716 | G118: AV.RHS-ENL | H118: 3 | I118: Viaje CSS de Enlace - Monte Esperanza - Dewyer Valdes - 272-8815 | J118: Lote B - Servicio de alquiler diario de vehículo a motor - camioneta 4 x 4 | K118: 2 | L118: Each | M118: 99.8 | O118: 99.8 | P118: 2015-11-12 | Q118: 2015-11-13
A119: 2015-11-09T10:06:42 | B119: 746712 | C119: 343321 | D119: RUIZ ORTEGA, JORGE LUIS | E119: 2015-11-09T14:22:16 | F119: 29716 | G119: AV.EAEG-GT | H119: 1 | I119: Veh 9532 - Mario Rangel - 272-4431 | J119: Lote D - Servicio de alquiler semanal de vehículo a motor - Picop | K119: 1 | L119: Each | M119: 221.4 | O119: 221.4 | P119: 2015-11-09 | Q119: 2015-11-16
A120: 2015-11-09T12:51:50 | B120: 750904 | C120: 343339 | D120: SIMITI VALDEZ, EMILY BEATRIZ | E120: 2015-11-09T15:17:00 | F120: 29716 | G120: AV.OPEM-E | H120: 1 | I120: Veh 9663 - Olga Perea - 276-2851 | J120: Lote E - Servicio de alquiler semanal de vehículo a motor - Picop con barra antivuelco y ganchos | K120: 3 | L120: Each | M120: 664.2 | O120: 664.2 | P120: 2015-11-12 | Q120: 2015-12-03
A121: 2015-11-09T12:56:59 | B121: 750674 | C121: 343340 | D121: SIMITI VALDEZ, EMILY BEATRIZ | E121: 2015-11-09T15:17:41 | F121: 29716 | G121: AV.OPEM-E | H121: 1 | I121: Veh 8117 - Olga Perea - 276-2851 | J121: Lote E - Servicio de alquiler semanal de vehículo a motor - Picop con barra antivuelco y ganchos | K121: 1 | L121: Each | M121: 221.4 | O121: 221.4 | P121: 2015-11-16 | Q121: 2015-11-23
A122: 2015-11-09T15:25:44 | B122: 751652 | C122: 343361 | D122: PEREA ROJAS, MONICA ISABEL | E122: 2015-11-13T13:16:19 | F122: 29716 | G122: AV.OPRD | H122: 1 | I122: 4 TIP - José Perivancich - 276-2496 | J122: Lote B - Servicio de alquiler semanal de vehículo a motor - camioneta 4 x 4 | K122: 4 | L122: Each | M122: 1197.6 | O122: 1197.6 | P122: 2015-11-11 | Q122: 2015-11-18
A123: 2015-11-11T07:52:36 | B123: 750766 | C123: 343373 | D123: GONZALEZ ATENCIO, LETICIA PORTOLATINA | E123: 2015-11-11T15:15:14 | F123: 29716 | G123: AV.OPPV | H123: 1 | I123: Veh 9403 - Pedro Chen - 276-1054 | J123: Lote D - Servicio de alquiler semanal de vehículo a motor - Picop | K123: 2 | L123: Each | M123: 442.8 | O123: 442.8 | P123: 2015-10-30 | Q123: 2015-11-14
A124: 2015-11-11T08:17:25 | B124: 750798 | C124: 343377 | D124: GONZALEZ ATENCIO, LETICIA PORTOLATINA | E124: 2015-11-16T10:58:27 | F124: 29716 | G124: AV.OPPV | H124: 1 | I124: Veh 9402 - Pedro Chen - 276-1054 | J124: Lote D - Servicio de alquiler semanal de vehículo a motor - Picop | K124: 4 | L124: Each | M124: 885.6 | O124: 885.6 | P124: 2015-10-30 | Q124: 2015-11-29
A125: 2015-11-11T08:28:10 | B125: 750734 | C125: 343379 | D125: GONZALEZ ATENCIO, LETICIA PORTOLATINA | E125: 2015-11-16T10:58:35 | F125: 29716 | G125: AV.OPPV | H125: 1 | I125: Veh 8213 - Pedro Chen - 276-1054 | J125: Lote D - Servicio de alquiler semanal de vehículo a motor - Picop | K125: 1 | L125: Each | M125: 221.4 | O125: 221.4 | P125: 2015-10-29 | Q125: 2015-11-05
A126: 2015-11-11T08:44:53 | B126: 750772 | C126: 343384 | D126: GONZALEZ ATENCIO, LETICIA PORTOLATINA | E126: 2015-11-11T15:15:09 | F126: 29716 | G126: AV.OPPV | H126: 1 | I126: Veh 9401 - Pedro Chen - 276-1054 | J126: Lote D - Servicio de alquiler semanal de vehículo a motor - Picop | K126: 4 | L126: Each | M126: 885.6 | O126: 885.6 | P126: 2015-10-30 | Q126: 2015-11-29
A127: 2015-11-11T08:52:06 | B127: 750774 | C127: 343386 | D127: GONZALEZ ATENCIO, LETICIA PORTOLATINA | E127: 2015-11-11T15:15:04 | F127: 29716 | G127: AV.OPPV | H127: 1 | I127: Veh 9397 - Pedro Chen - 276-1054 | J127: Lote D - Servicio de alquiler semanal de vehículo a motor - Picop | K127: 4 | L127: Each | M127: 885.6 | O127: 885.6 | P127: 2015-10-30 | Q127: 2015-11-29
A128: 2015-11-11T08:57:48 | B128: 750776 | C128: 343389 | D128: GONZALEZ ATENCIO, LETICIA PORTOLATINA | E128: 2015-11-11T15:14:59 | F128: 29716 | G128: AV.OPPV | H128: 3 | I128: Ruta de Ampliación en el Atlántico - Pedro Chen - 276-1054 | J128: Lote D - Servicio de alquiler semanal de vehículo a motor - Picop | K128: 4 | L128: Each | M128: 885.6 | O128: 885.6 | P128: 2015-10-30 | Q128: 2015-11-29
A129: 2015-11-11T09:02:10 | B129: 750780 | C129: 343391 | D129: GONZALEZ ATENCIO, LETICIA PORTOLATINA | E129: 2015-11-11T15:14:51 | F129: 29716 | G129: AV.OPPV | H129: 3 | I129: Ruta de Ampliación en el Atlántico - Pedro Chen - 276-1054 | J129: Lote D - Servicio de alquiler semanal de vehículo a motor - Picop | K129: 4 | L129: Each | M129: 885.6 | O129: 885.6 | P129: 2015-10-31 | Q129: 2015-11-30
A130: 2015-11-11T09:37:10 | B130: 750845 | C130: 343401 | D130: GONZALEZ ATENCIO, LETICIA PORTOLATINA | E130: 2015-11-11T15:14:45 | F130: 29716 | G130: AV.OPPV | H130: 1 | I130: Veh 8822 - AT8861 - Franklin Justiniani - 276-1541 | J130: Lote D - Servicio de alquiler semanal de vehículo a motor - Picop | K130: 2 | L130: Each | M130: 442.8 | O130: 442.8 | P130: 2015-11-02 | Q130: 2015-11-16
A131: 2015-11-11T09:59:18 | B131: 750865 | C131: 343405 | D131: GONZALEZ ATENCIO, LETICIA PORTOLATINA | E131: 2015-11-11T15:14:38 | F131: 29716 | G131: AV.OPPV | H131: 1 | I131: Veh 9393 - Pedro Chen - 276-1054 | J131: Lote D - Servicio de alquiler semanal de vehículo a motor - Picop | K131: 2 | L131: Each | M131: 442.8 | O131: 442.8 | P131: 2015-10-31 | Q131: 2015-11-14
A132: 2015-11-11T10:04:51 | B132: 750850 | C132: 343407 | D132: GONZALEZ ATENCIO, LETICIA PORTOLATINA | E132: 2015-11-11T15:14:32 | F132: 29716 | G132: AV.OPPV | H132: 1 | I132: Veh 9404 - Pedro Chen - 276-1054 | J132: Lote D - Servicio de alquiler semanal de vehículo a motor - Picop | K132: 1 | L132: Each | M132: 221.4 | O132: 221.4 | P132: 2015-11-05 | Q132: 2015-11-12
A133: 2015-11-11T10:09:29 | B133: 750857 | C133: 343410 | D133: GONZALEZ ATENCIO, LETICIA PORTOLATINA | E133: 2015-11-11T15:14:20 | F133: 29716 | G133: AV.OPPV | H133: 1 | I133: Veh 8212 - Pedro Chen - 276-1054 | J133: Lote D - Servicio de alquiler semanal de vehículo a motor - Picop | K133: 1 | L133: Each | M133: 221.4 | O133: 221.4 | P133: 2015-11-05 | Q133: 2015-11-12
A134: 2015-11-12T09:02:17 | B134: 749773 | C134: 343476 | D134: MEANA MOUYNES, MARIA LOURDES | E134: 2015-11-16T15:04:00 | F134: 29716 | G134: AV.OPEP-MM | H134: 2 | I134: Proyecto para el Inicio y Pruebas para la puesta en marcha e inicio de operaciones de las esclusas de cocoli y agua clara-Jorge Pitti - 276-8268 | J134: Lote D - Servicio de alquiler mensual de vehículo a motor - Picop | K134: 3 | L134: Each | M134: 2988.9 | O134: 2988.9 | P134: 2015-09-24 | Q134: 2015-12-23
A135: 2015-11-13T08:00:20 | B135: 751603 | C135: 343541 | D135: HURTADO WESLEY, FLOR CELIA | E135: 2015-11-13T14:33:47 | F135: 29716 | G135: AV.EAEG-GT | H135: 1 | I135: Veh 9612 - Maydolee Nuñez - 272-4461 | J135: Lote D - Servicio de alquiler semanal de vehículo a motor - Picop | K135: 2 | L135: Each | M135: 442.8 | O135: 442.8 | P135: 2015-11-06 | Q135: 2015-11-20
A136: 2015-11-13T08:44:16 | B136: 752035 | C136: 343552 | D136: HURTADO WESLEY, FLOR CELIA | E136: 2015-11-13T14:33:07 | F136: 29716 | G136: AV.EAEA-AP | H136: 1 | I136: Veh 9596 - Enrique Otalora - 272-3016 | J136: Lote E - Servicio de alquiler semanal de vehículo a motor - Picop con barra antivuelco y ganchos | K136: 2 | L136: Each | M136: 442.8 | O136: 442.8 | P136: 2015-11-04 | Q136: 2015-11-18
A137: 2015-11-13T09:43:43 | B137: 751608 | C137: 343582 | D137: BARSALLO TOUREAU, KARINA MINERVA | E137: 2015-11-13T14:31:33 | F137: 29716 | G137: AV.TIOD | H137: 1 | I137: Veh 9580 - Elmer Vaca - 276-2412 | J137: Lote E - Servicio de alquiler semanal de vehículo a motor - Picop con barra antivuelco y ganchos | K137: 2 | L137: Each | M137: 442.8 | O137: 442.8 | P137: 2015-11-02 | Q137: 2015-11-23
A138: 2015-11-13T10:53:30 | B138: 748391 | C138: 343592 | D138: SANCHEZ UREÑA, LIZDEYKA MELISSA | E138: 2015-11-13T14:31:19 | F138: 29716 | G138: AV.OPEI | H138: 3 | I138: Viaje Colón - Gatún a -Capacitación del Personal - Cleopatra Campbell - 276-8265 | J138: Lote B - Servicio de alquiler diario de vehículo a motor - camioneta 4 x 4 | K138: 1 | L138: Each | M138: 49.9 | O138: 49.9 | P138: 2015-10-23 | Q138: 2015-10-23
A139: 2015-11-16T08:31:14 | B139: 752046 | C139: 343661 | D139: GONZALEZ ATENCIO, LETICIA PORTOLATINA | E139: 2015-11-16T10:43:27 | F139: 29716 | G139: AV.OPPV | H139: 1 | I139: Veh 6761 - Pedro Chen - 276-1054 | J139: Lote D - Servicio de alquiler semanal de vehículo a motor - Picop | K139: 2 | L139: Each | M139: 442.8 | O139: 442.8 | P139: 2015-11-10 | Q139: 2015-11-23
A140: 2015-11-16T08:36:51 | B140: 752351 | C140: 343663 | D140: GONZALEZ ATENCIO, LETICIA PORTOLATINA | E140: 2015-11-16T10:43:57 | F140: 29716 | G140: AV.OPPV | H140: 1 | I140: Veh 9399 - Pedro Chen - 276-1054 | J140: Lote D - Servicio de alquiler mensual de vehículo a motor - Picop | K140: 4 | L140: Each | M140: 885.6 | O140: 885.6 | P140: 2015-11-12 | Q140: 2015-12-10
A141: 2015-11-16T08:42:04 | B141: 752349 | C141: 343664 | D141: GONZALEZ ATENCIO, LETICIA PORTOLATINA | E141: 2015-11-16T10:44:03 | F141: 29716 | G141: AV.OPPV | H141: 1 | I141: Veh 9393 - Pedro Chen - 276-1054 | J141: Lote D - Servicio de alquiler mensual de vehículo a motor - Picop | K141: 2 | L141: Each | M141: 442.8 | O141: 442.8 | P141: 2015-11-14 | Q141: 2015-11-28
A142: 2015-11-16T08:46:48 | B142: 752347 | C142: 343665 | D142: GONZALEZ ATENCIO, LETICIA PORTOLATINA | E142: 2015-11-16T10:44:10 | F142: 29716 | G142: AV.OPPV | H142: 1 | I142: Veh 8212 - Pedro Chen - 276-1054 | J142: Lote D - Servicio de alquiler mensual de vehículo a motor - Picop | K142: 2 | L142: Each | M142: 442.8 | O142: 442.8 | P142: 2015-11-12 | Q142: 2015-11-26
A143: 2015-11-16T08:51:50 | B143: 752348 | C143: 343666 | D143: GONZALEZ ATENCIO, LETICIA PORTOLATINA | E143: 2015-11-16T10:44:16 | F143: 29716 | G143: AV.OPPV | H143: 1 | I143: Veh 9398 - Pedro Chen - 276-1054 | J143: Lote D - Servicio de alquiler mensual de vehículo a motor - Picop | K143: 2 | L143: Each | M143: 442.8 | O143: 442.8 | P143: 2015-11-15 | Q143: 2015-11-29
A144: 2015-11-16T08:55:14 | B144: 752350 | C144: 343668 | D144: GONZALEZ ATENCIO, LETICIA PORTOLATINA | E144: 2015-11-16T10:44:22 | F144: 29716 | G144: AV.OPPV | H144: 1 | I144: Veh 9403 - Pedro Chen - 276-1054 | J144: Lote D - Servicio de alquiler mensual de vehículo a motor - Picop | K144: 1 | L144: Each | M144: 221.4 | O144: 221.4 | P144: 2015-11-14 | Q144: 2015-11-21
A145: 2015-11-16T09:33:21 | B145: 750895 | C145: 343682 | D145: RODRIGUEZ HERRERA, HELIO JAVIER | E145: 2015-11-17T07:09:58 | F145: 29716 | G145: AV.OPEM-P | H145: 1 | I145: Veh 8804 - en Garantía - Gabriel Vasquez - 276-8226 | J145: Lote E - Servicio de alquiler semanal de vehículo a motor - Picop con barra antivuelco y ganchos | K145: 4 | L145: Each | M145: 885.6 | O145: 885.6 | P145: 2015-11-18 | Q145: 2015-12-15
A146: 2015-11-16T11:32:50 | B146: 751797 | C146: 343709 | D146: SIMITI VALDEZ, EMILY BEATRIZ | F146: 29716 | G146: AV.OPEM-E | H146: 1 | I146: Veh 8843 - Roberto Castillo - 276-3225 | J146: Lote E - Servicio de alquiler semanal de vehículo a motor - Picop con barra antivuelco y ganchos | K146: 2 | L146: Each | M146: 442.8 | O146: 442.8 | P146: 2015-11-10 | Q146: 2015-11-24
A147: 2015-11-16T12:19:43 | B147: 748531 | C147: 343720 | D147: GONZALEZ QUIROS, AIDEE DEL CARMEN | E147: 2015-11-17T07:10:27 | F147: 29716 | G147: AV.OPEM-S | H147: 4 | I147: ENO - Supv Contratos , incorporar un vehículo para que los ROC cuenten con la facilitad de desplazarse a lo largo del Canal - Ana Victoria Rivera - 276-7171-2374 | J147: Lote B - Servicio de alquiler trimestral de vehículo a motor - camioneta 4 x 4 | K147: 1 | L147: Mo | M147: 3705 | O147: 3705 | P147: 2015-11-18 | Q147: 2016-02-17
A148: 2015-11-16T15:11:59 | B148: 752486 | C148: 343750 | D148: BARSALLO TOUREAU, KARINA MINERVA | E148: 2015-11-17T07:10:34 | F148: 29716 | G148: AV.TIOD | H148: 1 | I148: Veh 9580 - Elmer Vaca - 276-2412 | J148: Lote E - Servicio de alquiler semanal de vehículo a motor - Picop con barra antivuelco y ganchos | K148: 3 | L148: Each | M148: 664.2 | O148: 664.2 | P148: 2015-11-16 | Q148: 2015-12-07
A149: 2015-11-17T08:07:59 | B149: 752798 | C149: 343760 | D149: HOOKER, ANDREA IVETTE DE | E149: 2015-11-17T15:11:37 | F149: 29716 | G149: AV.OPRT | H149: 1 | I149: Veh 6002 - Jaime José Gonzalez - 276-1192 | J149: Lote D - Servicio de alquiler diario de vehículo a motor - Picop | K149: 1 | L149: Each | M149: 36.9 | O149: 36.9 | P149: 2015-11-20 | Q149: 2015-11-20
A150: 2015-11-17T08:07:59 | B150: 752798 | C150: 343760 | D150: HOOKER, ANDREA IVETTE DE | E150: 2015-11-17T15:11:37 | F150: 29716 | G150: AV.OPRT | H150: 1 | I150: Veh 6002 - Jaime José Gonzalez - 276-1192 | J150: Lote D - Servicio de alquiler semanal de vehículo a motor - Picop | K150: 1 | L150: Each | M150: 221.4 | O150: 221.4 | P150: 2015-11-21 | Q150: 2015-11-27
A151: 2015-11-17T10:21:29 | B151: 752826 | C151: 343791 | D151: GONZALEZ ATENCIO, LETICIA PORTOLATINA | E151: 2015-11-17T15:11:43 | F151: 29716 | G151: AV.OPPV | H151: 1 | I151: Veh 9404 - Pedro Chen - 276-1054 | J151: Lote D - Servicio de alquiler semanal de vehículo a motor - Picop | K151: 2 | L151: Each | M151: 442.8 | O151: 442.8 | P151: 2015-11-16 | Q151: 2015-11-30
A152: 2015-11-17T11:34:10 | B152: 748328 | C152: 343805 | D152: RODRIGUEZ HERRERA, HELIO JAVIER | E152: 2015-11-18T06:57:04 | F152: 29716 | G152: AV.OPEM-P | H152: 2 | I152: Overhaul de Dic 2015 - Idelsa Botello -276-7297- Selfrido Díaz | J152: Lote E - Servicio de alquiler mensual de vehículo a motor - Picop con barra antivuelco y ganchos | K152: 2 | L152: Each | M152: 1992.6 | O152: 1992.6 | P152: 2015-12-01 | Q152: 2015-12-31
A153: 2015-11-18T13:03:19 | B153: 752544 | C153: 343880 | D153: DELGADO GONZALEZ, FRANCISCO JR | E153: 2015-11-19T07:08:50 | F153: 29716 | G153: AV.IAIT | H153: 1 | I153: Veh 9694 - Cristobal Cerrud - 276-4591 - Jorge Fanovich - 443-5508 | J153: Cargo por entregar (a la ACP o recoger en la ACP) Exclusivo solo para la Ciudad de Colón. | K153: 1 | L153: Each | M153: 20 | O153: 20 | P153: 2015-11-16 | Q153: 2015-12-16
A154: 2015-11-18T13:03:19 | B154: 752544 | C154: 343880 | D154: DELGADO GONZALEZ, FRANCISCO JR | E154: 2015-11-19T07:08:50 | F154: 29716 | G154: AV.IAIT | H154: 1 | I154: Veh 9694 - Cristobal Cerrud - 276-4591 - Jorge Fanovich - 443-5508 | J154: Lote B - Servicio de alquiler mensual de vehículo a motor - camioneta 4 x 4 | K154: 1 | L154: Each | M154: 1300 | O154: 1300 | P154: 2015-11-16 | Q154: 2015-12-16
A155: 2015-11-20T08:19:39 | B155: 753494 | C155: 344037 | D155: GONZALEZ ATENCIO, LETICIA PORTOLATINA | E155: 2015-11-20T10:56:49 | F155: 29716 | G155: AV.OPPV | H155: 1 | I155: Veh 6761 - Pedro Chen - 276-1054 | J155: Lote D - Servicio de alquiler semanal de vehículo a motor - Picop | K155: 4 | L155: Each | M155: 885.6 | O155: 885.6 | P155: 2015-11-24 | Q155: 2015-12-22
A156: 2015-11-20T08:27:16 | B156: 753808 | C156: 344039 | D156: GONZALEZ ATENCIO, LETICIA PORTOLATINA | E156: 2015-11-20T10:57:03 | F156: 29716 | G156: AV.OPPV | H156: 1 | I156: Veh 9395 - Pedro Chen - 276-1054 | J156: Lote D - Servicio de alquiler semanal de vehículo a motor - Picop | K156: 1 | L156: Each | M156: 221.4 | O156: 221.4 | P156: 2015-11-19 | Q156: 2015-11-26
A157: 2015-11-20T08:36:30 | B157: 753813 | C157: 344042 | D157: GONZALEZ ATENCIO, LETICIA PORTOLATINA | E157: 2015-11-20T10:57:17 | F157: 29716 | G157: AV.OPPV | H157: 1 | I157: Veh 9405 - Pedro Chen - 276-1054 | J157: Lote D - Servicio de alquiler semanal de vehículo a motor - Picop | K157: 2 | L157: Each | M157: 442.8 | O157: 442.8 | P157: 2015-11-19 | Q157: 2015-12-03
A158: 2015-11-20T08:40:57 | B158: 753804 | C158: 344043 | D158: BROWN MAYORGA, RICARDO ERNESTO | E158: 2015-11-20T10:57:30 | F158: 29716 | G158: AV.COPR | H158: 1 | I158: Veh 6005 - Ricardo Brown - 272-1427 | J158: Lote B - Servicio de alquiler semanal de vehículo a motor - camioneta 4 x 4 | K158: 2 | L158: Each | M158: 598.8 | O158: 598.8 | P158: 2015-11-19 | Q158: 2015-12-03
A159: 2015-11-20T08:41:48 | B159: 753817 | C159: 344044 | D159: GONZALEZ ATENCIO, LETICIA PORTOLATINA | E159: 2015-11-20T10:57:23 | F159: 29716 | G159: AV.OPPV | H159: 1 | I159: Veh 8214 - Pedro Chen - 276-1054 | J159: Lote D - Servicio de alquiler semanal de vehículo a motor - Picop | K159: 4 | L159: Each | M159: 885.6 | O159: =+M159-N159 -> 885.6 | P159: 2015-11-19 | Q159: 2015-12-17
A160: 2015-11-20T08:52:21 | B160: 753223 | C160: 344048 | D160: BERNUIL ZAMBRANO, OSCAR | E160: 2015-11-23T07:57:28 | F160: 29716 | G160: AV.RHSB | H160: 1 | I160: Veh 6729 - Belkis Botello - 272-8560 | J160: Lote A - Servicio de alquiler mensual de vehículo a motor - modelo sedán | K160: 1 | L160: Each | M160: 618.3 | O160: 618.3 | P160: 2015-11-19 | Q160: 2015-12-18
A161: 2015-11-20T09:08:51 | B161: 752714 | C161: 344051 | D161: BERNUIL ZAMBRANO, OSCAR | E161: 2015-11-23T07:58:34 | F161: 29716 | G161: AV.RHS-ENL | H161: 3 | I161: Viaje al Sector Atlántico - Victoria Arias - 272-8453 | J161: Lote B - Servicio de alquiler diario de vehículo a motor - camioneta 4 x 4 | K161: 1 | L161: Each | M161: 49.9 | O161: 49.9 | P161: 2015-12-04 | Q161: 2015-12-04
A162: 2015-11-23T13:35:54 | B162: 754171 | C162: 344215 | D162: GONZALEZ ATENCIO, LETICIA PORTOLATINA | E162: 2015-11-23T14:13:45 | F162: 29716 | G162: AV.OPPV | H162: 1 | I162: Veh 8822 - AT8861 - Franklin Justiniani - 276-1541 | J162: Lote D - Servicio de alquiler mensual de vehículo a motor - Picop | K162: 2 | L162: Each | M162: 442.8 | O162: 442.8 | P162: 2015-11-20 | Q162: 2015-12-04
A163: 2015-11-23T14:58:08 | B163: 753981 | C163: 344248 | D163: HURTADO WESLEY, FLOR CELIA | E163: 2015-11-24T14:19:37 | F163: 29716 | G163: AV.EAEA-AP | H163: 1 | I163: Veh 9880 - Jessica Brathwaite - 272-4484 | J163: Lote E - Servicio de alquiler semanal de vehículo a motor - Picop con barra antivuelco y ganchos | K163: 4 | L163: Each | M163: 885.6 | O163: 885.6 | P163: 2015-11-20 | Q163: 2015-12-18
A164: 2015-11-24T10:00:32 | B164: 752796 | C164: 344315 | D164: RUIZ ORTEGA, JORGE LUIS | E164: 2015-11-24T14:19:45 | F164: 29716 | G164: AV.EAEB-MA | H164: 1 | I164: Veh 8950 - Jorge Carrasco - 272-4440 | J164: Lote E - Servicio de alquiler mensual de vehículo a motor - Picop con barra antivuelco y ganchos | K164: 1 | L164: Each | M164: 996.3 | O164: 996.3 | P164: 2015-11-25 | Q164: 2015-12-25
A165: 2015-11-25T10:04:43 | B165: 754558 | C165: 344417 | D165: SIMITI VALDEZ, EMILY BEATRIZ | E165: 2015-11-25T13:23:08 | F165: 29716 | G165: AV.OPEM-E | H165: 1 | I165: Veh 8843 - Jeremías Palomeque - 276-1849 | J165: Lote E - Servicio de alquiler semanal de vehículo a motor - Picop con barra antivuelco y ganchos | K165: 1 | L165: Each | M165: 221.4 | O165: 221.4 | P165: 2015-11-23 | Q165: 2015-11-30
A166: 2015-11-26T07:37:31 | B166: 754629 | C166: 344484 | D166: SIMITI VALDEZ, EMILY BEATRIZ | E166: 2015-11-26T08:39:21 | F166: 29716 | G166: AV.OPEM-E | H166: 1 | I166: Veh 8101 - Jeremías Palomeque - 276-1849 | J166: Lote E - Servicio de alquiler semanal de vehículo a motor - Picop con barra antivuelco y ganchos | K166: 2 | L166: Each | M166: 442.8 | O166: 442.8 | P166: 2015-11-25 | Q166: 2015-12-09
A167: 2015-11-26T14:12:14 | B167: 755009 | C167: 344550 | D167: DYKGRAAFF ACOSTA, EMMA LEONI | E167: 2015-11-30T09:48:40 | F167: 29716 | G167: AV.OP | H167: 3 | I167: Asignación Espeical del VPE de OP - Giselle Quiróz -272-4583 | J167: Lote A - Servicio de alquiler diario de vehículo a motor - modelo sedán | K167: 3 | L167: Each | M167: 68.7 | O167: 68.7 | P167: 30 nov, 2 dic, 4 dic 2015
A168: 2015-11-26T15:32:51 | B168: 754881 | C168: 344565 | D168: GONZALEZ ATENCIO, LETICIA PORTOLATINA | E168: 2015-11-30T09:48:31 | F168: 29716 | G168: AV.OPPV | H168: 1 | I168: Veh 8212 - Pedro Chen - 276-1054 | J168: Lote D - Servicio de alquiler semanal de vehículo a motor - Picop | K168: 2 | L168: Each | M168: 442.8 | O168: 442.8 | P168: 2015-11-26 | Q168: 2015-12-10
A169: 2015-11-26T15:43:57 | B169: 754888 | C169: 344567 | D169: GONZALEZ ATENCIO, LETICIA PORTOLATINA | E169: 2015-11-30T09:48:21 | F169: 29716 | G169: AV.OPPV | H169: 1 | I169: Veh 9398 - Pedro Chen - 276-1054 | J169: Lote D - Servicio de alquiler semanal de vehículo a motor - Picop | K169: 2 | L169: Each | M169: 442.8 | O169: 442.8 | P169: 2015-11-29 | Q169: 2015-12-13
A170: 2015-11-30T08:52:41 | B170: 754909 | C170: 344601 | D170: GONZALEZ ATENCIO, LETICIA PORTOLATINA | E170: 2015-11-30T09:48:10 | F170: 29716 | G170: AV.OPPV | H170: 1 | I170: Veh 9395 - Pedro Chen - 276-1054 | J170: Lote D - Servicio de alquiler semanal de vehículo a motor - Picop | K170: 1 | L170: Each | M170: 221.4 | O170: 221.4 | P170: 2015-11-26 | Q170: 2015-12-03
A171: 2015-11-30T09:04:51 | B171: 754897 | C171: 344604 | D171: GONZALEZ ATENCIO, LETICIA PORTOLATINA | E171: 2015-11-30T09:48:01 | F171: 29716 | G171: AV.OPPV | H171: 1 | I171: Veh 9393 - Pedro Chen - 276-1054 | J171: Lote D - Servicio de alquiler semanal de vehículo a motor - Picop | K171: 2 | L171: Each | M171: 442.8 | O171: 442.8 | P171: 2015-11-28 | Q171: 2015-12-12
A172: 2015-11-30T09:14:25 | B172: 754900 | C172: 344606 | D172: GONZALEZ ATENCIO, LETICIA PORTOLATINA | E172: 2015-11-30T09:47:50 | F172: 29716 | G172: AV.OPPV | H172: 1 | I172: Veh 9402 - Pedro Chen - 276-1054 | J172: Lote D - Servicio de alquiler semanal de vehículo a motor - Picop | K172: 1 | L172: Each | M172: 221.4 | O172: 221.4 | P172: 2015-11-29 | Q172: 2015-12-06
A173: 2015-11-30T09:39:48 | B173: 755059 | C173: 344615 | D173: UNG HO, ISABEL TELMA | E173: 2015-11-30T15:52:38 | F173: 29716 | G173: AV.TIOD | H173: 1 | I173: Veh 8392 - Luis Velásquez - 276-4135 | J173: Lote D - - Servicios de alquiler mensual de vehículo a motor - Picop | K173: 1 | L173: Each | M173: 996.3 | O173: 996.3 | P173: 2015-12-01 | Q173: 2015-12-31
A174: 2015-11-30T10:50:41 | B174: 753389 | C174: 344637 | D174: PIMENTEL ARAUZ, MARIA ISABEL | E174: 2015-12-01T10:59:15 | F174: 29716 | G174: AV.CORA | H174: 2 | I174: Proyecto de Cora - Conserv y Recuper de areas del Canal - Tomás Fernandez - 272-7393/7398 | J174: Lote D - Servicio de alquiler trimestral de vehículo a motor - Picop | K174: 1 | L174: Mo | M174: 2839.44 | O174: 2839.44 | P174: 2015-12-02 | Q174: 2016-03-01
A175: 2015-12-01T08:57:17 | B175: 755296 | C175: 344725 | D175: GONZALEZ QUINTANA, STEPHANIE MICHEL | E175: 2015-12-01T11:00:32 | F175: 29716 | G175: AV.RHS-ENL | H175: 3 | I175: Viaje a Monte Esperanza y Gatún de RHS-ENL - Belkis Botello - 272-8560 | J175: Lote B - Servicio de alquiler diario de vehículo a motor - camioneta 4 x 4 | K175: 1 | L175: Each | M175: 49.9 | O175: 49.9 | P175: 2015-12-03 | Q175: 2015-12-03
A176: 2015-12-01T09:36:51 | B176: 755211 | C176: 344739 | D176: GONZALEZ ATENCIO, LETICIA PORTOLATINA | E176: 2015-12-01T11:00:59 | F176: 29716 | G176: AV.OPPV | H176: 3 | I176: Cubrir areas de Ampliación del Canal en Gatún - Pedro Chen - 276-1054 | J176: Lote D - Servicio de alquiler semanal de vehículo a motor - Picop | K176: 4 | L176: Each | M176: 885.6 | O176: 885.6 | P176: 2015-11-27 | Q176: 2015-12-25
A177: 2015-12-01T09:46:32 | B177: 755445 | C177: 344743 | D177: RUIZ ALMANZA, FRANKLIN ANTONIO | E177: 2015-12-01T11:01:04 | F177: 29716 | G177: AV.RHSI | H177: 3 | I177: Viaje Oficiial al Area del Lago Alhajuela - Gabriela Amarís de Garcia - 272-8550/59 | J177: Lote B - Servicio de alquiler diario de vehículo a motor - camioneta 4 x 4 | K177: 1 | L177: Each | M177: 49.9 | O177: 49.9 | P177: 2015-12-04 | Q177: 2015-12-04
A178: 2015-12-01T10:33:45 | B178: 755657 | C178: 344758 | D178: GONZALEZ ATENCIO, LETICIA PORTOLATINA | E178: 2015-12-01T12:30:31 | F178: 29716 | G178: AV.OPPV | H178: 1 | I178: Veh 9401 - Pedro Chen - 276-1054 | J178: Lote D - Servicio de alquiler semanal de vehículo a motor - Picop | K178: 4 | L178: Each | M178: 885.6 | O178: 885.6 | P178: 2015-11-28 | Q178: 2015-12-26
A179: 2015-12-01T11:26:24 | B179: 755233 | C179: 344766 | D179: GONZALEZ ATENCIO, LETICIA PORTOLATINA | E179: 2015-12-01T14:29:15 | F179: 29716 | G179: AV.OPPV | H179: 3 | I179: Cubrir areas de Ampliación del Canal en Gatún - Pedro Chen - 276-1054 | J179: Lote D - Servicio de alquiler semanal de vehículo a motor - Picop | K179: 4 | L179: Each | M179: 885.6 | O179: 885.6 | P179: 2015-11-28 | Q179: 2015-12-26
A180: 2015-12-01T13:09:07 | B180: 755660 | C180: 344776 | D180: GONZALEZ ATENCIO, LETICIA PORTOLATINA | E180: 2015-12-01T15:18:01 | F180: 29716 | G180: AV.OPPV | H180: 1 | I180: Veh 9208 - Pedro Chen - 276-1054 | J180: Lote D - Servicio de alquiler semanal de vehículo a motor - Picop | K180: 4 | L180: Each | M180: 885.6 | O180: 885.6 | P180: 2015-11-27 | Q180: 2015-12-25
A181: 2015-12-03T07:14:52 | B181: 754647 | C181: 344919/354234 | D181: PEREZ, SOLEDAD DE | E181: 2015-12-03T14:16:31 | F181: 29716 | G181: AV.OPM | H181: 1 | I181: Veh 6665 - Rodrigo Chanis - 443-7426-6671-8856 - Calibración - Arango | J181: Lote A - Servicio de alquiler trimestral de vehículo a motor - modelo sedán | K181: 1 | L181: Mo | M181: 1762.11 | N181: 587.37 | O181: 1174.74 | P181: 2015-12-04 | Q181: 2016-03-03
A182: 2015-12-03T07:27:15 | B182: 756003 | C182: 344921 | D182: SIMITI VALDEZ, EMILY BEATRIZ | E182: 2015-12-03T14:06:03 | F182: 29716 | G182: AV.OPEM-E | H182: 1 | I182: Veh 9663 - Olga Perea - 276-2851 | J182: Lote E - Servicio de alquiler semanal de vehículo a motor - Picop con barra antivuelco y ganchos | K182: 3 | L182: Each | M182: 664.2 | O182: 664.2 | P182: 2015-12-03 | Q182: 2015-12-24
A183: 2015-12-03T07:32:47 | B183: 755909 | C183: 344925 | D183: SIMITI VALDEZ, EMILY BEATRIZ | E183: 2015-12-03T14:06:09 | F183: 29716 | G183: AV.OPEM-E | H183: 1 | I183: Veh 8843 - Jeremías Palomeque - 276-1849 | J183: Lote E - Servicio de alquiler semanal de vehículo a motor - Picop con barra antivuelco y ganchos | K183: 2 | L183: Each | M183: 442.8 | O183: 442.8 | P183: 2015-11-30 | Q183: 2015-12-14
A184: 2015-12-03T12:59:21 | B184: 751989 | C184: 344983/354246 | D184: PEREZ, SOLEDAD DE | E184: 2015-12-03T14:15:18 | F184: 29716 | G184: AV.OPM | H184: 4 | I184: ENO - Veh 9537 - Uso de Arquitectura Naval e Ing - Rodrigo Chanis - 443-7426-6671-8856 | J184: Lote A - Servicio de alquiler trimestral de vehículo a motor - modelo sedán | K184: 1 | L184: Mo | M184: 1762.11 | N184: 587.37 | O184: 1174.74 | P184: 2015-12-04 | Q184: 2016-03-03
A185: 2015-12-03T13:07:47 | B185: 755984 | C185: 344984 | D185: GONZALEZ ATENCIO, LETICIA PORTOLATINA | E185: 2015-12-03T14:06:13 | F185: 29716 | G185: AV.OPPV | H185: 1 | I185: Veh 6738 - Pedro Chen - 276-1054 | J185: Lote D - Servicio de alquiler semanal de vehículo a motor - Picop | K185: 1 | L185: Each | M185: 221.4 | O185: 221.4 | P185: 2015-12-02 | Q185: 2015-12-09
A186: 2015-12-03T15:10:41 | B186: 756223 | C186: 345021 | D186: GONZALEZ ATENCIO, LETICIA PORTOLATINA | E186: 2015-12-04T08:00:15 | F186: 29716 | G186: AV.OPPV | H186: 1 | I186: Veh 9404 - Pedro Chen - 276-1054 | J186: Lote D - Servicio de alquiler mensual de vehículo a motor - Picop | K186: 2 | L186: Each | M186: 442.8 | O186: 442.8 | P186: 2015-11-30 | Q186: 2015-12-14
A187: 2015-12-03T15:28:04 | B187: 756233 | C187: 345028 | D187: GONZALEZ ATENCIO, LETICIA PORTOLATINA | E187: 2015-12-04T08:01:04 | F187: 29716 | G187: AV.OPPV | H187: 1 | I187: Veh 8213 - Pedro Chen - 276-1054 | J187: Lote D - Servicio de alquiler mensual de vehículo a motor - Picop | K187: 2 | L187: Each | M187: 442.8 | O187: 442.8 | P187: 2015-12-03 | Q187: 2015-12-17
A188: 2015-12-04T09:14:39 | B188: 756071 | C188: 345055 | D188: HURTADO WESLEY, FLOR CELIA | E188: 2015-12-04T11:00:18 | F188: 29716 | G188: AV.EAEA-AP | H188: 1 | I188: Veh 9658 - Jessica Brathwaite - 272-4484 | J188: Lote E - Servicio de alquiler mensual de vehículo a motor - Picop con barra antivuelco y ganchos | K188: 1 | L188: Each | M188: 996.3 | O188: 996.3 | P188: 2015-11-18 | Q188: 2015-12-17
A189: 2015-12-04T14:36:03 | B189: 755809 | C189: 345156 | D189: MEANA MOUYNES, MARIA LOURDES | E189: 2015-12-07T06:54:05 | F189: 29716 | G189: AV.OPED | H189: 4 | I189: ENO - OPED CONTRATOS - Ricardo Gallardo - 276-3347 | J189: Lote A - Servicio de alquiler trimestral de vehículo a motor - modelo sedán | K189: 1 | L189: Mo | M189: 1762.11 | O189: 1762.11 | P189: 2015-12-11 | Q189: 2016-03-10
A190: 2015-12-04T14:36:03 | B190: 755809 | C190: 345156 | D190: MEANA MOUYNES, MARIA LOURDES | E190: 2015-12-07T06:54:05 | F190: 29716 | G190: AV.OPED | H190: 4 | I190: ENO - OPED CONTRATOS - Ricardo Gallardo - 276-3347 | J190: Lote A - Servicio de alquiler trimestral de vehículo a motor - modelo sedán | K190: 1 | L190: Mo | M190: 1762.11 | O190: 1762.11 | P190: 2015-12-11 | Q190: 2016-03-10
A191: 2015-12-07T09:07:38 | B191: 755141 | C191: 345196 | D191: GREEN GEORGE, MARLON DELANY | E191: 2015-12-09T07:22:49 | F191: 29716 | G191: AV.CORA | H191: 2 | I191: Proyecto de Conservación, Recuperación de Areas del Canal - Tomás Fernandez - 272-7393 | J191: Lote D - Servicio de alquiler trimestral de vehículo a motor - Picop | K191: 1 | L191: Mo | M191: 2839.44 | O191: 2839.44 | P191: 2015-12-07 | Q191: 2016-03-07
A192: 2015-12-07T12:58:24 | B192: 756518 | C192: 345221 | D192: UNG HO, ISABEL TELMA | E192: 2015-12-09T07:22:56 | F192: 29716 | G192: AV.TIOD | H192: 1 | I192: Veh 9580 - Elmer Vaca - 276-2412 | J192: Lote E - Servicio de alquiler mensual de vehículo a motor - Picop con barra antivuelco y ganchos VIGENCIA: 5 DE DICIEMBRE DEL 2015 AL 4 DE ENERO DEL 2016 Punto de Contacto: José Gonzalez, tel. 276-1549 Lugar de entrega: Edificio 711, CO | K192: 1 | L192: Each | M192: 996.3 | O192: 996.3 | P192: 2015-12-05 | Q192: 2016-01-04
A193: 2015-12-07T14:45:48 | B193: 756694 | C193: 345252 | D193: HOOKER, ANDREA IVETTE DE | E193: 2015-12-09T07:23:03 | F193: 29716 | G193: AV.OPRT | H193: 1 | I193: Veh 8808 - Jaime Gonzalez - 276-1192/1391 | J193: Lote D - Servicio de alquiler semanal de vehículo a motor - Picop | K193: 2 | L193: Each | M193: 442.8 | O193: 442.8 | P193: 2015-11-27 | Q193: 2015-12-11
A194: 2015-12-07T15:18:33 | B194: 756517 | C194: 345262 | D194: PEREA ROJAS, MONICA ISABEL | E194: 2015-12-07T15:24:14 | F194: 29716 | G194: AV.OPRD | H194: 1 | I194: Veh TIP (5) - Nodel Villarreal - 276-3350 | J194: Lote B - Servicio de alquiler semanal de vehículo a motor - camioneta 4 x 4 | K194: 5 | L194: Each | M194: 1497 | O194: 1497 | P194: 2015-12-08 | Q194: 2015-12-15
A195: 2015-12-09T14:18:24 | B195: 756190 | C195: 345349 | D195: RUIZ ORTEGA, JORGE LUIS | E195: 2015-12-09T15:19:38 | F195: 29716 | G195: AV.EAEA-AP | H195: 1 | I195: Veh 9849 - Jessica Brathwaite - 272-4484 | J195: Lote E - Servicio de alquiler mensual de vehículo a motor - Picop con barra antivuelco y ganchos | K195: 1 | L195: Each | M195: 996.3 | O195: 996.3 | P195: 2015-12-10 | Q195: 2016-01-09
A196: 2015-12-10T07:50:29 | B196: 756527 | C196: 345373 | D196: GONZALEZ ATENCIO, LETICIA PORTOLATINA | E196: 2015-12-10T10:40:34 | F196: 29716 | G196: AV.OPPV | H196: 1 | I196: Veh 9395 - Pedro Chen - 276-1054 | J196: Lote D - Servicio de alquiler mensual de vehículo a motor - Picop | K196: 2 | L196: Each | M196: 442.8 | O196: 442.8 | P196: 2015-12-03 | Q196: 2015-12-17
A197: 2015-12-10T07:54:29 | B197: 756525 | C197: 345374 | D197: GONZALEZ ATENCIO, LETICIA PORTOLATINA | F197: 29716 | G197: AV.OPPV | H197: 1 | I197: Veh 9405 - Pedro Chen - 276-1054 | J197: Lote D - Servicio de alquiler mensual de vehículo a motor - Picop | K197: 2 | L197: Each | M197: 442.8 | O197: 442.8 | P197: 2015-12-03 | Q197: 2015-12-17
A198: 2015-12-10T08:36:47 | B198: 756524 | C198: 345384 | D198: GONZALEZ ATENCIO, LETICIA PORTOLATINA | E198: 2015-12-10T10:40:48 | F198: 29716 | G198: AV.OPPV | H198: 1 | I198: Veh 8822 - Pedro Chen - 276-1054 | J198: Lote D - Servicio de alquiler mensual de vehículo a motor - Picop | K198: 1 | L198: Each | M198: 221.4 | O198: 221.4 | P198: 2015-12-04 | Q198: 2015-12-11
A199: 2015-12-10T08:55:22 | B199: 756523 | C199: 345389 | D199: GONZALEZ ATENCIO, LETICIA PORTOLATINA | E199: 2015-12-10T10:40:54 | F199: 29716 | G199: AV.OPPV | H199: 1 | I199: Veh 9402 - Pedro Chen - 276-1054 | J199: Lote D - Servicio de alquiler mensual de vehículo a motor - Picop | K199: 1 | L199: Each | M199: 221.4 | O199: 221.4 | P199: 2015-12-06 | Q199: 2015-12-13
A200: 2015-12-14T10:11:09 | B200: 757324 | C200: 345610 | D200: SIMITI VALDEZ, EMILY BEATRIZ | E200: 2015-12-14T15:04:40 | F200: 29716 | G200: AV.OPEM-E | H200: 1 | I200: Veh 8101 - Olga Perea - 276-2851 | J200: Lote E - Servicio de alquiler mensual de vehículo a motor - Picop con barra antivuelco y ganchos | K200: 1 | L200: Each | M200: 996.3 | O200: 996.3 | P200: 2015-12-09 | Q200: 2016-01-06
A201: 2015-12-15T07:59:15 | B201: 757092 | C201: 345687 | D201: GONZALEZ ATENCIO, LETICIA PORTOLATINA | E201: 2015-12-15T12:09:51 | F201: 29716 | G201: AV.OPPV | H201: 1 | I201: Veh 9398 - Pedro Chen - 276-1054 | J201: Lote D - Servicio de alquiler semanal de vehículo a motor - Picop | K201: 2 | L201: Each | M201: 442.8 | O201: 442.8 | P201: 2015-12-13 | Q201: 2015-12-27
... 568 more rows

Sheet 25 JUL ALQUILER DE VEH AF-16
A1: PRESUPUESTO APROBADO | C1: =750000+75000 -> 825000 | J1: 1. REEMPLAZO DE VEHICULO OFICIAL
A2: OBLIGACIÓN A LA FECHA | C2: =+M767 -> 950523.26 | J2: 2. PROYECTOS ESPECIALES
J3: 3. VIAJES PUNTUALES
A4: FONDOS DISPONIBLES | C4: =+C1-C2 -> -125523.26 | J4: 4. NECESIDADES OPERACIONALES ADICIONALES
A5: Fecha de | B5: PR | C5: PO | D5: BUYER | E5: Fecha de | F5: PROYECTO | G5: TAREA | H5: CLASIFICACION | I5: VEHICULO DE REMPLAZO | J5: Servicio de alquiler de vehículo para la ACP - LOTE - C (Mini Van) | K5: Cantidad | L5: UOM | M5: Cantidad | N5: Cantidad | O5: Cantidad | P5: Período | R5: Factura
A6: Creación | E6: Aprobación | H6: 1/2/3/4 | J6: SERVICIOS TURISTICOS PANAMEÑOS S A COR302681MUL | K6: Ordenada | M6: Obligada | N6: Pagada | O6: Pendiente | P6: Desde | Q6: Hasta | R6: No.
A7: 2015-10-16T13:23:25 | B7: 747068 | C7: 341949 | D7: HOOKER, ANDREA IVETTE DE | E7: 2015-10-16T17:30:16 | F7: 29716 | G7: AV.OPRT | H7: 1 | I7: Veh 6002 - Jaime Gonzalez - 276-1192 | J7: LOTE - C - Servicio de alquiler semanal de vehículo a motor - mini van | K7: 3 | L7: Each | M7: 900 | O7: =+M7-N7 -> 900 | P7: 2015-10-18 | Q7: 2015-10-25
A8: 2015-11-06T11:02:18 | B8: 749789 | C8: 343274 | D8: BARSALLO TOUREAU, KARINA MINERVA | E8: 2015-11-09T10:07:43 | F8: 29716 | G8: AV.TISI | H8: 3 | I8: Viajes a Capira, Chorrera, Madden, etc del grupo de soporte de TISI - Iris Rodriguez - 276-3843 | J8: LOTE - C - Servicio de alquiler trimestral de vehículo a motor - mini van | K8: 1 | L8: Mo | M8: 4000 | O8: 4000 | P8: 2015-10-23 | Q8: 2015-12-22
A9: 2015-11-13T09:00:51 | B9: 751902 | C9: 343556 | D9: HOOKER, ANDREA IVETTE DE | E9: 2015-11-13T14:36:31 | F9: 29716 | G9: AV.OPRT | H9: CANCELADO - CA NCELADO | I9: CANCELADO - CA NCELADO | J9: LOTE - C - Servicio de alquiler diario de vehículo a motor - mini van | K9: 1 | L9: Each | M9: 50 | O9: 50 | P9: CANCELADO - CA NCELADO | Q9: CANCELADO - CA NCELADO
A10: 2015-11-13T09:00:51 | B10: 751902 | C10: 343556 | D10: HOOKER, ANDREA IVETTE DE | E10: 2015-11-13T14:36:31 | F10: 29716 | G10: AV.OPRT | H10: CANCELADO - CA NCELADO | I10: CANCELADO - CA NCELADO | J10: LOTE - C - Servicio de alquiler semanal de vehículo a motor - mini van | K10: 1 | L10: Each | M10: 300 | O10: 300 | P10: CANCELADO - CA NCELADO | Q10: CANCELADO - CA NCELADO
A11: 2015-12-09T16:03:09 | B11: 757120 | C11: 345362 | D11: PIMENTEL ARAUZ, MARIA ISABEL | E11: 2015-12-11T06:20:57 | F11: 29716 | G11: AV.FAP | H11: 3 | I11: Programa de Embajadores de Ilusión - Marlane de Chavez - 272-4507 | J11: LOTE - C - Servicio de alquiler diario de vehículo a motor - mini van | K11: 3 | L11: Each | M11: 150 | O11: 150 | P11: 2015-12-09 | Q11: 2015-12-11
A12: 2015-12-09T16:03:09 | B12: 757120 | C12: 345362 | D12: PIMENTEL ARAUZ, MARIA ISABEL | E12: 2015-12-11T06:20:57 | F12: 29716 | G12: AV.FAP | H12: 3 | I12: Programa de Embajadores de Ilusión - Marlane de Chavez - 272-4507 | J12: LOTE - C - Servicio de alquiler diario de vehículo a motor - mini van | K12: 1 | L12: Each | M12: 50 | O12: 50 | P12: 2015-12-10 | Q12: 2015-12-11
A13: 2015-12-09T16:03:09 | B13: 757325 | C13: 345362 | D13: PIMENTEL ARAUZ, MARIA ISABEL | E13: 2015-12-11T06:20:57 | F13: 29716 | G13: AV.FAP | H13: 3 | I13: Programa de Embajadores de Ilusión - Marlane de Chavez - 272-4507 | J13: LOTE - C - Servicio de alquiler diario de vehículo a motor - mini van | K13: 1 | L13: Each | M13: 50 | O13: 50 | P13: 2015-12-10 | Q13: 2015-12-11
A14: 2015-12-18T09:39:30 | B14: 758701 | C14: 346037 | D14: PEREA ROJAS, MONICA ISABEL | E14: 2015-12-21T07:34:30 | F14: 29716 | G14: AV.OPRD | H14: 1 | I14: Veh 8858 - Veh on Garantía - José Jones - 276-3324 | J14: Cargo por entrega (a la ACP o recoger en la ACP) Del vehículo en el Sector Atlántico (cada viaje representa una unidad por auto). | K14: 1 | L14: Each | M14: 50 | O14: 50 | P14: 2015-12-22 | Q14: 2016-01-05
A15: 2015-12-18T09:39:30 | B15: 758701 | C15: 346037 | D15: PEREA ROJAS, MONICA ISABEL | E15: 2015-12-21T07:34:30 | F15: 29716 | G15: AV.OPRD | H15: 1 | I15: Veh 8858 - Veh on Garantía - José Jones - 276-3324 | J15: LOTE - C - Servicio de alquiler semanal de vehículo a motor - mini van | K15: 2 | L15: Each | M15: 600 | O15: 600 | P15: 2015-12-22 | Q15: 2016-01-05
A16: 2015-12-23T09:30:26 | B16: 758977 | C16: 346264 | D16: UNG HO, ISABEL TELMA | E16: 2015-12-29T14:35:26 | F16: 29716 | G16: AV.TIOD | H16: 1 | I16: Veh 8930 - José Médica - 276-4403 | J16: LOTE - C - Servicio de alquiler semanal de vehículo a motor - mini van VIGENCIA: 29 DE DICIEMBRE 2015 AL 9 DE ENERO DEL 2016 Punto de contacto: Jose Manuel Medica Tel. 276-4403/ 4104/4100 Edificio 712, Corozal Oeste | K16: 2 | L16: Each | M16: 600 | O16: 600 | P16: 2015-12-29 | Q16: 2016-01-12
A17: 2015-12-30T14:57:14 | B17: 760160 | C17: 346694 | D17: CEDEÑO OSPINA, MARICRUZ YARELIS | E17: 2015-12-30T15:38:57 | F17: 29716 | G17: AV.OPPV | H17: 3 | I17: Primera Reunión de EcoCanal 2016 - Marta Quarless - 276-3601 | J17: LOTE - C - Servicio de alquiler diario de vehículo a motor - mini van. Para reunión inicial ECOCANAL del 04 al 07 de enero de 2016. PR # 760160. | K17: 4 | L17: Each | M17: 200 | O17: 200 | P17: 2016-01-04 | Q17: 2016-01-07
A18: 2016-01-14T09:57:27 | B18: 761964 | C18: 347394 | D18: PEREA ROJAS, MONICA ISABEL | E18: 2016-01-14T16:42:41 | F18: 29716 | G18: AV.OPRD | H18: 1 | I18: Veh 8858 - Veh on Garantía - José Jones - 276-3324 | J18: Cargo por entrega (a la ACP o recoger en la ACP) Del vehículo en el Sector Atlántico (cada viaje representa una unidad por auto). | K18: 1 | L18: Each | M18: 50 | O18: 50 | P18: 2016-01-18 | Q18: 2016-02-18
A19: 2016-01-14T09:57:27 | B19: 761964 | C19: 347394 | D19: PEREA ROJAS, MONICA ISABEL | E19: 2016-01-14T16:42:41 | F19: 29716 | G19: AV.OPRD | H19: 1 | I19: Veh 8858 - Veh on Garantía - José Jones - 276-3324 | J19: LOTE - C - Servicio de alquiler mensual de vehículo a motor - mini van | K19: 1 | L19: Each | M19: 1380 | O19: 1380 | P19: 2016-01-18 | Q19: 2016-02-18
A20: 2016-02-11T13:59:34 | B20: 766938 | C20: 349321 | D20: BARSALLO TOUREAU, KARINA MINERVA | E20: 2016-02-24T11:29:50 | F20: 29716 | G20: AV.TIOD | H20: 1 | I20: Veh 8930 - José Médica - 276-4403 | J20: LOTE - C - Servicio de alquiler semanal de vehículo a motor - mini van | K20: 2 | L20: Each | M20: 600 | O20: 600 | P20: 2016-02-16 | Q20: 2016-03-01
A21: 2016-02-19T08:11:55 | B21: 768328 | C21: 349801 | D21: RUIZ ALMANZA, FRANKLIN ANTONIO | E21: 2016-02-22T13:53:33 | F21: 29716 | G21: AV.SACH | H21: 3 | I21: Gira del Equipo de Capacidad Hídrica SACH - Daniel Muschett - 272-2357 | J21: LOTE - C - Servicio de alquiler diario de vehículo a motor - mini van | K21: 3 | L21: Each | M21: 150 | O21: 150 | P21: 2016-02-23 | Q21: 2016-02-25
A22: 2016-02-29T13:16:03 | B22: 769081 | C22: 350390 | D22: BARSALLO TOUREAU, KARINA MINERVA | E22: 2016-03-04T14:19:55 | F22: 29716 | G22: AV.TISI | H22: 3 | I22: Viajes a Capira, Chorrera, Madden, etc del grupo de soporte de TISI - Iris Rodriguez - 276-3843 | J22: LOTE - C - Servicio de alquiler trimestral de vehículo a motor - mini van | K22: 1 | L22: Mo | M22: 4000 | O22: 4000 | P22: 2016-02-26 | Q22: 2016-05-25
A23: 2016-03-03T08:39:52 | B23: 770410 | C23: 350686 | D23: LOPEZ IGLESIAS, MARIA DE LOS ANGELES | E23: 2016-03-04T14:19:34 | F23: 29716 | G23: AV.AJ | H23: 3 | I23: Inspección Judicial de CVM - Mitzila Moreno - 272-7511 | J23: LOTE - C - Servicio de alquiler diario de vehículo a motor - mini van | K23: 1 | L23: Each | M23: 50 | O23: 50 | P23: 2016-03-03 | Q23: 2016-03-03
A24: 2016-03-03T08:39:52 | B24: 770410 | C24: 350686 | D24: LOPEZ IGLESIAS, MARIA DE LOS ANGELES | E24: 2016-03-04T14:19:34 | F24: 29716 | G24: AV.AJ | H24: 3 | I24: Inspección Judicial de CVM - Mitzila Moreno - 272-7511 | J24: LOTE - C - Servicio de alquiler diario de vehículo a motor - mini van | K24: 1 | L24: Each | M24: 50 | O24: 50 | P24: 2016-03-14 | Q24: 2016-03-14
A25: 2016-03-15T07:34:59 | B25: 772506 | C25: 351403 | D25: DUARTE PONCE, MANUEL ALEXANDER | E25: 2016-03-15T09:07:32 | F25: 29716 | G25: AV.SACH | H25: 3 | I25: Viajes para Sesiones del Plan Nacional de Seguridad Hídrica - Daniel Muschett - 272-2357 | J25: LOTE - C - Servicio de alquiler diario de vehículo a motor - mini van | K25: 3 | L25: Each | M25: 150 | O25: 150 | P25: 2016-03-15 | Q25: 2016-03-18
A26: 2016-03-15T07:34:59 | B26: 772506 | C26: 351403 | D26: DUARTE PONCE, MANUEL ALEXANDER | E26: 2016-03-15T09:07:32 | F26: 29716 | G26: AV.SACH | H26: 3 | I26: Viajes para Sesiones del Plan Nacional de Seguridad Hídrica - Daniel Muschett - 272-2357 | J26: LOTE - C - Servicio de alquiler diario de vehículo a motor - mini van | K26: 2 | L26: Each | M26: 100 | O26: 100 | P26: 2016-03-21 | Q26: 2016-03-23
I27: COR 302681MUL 21 MAR 15 - 20 MAR 16 | K27: =SUM(K7:K26) -> 35 | M27: =SUM(M7:M26) -> 13480 | N27: =SUM(N7:N26) -> 0 | O27: =SUM(O7:O26) -> 13480
A29: Fecha de | B29: PR | C29: PO | D29: BUYER | E29: Fecha de | F29: PROYECTO | G29: TAREA | H29: CLASIFICACION | I29: VEHICULO DE REMPLAZO | J29: Servicio de alquiler de vehículo para la ACP - LOTE - C (Mini Van) | K29: Cantidad | L29: UOM | M29: Cantidad | N29: Cantidad | O29: Cantidad | P29: Período | R29: Factura
A30: Creación | E30: Aprobación | H30: 1/2/3/4 | J30: INTER MARKTING INC - THRIFTY CAR RENTAL | K30: Ordenada | M30: Obligada | N30: Pagada | O30: Pendiente | P30: Desde | Q30: Hasta | R30: No.
A31: 2015-10-01T11:40:02 | B31: 743854 | C31: 340916 | D31: GONZALEZ ATENCIO, LETICIA PORTOLATINA | E31: 2015-10-02T08:16:57 | F31: 29716 | G31: AV.OPPV | H31: 1 | I31: Veh 8212 - Pedro Chen - 276-1054 | J31: Lote D - Servicio de alquiler semanal de vehículo a motor - Picop | K31: 3 | L31: Each | M31: 664.2 | O31: =+M31-N31 -> 664.2 | P31: 2015-10-01 | Q31: 2015-10-22
A32: 2015-10-01T11:45:27 | B32: 743856 | C32: 340917 | D32: GONZALEZ ATENCIO, LETICIA PORTOLATINA | E32: 2015-10-02T08:17:33 | F32: 29716 | G32: AV.OPPV | H32: 1 | I32: Veh 9405 - Pedro Chen - 276-1054 | J32: Lote D - Servicio de alquiler semanal de vehículo a motor - Picop | K32: 1 | L32: Each | M32: 221.4 | O32: 221.4 | P32: 2015-10-01 | Q32: 2015-10-08
A33: 2015-10-01T11:49:36 | B33: 743857 | C33: 340918 | D33: GONZALEZ ATENCIO, LETICIA PORTOLATINA | E33: 2015-10-02T08:17:49 | F33: 29716 | G33: AV.OPPV | H33: 1 | I33: Veh 8213 - Pedro Chen - 276-1054 | J33: Lote D - Servicio de alquiler semanal de vehículo a motor - Picop | K33: 2 | L33: Each | M33: 442.8 | O33: 442.8 | P33: 2015-10-01 | Q33: 2015-10-15
A34: 2015-10-02T09:57:27 | B34: 744072 | C34: 340938 | D34: DELGADO GONZALEZ, FRANCISCO JR | E34: 2015-10-07T10:39:00 | F34: 29716 | G34: AV.IAIM | H34: 4 | I34: ENO - Veh No- 2 - Proyectos Asignados a IAIM, Agua, Dragado, Ampliación Vertederos, etc - Marcos Moltó - 276-1405 | J34: Lote B - Servicio de alquiler trimestral de vehículo a motor - camioneta 4 x 4 | K34: 1 | L34: Mo | M34: 3705 | O34: 3705 | P34: 2015-10-01 | Q34: 2015-12-30
A35: 2015-10-02T10:02:09 | B35: 744076 | C35: 340940 | D35: DELGADO GONZALEZ, FRANCISCO JR | E35: 2015-10-05T15:29:25 | F35: 29716 | G35: AV.IAIC | H35: 4 | I35: ENO - Veh No.1 - Sección de IAIC-HID, Ambiente, Estructural -Maximo Molina-276-1621/Daniel Moreno 276-1529 | J35: Lote B - Servicio de alquiler trimestral de vehículo a motor - camioneta 4 x 4 | K35: 1 | L35: Mo | M35: 3705 | O35: 3705 | P35: 2015-10-01 | Q35: 2015-12-30
A36: 2015-10-02T10:05:31 | B36: 744078 | C36: 340941 | D36: DELGADO GONZALEZ, FRANCISCO JR | E36: 2015-10-05T15:29:40 | F36: 29716 | G36: AV.IAIC | H36: 4 | I36: ENO - Veh No.2 - Sección de IAIC-HID, Ambiente, Estructural -Maximo Molina-276-1621/Daniel Moreno 276-1529 | J36: Lote B - Servicio de alquiler trimestral de vehículo a motor - camioneta 4 x 4 | K36: 1 | L36: Mo | M36: 3705 | O36: 3705 | P36: 2015-10-01 | Q36: 2015-12-30
A37: 2015-10-02T10:08:12 | B37: 744079 | C37: 340942 | D37: DELGADO GONZALEZ, FRANCISCO JR | E37: 2015-10-05T15:28:29 | F37: 29716 | G37: AV.IAIM | H37: 4 | I37: ENO - Veh No- 1 - Proyectos Asignados a IAIM, Agua, Dragado, Ampliación Vertederos, etc - Marcos Moltó - 276-1405 | J37: Lote B - Servicio de alquiler trimestral de vehículo a motor - camioneta 4 x 4 | K37: 1 | L37: Mo | M37: 3705 | O37: 3705 | P37: 2015-10-01 | Q37: 2015-12-30
A38: 2015-10-02T13:01:43 | B38: 744146 | C38: 340946 | D38: ZHANG WU, EUGENIO | E38: 2015-10-05T10:56:06 | F38: 29716 | G38: AV.IAIG | H38: 4 | I38: ENO - Veh No.1 - Proyecto de Control y Derrumbe y de Erosión - Max de Puy 276-1737 Carlos Fong 276-1738 | J38: Lote B - Servicio de alquiler trimestral de vehículo a motor - camioneta 4 x 4 | K38: 1 | L38: Mo | M38: 3705 | O38: 3705 | P38: 2015-10-01 | Q38: 2015-12-30
A39: 2015-10-02T13:13:37 | B39: 744157 | C39: 340947 | D39: ZHANG WU, EUGENIO | E39: 2015-10-05T10:56:28 | F39: 29716 | G39: AV.IAIG | H39: 4 | I39: ENO - Veh No.2 - Proyecto de Control y Derrumbe y de Erosión - Max de Puy 276-1737 Carlos Fong 276-1738 | J39: Lote B - Servicio de alquiler trimestral de vehículo a motor - camioneta 4 x 4 | K39: 1 | L39: Mo | M39: 3705 | O39: 3705 | P39: 2015-10-01 | Q39: 2015-12-30
A40: 2015-10-02T13:19:31 | B40: 744163 | C40: 340948 | D40: ZHANG WU, EUGENIO | E40: 2015-10-05T10:56:15 | F40: 29716 | G40: AV.IAIG | H40: 4 | I40: ENO - Veh No.3 - Proyecto de Control y Derrumbe y de Erosión - Max de Puy 276-1737 Carlos Fong 276-1738 | J40: Lote B - Servicio de alquiler trimestral de vehículo a motor - camioneta 4 x 4 | K40: 1 | L40: Mo | M40: 3705 | O40: 3705 | P40: 2015-10-01 | Q40: 2015-12-30
A41: 2015-10-05T11:50:28 | B41: 744246 | C41: 340980 | D41: HOOKER, ANDREA IVETTE DE | E41: 2015-10-05T15:29:58 | F41: 29716 | G41: AV.OPRT | H41: 1 | I41: Veh 9104 - Jaime José Gonzalez - 276-1192 | J41: Lote D - Servicio de alquiler diario de vehículo a motor - Picop | K41: 4 | L41: Each | M41: 147.6 | O41: 147.6 | P41: 2015-10-01 | Q41: 2015-10-05
A42: 2015-10-05T11:50:28 | B42: 744002 | C42: 340980 | D42: HOOKER, ANDREA IVETTE DE | E42: 2015-10-05T15:29:58 | F42: 29716 | G42: AV.OPRT | H42: 1 | I42: Veh 6002 - Jaime José Gonzalez - 276-1192 | J42: Lote D - Servicio de alquiler diario de vehículo a motor - Picop | K42: 2 | L42: Each | M42: 73.8 | O42: 73.8 | P42: 2015-10-01 | Q42: 2015-10-02
A43: 2015-10-05T11:50:28 | B43: 744002 | C43: 340980 | D43: HOOKER, ANDREA IVETTE DE | E43: 2015-10-05T15:29:58 | F43: 29716 | G43: AV.OPRT | H43: 1 | I43: Veh 6002 - Jaime José Gonzalez - 276-1192 | J43: Lote D - Servicio de alquiler semanal de vehículo a motor - Picop | K43: 1 | L43: Each | M43: 221.4 | O43: 221.4 | P43: 2015-10-03 | Q43: 2015-10-09
A44: 2015-10-05T12:00:54 | B44: 744412 | C44: 340981 | D44: GONZALEZ ATENCIO, LETICIA PORTOLATINA | E44: 2015-10-05T15:30:08 | F44: 29716 | G44: AV.OPPV | H44: 1 | I44: Veh 8214 - Pedro Chen - 276-1054 | J44: Lote D - Servicio de alquiler semanal de vehículo a motor - Picop | K44: 2 | L44: Each | M44: 442.8 | O44: 442.8 | P44: 2015-10-01 | Q44: 2015-10-15
A45: 2015-10-05T12:10:46 | B45: 744103 | C45: 340983 | D45: GONZALEZ ATENCIO, LETICIA PORTOLATINA | E45: 2015-10-05T15:30:15 | F45: 29716 | G45: AV.OPPV | H45: 1 | I45: Veh 9401 - Pedro Chen - 276-1054 | J45: Lote D - Servicio de alquiler mensual de vehículo a motor - Picop | K45: 1 | L45: Each | M45: 996.3 | O45: 996.3 | P45: 2015-10-01 | Q45: 2015-10-30
A46: 2015-10-05T12:18:20 | B46: 744106 | C46: 340984 | D46: GONZALEZ ATENCIO, LETICIA PORTOLATINA | E46: 2015-10-05T15:30:24 | F46: 29716 | G46: AV.OPPV | H46: 1 | I46: Veh 9397 - Pedro Chen - 276-1054 | J46: Lote D - Servicio de alquiler mensual de vehículo a motor - Picop | K46: 1 | L46: Each | M46: 996.3 | O46: 996.3 | P46: 2015-10-01 | Q46: 2015-10-30
A47: 2015-10-05T13:58:41 | B47: 744221 | C47: 341004 | D47: DELGADO GONZALEZ, FRANCISCO JR | E47: 2015-10-07T09:23:17 | F47: 29716 | G47: AV.IAIC | H47: 4 | I47: ENO - Veh No.3 - Sección de IAIC-HID, Ambiente, Estructural -Maximo Molina-276-1621/Daniel Moreno 276-1529 | J47: Lote B - Servicio de alquiler trimestral de vehículo a motor - camioneta 4 x 4 | K47: 1 | L47: Mo | M47: 3705 | O47: 3705 | P47: 2015-10-01 | Q47: 2015-10-30
A48: 2015-10-06T08:22:58 | B48: 743949 | C48: 341031 | D48: KHAN SANDIFORD, SHARON VONETTA | E48: 2015-10-06T13:41:22 | F48: 29716 | G48: AV.EAA-CA | H48: 4 | I48: ENO - Planta Potabilizadora de Colón - AA2611 - Yamileth Arauz - 276-3534 | J48: Lote D - Servicio de alquiler trimestral de vehículo a motor - Picop | K48: 1 | L48: Mo | M48: 2839.44 | O48: 2839.44 | P48: 2015-10-01 | Q48: 2015-12-30
A49: 2015-10-06T08:34:37 | B49: 744711 | C49: 341033 | D49: KHAN SANDIFORD, SHARON VONETTA | E49: 2015-10-06T13:42:26 | F49: 29716 | G49: AV.EAA-CA | H49: 4 | I49: ENO - Laboratorio de Corozal Oeste-UCA CZL - Yamileth Arauz - 276-3534 | J49: Lote D - Servicio de alquiler trimestral de vehículo a motor - Picop | K49: 1 | L49: Mo | M49: 2839.44 | O49: 2839.44 | P49: 2015-10-05 | Q49: 2016-01-03
A50: 2015-10-06T08:35:45 | B50: 744600 | C50: 341034 | D50: ZHANG WU, EUGENIO | E50: 2015-10-06T14:11:06 | F50: 29716 | G50: AV.IAIT | H50: 4 | I50: ENO - Veh No.1 - Transp personal de Topografía en Pedro Miguel - Jorge Fanovich - 443-5508/276-7151 | J50: Lote B - Servicio de alquiler trimestral de vehículo a motor - camioneta 4 x 4 | K50: 1 | L50: Mo | M50: 3705 | O50: 3705 | P50: 2015-10-01 | Q50: 2015-12-30
A51: 2015-10-06T08:39:09 | B51: 743988 | C51: 341036 | D51: MEANA MOUYNES, MARIA LOURDES | E51: 2015-10-06T14:13:09 | F51: 29716 | G51: AV.OPEM-A | H51: 4 | I51: ENO - Mant de A/A en Locomotoras, Remolcadores, Lancha, etc. de Edificios en el Sector Atlántico - Alvaro Arcia - 443-4551 | J51: Lote E - Servicio de alquiler trimestral de vehículo a motor - Picop con barra antivuelco y ganchos | K51: 1 | L51: Mo | M51: 2839.44 | O51: 2839.44 | P51: 2015-11-06 | Q51: 2016-01-05
A52: 2015-10-06T08:45:22 | B52: 744344 | C52: 341038 | D52: ZHANG WU, EUGENIO | E52: 2015-10-06T13:43:11 | F52: 29716 | G52: AV.IAIT | H52: 4 | I52: ENO - Veh No.2 - Transp personal de Topografía en Colón - Jorge Fanovich - 443-5508/276-7151 | J52: Cargo por entrega (a la ACP o recoger en la ACP) Del vehículo en el Sector Atlántico (cada viaje representa una unidad por auto). | K52: 1 | L52: Each | M52: 20 | O52: 20 | P52: 2015-10-01 | Q52: 2015-12-30
A53: 2015-10-06T08:45:22 | B53: 744344 | C53: 341038 | D53: ZHANG WU, EUGENIO | E53: 2015-10-06T13:43:11 | F53: 29716 | G53: AV.IAIT | H53: 4 | I53: ENO - Veh No.2 - Transp personal de Topografía en Colón - Jorge Fanovich - 443-5508/276-7151 | J53: Lote B - Servicio de alquiler trimestral de vehículo a motor - camioneta 4 x 4 | K53: 1 | L53: Mo | M53: 3705 | O53: 3705 | P53: 2015-10-01 | Q53: 2015-12-30
A54: 2015-10-06T09:16:27 | B54: 743968 | C54: 341041 | D54: GONZALEZ QUIROS, AIDEE DEL CARMEN | E54: 2015-10-09T14:57:03 | F54: 29716 | G54: AV.OPEM-A | H54: 4 | I54: ENO - Mant de A/A en Locomotoras, Remolcadores, Lancha, etc. de Edificios en el Sector Atlántico - Alvaro Arcia - 443-4551 | J54: Lote E - Servicio de alquiler trimestral de vehículo a motor - Picop con barra antivuelco y ganchos | K54: 1 | L54: Mo | M54: 2839.44 | O54: 2839.44 | P54: 2015-10-06 | Q54: 2016-01-11
A55: 2015-10-06T12:46:07 | B55: 744321 | C55: 341056 | D55: RODRIGUEZ HERRERA, HELIO JAVIER | E55: 2015-10-07T12:37:16 | F55: 29716 | G55: AV.OPEM-P | H55: 1 | I55: Veh 8772 - AA-9239 - Gabriel Vasquez - 276-8226/2488 | J55: Lote E - Servicio de alquiler semanal de vehículo a motor - Picop con barra antivuelco y ganchos | K55: 3 | L55: Each | M55: 664.2 | O55: 664.2 | P55: 2015-10-05 | Q55: 2015-10-26
A56: 2015-10-06T13:56:14 | B56: 744316 | C56: 341070 | D56: RUIZ ORTEGA, JORGE LUIS | E56: 2015-10-07T12:40:17 | F56: 29716 | G56: AV.EAEB-MA | H56: 4 | I56: ENO - 12 VEH 6 DE EAEA-AP - 6 DE EAEB-MA DE 2 A 3 DIA CADA UNO TOTAL 27 DIAS -JORGE RUIZ - 272-4415 | J56: Lote E - Servicio de alquiler diario de vehículo a motor - Picop con barra antivuelco y ganchos | K56: 18.5 | L56: Each | M56: 682.65 | O56: 682.65 | P56: HASTA EL 30 DE SEPT 2015
A57: 2015-10-06T13:56:14 | B57: 744316 | C57: 341070 | D57: RUIZ ORTEGA, JORGE LUIS | E57: 2015-10-07T12:40:17 | F57: 29716 | G57: AV.EAEA-AP | H57: 4 | I57: ENO - 12 VEH 6 DE EAEA-AP - 6 DE EAEB-MA DE 2 A 3 DIA CADA UNO TOTAL 27 DIAS -JORGE RUIZ - 272-4415 | J57: Lote E - Servicio de alquiler diario de vehículo a motor - Picop con barra antivuelco y ganchos | K57: 18.5 | L57: Each | M57: 682.65 | O57: 682.65 | P57: HASTA EL 30 DE SEPT 2015
A58: 2015-10-06T13:59:22 | B58: 744818 | C58: 341072 | D58: GONZALEZ ATENCIO, LETICIA PORTOLATINA | E58: 2015-10-07T13:13:24 | F58: 29716 | G58: AV.OPPV | H58: 1 | I58: Veh 8822 - AT8861 - Franklin Justiniani - 276-1541 | J58: Lote D - Servicio de alquiler semanal de vehículo a motor - Picop | K58: 2 | L58: Each | M58: 442.8 | O58: 442.8 | P58: 2015-10-05 | Q58: 2015-10-19
A59: 2015-10-07T08:45:50 | B59: 744700 | C59: 341104 | D59: RUIZ ORTEGA, JORGE LUIS | E59: 2015-10-07T13:13:00 | F59: 29716 | G59: AV.EAEA-AP | H59: 1 | I59: Veh 8412 - Ruben Rose - Jessica Brathwaite - 272-4453 | J59: Lote E - Servicio de alquiler semanal de vehículo a motor - Picop con barra antivuelco y ganchos | K59: 2 | L59: Each | M59: 442.8 | O59: 442.8 | P59: 2015-10-07 | Q59: 2015-10-21
A60: 2015-10-07T09:23:07 | B60: 744690 | C60: 341112 | D60: RUIZ ORTEGA, JORGE LUIS | E60: 2015-10-07T12:36:19 | F60: 29716 | G60: AV.EAEA-AP | H60: 4 | I60: ENO - Veh No. 1 - Proyecto al Contrato de Remplazo de las Torres de Transmisión Líneas 413-414 - Cuadrilla Roman Arosemena - 272*4453 | J60: Lote E - Servicio de alquiler trimestral de vehículo a motor - Picop con barra antivuelco y ganchos | K60: 1 | L60: Mo | M60: 2839.44 | O60: 2839.44 | P60: 2015-10-01 | Q60: 2015-12-30
A61: 2015-10-07T09:23:07 | B61: 744690 | C61: 341112 | D61: RUIZ ORTEGA, JORGE LUIS | E61: 2015-10-07T12:36:19 | F61: 29716 | G61: AV.EAEA-AP | H61: 4 | I61: ENO - Veh No. 2 - Proyecto al Contrato de Remplazo de las Torres de Transmisión Líneas 413-414 - Cuadrilla Roman Arosemena - 272*4453 | J61: Lote E - Servicio de alquiler trimestral de vehículo a motor - Picop con barra antivuelco y ganchos | K61: 1 | L61: Mo | M61: 2839.44 | O61: 2839.44 | P61: 2015-10-01 | Q61: 2015-12-30
A62: 2015-10-07T10:43:20 | B62: 744875 | C62: 341131 | D62: MEANA MOUYNES, MARIA LOURDES | E62: 2015-10-08T10:18:54 | F62: 29716 | G62: AV.OPEM-P | H62: 4 | I62: ENO - 5 VEH - 2 TALLER DE SOLDADURA-2 CUADRILLA DE EQUIP PESADO OPEM-1 PERSONAL TECNICO DE OPEM - ROLANDO CONCEPCION -276-4815 | J62: Lote E - Servicio de alquiler trimestral de vehículo a motor - Picop con barra antivuelco y ganchos | K62: 5 | L62: Mo | M62: 14197.2 | O62: 14197.2 | P62: 2015-10-26 | Q62: 2016-01-24
A63: 2015-10-07T12:38:43 | B63: 744684 | C63: 341145 | D63: RUIZ ORTEGA, JORGE LUIS | E63: 2015-10-07T15:32:55 | F63: 29716 | G63: AV.EAEA-AP | H63: 4 | I63: ENO - Apoyo a trabajo de inspección y supv del Capataz General Randolph Bryant - Jessica Brathwaite 272-4453 | J63: Lote E - Servicio de alquiler trimestral de vehículo a motor - Picop con barra antivuelco y ganchos | K63: 1 | L63: Mo | M63: 2839.44 | O63: 2839.44 | P63: 2015-10-01 | Q63: 2015-12-30
A64: 2015-10-07T13:00:50 | B64: 744667 | C64: 341148 | D64: RUIZ ORTEGA, JORGE LUIS | E64: 2015-10-07T15:33:07 | F64: 29716 | G64: AV.EAEA-AP | H64: 4 | I64: ENO - Apoyo a Mant General de Estructuras de Monte Esperanza - Cuadrilla Arcadio Avila - 272-4453 | J64: Lote E - Servicio de alquiler trimestral de vehículo a motor - Picop con barra antivuelco y ganchos | K64: 1 | L64: Mo | M64: 2839.44 | O64: 2839.44 | P64: 2015-10-01 | Q64: 2015-12-30
A65: 2015-10-07T13:22:13 | B65: 744718 | C65: 341156 | D65: SANCHEZ UREÑA, LIZDEYKA MELISSA | E65: 2015-10-07T15:33:17 | F65: 29716 | G65: AV.OPEM-P | H65: 4 | I65: ENO - Necesidades operativas de OPEM-PCM - Gerardo Rios - 276-2006 | J65: Lote D - Servicio de alquiler trimestral de vehículo a motor - Picop | K65: 1 | L65: Mo | M65: 2839.44 | O65: 2839.44 | P65: 2015-10-08 | Q65: 2016-01-07
A66: 2015-10-07T13:24:05 | B66: 744916 | C66: 341157 | D66: RODRIGUEZ HOLDER, RICARDO AURELIO | E66: 2015-10-07T15:33:33 | F66: 29716 | G66: AV.OPED | H66: 4 | I66: ENO - Veh No. 2 - Insp & Rep de Equipo de A/A - Atl/Pac - Edwin Navarro - 276-2376 | J66: Lote A - Servicio de alquiler trimestral de vehículo a motor - modelo sedán | K66: 1 | L66: Mo | M66: 1762.11 | O66: 1762.11 | P66: 2015-10-09 | Q66: 2016-01-08
A67: 2015-10-07T13:57:03 | B67: 744913 | C67: 341163 | D67: RODRIGUEZ HOLDER, RICARDO AURELIO | E67: 2015-10-07T16:00:07 | F67: 29716 | G67: AV.OPED | H67: 4 | I67: ENO - Veh No. 1 - Insp de Campo por Area- Atl/Pac - Edwin Navarro - 276-2376 | J67: Lote A - Servicio de alquiler trimestral de vehículo a motor - modelo sedán | K67: 1 | L67: Mo | M67: 1762.11 | O67: 1762.11 | P67: 2015-10-09 | Q67: 2016-01-08
A68: 2015-10-07T14:30:27 | B68: 744921 | C68: 341173 | D68: RODRIGUEZ HOLDER, RICARDO AURELIO | E68: 2015-10-07T16:00:59 | F68: 29716 | G68: AV.OPED | H68: 4 | I68: ENO - Veh No. 3 - Insp de Campo Operaciones- Atl/Pac - Edwin Navarro - 276-2376 | J68: Lote A - Servicio de alquiler trimestral de vehículo a motor - modelo sedán | K68: 1 | L68: Mo | M68: 1762.11 | O68: 1762.11 | P68: 2015-10-08 | Q68: 2016-01-08
A69: 2015-10-07T14:43:19 | B69: 744622 | C69: 341181 | D69: RUIZ ORTEGA, JORGE LUIS | E69: 2015-10-07T16:01:07 | F69: 29716 | G69: AV.EAEA-AP | H69: 4 | I69: ENO - Proyecto de Apóyo de Adecuaciones de los Accesos Verticales, Pedro Miguel - Cuadrilla Dino Blandford - 272-4453 | J69: Lote E - Servicio de alquiler trimestral de vehículo a motor - Picop con barra antivuelco y ganchos | K69: 1 | L69: Mo | M69: 2839.44 | O69: 2839.44 | P69: 2015-10-01 | Q69: 2015-12-30
A70: 2015-10-07T14:57:27 | B70: 744646 | C70: 341187 | D70: RUIZ ORTEGA, JORGE LUIS | E70: 2015-10-07T16:12:25 | F70: 29716 | G70: AV.EAEA-AP | H70: 4 | I70: ENO - Apoyo a Proyecto de Mant de Líneas 405 y 406 Atl - Cuadrilla Zurita - 272-4453 | J70: Lote E - Servicio de alquiler trimestral de vehículo a motor - Picop con barra antivuelco y ganchos | K70: 1 | L70: Mo | M70: 2839.44 | O70: 2839.44 | P70: 2015-10-01 | Q70: 2015-12-30
A71: 2015-10-07T15:05:05 | B71: 744660 | C71: 341191 | D71: RUIZ ORTEGA, JORGE LUIS | E71: 2015-10-07T16:12:32 | F71: 29716 | G71: AV.EAEA-AP | H71: 4 | I71: ENO - Proyecto de Apóyo de Adecuaciones de los Accesos Verticales, Gatún - Cuadrilla José Fong - 272-4453 | J71: Lote E - Servicio de alquiler trimestral de vehículo a motor - Picop con barra antivuelco y ganchos | K71: 1 | L71: Mo | M71: 2839.44 | O71: 2839.44 | P71: 2015-10-01 | Q71: 2015-12-30
A72: 2015-10-08T08:53:46 | B72: 742588 | C72: 341207 | D72: RUIZ ORTEGA, JORGE LUIS | E72: 2015-10-08T16:32:53 | F72: 29716 | G72: AV.EAEG-GT | H72: 4 | I72: ENO - Proyecto de Operacióne Inversión de EAEG. Camarena - Jorge Ruiz - 272*-4415 | J72: Lote B - Servicio de alquiler trimestral de vehículo a motor - camioneta 4 x 4 | K72: 1 | L72: Mo | M72: 3705 | O72: 3705 | P72: 2015-10-01 | Q72: 2015-12-30
A73: 2015-10-08T08:57:42 | B73: 744923 | C73: 341208 | D73: MEANA MOUYNES, MARIA LOURDES | E73: 2015-10-08T14:19:38 | F73: 29716 | G73: AV.OPED | H73: 4 | I73: ENO - Veh No. 4 - Tipo pick up - Insp & Rep de Equipo de A/A - Atl/Pac - Edwin Navarro - 276-2376 | J73: Lote D - Servicio de alquiler trimestral de vehículo a motor - Picop | K73: 1 | L73: Mo | M73: 2839.44 | O73: 2839.44 | P73: 2015-10-07 | Q73: 2016-01-06
A74: 2015-10-08T09:46:06 | B74: 745135 | C74: 341217 | D74: GONZALEZ ATENCIO, LETICIA PORTOLATINA | E74: 2015-10-08T14:19:54 | F74: 29716 | G74: AV.OPPV | H74: 1 | I74: Veh 9403 - Pedro Chen - 276-1054 | J74: Lote D - Servicio de alquiler semanal de vehículo a motor - Picop | K74: 3 | L74: Each | M74: 664.2 | O74: 664.2 | P74: 2015-10-09 | Q74: 2015-10-30
A75: 2015-10-08T09:55:07 | B75: 745141 | C75: 341220 | D75: GONZALEZ ATENCIO, LETICIA PORTOLATINA | E75: 2015-10-08T14:19:47 | F75: 29716 | G75: AV.OPPV | H75: 1 | I75: Veh 9394 - Pedro Chen - 276-1054 | J75: Lote D - Servicio de alquiler semanal de vehículo a motor - Picop | K75: 2 | L75: Each | M75: 442.8 | O75: 442.8 | P75: 2015-10-09 | Q75: 2015-10-23
A76: 2015-10-08T13:16:14 | B76: 745151 | C76: 341270 | D76: SIMITI VALDEZ, EMILY BEATRIZ | E76: 2015-10-08T16:32:40 | F76: 29716 | G76: AV.OPEM-E | H76: 1 | I76: Veh 8245 - Evelyn Rodríguez - 276-3177 | J76: Lote D - Servicio de alquiler semanal de vehículo a motor - Picop | K76: 3 | L76: Each | M76: 664.2 | O76: 664.2 | P76: 2015-10-13 | Q76: 2015-11-02
A77: 2015-10-08T13:23:04 | B77: 745075 | C77: 341272 | D77: LOPEZ IGLESIAS, MARIA DE LOS ANGELES | E77: 2015-10-08T16:32:21 | F77: 29716 | G77: AV.AJ | H77: 4 | I77: ENO - Asignación Diaria en la Oficina de Asesoría Legal - Mitzila Moreno - 272-7511 | J77: Lote A - Servicio de alquiler trimestral de vehículo a motor - modelo sedán | K77: 1 | L77: Mo | M77: 1762.11 | O77: 1762.11 | P77: 2015-10-12 | Q77: 2016-01-11
A78: 2015-10-08T14:08:43 | B78: 744554 | C78: 341279 | D78: HOOKER ROOK, ROBERTO ALFONSO | E78: 2015-10-08T16:32:58 | F78: 29716 | G78: AV.CCXR | H78: 2 | I78: Proyectos y actividades de la Sección de Comunicación Corporativa - Adolfo Gil - 272-7605 | J78: Lote B - Servicio de alquiler trimestral de vehículo a motor - camioneta 4 x 4 | K78: 1 | L78: Mo | M78: 3705 | O78: 3705 | P78: 2015-10-02 | Q78: 2015-12-31
A79: 2015-10-09T11:39:48 | B79: 745532 | C79: 341359 | D79: LOPEZ RIVAS, RODRIGO ELISEO | E79: 2015-10-09T14:57:19 | F79: 29716 | G79: AV.EACM-SA | H79: 4 | I79: ENO - Programa y Proyectos de Equipo de Servicios Ambientales, de la Div de Ambiente AF-16 - Alejandro Figueroa - 276-3953 | J79: Lote D - Servicio de alquiler trimestral de vehículo a motor - Picop | K79: 1 | L79: Mo | M79: 2839.44 | O79: 2839.44 | P79: 2015-10-04 | Q79: 2016-01-03
A80: 2015-10-09T11:58:57 | B80: 745513 | C80: 341365 | D80: LOPEZ RIVAS, RODRIGO ELISEO | E80: 2015-10-09T15:58:48 | F80: 29716 | G80: AV.EACM-SA | H80: 4 | I80: ENO - Programa y Proyectos de Equipo de Servicios Ambientales, de la Div de Ambiente AF-16 - Alejandro Figueroa - 276-3953 | J80: Lote D - Servicio de alquiler trimestral de vehículo a motor - Picop | K80: 1 | L80: Mo | M80: 2839.44 | O80: 2839.44 | P80: 2015-10-04 | Q80: 2016-01-03
A81: 2015-10-09T12:07:57 | B81: 745489 | C81: 341366 | D81: LOPEZ RIVAS, RODRIGO ELISEO | E81: 2015-10-09T14:58:33 | F81: 29716 | G81: AV.EACM-EACE | H81: 4 | I81: ENO - Actividades de EACE - Angel Ureña Vargas - 276-2830 | J81: Lote B - Servicio de alquiler trimestral de vehículo a motor - camioneta 4 x 4 | K81: 1 | L81: Mo | M81: 3705 | O81: 3705 | P81: 2015-10-04 | Q81: 2016-01-03
A82: 2015-10-09T15:25:25 | B82: 745699 | C82: 341407 | D82: GONZALEZ ATENCIO, LETICIA PORTOLATINA | E82: 2015-10-09T15:58:54 | F82: 29716 | G82: AV.OPPV | H82: 1 | I82: Veh 9395 - Pedro Chen - 276-1054 | J82: Lote D - Servicio de alquiler semanal de vehículo a motor - Picop | K82: 2 | L82: Each | M82: 442.8 | O82: 442.8 | P82: 2015-10-08 | Q82: 2015-10-22
A83: 2015-10-09T15:29:09 | B83: 743586 | C83: 341408 | D83: GONZALEZ ATENCIO, LETICIA PORTOLATINA | E83: 2015-10-09T15:59:01 | F83: 29716 | G83: AV.OPPV | H83: 1 | I83: Veh 9404 - Pedro Chen - 276-1054 | J83: Lote D - Servicio de alquiler diario de vehículo a motor - Picop | K83: 2 | L83: Each | M83: 73.8 | O83: 73.8 | P83: 2015-10-01 | Q83: 2015-10-02
A84: 2015-10-09T15:33:21 | B84: 743599 | C84: 341409 | D84: GONZALEZ ATENCIO, LETICIA PORTOLATINA | E84: 2015-10-09T15:59:14 | F84: 29716 | G84: AV.OPPV | H84: 1 | I84: Veh 9402 - Pedro Chen - 276-1054 | J84: Lote D - Servicio de alquiler diario de vehículo a motor - Picop | K84: 2 | L84: Each | M84: 73.8 | O84: 73.8 | P84: 2015-09-25 | Q84: 2015-09-30
A85: 2015-10-09T15:33:21 | B85: 743599 | C85: 341409 | D85: GONZALEZ ATENCIO, LETICIA PORTOLATINA | E85: 2015-10-09T15:59:14 | F85: 29716 | G85: AV.OPPV | H85: 1 | I85: Veh 9402 - Pedro Chen - 276-1054 | J85: Lote D - Servicio de alquiler semanal de vehículo a motor - Picop | K85: 2 | L85: Each | M85: 442.8 | O85: 442.8 | P85: 2015-10-01 | Q85: 2015-10-15
A86: 2015-10-09T15:43:48 | B86: 743612 | C86: 341410 | D86: GONZALEZ ATENCIO, LETICIA PORTOLATINA | E86: 2015-10-12T07:18:58 | F86: 29716 | G86: AV.OPPV | H86: 1 | I86: Veh 9398 - Pedro Chen - 276-1054 | J86: Lote D - Servicio de alquiler diario de vehículo a motor - Picop | K86: 4 | L86: Each | M86: 147.6 | O86: 147.6 | P86: 2015-09-27 | Q86: 2015-09-30
A87: 2015-10-09T15:43:48 | B87: 743612 | C87: 341410 | D87: GONZALEZ ATENCIO, LETICIA PORTOLATINA | E87: 2015-10-12T07:18:58 | F87: 29716 | G87: AV.OPPV | H87: 1 | I87: Veh 9398 - Pedro Chen - 276-1054 | J87: Lote D - Servicio de alquiler semanal de vehículo a motor - Picop | K87: 2 | L87: Each | M87: 442.8 | O87: 442.8 | P87: 2015-10-01 | Q87: 2015-10-15
A88: 2015-10-09T15:47:18 | B88: 743616 | C88: 341411 | D88: GONZALEZ ATENCIO, LETICIA PORTOLATINA | E88: 2015-10-12T07:19:06 | F88: 29716 | G88: AV.OPPV | H88: 1 | I88: Veh 9395 - Pedro Chen - 276-1054 | J88: Lote D - Servicio de alquiler diario de vehículo a motor - Picop | K88: 5 | L88: Each | M88: 184.5 | O88: 184.5 | P88: 2015-10-01 | Q88: 2015-10-05
A89: 2015-10-12T11:17:43 | B89: 745669 | C89: 341457 | D89: ZHANG WU, EUGENIO | E89: 2015-10-12T14:56:32 | F89: 29716 | G89: AV.IAIT | H89: 1 | I89: Veh 9694 - Jorge Fanovich - 443-5508 | J89: Lote B - Servicio de alquiler mensual de vehículo a motor - camioneta 4 x 4 | K89: 1 | L89: Each | M89: 1300 | O89: 1300 | P89: 2015-10-09 | Q89: 2015-11-08
A90: 2015-10-13T11:03:55 | B90: 746284 | C90: 341563 | D90: HOOKER ROOK, ROBERTO ALFONSO | E90: 2015-10-14T07:21:34 | F90: 29716 | G90: AV.FAP | H90: 3 | I90: Viaje a Colón de FAPO-CP - Lizzette Olaciregui - 272-7690 | J90: Lote A - Servicio de alquiler diario de vehículo a motor - modelo sedán | K90: 1 | L90: Each | M90: 22.9 | O90: 22.9 | P90: 2015-10-14 | Q90: 2015-10-14
A91: 2015-10-14T08:36:39 | B91: 744267 | C91: 341633 | D91: BARSALLO TOUREAU, KARINA MINERVA | E91: 2015-10-14T10:51:47 | F91: 29716 | G91: AV.TIOD | H91: 1 | I91: Veh 9580 - Elmer Vaca - 276-2412 | J91: Lote E - Servicio de alquiler semanal de vehículo a motor - Picop con barra antivuelco y ganchos | K91: 3 | L91: Each | M91: 664.2 | O91: 664.2 | P91: 2015-10-05 | Q91: 2015-10-26
A92: 2015-10-14T08:44:08 | B92: 745638 | C92: 341636 | D92: RUIZ ORTEGA, JORGE LUIS | E92: 2015-10-14T10:01:51 | F92: 29716 | G92: AV.EAEB-MA | H92: 4 | I92: ENO - Cuadrilla -S1 - AB0176 - José Calvo - Jorge Carrasco - 272-4440 | J92: Lote E - Servicio de alquiler trimestral de vehículo a motor - Picop con barra antivuelco y ganchos | K92: 1 | L92: Mo | M92: 2839.44 | O92: 2839.44 | P92: 2015-10-01 | Q92: 2015-12-30
A93: 2015-10-14T08:54:17 | B93: 745643 | C93: 341638 | D93: RUIZ ORTEGA, JORGE LUIS | E93: 2015-10-14T10:50:45 | F93: 29716 | G93: AV.EAEB-MA | H93: 4 | I93: ENO - Cuadrilla -S2 - AA2623 - Roquel Cárdenas - Jorge Carrasco - 272-4440 | J93: Lote E - Servicio de alquiler trimestral de vehículo a motor - Picop con barra antivuelco y ganchos | K93: 1 | L93: Mo | M93: 2839.44 | O93: 2839.44 | P93: 2015-10-01 | Q93: 2015-12-30
A94: 2015-10-14T09:01:42 | B94: 745652 | C94: 341639 | D94: RUIZ ORTEGA, JORGE LUIS | E94: 2015-10-14T10:50:57 | F94: 29716 | G94: AV.EAEB-MA | H94: 4 | I94: ENO - Cuadrilla -S2 - AA2624 - Roquel Cárdenas - Jorge Carrasco - 272-4440 | J94: Lote E - Servicio de alquiler trimestral de vehículo a motor - Picop con barra antivuelco y ganchos | K94: 1 | L94: Mo | M94: 2839.44 | O94: 2839.44 | P94: 2015-10-01 | Q94: 2015-12-30
A95: 2015-10-14T09:09:05 | B95: 745656 | C95: 341642 | D95: RUIZ ORTEGA, JORGE LUIS | E95: 2015-10-14T10:51:04 | F95: 29716 | G95: AV.EAEB-MA | H95: 4 | I95: ENO - Cuadrilla -S6 - AA2629 - Oscar Martínez - Jorge Carrasco - 272-4440 | J95: Lote E - Servicio de alquiler trimestral de vehículo a motor - Picop con barra antivuelco y ganchos | K95: 1 | L95: Mo | M95: 2839.44 | O95: =+M95-N95 -> 2839.44 | P95: 2015-10-01 | Q95: 2015-12-30
A96: 2015-10-14T09:17:35 | B96: 745842 | C96: 341643 | D96: HOOKER, ANDREA IVETTE DE | E96: 2015-10-14T10:51:16 | F96: 29716 | G96: AV.OPRT | H96: 1 | I96: Veh 6002 - Jaime José Gonzalez - 276-1192 | J96: Lote D - Servicio de alquiler semanal de vehículo a motor - Picop | K96: 1 | L96: Each | M96: 221.4 | O96: 221.4 | P96: 2015-10-11 | Q96: 2015-10-18
A97: 2015-10-14T09:40:35 | B97: 745659 | C97: 341652 | D97: RUIZ ORTEGA, JORGE LUIS | E97: 2015-10-14T10:51:10 | F97: 29716 | G97: AV.EAEB-MA | H97: 4 | I97: ENO - Cuadrilla -S3 - AB9017 - Vicente Morgan - Jorge Carrasco - 272-4440 | J97: Lote E - Servicio de alquiler trimestral de vehículo a motor - Picop con barra antivuelco y ganchos | K97: 1 | L97: Mo | M97: 2839.44 | O97: 2839.44 | P97: 2015-10-01 | Q97: 2015-12-30
A98: 2015-10-14T10:12:10 | B98: 745660 | C98: 341662 | D98: RUIZ ORTEGA, JORGE LUIS | E98: 2015-10-14T10:51:41 | F98: 29716 | G98: AV.EAEB-MA | H98: 4 | I98: ENO - Cuadrilla -S3 - AG1048 - Vicente Morgan - Jorge Carrasco - 272-4440 | J98: Lote E - Servicio de alquiler trimestral de vehículo a motor - Picop con barra antivuelco y ganchos | K98: 1 | L98: Mo | M98: 2839.44 | O98: 2839.44 | P98: 2015-10-01 | Q98: 2015-12-30
A99: 2015-10-14T10:20:56 | B99: 745661 | C99: 341667 | D99: RUIZ ORTEGA, JORGE LUIS | E99: 2015-10-14T10:52:12 | F99: 29716 | G99: AV.EAEB-MA | H99: 4 | I99: ENO - Apoyo de Supervisores, Jefes de Unidad, Personal Administrativos - AA4047 - Jorge Carrasco - 272-4440 | J99: Lote E - Servicio de alquiler trimestral de vehículo a motor - Picop con barra antivuelco y ganchos | K99: 1 | L99: Mo | M99: 2839.44 | O99: 2839.44 | P99: 2015-10-01 | Q99: 2015-12-30
A100: 2015-10-14T15:46:25 | B100: 746330 | C100: 341769 | D100: PIMENTEL ARAUZ, MARIA ISABEL | E100: 2015-10-15T07:00:45 | F100: 29716 | G100: AV.CCXR | H100: 3 | I100: Viaje a Santiago - Dania Rosas - 272-7288 | J100: Lote B - Servicio de alquiler diario de vehículo a motor - camioneta 4 x 4 | K100: 4 | L100: Each | M100: 199.6 | O100: 199.6 | P100: 2015-10-14 | Q100: 2015-10-16
A101: 2015-10-16T14:35:37 | B101: 747259 | C101: 341968 | D101: GONZALEZ ATENCIO, LETICIA PORTOLATINA | E101: 2015-10-16T17:29:52 | F101: 29716 | G101: AV.OPPV | H101: 1 | I101: Veh 8214 - Pedro Chen - 276-1054 | J101: Lote D - Servicio de alquiler semanal de vehículo a motor - Picop | K101: 2 | L101: Each | M101: 442.8 | O101: 442.8 | P101: 2015-10-15 | Q101: 2015-10-29
A102: 2015-10-16T14:42:23 | B102: 747266 | C102: 341970 | D102: GONZALEZ ATENCIO, LETICIA PORTOLATINA | E102: 2015-10-16T17:30:26 | F102: 29716 | G102: AV.OPPV | H102: 1 | I102: Veh 8822 - AT8861 - Franklin Justiniani - 276-1541 | J102: Lote D - Servicio de alquiler semanal de vehículo a motor - Picop | K102: 2 | L102: Each | M102: 442.8 | O102: 442.8 | P102: 2015-10-19 | Q102: 2015-11-02
A103: 2015-10-16T14:49:15 | B103: 747276 | C103: 341971 | D103: GONZALEZ ATENCIO, LETICIA PORTOLATINA | E103: 2015-10-16T17:30:21 | F103: 29716 | G103: AV.OPPV | H103: 1 | I103: Veh 9402 - Pedro Chen - 276-1054 | J103: Lote D - Servicio de alquiler semanal de vehículo a motor - Picop | K103: 2 | L103: Each | M103: 442.8 | O103: 442.8 | P103: 2015-10-16 | Q103: 2015-10-30
A104: 2015-10-20T09:22:48 | B104: 747280 | C104: 342096 | D104: GONZALEZ ATENCIO, LETICIA PORTOLATINA | E104: 2015-10-21T08:09:04 | F104: 29716 | G104: AV.OPPV | H104: 1 | I104: Veh 9398 - Pedro Chen - 276-1054 | J104: Lote D - Servicio de alquiler semanal de vehículo a motor - Picop | K104: 4 | L104: Each | M104: 885.6 | O104: 885.6 | P104: 2015-10-18 | Q104: 2015-11-15
A105: 2015-10-21T11:31:44 | B105: 747889 | C105: 342153 | D105: CAROPRESSO G, AURAY MILAGROS | E105: 2015-10-22T07:37:43 | F105: 29716 | G105: AV.OPEP-PM | H105: 1 | I105: Veh 9391 - Carlos Espinosa - 276-7688 | J105: Lote E - Servicio de alquiler semanal de vehículo a motor - Picop con barra antivuelco y ganchos | K105: 2 | L105: Each | M105: 442.8 | O105: 442.8 | P105: 2015-10-23 | Q105: 2015-11-06
A106: 2015-10-21T09:01:07 | B106: 747258 | C106: 342197 | D106: ZHANG WU, EUGENIO | E106: 2015-10-21T16:20:45 | F106: 29716 | G106: AV.IAIT | H106: 1 | I106: Veh 9586 - María Vanessa Sáiz - 276-7161 | J106: Lote B - Servicio de alquiler semanal de vehículo a motor - camioneta 4 x 4 | K106: 3 | L106: Each | M106: 898.2 | O106: 898.2 | P106: 2015-10-16 | Q106: 2015-11-06
A107: 2015-10-21T09:42:52 | B107: 746590 | C107: 342209 | D107: HURTADO WESLEY, FLOR CELIA | E107: 2015-10-21T16:21:13 | F107: 29716 | G107: AV.EAEA-AP | H107: 1 | I107: Veh 9658 - Andrew Philps - 276-4640 | J107: Lote E - Servicio de alquiler semanal de vehículo a motor - Picop con barra antivuelco y ganchos | K107: 2 | L107: Each | M107: 442.8 | O107: 442.8 | P107: 2015-10-21 | Q107: 2015-11-04
A108: 2015-10-21T10:02:15 | B108: 746595 | C108: 342215 | D108: HURTADO WESLEY, FLOR CELIA | E108: 2015-10-21T16:22:24 | F108: 29716 | G108: AV.EAEA-AP | H108: 1 | I108: Veh 9880 - Ruben Rose - 276-4641 | J108: Lote E - Servicio de alquiler mensual de vehículo a motor - Picop con barra antivuelco y ganchos | K108: 1 | L108: Each | M108: 996.3 | O108: 996.3 | P108: 2015-10-21 | Q108: 2015-11-20
A109: 2015-10-22T09:31:05 | B109: 747927 | C109: 342314 | D109: SIMITI VALDEZ, EMILY BEATRIZ | E109: 2015-10-22T16:43:26 | F109: 29716 | G109: AV.OPEM-E | H109: 1 | I109: Veh 8843 - Roberto Castillo - 276-3225 | J109: Lote E - Servicio de alquiler semanal de vehículo a motor - Picop con barra antivuelco y ganchos | K109: 2 | L109: Each | M109: 442.8 | O109: 442.8 | P109: 2015-10-26 | Q109: 2015-11-09
A110: 2015-10-23T07:31:57 | B110: 748638 | C110: 342428 | D110: GONZALEZ ATENCIO, LETICIA PORTOLATINA | E110: 2015-10-26T16:01:17 | F110: 29716 | G110: AV.OPPV | H110: 1 | I110: Veh 9404 - Pedro Chen - 276-1054 | J110: Lote D - Servicio de alquiler semanal de vehículo a motor - Picop | K110: 2 | L110: Each | M110: 442.8 | O110: 442.8 | P110: 2015-10-22 | Q110: 2015-11-05
A111: 2015-10-26T09:16:10 | B111: 746411 | C111: 342486 | D111: HURTADO WESLEY, FLOR CELIA | E111: 2015-10-26T16:01:08 | F111: 29716 | G111: AV.EAEB-SE | H111: 1 | I111: Veh 9609 - Abdiel Galvez - 272-3328 | J111: Lote D - Servicio de alquiler diario de vehículo a motor - Picop | K111: 3 | L111: Each | M111: 110.7 | O111: 110.7 | P111: 2015-10-13 | Q111: 2015-10-15
A112: 2015-10-26T14:13:09 | B112: 748649 | C112: 342543 | D112: GONZALEZ ATENCIO, LETICIA PORTOLATINA | E112: 2015-10-26T16:01:45 | F112: 29716 | G112: AV.OPPV | H112: 1 | I112: Veh 9394 - Pedro Chen - 276-1054 | J112: Lote D - Servicio de alquiler semanal de vehículo a motor - Picop | K112: 4 | L112: Each | M112: 885.6 | O112: 885.6 | P112: 2015-10-23 | Q112: 2015-11-20
A113: 2015-10-26T14:20:13 | B113: 748675 | C113: 342549 | D113: GONZALEZ ATENCIO, LETICIA PORTOLATINA | E113: 2015-10-26T16:01:55 | F113: 29716 | G113: AV.OPPV | H113: 1 | I113: Veh 8212 - Pedro Chen - 276-1054 | J113: Lote D - Servicio de alquiler semanal de vehículo a motor - Picop | K113: 2 | L113: Each | M113: 442.8 | O113: 442.8 | P113: 2015-10-22 | Q113: 2015-11-05
A114: 2015-10-26T15:12:41 | B114: 748892 | C114: 342572 | D114: BERNUIL ZAMBRANO, OSCAR | E114: 2015-10-26T16:02:01 | F114: 29716 | G114: AV.RHSR-CP | H114: 3 | I114: Traslado a especialistas RHSR-CP a Gatún, Colón - Yimara Gonzalez - 272-8336| | J114: Lote B - Servicio de alquiler diario de vehículo a motor - camioneta 4 x 4 | K114: 1 | L114: Each | M114: 49.9 | O114: 49.9 | P114: 2015-10-28 | Q114: 2015-10-28
A115: 2015-10-28T09:44:24 | B115: 749630 | C115: 342789 | D115: GONZALEZ ATENCIO, LETICIA PORTOLATINA | E115: 2015-10-28 | F115: 29716 | G115: AV.OPPV | H115: 1 | I115: Veh 6761 - Pedro Chen - 276-1054 | J115: Lote D - Servicio de alquiler semanal de vehículo a motor - Picop | K115: 2 | L115: Each | M115: 442.8 | O115: 442.8 | P115: 2015-10-27 | Q115: 2015-11-10
A116: 2015-10-28T13:36:54 | B116: 749700 | C116: 342813 | D116: SIMITI VALDEZ, EMILY BEATRIZ | E116: 2015-10-28T15:05:52 | F116: 29716 | G116: AV.OPEM-E | H116: 1 | I116: Veh 8071/8101 - Roberto Castillo - 276-3225 | J116: Lote E - Servicio de alquiler semanal de vehículo a motor - Picop con barra antivuelco y ganchos | K116: 2 | L116: Each | M116: 442.8 | O116: 442.8 | P116: 2015-11-11 | Q116: 2015-11-25
A117: 2015-10-29T07:36:41 | B117: 749032 | C117: 342842 | D117: BARSALLO TOUREAU, KARINA MINERVA | E117: 2015-11-02T06:52:35 | F117: 29716 | G117: AV.TIOD | H117: 1 | I117: Veh 9580 - Elmer Vaca - 276-2412 | J117: Lote D - Servicio de alquiler semanal de vehículo a motor - Picop | K117: 1 | L117: Each | M117: 221.4 | O117: 221.4
A118: 2015-11-06T11:40:18 | B118: 749854 | C118: 343278 | D118: SMITH DREW, DIVA LYRNA | E118: 2015-11-09T10:07:22 | F118: 29716 | G118: AV.RHS-ENL | H118: 3 | I118: Viaje CSS de Enlace - Monte Esperanza - Dewyer Valdes - 272-8815 | J118: Lote B - Servicio de alquiler diario de vehículo a motor - camioneta 4 x 4 | K118: 2 | L118: Each | M118: 99.8 | O118: 99.8 | P118: 2015-11-12 | Q118: 2015-11-13
A119: 2015-11-09T10:06:42 | B119: 746712 | C119: 343321 | D119: RUIZ ORTEGA, JORGE LUIS | E119: 2015-11-09T14:22:16 | F119: 29716 | G119: AV.EAEG-GT | H119: 1 | I119: Veh 9532 - Mario Rangel - 272-4431 | J119: Lote D - Servicio de alquiler semanal de vehículo a motor - Picop | K119: 1 | L119: Each | M119: 221.4 | O119: 221.4 | P119: 2015-11-09 | Q119: 2015-11-16
A120: 2015-11-09T12:51:50 | B120: 750904 | C120: 343339 | D120: SIMITI VALDEZ, EMILY BEATRIZ | E120: 2015-11-09T15:17:00 | F120: 29716 | G120: AV.OPEM-E | H120: 1 | I120: Veh 9663 - Olga Perea - 276-2851 | J120: Lote E - Servicio de alquiler semanal de vehículo a motor - Picop con barra antivuelco y ganchos | K120: 3 | L120: Each | M120: 664.2 | O120: 664.2 | P120: 2015-11-12 | Q120: 2015-12-03
A121: 2015-11-09T12:56:59 | B121: 750674 | C121: 343340 | D121: SIMITI VALDEZ, EMILY BEATRIZ | E121: 2015-11-09T15:17:41 | F121: 29716 | G121: AV.OPEM-E | H121: 1 | I121: Veh 8117 - Olga Perea - 276-2851 | J121: Lote E - Servicio de alquiler semanal de vehículo a motor - Picop con barra antivuelco y ganchos | K121: 1 | L121: Each | M121: 221.4 | O121: 221.4 | P121: 2015-11-16 | Q121: 2015-11-23
A122: 2015-11-09T15:25:44 | B122: 751652 | C122: 343361 | D122: PEREA ROJAS, MONICA ISABEL | E122: 2015-11-13T13:16:19 | F122: 29716 | G122: AV.OPRD | H122: 1 | I122: 4 TIP - José Perivancich - 276-2496 | J122: Lote B - Servicio de alquiler semanal de vehículo a motor - camioneta 4 x 4 | K122: 4 | L122: Each | M122: 1197.6 | O122: 1197.6 | P122: 2015-11-11 | Q122: 2015-11-18
A123: 2015-11-11T07:52:36 | B123: 750766 | C123: 343373 | D123: GONZALEZ ATENCIO, LETICIA PORTOLATINA | E123: 2015-11-11T15:15:14 | F123: 29716 | G123: AV.OPPV | H123: 1 | I123: Veh 9403 - Pedro Chen - 276-1054 | J123: Lote D - Servicio de alquiler semanal de vehículo a motor - Picop | K123: 2 | L123: Each | M123: 442.8 | O123: 442.8 | P123: 2015-10-30 | Q123: 2015-11-14
A124: 2015-11-11T08:17:25 | B124: 750798 | C124: 343377 | D124: GONZALEZ ATENCIO, LETICIA PORTOLATINA | E124: 2015-11-16T10:58:27 | F124: 29716 | G124: AV.OPPV | H124: 1 | I124: Veh 9402 - Pedro Chen - 276-1054 | J124: Lote D - Servicio de alquiler semanal de vehículo a motor - Picop | K124: 4 | L124: Each | M124: 885.6 | O124: 885.6 | P124: 2015-10-30 | Q124: 2015-11-29
A125: 2015-11-11T08:28:10 | B125: 750734 | C125: 343379 | D125: GONZALEZ ATENCIO, LETICIA PORTOLATINA | E125: 2015-11-16T10:58:35 | F125: 29716 | G125: AV.OPPV | H125: 1 | I125: Veh 8213 - Pedro Chen - 276-1054 | J125: Lote D - Servicio de alquiler semanal de vehículo a motor - Picop | K125: 1 | L125: Each | M125: 221.4 | O125: 221.4 | P125: 2015-10-29 | Q125: 2015-11-05
A126: 2015-11-11T08:44:53 | B126: 750772 | C126: 343384 | D126: GONZALEZ ATENCIO, LETICIA PORTOLATINA | E126: 2015-11-11T15:15:09 | F126: 29716 | G126: AV.OPPV | H126: 1 | I126: Veh 9401 - Pedro Chen - 276-1054 | J126: Lote D - Servicio de alquiler semanal de vehículo a motor - Picop | K126: 4 | L126: Each | M126: 885.6 | O126: 885.6 | P126: 2015-10-30 | Q126: 2015-11-29
A127: 2015-11-11T08:52:06 | B127: 750774 | C127: 343386 | D127: GONZALEZ ATENCIO, LETICIA PORTOLATINA | E127: 2015-11-11T15:15:04 | F127: 29716 | G127: AV.OPPV | H127: 1 | I127: Veh 9397 - Pedro Chen - 276-1054 | J127: Lote D - Servicio de alquiler semanal de vehículo a motor - Picop | K127: 4 | L127: Each | M127: 885.6 | O127: 885.6 | P127: 2015-10-30 | Q127: 2015-11-29
A128: 2015-11-11T08:57:48 | B128: 750776 | C128: 343389 | D128: GONZALEZ ATENCIO, LETICIA PORTOLATINA | E128: 2015-11-11T15:14:59 | F128: 29716 | G128: AV.OPPV | H128: 3 | I128: Ruta de Ampliación en el Atlántico - Pedro Chen - 276-1054 | J128: Lote D - Servicio de alquiler semanal de vehículo a motor - Picop | K128: 4 | L128: Each | M128: 885.6 | O128: 885.6 | P128: 2015-10-30 | Q128: 2015-11-29
A129: 2015-11-11T09:02:10 | B129: 750780 | C129: 343391 | D129: GONZALEZ ATENCIO, LETICIA PORTOLATINA | E129: 2015-11-11T15:14:51 | F129: 29716 | G129: AV.OPPV | H129: 3 | I129: Ruta de Ampliación en el Atlántico - Pedro Chen - 276-1054 | J129: Lote D - Servicio de alquiler semanal de vehículo a motor - Picop | K129: 4 | L129: Each | M129: 885.6 | O129: 885.6 | P129: 2015-10-31 | Q129: 2015-11-30
A130: 2015-11-11T09:37:10 | B130: 750845 | C130: 343401 | D130: GONZALEZ ATENCIO, LETICIA PORTOLATINA | E130: 2015-11-11T15:14:45 | F130: 29716 | G130: AV.OPPV | H130: 1 | I130: Veh 8822 - AT8861 - Franklin Justiniani - 276-1541 | J130: Lote D - Servicio de alquiler semanal de vehículo a motor - Picop | K130: 2 | L130: Each | M130: 442.8 | O130: 442.8 | P130: 2015-11-02 | Q130: 2015-11-16
A131: 2015-11-11T09:59:18 | B131: 750865 | C131: 343405 | D131: GONZALEZ ATENCIO, LETICIA PORTOLATINA | E131: 2015-11-11T15:14:38 | F131: 29716 | G131: AV.OPPV | H131: 1 | I131: Veh 9393 - Pedro Chen - 276-1054 | J131: Lote D - Servicio de alquiler semanal de vehículo a motor - Picop | K131: 2 | L131: Each | M131: 442.8 | O131: 442.8 | P131: 2015-10-31 | Q131: 2015-11-14
A132: 2015-11-11T10:04:51 | B132: 750850 | C132: 343407 | D132: GONZALEZ ATENCIO, LETICIA PORTOLATINA | E132: 2015-11-11T15:14:32 | F132: 29716 | G132: AV.OPPV | H132: 1 | I132: Veh 9404 - Pedro Chen - 276-1054 | J132: Lote D - Servicio de alquiler semanal de vehículo a motor - Picop | K132: 1 | L132: Each | M132: 221.4 | O132: 221.4 | P132: 2015-11-05 | Q132: 2015-11-12
A133: 2015-11-11T10:09:29 | B133: 750857 | C133: 343410 | D133: GONZALEZ ATENCIO, LETICIA PORTOLATINA | E133: 2015-11-11T15:14:20 | F133: 29716 | G133: AV.OPPV | H133: 1 | I133: Veh 8212 - Pedro Chen - 276-1054 | J133: Lote D - Servicio de alquiler semanal de vehículo a motor - Picop | K133: 1 | L133: Each | M133: 221.4 | O133: 221.4 | P133: 2015-11-05 | Q133: 2015-11-12
A134: 2015-11-12T09:02:17 | B134: 749773 | C134: 343476 | D134: MEANA MOUYNES, MARIA LOURDES | E134: 2015-11-16T15:04:00 | F134: 29716 | G134: AV.OPEP-MM | H134: 2 | I134: Proyecto para el Inicio y Pruebas para la puesta en marcha e inicio de operaciones de las esclusas de cocoli y agua clara-Jorge Pitti - 276-8268 | J134: Lote D - Servicio de alquiler mensual de vehículo a motor - Picop | K134: 3 | L134: Each | M134: 2988.9 | O134: 2988.9 | P134: 2015-09-24 | Q134: 2015-12-23
A135: 2015-11-13T08:00:20 | B135: 751603 | C135: 343541 | D135: HURTADO WESLEY, FLOR CELIA | E135: 2015-11-13T14:33:47 | F135: 29716 | G135: AV.EAEG-GT | H135: 1 | I135: Veh 9612 - Maydolee Nuñez - 272-4461 | J135: Lote D - Servicio de alquiler semanal de vehículo a motor - Picop | K135: 2 | L135: Each | M135: 442.8 | O135: 442.8 | P135: 2015-11-06 | Q135: 2015-11-20
A136: 2015-11-13T08:44:16 | B136: 752035 | C136: 343552 | D136: HURTADO WESLEY, FLOR CELIA | E136: 2015-11-13T14:33:07 | F136: 29716 | G136: AV.EAEA-AP | H136: 1 | I136: Veh 9596 - Enrique Otalora - 272-3016 | J136: Lote E - Servicio de alquiler semanal de vehículo a motor - Picop con barra antivuelco y ganchos | K136: 2 | L136: Each | M136: 442.8 | O136: 442.8 | P136: 2015-11-04 | Q136: 2015-11-18
A137: 2015-11-13T09:43:43 | B137: 751608 | C137: 343582 | D137: BARSALLO TOUREAU, KARINA MINERVA | E137: 2015-11-13T14:31:33 | F137: 29716 | G137: AV.TIOD | H137: 1 | I137: Veh 9580 - Elmer Vaca - 276-2412 | J137: Lote E - Servicio de alquiler semanal de vehículo a motor - Picop con barra antivuelco y ganchos | K137: 2 | L137: Each | M137: 442.8 | O137: 442.8 | P137: 2015-11-02 | Q137: 2015-11-23
A138: 2015-11-13T10:53:30 | B138: 748391 | C138: 343592 | D138: SANCHEZ UREÑA, LIZDEYKA MELISSA | E138: 2015-11-13T14:31:19 | F138: 29716 | G138: AV.OPEI | H138: 3 | I138: Viaje Colón - Gatún a -Capacitación del Personal - Cleopatra Campbell - 276-8265 | J138: Lote B - Servicio de alquiler diario de vehículo a motor - camioneta 4 x 4 | K138: 1 | L138: Each | M138: 49.9 | O138: 49.9 | P138: 2015-10-23 | Q138: 2015-10-23
A139: 2015-11-16T08:31:14 | B139: 752046 | C139: 343661 | D139: GONZALEZ ATENCIO, LETICIA PORTOLATINA | E139: 2015-11-16T10:43:27 | F139: 29716 | G139: AV.OPPV | H139: 1 | I139: Veh 6761 - Pedro Chen - 276-1054 | J139: Lote D - Servicio de alquiler semanal de vehículo a motor - Picop | K139: 2 | L139: Each | M139: 442.8 | O139: 442.8 | P139: 2015-11-10 | Q139: 2015-11-23
A140: 2015-11-16T08:36:51 | B140: 752351 | C140: 343663 | D140: GONZALEZ ATENCIO, LETICIA PORTOLATINA | E140: 2015-11-16T10:43:57 | F140: 29716 | G140: AV.OPPV | H140: 1 | I140: Veh 9399 - Pedro Chen - 276-1054 | J140: Lote D - Servicio de alquiler mensual de vehículo a motor - Picop | K140: 4 | L140: Each | M140: 885.6 | O140: 885.6 | P140: 2015-11-12 | Q140: 2015-12-10
A141: 2015-11-16T08:42:04 | B141: 752349 | C141: 343664 | D141: GONZALEZ ATENCIO, LETICIA PORTOLATINA | E141: 2015-11-16T10:44:03 | F141: 29716 | G141: AV.OPPV | H141: 1 | I141: Veh 9393 - Pedro Chen - 276-1054 | J141: Lote D - Servicio de alquiler mensual de vehículo a motor - Picop | K141: 2 | L141: Each | M141: 442.8 | O141: 442.8 | P141: 2015-11-14 | Q141: 2015-11-28
A142: 2015-11-16T08:46:48 | B142: 752347 | C142: 343665 | D142: GONZALEZ ATENCIO, LETICIA PORTOLATINA | E142: 2015-11-16T10:44:10 | F142: 29716 | G142: AV.OPPV | H142: 1 | I142: Veh 8212 - Pedro Chen - 276-1054 | J142: Lote D - Servicio de alquiler mensual de vehículo a motor - Picop | K142: 2 | L142: Each | M142: 442.8 | O142: 442.8 | P142: 2015-11-12 | Q142: 2015-11-26
A143: 2015-11-16T08:51:50 | B143: 752348 | C143: 343666 | D143: GONZALEZ ATENCIO, LETICIA PORTOLATINA | E143: 2015-11-16T10:44:16 | F143: 29716 | G143: AV.OPPV | H143: 1 | I143: Veh 9398 - Pedro Chen - 276-1054 | J143: Lote D - Servicio de alquiler mensual de vehículo a motor - Picop | K143: 2 | L143: Each | M143: 442.8 | O143: 442.8 | P143: 2015-11-15 | Q143: 2015-11-29
A144: 2015-11-16T08:55:14 | B144: 752350 | C144: 343668 | D144: GONZALEZ ATENCIO, LETICIA PORTOLATINA | E144: 2015-11-16T10:44:22 | F144: 29716 | G144: AV.OPPV | H144: 1 | I144: Veh 9403 - Pedro Chen - 276-1054 | J144: Lote D - Servicio de alquiler mensual de vehículo a motor - Picop | K144: 1 | L144: Each | M144: 221.4 | O144: 221.4 | P144: 2015-11-14 | Q144: 2015-11-21
A145: 2015-11-16T09:33:21 | B145: 750895 | C145: 343682 | D145: RODRIGUEZ HERRERA, HELIO JAVIER | E145: 2015-11-17T07:09:58 | F145: 29716 | G145: AV.OPEM-P | H145: 1 | I145: Veh 8804 - en Garantía - Gabriel Vasquez - 276-8226 | J145: Lote E - Servicio de alquiler semanal de vehículo a motor - Picop con barra antivuelco y ganchos | K145: 4 | L145: Each | M145: 885.6 | O145: 885.6 | P145: 2015-11-18 | Q145: 2015-12-15
A146: 2015-11-16T11:32:50 | B146: 751797 | C146: 343709 | D146: SIMITI VALDEZ, EMILY BEATRIZ | F146: 29716 | G146: AV.OPEM-E | H146: 1 | I146: Veh 8843 - Roberto Castillo - 276-3225 | J146: Lote E - Servicio de alquiler semanal de vehículo a motor - Picop con barra antivuelco y ganchos | K146: 2 | L146: Each | M146: 442.8 | O146: 442.8 | P146: 2015-11-10 | Q146: 2015-11-24
A147: 2015-11-16T12:19:43 | B147: 748531 | C147: 343720 | D147: GONZALEZ QUIROS, AIDEE DEL CARMEN | E147: 2015-11-17T07:10:27 | F147: 29716 | G147: AV.OPEM-S | H147: 4 | I147: ENO - Supv Contratos , incorporar un vehículo para que los ROC cuenten con la facilitad de desplazarse a lo largo del Canal - Ana Victoria Rivera - 276-7171-2374 | J147: Lote B - Servicio de alquiler trimestral de vehículo a motor - camioneta 4 x 4 | K147: 1 | L147: Mo | M147: 3705 | O147: 3705 | P147: 2015-11-18 | Q147: 2016-02-17
A148: 2015-11-16T15:11:59 | B148: 752486 | C148: 343750 | D148: BARSALLO TOUREAU, KARINA MINERVA | E148: 2015-11-17T07:10:34 | F148: 29716 | G148: AV.TIOD | H148: 1 | I148: Veh 9580 - Elmer Vaca - 276-2412 | J148: Lote E - Servicio de alquiler semanal de vehículo a motor - Picop con barra antivuelco y ganchos | K148: 3 | L148: Each | M148: 664.2 | O148: 664.2 | P148: 2015-11-16 | Q148: 2015-12-07
A149: 2015-11-17T08:07:59 | B149: 752798 | C149: 343760 | D149: HOOKER, ANDREA IVETTE DE | E149: 2015-11-17T15:11:37 | F149: 29716 | G149: AV.OPRT | H149: 1 | I149: Veh 6002 - Jaime José Gonzalez - 276-1192 | J149: Lote D - Servicio de alquiler diario de vehículo a motor - Picop | K149: 1 | L149: Each | M149: 36.9 | O149: 36.9 | P149: 2015-11-20 | Q149: 2015-11-20
A150: 2015-11-17T08:07:59 | B150: 752798 | C150: 343760 | D150: HOOKER, ANDREA IVETTE DE | E150: 2015-11-17T15:11:37 | F150: 29716 | G150: AV.OPRT | H150: 1 | I150: Veh 6002 - Jaime José Gonzalez - 276-1192 | J150: Lote D - Servicio de alquiler semanal de vehículo a motor - Picop | K150: 1 | L150: Each | M150: 221.4 | O150: 221.4 | P150: 2015-11-21 | Q150: 2015-11-27
A151: 2015-11-17T10:21:29 | B151: 752826 | C151: 343791 | D151: GONZALEZ ATENCIO, LETICIA PORTOLATINA | E151: 2015-11-17T15:11:43 | F151: 29716 | G151: AV.OPPV | H151: 1 | I151: Veh 9404 - Pedro Chen - 276-1054 | J151: Lote D - Servicio de alquiler semanal de vehículo a motor - Picop | K151: 2 | L151: Each | M151: 442.8 | O151: 442.8 | P151: 2015-11-16 | Q151: 2015-11-30
A152: 2015-11-17T11:34:10 | B152: 748328 | C152: 343805 | D152: RODRIGUEZ HERRERA, HELIO JAVIER | E152: 2015-11-18T06:57:04 | F152: 29716 | G152: AV.OPEM-P | H152: 2 | I152: Overhaul de Dic 2015 - Idelsa Botello -276-7297- Selfrido Díaz | J152: Lote E - Servicio de alquiler mensual de vehículo a motor - Picop con barra antivuelco y ganchos | K152: 2 | L152: Each | M152: 1992.6 | O152: 1992.6 | P152: 2015-12-01 | Q152: 2015-12-31
A153: 2015-11-18T13:03:19 | B153: 752544 | C153: 343880 | D153: DELGADO GONZALEZ, FRANCISCO JR | E153: 2015-11-19T07:08:50 | F153: 29716 | G153: AV.IAIT | H153: 1 | I153: Veh 9694 - Cristobal Cerrud - 276-4591 - Jorge Fanovich - 443-5508 | J153: Cargo por entregar (a la ACP o recoger en la ACP) Exclusivo solo para la Ciudad de Colón. | K153: 1 | L153: Each | M153: 20 | O153: 20 | P153: 2015-11-16 | Q153: 2015-12-16
A154: 2015-11-18T13:03:19 | B154: 752544 | C154: 343880 | D154: DELGADO GONZALEZ, FRANCISCO JR | E154: 2015-11-19T07:08:50 | F154: 29716 | G154: AV.IAIT | H154: 1 | I154: Veh 9694 - Cristobal Cerrud - 276-4591 - Jorge Fanovich - 443-5508 | J154: Lote B - Servicio de alquiler mensual de vehículo a motor - camioneta 4 x 4 | K154: 1 | L154: Each | M154: 1300 | O154: 1300 | P154: 2015-11-16 | Q154: 2015-12-16
A155: 2015-11-20T08:19:39 | B155: 753494 | C155: 344037 | D155: GONZALEZ ATENCIO, LETICIA PORTOLATINA | E155: 2015-11-20T10:56:49 | F155: 29716 | G155: AV.OPPV | H155: 1 | I155: Veh 6761 - Pedro Chen - 276-1054 | J155: Lote D - Servicio de alquiler semanal de vehículo a motor - Picop | K155: 4 | L155: Each | M155: 885.6 | O155: 885.6 | P155: 2015-11-24 | Q155: 2015-12-22
A156: 2015-11-20T08:27:16 | B156: 753808 | C156: 344039 | D156: GONZALEZ ATENCIO, LETICIA PORTOLATINA | E156: 2015-11-20T10:57:03 | F156: 29716 | G156: AV.OPPV | H156: 1 | I156: Veh 9395 - Pedro Chen - 276-1054 | J156: Lote D - Servicio de alquiler semanal de vehículo a motor - Picop | K156: 1 | L156: Each | M156: 221.4 | O156: 221.4 | P156: 2015-11-19 | Q156: 2015-11-26
A157: 2015-11-20T08:36:30 | B157: 753813 | C157: 344042 | D157: GONZALEZ ATENCIO, LETICIA PORTOLATINA | E157: 2015-11-20T10:57:17 | F157: 29716 | G157: AV.OPPV | H157: 1 | I157: Veh 9405 - Pedro Chen - 276-1054 | J157: Lote D - Servicio de alquiler semanal de vehículo a motor - Picop | K157: 2 | L157: Each | M157: 442.8 | O157: 442.8 | P157: 2015-11-19 | Q157: 2015-12-03
A158: 2015-11-20T08:40:57 | B158: 753804 | C158: 344043 | D158: BROWN MAYORGA, RICARDO ERNESTO | E158: 2015-11-20T10:57:30 | F158: 29716 | G158: AV.COPR | H158: 1 | I158: Veh 6005 - Ricardo Brown - 272-1427 | J158: Lote B - Servicio de alquiler semanal de vehículo a motor - camioneta 4 x 4 | K158: 2 | L158: Each | M158: 598.8 | O158: 598.8 | P158: 2015-11-19 | Q158: 2015-12-03
A159: 2015-11-20T08:41:48 | B159: 753817 | C159: 344044 | D159: GONZALEZ ATENCIO, LETICIA PORTOLATINA | E159: 2015-11-20T10:57:23 | F159: 29716 | G159: AV.OPPV | H159: 1 | I159: Veh 8214 - Pedro Chen - 276-1054 | J159: Lote D - Servicio de alquiler semanal de vehículo a motor - Picop | K159: 4 | L159: Each | M159: 885.6 | O159: =+M159-N159 -> 885.6 | P159: 2015-11-19 | Q159: 2015-12-17
A160: 2015-11-20T08:52:21 | B160: 753223 | C160: 344048 | D160: BERNUIL ZAMBRANO, OSCAR | E160: 2015-11-23T07:57:28 | F160: 29716 | G160: AV.RHSB | H160: 1 | I160: Veh 6729 - Belkis Botello - 272-8560 | J160: Lote A - Servicio de alquiler mensual de vehículo a motor - modelo sedán | K160: 1 | L160: Each | M160: 618.3 | O160: 618.3 | P160: 2015-11-19 | Q160: 2015-12-18
A161: 2015-11-20T09:08:51 | B161: 752714 | C161: 344051 | D161: BERNUIL ZAMBRANO, OSCAR | E161: 2015-11-23T07:58:34 | F161: 29716 | G161: AV.RHS-ENL | H161: 3 | I161: Viaje al Sector Atlántico - Victoria Arias - 272-8453 | J161: Lote B - Servicio de alquiler diario de vehículo a motor - camioneta 4 x 4 | K161: 1 | L161: Each | M161: 49.9 | O161: 49.9 | P161: 2015-12-04 | Q161: 2015-12-04
A162: 2015-11-23T13:35:54 | B162: 754171 | C162: 344215 | D162: GONZALEZ ATENCIO, LETICIA PORTOLATINA | E162: 2015-11-23T14:13:45 | F162: 29716 | G162: AV.OPPV | H162: 1 | I162: Veh 8822 - AT8861 - Franklin Justiniani - 276-1541 | J162: Lote D - Servicio de alquiler mensual de vehículo a motor - Picop | K162: 2 | L162: Each | M162: 442.8 | O162: 442.8 | P162: 2015-11-20 | Q162: 2015-12-04
A163: 2015-11-23T14:58:08 | B163: 753981 | C163: 344248 | D163: HURTADO WESLEY, FLOR CELIA | E163: 2015-11-24T14:19:37 | F163: 29716 | G163: AV.EAEA-AP | H163: 1 | I163: Veh 9880 - Jessica Brathwaite - 272-4484 | J163: Lote E - Servicio de alquiler semanal de vehículo a motor - Picop con barra antivuelco y ganchos | K163: 4 | L163: Each | M163: 885.6 | O163: 885.6 | P163: 2015-11-20 | Q163: 2015-12-18
A164: 2015-11-24T10:00:32 | B164: 752796 | C164: 344315 | D164: RUIZ ORTEGA, JORGE LUIS | E164: 2015-11-24T14:19:45 | F164: 29716 | G164: AV.EAEB-MA | H164: 1 | I164: Veh 8950 - Jorge Carrasco - 272-4440 | J164: Lote E - Servicio de alquiler mensual de vehículo a motor - Picop con barra antivuelco y ganchos | K164: 1 | L164: Each | M164: 996.3 | O164: 996.3 | P164: 2015-11-25 | Q164: 2015-12-25
A165: 2015-11-25T10:04:43 | B165: 754558 | C165: 344417 | D165: SIMITI VALDEZ, EMILY BEATRIZ | E165: 2015-11-25T13:23:08 | F165: 29716 | G165: AV.OPEM-E | H165: 1 | I165: Veh 8843 - Jeremías Palomeque - 276-1849 | J165: Lote E - Servicio de alquiler semanal de vehículo a motor - Picop con barra antivuelco y ganchos | K165: 1 | L165: Each | M165: 221.4 | O165: 221.4 | P165: 2015-11-23 | Q165: 2015-11-30
A166: 2015-11-26T07:37:31 | B166: 754629 | C166: 344484 | D166: SIMITI VALDEZ, EMILY BEATRIZ | E166: 2015-11-26T08:39:21 | F166: 29716 | G166: AV.OPEM-E | H166: 1 | I166: Veh 8101 - Jeremías Palomeque - 276-1849 | J166: Lote E - Servicio de alquiler semanal de vehículo a motor - Picop con barra antivuelco y ganchos | K166: 2 | L166: Each | M166: 442.8 | O166: 442.8 | P166: 2015-11-25 | Q166: 2015-12-09
A167: 2015-11-26T14:12:14 | B167: 755009 | C167: 344550 | D167: DYKGRAAFF ACOSTA, EMMA LEONI | E167: 2015-11-30T09:48:40 | F167: 29716 | G167: AV.OP | H167: 3 | I167: Asignación Espeical del VPE de OP - Giselle Quiróz -272-4583 | J167: Lote A - Servicio de alquiler diario de vehículo a motor - modelo sedán | K167: 3 | L167: Each | M167: 68.7 | O167: 68.7 | P167: 30 nov, 2 dic, 4 dic 2015
A168: 2015-11-26T15:32:51 | B168: 754881 | C168: 344565 | D168: GONZALEZ ATENCIO, LETICIA PORTOLATINA | E168: 2015-11-30T09:48:31 | F168: 29716 | G168: AV.OPPV | H168: 1 | I168: Veh 8212 - Pedro Chen - 276-1054 | J168: Lote D - Servicio de alquiler semanal de vehículo a motor - Picop | K168: 2 | L168: Each | M168: 442.8 | O168: 442.8 | P168: 2015-11-26 | Q168: 2015-12-10
A169: 2015-11-26T15:43:57 | B169: 754888 | C169: 344567 | D169: GONZALEZ ATENCIO, LETICIA PORTOLATINA | E169: 2015-11-30T09:48:21 | F169: 29716 | G169: AV.OPPV | H169: 1 | I169: Veh 9398 - Pedro Chen - 276-1054 | J169: Lote D - Servicio de alquiler semanal de vehículo a motor - Picop | K169: 2 | L169: Each | M169: 442.8 | O169: 442.8 | P169: 2015-11-29 | Q169: 2015-12-13
A170: 2015-11-30T08:52:41 | B170: 754909 | C170: 344601 | D170: GONZALEZ ATENCIO, LETICIA PORTOLATINA | E170: 2015-11-30T09:48:10 | F170: 29716 | G170: AV.OPPV | H170: 1 | I170: Veh 9395 - Pedro Chen - 276-1054 | J170: Lote D - Servicio de alquiler semanal de vehículo a motor - Picop | K170: 1 | L170: Each | M170: 221.4 | O170: 221.4 | P170: 2015-11-26 | Q170: 2015-12-03
A171: 2015-11-30T09:04:51 | B171: 754897 | C171: 344604 | D171: GONZALEZ ATENCIO, LETICIA PORTOLATINA | E171: 2015-11-30T09:48:01 | F171: 29716 | G171: AV.OPPV | H171: 1 | I171: Veh 9393 - Pedro Chen - 276-1054 | J171: Lote D - Servicio de alquiler semanal de vehículo a motor - Picop | K171: 2 | L171: Each | M171: 442.8 | O171: 442.8 | P171: 2015-11-28 | Q171: 2015-12-12
A172: 2015-11-30T09:14:25 | B172: 754900 | C172: 344606 | D172: GONZALEZ ATENCIO, LETICIA PORTOLATINA | E172: 2015-11-30T09:47:50 | F172: 29716 | G172: AV.OPPV | H172: 1 | I172: Veh 9402 - Pedro Chen - 276-1054 | J172: Lote D - Servicio de alquiler semanal de vehículo a motor - Picop | K172: 1 | L172: Each | M172: 221.4 | O172: 221.4 | P172: 2015-11-29 | Q172: 2015-12-06
A173: 2015-11-30T09:39:48 | B173: 755059 | C173: 344615 | D173: UNG HO, ISABEL TELMA | E173: 2015-11-30T15:52:38 | F173: 29716 | G173: AV.TIOD | H173: 1 | I173: Veh 8392 - Luis Velásquez - 276-4135 | J173: Lote D - - Servicios de alquiler mensual de vehículo a motor - Picop | K173: 1 | L173: Each | M173: 996.3 | O173: 996.3 | P173: 2015-12-01 | Q173: 2015-12-31
